Workbook

Sheet Rodikliai
Z2: Įrašykite arba pasirinkite savivaldybę arba apskritį: | AF2: Pasirinkite savivaldybę arba apskritį palyginimui
R3: Vilniaus m. sav.
R4: Vilniaus apskritis | Z4: Šaltiniai: Valstybės duomenų agentūra, Registrų centras, Valstybinė mokesčių inspekcija ir Inovacijų agentūros skaičiavimai
B6: Administracinė teritorija | C6: Rodiklis | D6: 2010 | E6: 2011 | F6: 2012 | G6: 2013 | H6: 2014 | I6: 2015 | J6: 2016 | K6: 2017 | L6: 2018 | M6: 2019 | N6: 2020 | O6: 2021 | P6: 2022 | Q6: 2023 | R6: helper 1 | S6: helper 2 | T6: helper 3 | U6: helper 4 | V6: helper 5 | W6: LThelper1 | X6: LThepler2 | Z6: Administracinė teritorija | AA6: Rodiklis | AB6: 2010 | AC6: 2011 | AD6: 2012 | AE6: 2013 | AF6: 2014 | AG6: 2015 | AH6: 2016 | AI6: 2017 | AJ6: 2018 | AK6: =+AJ6+1 -> 2019 | AL6: =+AK6+1 -> 2020 | AM6: =+AL6+1 -> 2021 | AN6: =+AM6+1 -> 2022 | AO6: =+AN6+1 -> 2023
B7: Lietuvos Respublika | C7: Neišregistruotų juridinių asmenų skaičius metų pradžioje | vnt. | D7: 181574 | E7: 184714 | F7: 191882 | G7: 203557 | H7: 213846 | I7: 223644 | J7: 228925 | K7: 222066 | L7: 228625 | M7: 235554 | N7: 243459 | O7: 253197 | P7: 258399 | Q7: =HLOOKUP(B7,'[1]2023_neišreg'!$B$2:$BT$23,22,FALSE) -> 250338 | R7: =ROWS($R$7:R7) -> 1 | S7: =IF(ISNUMBER(SEARCH($R$3,B7)),R7,"") ->  | T7: =IF(ISERROR(SMALL($S$7:$S$1504,ROWS($S$7:S7))),"",SMALL($S$7:$S$1504,ROWS($S$7:S7))) -> 70 | U7: =IF($R$4=B7,R7,"") ->  | V7: =IF(ISERROR(SMALL($U$7:$U$1504,ROWS(U$7:$U7))),"",SMALL($U$7:$U$1504,ROWS(U$7:$U7))) -> 63 | W7: =IF("Lietuvos Respublika"=B7,R7,"") -> 1 | X7: =IF(ISERROR(SMALL($W$7:$W$1504,ROWS($W$7:W7))),"",SMALL($W$7:$W$1504,ROWS($W$7:W7))) -> 1 | Z7: =IF(ISERROR(INDEX($B$7:$K$1503,$T7,COLUMNS($Z$7:Z7))),"",(INDEX($B$7:$K$1503,$T7,COLUMNS($Z$7:Z7)))) -> Vilniaus m. sav. | AA7: =IF(ISERROR(INDEX($B$7:$K$1503,$T7,COLUMNS($Z$7:AA7))),"",(INDEX($B$7:$K$1503,$T7,COLUMNS($Z$7:AA7)))) -> Neišregistruotų juridinių asmenų skaičius metų pradžioje | vnt. | AB7: =IF(ISERROR(INDEX($B$7:$Q$1503,$T7,COLUMNS($Z$7:AB7))),"",(INDEX($B$7:$Q$1503,$T7,COLUMNS($Z$7:AB7)))) -> 60021 | AC7: =IF(ISERROR(INDEX($B$7:$Q$1503,$T7,COLUMNS($Z$7:AC7))),"",(INDEX($B$7:$Q$1503,$T7,COLUMNS($Z$7:AC7)))) -> 62033 | AD7: =IF(ISERROR(INDEX($B$7:$Q$1503,$T7,COLUMNS($Z$7:AD7))),"",(INDEX($B$7:$Q$1503,$T7,COLUMNS($Z$7:AD7)))) -> 65950 | AE7: =IF(ISERROR(INDEX($B$7:$Q$1503,$T7,COLUMNS($Z$7:AE7))),"",(INDEX($B$7:$Q$1503,$T7,COLUMNS($Z$7:AE7)))) -> 72477 | AF7: =IF(ISERROR(INDEX($B$7:$Q$1503,$T7,COLUMNS($Z$7:AF7))),"",(INDEX($B$7:$Q$1503,$T7,COLUMNS($Z$7:AF7)))) -> 78380 | AG7: =IF(ISERROR(INDEX($B$7:$Q$1503,$T7,COLUMNS($Z$7:AG7))),"",(INDEX($B$7:$Q$1503,$T7,COLUMNS($Z$7:AG7)))) -> 84455 | AH7: =IF(ISERROR(INDEX($B$7:$Q$1503,$T7,COLUMNS($Z$7:AH7))),"",(INDEX($B$7:$Q$1503,$T7,COLUMNS($Z$7:AH7)))) -> 87443 | AI7: =IF(ISERROR(INDEX($B$7:$Q$1503,$T7,COLUMNS($Z$7:AI7))),"",(INDEX($B$7:$Q$1503,$T7,COLUMNS($Z$7:AI7)))) -> 86420 | AJ7: =IF(ISERROR(INDEX($B$7:$Q$1503,$T7,COLUMNS($Z$7:AJ7))),"",(INDEX($B$7:$Q$1503,$T7,COLUMNS($Z$7:AJ7)))) -> 89789 | AK7: =IF(ISERROR(INDEX($B$7:$Q$1503,$T7,COLUMNS($Z$7:AK7))),"",(INDEX($B$7:$Q$1503,$T7,COLUMNS($Z$7:AK7)))) -> 93043 | AL7: =IF(ISERROR(INDEX($B$7:$Q$1503,$T7,COLUMNS($Z$7:AL7))),"",(INDEX($B$7:$Q$1503,$T7,COLUMNS($Z$7:AL7)))) -> 96518 | AM7: =IF(ISERROR(INDEX($B$7:$Q$1503,$T7,COLUMNS($Z$7:AM7))),"",(INDEX($B$7:$Q$1503,$T7,COLUMNS($Z$7:AM7)))) -> 100701 | AN7: =IF(ISERROR(INDEX($B$7:$Q$1503,$T7,COLUMNS($Z$7:AN7))),"",(INDEX($B$7:$Q$1503,$T7,COLUMNS($Z$7:AN7)))) -> 105301 | AO7: =IF(ISERROR(INDEX($B$7:$Q$1503,$T7,COLUMNS($Z$7:AO7))),"",(INDEX($B$7:$Q$1503,$T7,COLUMNS($Z$7:AO7)))) -> 98540
B8: Alytaus apskritis | C8: Neišregistruotų juridinių asmenų skaičius metų pradžioje | vnt. | D8: 6491 | E8: 6561 | F8: 6793 | G8: 7177 | H8: 7445 | I8: 7724 | J8: 7791 | K8: 7482 | L8: 7630 | M8: 7828 | N8: 8049 | O8: 8325 | P8: 8156 | Q8: =HLOOKUP(B8,'[1]2023_neišreg'!$B$2:$BT$23,22,FALSE) -> 8286 | R8: =ROWS($R$7:R8) -> 2 | T8: =IF(ISERROR(SMALL($S$7:$S$1504,ROWS($S$7:S8))),"",SMALL($S$7:$S$1504,ROWS($S$7:S8))) -> 141 | V8: =IF(ISERROR(SMALL($U$7:$U$1504,ROWS(U$7:$U8))),"",SMALL($U$7:$U$1504,ROWS(U$7:$U8))) -> 134 | X8: =IF(ISERROR(SMALL($W$7:$W$1504,ROWS($W$7:W8))),"",SMALL($W$7:$W$1504,ROWS($W$7:W8))) -> 72 | Z8: =IF(ISERROR(INDEX($B$7:$K$1503,$T8,COLUMNS($Z$7:Z8))),"",(INDEX($B$7:$K$1503,$T8,COLUMNS($Z$7:Z8)))) -> Vilniaus m. sav. | AA8: =IF(ISERROR(INDEX($B$7:$K$1503,$T8,COLUMNS($Z$7:AA8))),"",(INDEX($B$7:$K$1503,$T8,COLUMNS($Z$7:AA8)))) -> Per metus įregistruota juridinių asmenų skaičius | vnt. | AB8: =IF(ISERROR(INDEX($B$7:$Q$1503,$T8,COLUMNS($Z$7:AB8))),"",(INDEX($B$7:$Q$1503,$T8,COLUMNS($Z$7:AB8)))) -> 4001 | AC8: =IF(ISERROR(INDEX($B$7:$Q$1503,$T8,COLUMNS($Z$7:AC8))),"",(INDEX($B$7:$Q$1503,$T8,COLUMNS($Z$7:AC8)))) -> 4865 | AD8: =IF(ISERROR(INDEX($B$7:$Q$1503,$T8,COLUMNS($Z$7:AD8))),"",(INDEX($B$7:$Q$1503,$T8,COLUMNS($Z$7:AD8)))) -> 7369 | AE8: =IF(ISERROR(INDEX($B$7:$Q$1503,$T8,COLUMNS($Z$7:AE8))),"",(INDEX($B$7:$Q$1503,$T8,COLUMNS($Z$7:AE8)))) -> 6918 | AF8: =IF(ISERROR(INDEX($B$7:$Q$1503,$T8,COLUMNS($Z$7:AF8))),"",(INDEX($B$7:$Q$1503,$T8,COLUMNS($Z$7:AF8)))) -> 7205 | AG8: =IF(ISERROR(INDEX($B$7:$Q$1503,$T8,COLUMNS($Z$7:AG8))),"",(INDEX($B$7:$Q$1503,$T8,COLUMNS($Z$7:AG8)))) -> 4450 | AH8: =IF(ISERROR(INDEX($B$7:$Q$1503,$T8,COLUMNS($Z$7:AH8))),"",(INDEX($B$7:$Q$1503,$T8,COLUMNS($Z$7:AH8)))) -> 4520 | AI8: =IF(ISERROR(INDEX($B$7:$Q$1503,$T8,COLUMNS($Z$7:AI8))),"",(INDEX($B$7:$Q$1503,$T8,COLUMNS($Z$7:AI8)))) -> 5116 | AJ8: =IF(ISERROR(INDEX($B$7:$Q$1503,$T8,COLUMNS($Z$7:AJ8))),"",(INDEX($B$7:$Q$1503,$T8,COLUMNS($Z$7:AJ8)))) -> 5014 | AK8: =IF(ISERROR(INDEX($B$7:$Q$1503,$T8,COLUMNS($Z$7:AK8))),"",(INDEX($B$7:$Q$1503,$T8,COLUMNS($Z$7:AK8)))) -> 5353 | AL8: =IF(ISERROR(INDEX($B$7:$Q$1503,$T8,COLUMNS($Z$7:AL8))),"",(INDEX($B$7:$Q$1503,$T8,COLUMNS($Z$7:AL8)))) -> 5405 | AM8: =IF(ISERROR(INDEX($B$7:$Q$1503,$T8,COLUMNS($Z$7:AM8))),"",(INDEX($B$7:$Q$1503,$T8,COLUMNS($Z$7:AM8)))) -> 6473 | AN8: =IF(ISERROR(INDEX($B$7:$Q$1503,$T8,COLUMNS($Z$7:AN8))),"",(INDEX($B$7:$Q$1503,$T8,COLUMNS($Z$7:AN8)))) -> 6737 | AO8: =IF(ISERROR(INDEX($B$7:$Q$1503,$T8,COLUMNS($Z$7:AO8))),"",(INDEX($B$7:$Q$1503,$T8,COLUMNS($Z$7:AO8)))) -> 0
B9: Alytaus m. sav. | C9: Neišregistruotų juridinių asmenų skaičius metų pradžioje | vnt. | D9: 3142 | E9: 3161 | F9: 3256 | G9: 3472 | H9: 3628 | I9: 3786 | J9: 3794 | K9: 3640 | L9: 3673 | M9: 3732 | N9: 3792 | O9: 3858 | P9: 3691 | Q9: =HLOOKUP(B9,'[1]2023_neišreg'!$B$2:$BT$23,22,FALSE) -> 3672 | R9: =ROWS($R$7:R9) -> 3 | T9: =IF(ISERROR(SMALL($S$7:$S$1504,ROWS($S$7:S9))),"",SMALL($S$7:$S$1504,ROWS($S$7:S9))) -> 212 | V9: =IF(ISERROR(SMALL($U$7:$U$1504,ROWS(U$7:$U9))),"",SMALL($U$7:$U$1504,ROWS(U$7:$U9))) -> 205 | X9: =IF(ISERROR(SMALL($W$7:$W$1504,ROWS($W$7:W9))),"",SMALL($W$7:$W$1504,ROWS($W$7:W9))) -> 143 | Z9: =IF(ISERROR(INDEX($B$7:$K$1503,$T9,COLUMNS($Z$7:Z9))),"",(INDEX($B$7:$K$1503,$T9,COLUMNS($Z$7:Z9)))) -> Vilniaus m. sav. | AA9: =IF(ISERROR(INDEX($B$7:$K$1503,$T9,COLUMNS($Z$7:AA9))),"",(INDEX($B$7:$K$1503,$T9,COLUMNS($Z$7:AA9)))) -> Per metus išregistruota juridinių asmenų skaičius | vnt. | AB9: =IF(ISERROR(INDEX($B$7:$Q$1503,$T9,COLUMNS($Z$7:AB9))),"",(INDEX($B$7:$Q$1503,$T9,COLUMNS($Z$7:AB9)))) -> 1970 | AC9: =IF(ISERROR(INDEX($B$7:$Q$1503,$T9,COLUMNS($Z$7:AC9))),"",(INDEX($B$7:$Q$1503,$T9,COLUMNS($Z$7:AC9)))) -> 918 | AD9: =IF(ISERROR(INDEX($B$7:$Q$1503,$T9,COLUMNS($Z$7:AD9))),"",(INDEX($B$7:$Q$1503,$T9,COLUMNS($Z$7:AD9)))) -> 917 | AE9: =IF(ISERROR(INDEX($B$7:$Q$1503,$T9,COLUMNS($Z$7:AE9))),"",(INDEX($B$7:$Q$1503,$T9,COLUMNS($Z$7:AE9)))) -> 950 | AF9: =IF(ISERROR(INDEX($B$7:$Q$1503,$T9,COLUMNS($Z$7:AF9))),"",(INDEX($B$7:$Q$1503,$T9,COLUMNS($Z$7:AF9)))) -> 1046 | AG9: =IF(ISERROR(INDEX($B$7:$Q$1503,$T9,COLUMNS($Z$7:AG9))),"",(INDEX($B$7:$Q$1503,$T9,COLUMNS($Z$7:AG9)))) -> 1341 | AH9: =IF(ISERROR(INDEX($B$7:$Q$1503,$T9,COLUMNS($Z$7:AH9))),"",(INDEX($B$7:$Q$1503,$T9,COLUMNS($Z$7:AH9)))) -> 5423 | AI9: =IF(ISERROR(INDEX($B$7:$Q$1503,$T9,COLUMNS($Z$7:AI9))),"",(INDEX($B$7:$Q$1503,$T9,COLUMNS($Z$7:AI9)))) -> 1597 | AJ9: =IF(ISERROR(INDEX($B$7:$Q$1503,$T9,COLUMNS($Z$7:AJ9))),"",(INDEX($B$7:$Q$1503,$T9,COLUMNS($Z$7:AJ9)))) -> 1666 | AK9: =IF(ISERROR(INDEX($B$7:$Q$1503,$T9,COLUMNS($Z$7:AK9))),"",(INDEX($B$7:$Q$1503,$T9,COLUMNS($Z$7:AK9)))) -> 1736 | AL9: =IF(ISERROR(INDEX($B$7:$Q$1503,$T9,COLUMNS($Z$7:AL9))),"",(INDEX($B$7:$Q$1503,$T9,COLUMNS($Z$7:AL9)))) -> 1114 | AM9: =IF(ISERROR(INDEX($B$7:$Q$1503,$T9,COLUMNS($Z$7:AM9))),"",(INDEX($B$7:$Q$1503,$T9,COLUMNS($Z$7:AM9)))) -> 1642 | AN9: =IF(ISERROR(INDEX($B$7:$Q$1503,$T9,COLUMNS($Z$7:AN9))),"",(INDEX($B$7:$Q$1503,$T9,COLUMNS($Z$7:AN9)))) -> 13353 | AO9: =IF(ISERROR(INDEX($B$7:$Q$1503,$T9,COLUMNS($Z$7:AO9))),"",(INDEX($B$7:$Q$1503,$T9,COLUMNS($Z$7:AO9)))) -> 0
B10: Alytaus r. sav. | C10: Neišregistruotų juridinių asmenų skaičius metų pradžioje | vnt. | D10: 766 | E10: 779 | F10: 810 | G10: 846 | H10: 886 | I10: 928 | J10: 983 | K10: 984 | L10: 1041 | M10: 1101 | N10: 1187 | O10: 1281 | P10: 1307 | Q10: =HLOOKUP(B10,'[1]2023_neišreg'!$B$2:$BT$23,22,FALSE) -> 1393 | R10: =ROWS($R$7:R10) -> 4 | T10: =IF(ISERROR(SMALL($S$7:$S$1504,ROWS($S$7:S10))),"",SMALL($S$7:$S$1504,ROWS($S$7:S10))) -> 283 | V10: =IF(ISERROR(SMALL($U$7:$U$1504,ROWS(U$7:$U10))),"",SMALL($U$7:$U$1504,ROWS(U$7:$U10))) -> 276 | X10: =IF(ISERROR(SMALL($W$7:$W$1504,ROWS($W$7:W10))),"",SMALL($W$7:$W$1504,ROWS($W$7:W10))) -> 214 | Z10: =IF(ISERROR(INDEX($B$7:$K$1503,$T10,COLUMNS($Z$7:Z10))),"",(INDEX($B$7:$K$1503,$T10,COLUMNS($Z$7:Z10)))) -> Vilniaus m. sav. | AA10: =IF(ISERROR(INDEX($B$7:$K$1503,$T10,COLUMNS($Z$7:AA10))),"",(INDEX($B$7:$K$1503,$T10,COLUMNS($Z$7:AA10)))) -> Per metus įregistruota mažų ir vidutinių įmonių | vnt. | AB10: =IF(ISERROR(INDEX($B$7:$Q$1503,$T10,COLUMNS($Z$7:AB10))),"",(INDEX($B$7:$Q$1503,$T10,COLUMNS($Z$7:AB10)))) -> 3308 | AC10: =IF(ISERROR(INDEX($B$7:$Q$1503,$T10,COLUMNS($Z$7:AC10))),"",(INDEX($B$7:$Q$1503,$T10,COLUMNS($Z$7:AC10)))) -> 4241 | AD10: =IF(ISERROR(INDEX($B$7:$Q$1503,$T10,COLUMNS($Z$7:AD10))),"",(INDEX($B$7:$Q$1503,$T10,COLUMNS($Z$7:AD10)))) -> 6742 | AE10: =IF(ISERROR(INDEX($B$7:$Q$1503,$T10,COLUMNS($Z$7:AE10))),"",(INDEX($B$7:$Q$1503,$T10,COLUMNS($Z$7:AE10)))) -> 6205 | AF10: =IF(ISERROR(INDEX($B$7:$Q$1503,$T10,COLUMNS($Z$7:AF10))),"",(INDEX($B$7:$Q$1503,$T10,COLUMNS($Z$7:AF10)))) -> 6546 | AG10: =IF(ISERROR(INDEX($B$7:$Q$1503,$T10,COLUMNS($Z$7:AG10))),"",(INDEX($B$7:$Q$1503,$T10,COLUMNS($Z$7:AG10)))) -> 3747 | AH10: =IF(ISERROR(INDEX($B$7:$Q$1503,$T10,COLUMNS($Z$7:AH10))),"",(INDEX($B$7:$Q$1503,$T10,COLUMNS($Z$7:AH10)))) -> 3948 | AI10: =IF(ISERROR(INDEX($B$7:$Q$1503,$T10,COLUMNS($Z$7:AI10))),"",(INDEX($B$7:$Q$1503,$T10,COLUMNS($Z$7:AI10)))) -> 4486 | AJ10: =IF(ISERROR(INDEX($B$7:$Q$1503,$T10,COLUMNS($Z$7:AJ10))),"",(INDEX($B$7:$Q$1503,$T10,COLUMNS($Z$7:AJ10)))) -> 4460 | AK10: =IF(ISERROR(INDEX($B$7:$Q$1503,$T10,COLUMNS($Z$7:AK10))),"",(INDEX($B$7:$Q$1503,$T10,COLUMNS($Z$7:AK10)))) -> 4761 | AL10: =IF(ISERROR(INDEX($B$7:$Q$1503,$T10,COLUMNS($Z$7:AL10))),"",(INDEX($B$7:$Q$1503,$T10,COLUMNS($Z$7:AL10)))) -> 4815 | AM10: =IF(ISERROR(INDEX($B$7:$Q$1503,$T10,COLUMNS($Z$7:AM10))),"",(INDEX($B$7:$Q$1503,$T10,COLUMNS($Z$7:AM10)))) -> 6047 | AN10: =IF(ISERROR(INDEX($B$7:$Q$1503,$T10,COLUMNS($Z$7:AN10))),"",(INDEX($B$7:$Q$1503,$T10,COLUMNS($Z$7:AN10)))) -> 6041 | AO10: =IF(ISERROR(INDEX($B$7:$Q$1503,$T10,COLUMNS($Z$7:AO10))),"",(INDEX($B$7:$Q$1503,$T10,COLUMNS($Z$7:AO10)))) -> 0
B11: Druskininkų sav. | C11: Neišregistruotų juridinių asmenų skaičius metų pradžioje | vnt. | D11: 1121 | E11: 1151 | F11: 1209 | G11: 1302 | H11: 1354 | I11: 1413 | J11: 1409 | K11: 1328 | L11: 1355 | M11: 1372 | N11: 1376 | O11: 1402 | P11: 1362 | Q11: =HLOOKUP(B11,'[1]2023_neišreg'!$B$2:$BT$23,22,FALSE) -> 1371 | R11: =ROWS($R$7:R11) -> 5 | T11: =IF(ISERROR(SMALL($S$7:$S$1504,ROWS($S$7:S11))),"",SMALL($S$7:$S$1504,ROWS($S$7:S11))) -> 355 | V11: =IF(ISERROR(SMALL($U$7:$U$1504,ROWS(U$7:$U11))),"",SMALL($U$7:$U$1504,ROWS(U$7:$U11))) -> 348 | X11: =IF(ISERROR(SMALL($W$7:$W$1504,ROWS($W$7:W11))),"",SMALL($W$7:$W$1504,ROWS($W$7:W11))) -> 285 | Z11: =IF(ISERROR(INDEX($B$7:$K$1503,$T11,COLUMNS($Z$7:Z11))),"",(INDEX($B$7:$K$1503,$T11,COLUMNS($Z$7:Z11)))) -> Vilniaus m. sav. | AA11: =IF(ISERROR(INDEX($B$7:$K$1503,$T11,COLUMNS($Z$7:AA11))),"",(INDEX($B$7:$K$1503,$T11,COLUMNS($Z$7:AA11)))) -> Per metus išregistruota mažų ir vidutinių įmonių | vnt. | AB11: =IF(ISERROR(INDEX($B$7:$Q$1503,$T11,COLUMNS($Z$7:AB11))),"",(INDEX($B$7:$Q$1503,$T11,COLUMNS($Z$7:AB11)))) -> 2247 | AC11: =IF(ISERROR(INDEX($B$7:$Q$1503,$T11,COLUMNS($Z$7:AC11))),"",(INDEX($B$7:$Q$1503,$T11,COLUMNS($Z$7:AC11)))) -> 1328 | AD11: =IF(ISERROR(INDEX($B$7:$Q$1503,$T11,COLUMNS($Z$7:AD11))),"",(INDEX($B$7:$Q$1503,$T11,COLUMNS($Z$7:AD11)))) -> 1325 | AE11: =IF(ISERROR(INDEX($B$7:$Q$1503,$T11,COLUMNS($Z$7:AE11))),"",(INDEX($B$7:$Q$1503,$T11,COLUMNS($Z$7:AE11)))) -> 1326 | AF11: =IF(ISERROR(INDEX($B$7:$Q$1503,$T11,COLUMNS($Z$7:AF11))),"",(INDEX($B$7:$Q$1503,$T11,COLUMNS($Z$7:AF11)))) -> 1456 | AG11: =IF(ISERROR(INDEX($B$7:$Q$1503,$T11,COLUMNS($Z$7:AG11))),"",(INDEX($B$7:$Q$1503,$T11,COLUMNS($Z$7:AG11)))) -> 1744 | AH11: =IF(ISERROR(INDEX($B$7:$Q$1503,$T11,COLUMNS($Z$7:AH11))),"",(INDEX($B$7:$Q$1503,$T11,COLUMNS($Z$7:AH11)))) -> 5755 | AI11: =IF(ISERROR(INDEX($B$7:$Q$1503,$T11,COLUMNS($Z$7:AI11))),"",(INDEX($B$7:$Q$1503,$T11,COLUMNS($Z$7:AI11)))) -> 1451 | AJ11: =IF(ISERROR(INDEX($B$7:$Q$1503,$T11,COLUMNS($Z$7:AJ11))),"",(INDEX($B$7:$Q$1503,$T11,COLUMNS($Z$7:AJ11)))) -> 1529 | AK11: =IF(ISERROR(INDEX($B$7:$Q$1503,$T11,COLUMNS($Z$7:AK11))),"",(INDEX($B$7:$Q$1503,$T11,COLUMNS($Z$7:AK11)))) -> 1497 | AL11: =IF(ISERROR(INDEX($B$7:$Q$1503,$T11,COLUMNS($Z$7:AL11))),"",(INDEX($B$7:$Q$1503,$T11,COLUMNS($Z$7:AL11)))) -> 987 | AM11: =IF(ISERROR(INDEX($B$7:$Q$1503,$T11,COLUMNS($Z$7:AM11))),"",(INDEX($B$7:$Q$1503,$T11,COLUMNS($Z$7:AM11)))) -> 1350 | AN11: =IF(ISERROR(INDEX($B$7:$Q$1503,$T11,COLUMNS($Z$7:AN11))),"",(INDEX($B$7:$Q$1503,$T11,COLUMNS($Z$7:AN11)))) -> 9497 | AO11: =IF(ISERROR(INDEX($B$7:$Q$1503,$T11,COLUMNS($Z$7:AO11))),"",(INDEX($B$7:$Q$1503,$T11,COLUMNS($Z$7:AO11)))) -> 0
B12: Lazdijų r. sav. | C12: Neišregistruotų juridinių asmenų skaičius metų pradžioje | vnt. | D12: 562 | E12: 565 | F12: 592 | G12: 602 | H12: 625 | I12: 629 | J12: 634 | K12: 620 | L12: 626 | M12: 663 | N12: 700 | O12: 751 | P12: 759 | Q12: =HLOOKUP(B12,'[1]2023_neišreg'!$B$2:$BT$23,22,FALSE) -> 784 | R12: =ROWS($R$7:R12) -> 6 | T12: =IF(ISERROR(SMALL($S$7:$S$1504,ROWS($S$7:S12))),"",SMALL($S$7:$S$1504,ROWS($S$7:S12))) -> 427 | V12: =IF(ISERROR(SMALL($U$7:$U$1504,ROWS(U$7:$U12))),"",SMALL($U$7:$U$1504,ROWS(U$7:$U12))) -> 420 | X12: =IF(ISERROR(SMALL($W$7:$W$1504,ROWS($W$7:W12))),"",SMALL($W$7:$W$1504,ROWS($W$7:W12))) -> 357 | Z12: =IF(ISERROR(INDEX($B$7:$K$1503,$T12,COLUMNS($Z$7:Z12))),"",(INDEX($B$7:$K$1503,$T12,COLUMNS($Z$7:Z12)))) -> Vilniaus m. sav. | AA12: =IF(ISERROR(INDEX($B$7:$K$1503,$T12,COLUMNS($Z$7:AA12))),"",(INDEX($B$7:$K$1503,$T12,COLUMNS($Z$7:AA12)))) -> Veikiančių mažų ir vidutinių įmonių skaičius metų pradžioje | vnt. | AB12: =IF(ISERROR(INDEX($B$7:$Q$1503,$T12,COLUMNS($Z$7:AB12))),"",(INDEX($B$7:$Q$1503,$T12,COLUMNS($Z$7:AB12)))) -> 20753 | AC12: =IF(ISERROR(INDEX($B$7:$Q$1503,$T12,COLUMNS($Z$7:AC12))),"",(INDEX($B$7:$Q$1503,$T12,COLUMNS($Z$7:AC12)))) -> 21816 | AD12: =IF(ISERROR(INDEX($B$7:$Q$1503,$T12,COLUMNS($Z$7:AD12))),"",(INDEX($B$7:$Q$1503,$T12,COLUMNS($Z$7:AD12)))) -> 21047 | AE12: =IF(ISERROR(INDEX($B$7:$Q$1503,$T12,COLUMNS($Z$7:AE12))),"",(INDEX($B$7:$Q$1503,$T12,COLUMNS($Z$7:AE12)))) -> 22659 | AF12: =IF(ISERROR(INDEX($B$7:$Q$1503,$T12,COLUMNS($Z$7:AF12))),"",(INDEX($B$7:$Q$1503,$T12,COLUMNS($Z$7:AF12)))) -> 23958 | AG12: =IF(ISERROR(INDEX($B$7:$Q$1503,$T12,COLUMNS($Z$7:AG12))),"",(INDEX($B$7:$Q$1503,$T12,COLUMNS($Z$7:AG12)))) -> 28081 | AH12: =IF(ISERROR(INDEX($B$7:$Q$1503,$T12,COLUMNS($Z$7:AH12))),"",(INDEX($B$7:$Q$1503,$T12,COLUMNS($Z$7:AH12)))) -> 29670 | AI12: =IF(ISERROR(INDEX($B$7:$Q$1503,$T12,COLUMNS($Z$7:AI12))),"",(INDEX($B$7:$Q$1503,$T12,COLUMNS($Z$7:AI12)))) -> 30531 | AJ12: =IF(ISERROR(INDEX($B$7:$Q$1503,$T12,COLUMNS($Z$7:AJ12))),"",(INDEX($B$7:$Q$1503,$T12,COLUMNS($Z$7:AJ12)))) -> 30213 | AK12: =IF(ISERROR(INDEX($B$7:$Q$1503,$T12,COLUMNS($Z$7:AK12))),"",(INDEX($B$7:$Q$1503,$T12,COLUMNS($Z$7:AK12)))) -> 30516 | AL12: =IF(ISERROR(INDEX($B$7:$Q$1503,$T12,COLUMNS($Z$7:AL12))),"",(INDEX($B$7:$Q$1503,$T12,COLUMNS($Z$7:AL12)))) -> 31392 | AM12: =IF(ISERROR(INDEX($B$7:$Q$1503,$T12,COLUMNS($Z$7:AM12))),"",(INDEX($B$7:$Q$1503,$T12,COLUMNS($Z$7:AM12)))) -> 31618 | AN12: =IF(ISERROR(INDEX($B$7:$Q$1503,$T12,COLUMNS($Z$7:AN12))),"",(INDEX($B$7:$Q$1503,$T12,COLUMNS($Z$7:AN12)))) -> 33781 | AO12: =IF(ISERROR(INDEX($B$7:$Q$1503,$T12,COLUMNS($Z$7:AO12))),"",(INDEX($B$7:$Q$1503,$T12,COLUMNS($Z$7:AO12)))) -> 36228
B13: Varėnos r. sav. | C13: Neišregistruotų juridinių asmenų skaičius metų pradžioje | vnt. | D13: 900 | E13: 905 | F13: 926 | G13: 955 | H13: 952 | I13: 968 | J13: 971 | K13: 910 | L13: 935 | M13: 960 | N13: 994 | O13: 1033 | P13: 1037 | Q13: =HLOOKUP(B13,'[1]2023_neišreg'!$B$2:$BT$23,22,FALSE) -> 1066 | R13: =ROWS($R$7:R13) -> 7 | T13: =IF(ISERROR(SMALL($S$7:$S$1504,ROWS($S$7:S13))),"",SMALL($S$7:$S$1504,ROWS($S$7:S13))) -> 499 | V13: =IF(ISERROR(SMALL($U$7:$U$1504,ROWS(U$7:$U13))),"",SMALL($U$7:$U$1504,ROWS(U$7:$U13))) -> 492 | X13: =IF(ISERROR(SMALL($W$7:$W$1504,ROWS($W$7:W13))),"",SMALL($W$7:$W$1504,ROWS($W$7:W13))) -> 429 | Z13: =IF(ISERROR(INDEX($B$7:$K$1503,$T13,COLUMNS($Z$7:Z13))),"",(INDEX($B$7:$K$1503,$T13,COLUMNS($Z$7:Z13)))) -> Vilniaus m. sav. | AA13: =IF(ISERROR(INDEX($B$7:$K$1503,$T13,COLUMNS($Z$7:AA13))),"",(INDEX($B$7:$K$1503,$T13,COLUMNS($Z$7:AA13)))) -> Veikiančių įmonių skaičius metų pradžioje | vnt. | AB13: =IF(ISERROR(INDEX($B$7:$Q$1503,$T13,COLUMNS($Z$7:AB13))),"",(INDEX($B$7:$Q$1503,$T13,COLUMNS($Z$7:AB13)))) -> 20908 | AC13: =IF(ISERROR(INDEX($B$7:$Q$1503,$T13,COLUMNS($Z$7:AC13))),"",(INDEX($B$7:$Q$1503,$T13,COLUMNS($Z$7:AC13)))) -> 21940 | AD13: =IF(ISERROR(INDEX($B$7:$Q$1503,$T13,COLUMNS($Z$7:AD13))),"",(INDEX($B$7:$Q$1503,$T13,COLUMNS($Z$7:AD13)))) -> 21169 | AE13: =IF(ISERROR(INDEX($B$7:$Q$1503,$T13,COLUMNS($Z$7:AE13))),"",(INDEX($B$7:$Q$1503,$T13,COLUMNS($Z$7:AE13)))) -> 22783 | AF13: =IF(ISERROR(INDEX($B$7:$Q$1503,$T13,COLUMNS($Z$7:AF13))),"",(INDEX($B$7:$Q$1503,$T13,COLUMNS($Z$7:AF13)))) -> 24095 | AG13: =IF(ISERROR(INDEX($B$7:$Q$1503,$T13,COLUMNS($Z$7:AG13))),"",(INDEX($B$7:$Q$1503,$T13,COLUMNS($Z$7:AG13)))) -> 28222 | AH13: =IF(ISERROR(INDEX($B$7:$Q$1503,$T13,COLUMNS($Z$7:AH13))),"",(INDEX($B$7:$Q$1503,$T13,COLUMNS($Z$7:AH13)))) -> 29822 | AI13: =IF(ISERROR(INDEX($B$7:$Q$1503,$T13,COLUMNS($Z$7:AI13))),"",(INDEX($B$7:$Q$1503,$T13,COLUMNS($Z$7:AI13)))) -> 30680 | AJ13: =IF(ISERROR(INDEX($B$7:$Q$1503,$T13,COLUMNS($Z$7:AJ13))),"",(INDEX($B$7:$Q$1503,$T13,COLUMNS($Z$7:AJ13)))) -> 30360 | AK13: =IF(ISERROR(INDEX($B$7:$Q$1503,$T13,COLUMNS($Z$7:AK13))),"",(INDEX($B$7:$Q$1503,$T13,COLUMNS($Z$7:AK13)))) -> 30675 | AL13: =IF(ISERROR(INDEX($B$7:$Q$1503,$T13,COLUMNS($Z$7:AL13))),"",(INDEX($B$7:$Q$1503,$T13,COLUMNS($Z$7:AL13)))) -> 31560 | AM13: =IF(ISERROR(INDEX($B$7:$Q$1503,$T13,COLUMNS($Z$7:AM13))),"",(INDEX($B$7:$Q$1503,$T13,COLUMNS($Z$7:AM13)))) -> 31799 | AN13: =IF(ISERROR(INDEX($B$7:$Q$1503,$T13,COLUMNS($Z$7:AN13))),"",(INDEX($B$7:$Q$1503,$T13,COLUMNS($Z$7:AN13)))) -> 33960 | AO13: =IF(ISERROR(INDEX($B$7:$Q$1503,$T13,COLUMNS($Z$7:AO13))),"",(INDEX($B$7:$Q$1503,$T13,COLUMNS($Z$7:AO13)))) -> 36408
B14: Kauno apskritis | C14: Neišregistruotų juridinių asmenų skaičius metų pradžioje | vnt. | D14: 36592 | E14: 37210 | F14: 38310 | G14: 39948 | H14: 41494 | I14: 42822 | J14: 44015 | K14: 42331 | L14: 43634 | M14: 45034 | N14: 46691 | O14: 48718 | P14: 49681 | Q14: =HLOOKUP(B14,'[1]2023_neišreg'!$B$2:$BT$23,22,FALSE) -> 48154 | R14: =ROWS($R$7:R14) -> 8 | T14: =IF(ISERROR(SMALL($S$7:$S$1504,ROWS($S$7:S14))),"",SMALL($S$7:$S$1504,ROWS($S$7:S14))) -> 570 | V14: =IF(ISERROR(SMALL($U$7:$U$1504,ROWS(U$7:$U14))),"",SMALL($U$7:$U$1504,ROWS(U$7:$U14))) -> 563 | X14: =IF(ISERROR(SMALL($W$7:$W$1504,ROWS($W$7:W14))),"",SMALL($W$7:$W$1504,ROWS($W$7:W14))) -> 501 | Z14: =IF(ISERROR(INDEX($B$7:$K$1503,$T14,COLUMNS($Z$7:Z14))),"",(INDEX($B$7:$K$1503,$T14,COLUMNS($Z$7:Z14)))) -> Vilniaus m. sav. | AA14: =IF(ISERROR(INDEX($B$7:$K$1503,$T14,COLUMNS($Z$7:AA14))),"",(INDEX($B$7:$K$1503,$T14,COLUMNS($Z$7:AA14)))) -> Darbuotojų skaičius veikiančiose mažose ir vidutinėse įmonėse metų pradžioje | vnt. | AB14: =IF(ISERROR(INDEX($B$7:$Q$1503,$T14,COLUMNS($Z$7:AB14))),"",(INDEX($B$7:$Q$1503,$T14,COLUMNS($Z$7:AB14)))) -> 220646 | AC14: =IF(ISERROR(INDEX($B$7:$Q$1503,$T14,COLUMNS($Z$7:AC14))),"",(INDEX($B$7:$Q$1503,$T14,COLUMNS($Z$7:AC14)))) -> 192432 | AD14: =IF(ISERROR(INDEX($B$7:$Q$1503,$T14,COLUMNS($Z$7:AD14))),"",(INDEX($B$7:$Q$1503,$T14,COLUMNS($Z$7:AD14)))) -> 186157 | AE14: =IF(ISERROR(INDEX($B$7:$Q$1503,$T14,COLUMNS($Z$7:AE14))),"",(INDEX($B$7:$Q$1503,$T14,COLUMNS($Z$7:AE14)))) -> 196564 | AF14: =IF(ISERROR(INDEX($B$7:$Q$1503,$T14,COLUMNS($Z$7:AF14))),"",(INDEX($B$7:$Q$1503,$T14,COLUMNS($Z$7:AF14)))) -> 200480 | AG14: =IF(ISERROR(INDEX($B$7:$Q$1503,$T14,COLUMNS($Z$7:AG14))),"",(INDEX($B$7:$Q$1503,$T14,COLUMNS($Z$7:AG14)))) -> 212049 | AH14: =IF(ISERROR(INDEX($B$7:$Q$1503,$T14,COLUMNS($Z$7:AH14))),"",(INDEX($B$7:$Q$1503,$T14,COLUMNS($Z$7:AH14)))) -> 217827 | AI14: =IF(ISERROR(INDEX($B$7:$Q$1503,$T14,COLUMNS($Z$7:AI14))),"",(INDEX($B$7:$Q$1503,$T14,COLUMNS($Z$7:AI14)))) -> 223023 | AJ14: =IF(ISERROR(INDEX($B$7:$Q$1503,$T14,COLUMNS($Z$7:AJ14))),"",(INDEX($B$7:$Q$1503,$T14,COLUMNS($Z$7:AJ14)))) -> 224590 | AK14: =IF(ISERROR(INDEX($B$7:$Q$1503,$T14,COLUMNS($Z$7:AK14))),"",(INDEX($B$7:$Q$1503,$T14,COLUMNS($Z$7:AK14)))) -> 222943 | AL14: =IF(ISERROR(INDEX($B$7:$Q$1503,$T14,COLUMNS($Z$7:AL14))),"",(INDEX($B$7:$Q$1503,$T14,COLUMNS($Z$7:AL14)))) -> 221149 | AM14: =IF(ISERROR(INDEX($B$7:$Q$1503,$T14,COLUMNS($Z$7:AM14))),"",(INDEX($B$7:$Q$1503,$T14,COLUMNS($Z$7:AM14)))) -> 216689 | AN14: =IF(ISERROR(INDEX($B$7:$Q$1503,$T14,COLUMNS($Z$7:AN14))),"",(INDEX($B$7:$Q$1503,$T14,COLUMNS($Z$7:AN14)))) -> 216992 | AO14: =IF(ISERROR(INDEX($B$7:$Q$1503,$T14,COLUMNS($Z$7:AO14))),"",(INDEX($B$7:$Q$1503,$T14,COLUMNS($Z$7:AO14)))) -> 230859
B15: Birštono sav. | C15: Neišregistruotų juridinių asmenų skaičius metų pradžioje | vnt. | D15: 216 | E15: 216 | F15: 222 | G15: 224 | H15: 234 | I15: 244 | J15: 248 | K15: 246 | L15: 267 | M15: 285 | N15: 298 | O15: 306 | P15: 319 | Q15: =HLOOKUP(B15,'[1]2023_neišreg'!$B$2:$BT$23,22,FALSE) -> 325 | R15: =ROWS($R$7:R15) -> 9 | T15: =IF(ISERROR(SMALL($S$7:$S$1504,ROWS($S$7:S15))),"",SMALL($S$7:$S$1504,ROWS($S$7:S15))) -> 641 | V15: =IF(ISERROR(SMALL($U$7:$U$1504,ROWS(U$7:$U15))),"",SMALL($U$7:$U$1504,ROWS(U$7:$U15))) -> 634 | X15: =IF(ISERROR(SMALL($W$7:$W$1504,ROWS($W$7:W15))),"",SMALL($W$7:$W$1504,ROWS($W$7:W15))) -> 572 | Z15: =IF(ISERROR(INDEX($B$7:$K$1503,$T15,COLUMNS($Z$7:Z15))),"",(INDEX($B$7:$K$1503,$T15,COLUMNS($Z$7:Z15)))) -> Vilniaus m. sav. | AA15: =IF(ISERROR(INDEX($B$7:$K$1503,$T15,COLUMNS($Z$7:AA15))),"",(INDEX($B$7:$K$1503,$T15,COLUMNS($Z$7:AA15)))) -> Darbuotojų skaičius veikiančiose įmonėse metų pradžioje | vnt. | AB15: =IF(ISERROR(INDEX($B$7:$Q$1503,$T15,COLUMNS($Z$7:AB15))),"",(INDEX($B$7:$Q$1503,$T15,COLUMNS($Z$7:AB15)))) -> 370515 | AC15: =IF(ISERROR(INDEX($B$7:$Q$1503,$T15,COLUMNS($Z$7:AC15))),"",(INDEX($B$7:$Q$1503,$T15,COLUMNS($Z$7:AC15)))) -> 303804 | AD15: =IF(ISERROR(INDEX($B$7:$Q$1503,$T15,COLUMNS($Z$7:AD15))),"",(INDEX($B$7:$Q$1503,$T15,COLUMNS($Z$7:AD15)))) -> 296663 | AE15: =IF(ISERROR(INDEX($B$7:$Q$1503,$T15,COLUMNS($Z$7:AE15))),"",(INDEX($B$7:$Q$1503,$T15,COLUMNS($Z$7:AE15)))) -> 314042 | AF15: =IF(ISERROR(INDEX($B$7:$Q$1503,$T15,COLUMNS($Z$7:AF15))),"",(INDEX($B$7:$Q$1503,$T15,COLUMNS($Z$7:AF15)))) -> 323015 | AG15: =IF(ISERROR(INDEX($B$7:$Q$1503,$T15,COLUMNS($Z$7:AG15))),"",(INDEX($B$7:$Q$1503,$T15,COLUMNS($Z$7:AG15)))) -> 339027 | AH15: =IF(ISERROR(INDEX($B$7:$Q$1503,$T15,COLUMNS($Z$7:AH15))),"",(INDEX($B$7:$Q$1503,$T15,COLUMNS($Z$7:AH15)))) -> 350764 | AI15: =IF(ISERROR(INDEX($B$7:$Q$1503,$T15,COLUMNS($Z$7:AI15))),"",(INDEX($B$7:$Q$1503,$T15,COLUMNS($Z$7:AI15)))) -> 353527 | AJ15: =IF(ISERROR(INDEX($B$7:$Q$1503,$T15,COLUMNS($Z$7:AJ15))),"",(INDEX($B$7:$Q$1503,$T15,COLUMNS($Z$7:AJ15)))) -> 358469 | AK15: =IF(ISERROR(INDEX($B$7:$Q$1503,$T15,COLUMNS($Z$7:AK15))),"",(INDEX($B$7:$Q$1503,$T15,COLUMNS($Z$7:AK15)))) -> 357993 | AL15: =IF(ISERROR(INDEX($B$7:$Q$1503,$T15,COLUMNS($Z$7:AL15))),"",(INDEX($B$7:$Q$1503,$T15,COLUMNS($Z$7:AL15)))) -> 361636 | AM15: =IF(ISERROR(INDEX($B$7:$Q$1503,$T15,COLUMNS($Z$7:AM15))),"",(INDEX($B$7:$Q$1503,$T15,COLUMNS($Z$7:AM15)))) -> 362206 | AN15: =IF(ISERROR(INDEX($B$7:$Q$1503,$T15,COLUMNS($Z$7:AN15))),"",(INDEX($B$7:$Q$1503,$T15,COLUMNS($Z$7:AN15)))) -> 361777 | AO15: =IF(ISERROR(INDEX($B$7:$Q$1503,$T15,COLUMNS($Z$7:AO15))),"",(INDEX($B$7:$Q$1503,$T15,COLUMNS($Z$7:AO15)))) -> 378169
B16: Jonavos r. sav. | C16: Neišregistruotų juridinių asmenų skaičius metų pradžioje | vnt. | D16: 1741 | E16: 1766 | F16: 1792 | G16: 1833 | H16: 1902 | I16: 1965 | J16: 1955 | K16: 1888 | L16: 1932 | M16: 1966 | N16: 2052 | O16: 2130 | P16: 2132 | Q16: =HLOOKUP(B16,'[1]2023_neišreg'!$B$2:$BT$23,22,FALSE) -> 2075 | R16: =ROWS($R$7:R16) -> 10 | T16: =IF(ISERROR(SMALL($S$7:$S$1504,ROWS($S$7:S16))),"",SMALL($S$7:$S$1504,ROWS($S$7:S16))) -> 712 | V16: =IF(ISERROR(SMALL($U$7:$U$1504,ROWS(U$7:$U16))),"",SMALL($U$7:$U$1504,ROWS(U$7:$U16))) -> 705 | X16: =IF(ISERROR(SMALL($W$7:$W$1504,ROWS($W$7:W16))),"",SMALL($W$7:$W$1504,ROWS($W$7:W16))) -> 643 | Z16: =IF(ISERROR(INDEX($B$7:$K$1503,$T16,COLUMNS($Z$7:Z16))),"",(INDEX($B$7:$K$1503,$T16,COLUMNS($Z$7:Z16)))) -> Vilniaus m. sav. | AA16: =IF(ISERROR(INDEX($B$7:$K$1503,$T16,COLUMNS($Z$7:AA16))),"",(INDEX($B$7:$K$1503,$T16,COLUMNS($Z$7:AA16)))) -> Asmenys, įsigiję verslo liudijimus | vnt. | AB16: =IF(ISERROR(INDEX($B$7:$Q$1503,$T16,COLUMNS($Z$7:AB16))),"",(INDEX($B$7:$Q$1503,$T16,COLUMNS($Z$7:AB16)))) ->  | AC16: =IF(ISERROR(INDEX($B$7:$Q$1503,$T16,COLUMNS($Z$7:AC16))),"",(INDEX($B$7:$Q$1503,$T16,COLUMNS($Z$7:AC16)))) -> 18717 | AD16: =IF(ISERROR(INDEX($B$7:$Q$1503,$T16,COLUMNS($Z$7:AD16))),"",(INDEX($B$7:$Q$1503,$T16,COLUMNS($Z$7:AD16)))) -> 16996 | AE16: =IF(ISERROR(INDEX($B$7:$Q$1503,$T16,COLUMNS($Z$7:AE16))),"",(INDEX($B$7:$Q$1503,$T16,COLUMNS($Z$7:AE16)))) -> 16984 | AF16: =IF(ISERROR(INDEX($B$7:$Q$1503,$T16,COLUMNS($Z$7:AF16))),"",(INDEX($B$7:$Q$1503,$T16,COLUMNS($Z$7:AF16)))) -> 19062 | AG16: =IF(ISERROR(INDEX($B$7:$Q$1503,$T16,COLUMNS($Z$7:AG16))),"",(INDEX($B$7:$Q$1503,$T16,COLUMNS($Z$7:AG16)))) -> 20503 | AH16: =IF(ISERROR(INDEX($B$7:$Q$1503,$T16,COLUMNS($Z$7:AH16))),"",(INDEX($B$7:$Q$1503,$T16,COLUMNS($Z$7:AH16)))) -> 22494 | AI16: =IF(ISERROR(INDEX($B$7:$Q$1503,$T16,COLUMNS($Z$7:AI16))),"",(INDEX($B$7:$Q$1503,$T16,COLUMNS($Z$7:AI16)))) -> 22974 | AJ16: =IF(ISERROR(INDEX($B$7:$Q$1503,$T16,COLUMNS($Z$7:AJ16))),"",(INDEX($B$7:$Q$1503,$T16,COLUMNS($Z$7:AJ16)))) -> 22526 | AK16: =IF(ISERROR(INDEX($B$7:$Q$1503,$T16,COLUMNS($Z$7:AK16))),"",(INDEX($B$7:$Q$1503,$T16,COLUMNS($Z$7:AK16)))) -> 25788 | AL16: =IF(ISERROR(INDEX($B$7:$Q$1503,$T16,COLUMNS($Z$7:AL16))),"",(INDEX($B$7:$Q$1503,$T16,COLUMNS($Z$7:AL16)))) -> 24031 | AM16: =IF(ISERROR(INDEX($B$7:$Q$1503,$T16,COLUMNS($Z$7:AM16))),"",(INDEX($B$7:$Q$1503,$T16,COLUMNS($Z$7:AM16)))) -> 23009 | AN16: =IF(ISERROR(INDEX($B$7:$Q$1503,$T16,COLUMNS($Z$7:AN16))),"",(INDEX($B$7:$Q$1503,$T16,COLUMNS($Z$7:AN16)))) -> 26390 | AO16: =IF(ISERROR(INDEX($B$7:$Q$1503,$T16,COLUMNS($Z$7:AO16))),"",(INDEX($B$7:$Q$1503,$T16,COLUMNS($Z$7:AO16)))) -> 0
B17: Kaišiadorių r. sav. | C17: Neišregistruotų juridinių asmenų skaičius metų pradžioje | vnt. | D17: 1000 | E17: 1016 | F17: 1049 | G17: 1101 | H17: 1143 | I17: 1171 | J17: 1197 | K17: 1176 | L17: 1222 | M17: 1256 | N17: 1309 | O17: 1369 | P17: 1429 | Q17: =HLOOKUP(B17,'[1]2023_neišreg'!$B$2:$BT$23,22,FALSE) -> 1432 | R17: =ROWS($R$7:R17) -> 11 | T17: =IF(ISERROR(SMALL($S$7:$S$1504,ROWS($S$7:S17))),"",SMALL($S$7:$S$1504,ROWS($S$7:S17))) -> 783 | V17: =IF(ISERROR(SMALL($U$7:$U$1504,ROWS(U$7:$U17))),"",SMALL($U$7:$U$1504,ROWS(U$7:$U17))) -> 776 | X17: =IF(ISERROR(SMALL($W$7:$W$1504,ROWS($W$7:W17))),"",SMALL($W$7:$W$1504,ROWS($W$7:W17))) -> 714 | Z17: =IF(ISERROR(INDEX($B$7:$K$1503,$T17,COLUMNS($Z$7:Z17))),"",(INDEX($B$7:$K$1503,$T17,COLUMNS($Z$7:Z17)))) -> Vilniaus m. sav. | AA17: =IF(ISERROR(INDEX($B$7:$K$1503,$T17,COLUMNS($Z$7:AA17))),"",(INDEX($B$7:$K$1503,$T17,COLUMNS($Z$7:AA17)))) -> Veikiančios MVĮ tenkančios 1000 gyventojų metų pradžioje | vnt. | AB17: =IF(ISERROR(INDEX($B$7:$Q$1503,$T17,COLUMNS($Z$7:AB17))),"",(INDEX($B$7:$Q$1503,$T17,COLUMNS($Z$7:AB17)))) -> 38.20571401 | AC17: =IF(ISERROR(INDEX($B$7:$Q$1503,$T17,COLUMNS($Z$7:AC17))),"",(INDEX($B$7:$Q$1503,$T17,COLUMNS($Z$7:AC17)))) -> 40.691851 | AD17: =IF(ISERROR(INDEX($B$7:$Q$1503,$T17,COLUMNS($Z$7:AD17))),"",(INDEX($B$7:$Q$1503,$T17,COLUMNS($Z$7:AD17)))) -> 39.46714572 | AE17: =IF(ISERROR(INDEX($B$7:$Q$1503,$T17,COLUMNS($Z$7:AE17))),"",(INDEX($B$7:$Q$1503,$T17,COLUMNS($Z$7:AE17)))) -> 42.18359049 | AF17: =IF(ISERROR(INDEX($B$7:$Q$1503,$T17,COLUMNS($Z$7:AF17))),"",(INDEX($B$7:$Q$1503,$T17,COLUMNS($Z$7:AF17)))) -> 44.39075276 | AG17: =IF(ISERROR(INDEX($B$7:$Q$1503,$T17,COLUMNS($Z$7:AG17))),"",(INDEX($B$7:$Q$1503,$T17,COLUMNS($Z$7:AG17)))) -> 51.75019258 | AH17: =IF(ISERROR(INDEX($B$7:$Q$1503,$T17,COLUMNS($Z$7:AH17))),"",(INDEX($B$7:$Q$1503,$T17,COLUMNS($Z$7:AH17)))) -> 54.59131948 | AI17: =IF(ISERROR(INDEX($B$7:$Q$1503,$T17,COLUMNS($Z$7:AI17))),"",(INDEX($B$7:$Q$1503,$T17,COLUMNS($Z$7:AI17)))) -> 55.99141725 | AJ17: =IF(ISERROR(INDEX($B$7:$Q$1503,$T17,COLUMNS($Z$7:AJ17))),"",(INDEX($B$7:$Q$1503,$T17,COLUMNS($Z$7:AJ17)))) -> 55.18517436 | AK17: =IF(ISERROR(INDEX($B$7:$Q$1503,$T17,COLUMNS($Z$7:AK17))),"",(INDEX($B$7:$Q$1503,$T17,COLUMNS($Z$7:AK17)))) -> 55.2694922 | AL17: =IF(ISERROR(INDEX($B$7:$Q$1503,$T17,COLUMNS($Z$7:AL17))),"",(INDEX($B$7:$Q$1503,$T17,COLUMNS($Z$7:AL17)))) -> 55.85466968 | AM17: =IF(ISERROR(INDEX($B$7:$Q$1503,$T17,COLUMNS($Z$7:AM17))),"",(INDEX($B$7:$Q$1503,$T17,COLUMNS($Z$7:AM17)))) -> 56.81683409 | AN17: =IF(ISERROR(INDEX($B$7:$Q$1503,$T17,COLUMNS($Z$7:AN17))),"",(INDEX($B$7:$Q$1503,$T17,COLUMNS($Z$7:AN17)))) -> 60.00049733 | AO17: =IF(ISERROR(INDEX($B$7:$Q$1503,$T17,COLUMNS($Z$7:AO17))),"",(INDEX($B$7:$Q$1503,$T17,COLUMNS($Z$7:AO17)))) -> 61.23401033
B18: Kauno m. sav. | C18: Neišregistruotų juridinių asmenų skaičius metų pradžioje | vnt. | D18: 25600 | E18: 26021 | F18: 26627 | G18: 27657 | H18: 28759 | I18: 29666 | J18: 30468 | K18: 29033 | L18: 29851 | M18: 30676 | N18: 31600 | O18: 32799 | P18: 33113 | Q18: =HLOOKUP(B18,'[1]2023_neišreg'!$B$2:$BT$23,22,FALSE) -> 31606 | R18: =ROWS($R$7:R18) -> 12 | T18: =IF(ISERROR(SMALL($S$7:$S$1504,ROWS($S$7:S18))),"",SMALL($S$7:$S$1504,ROWS($S$7:S18))) -> 854 | V18: =IF(ISERROR(SMALL($U$7:$U$1504,ROWS(U$7:$U18))),"",SMALL($U$7:$U$1504,ROWS(U$7:$U18))) -> 847 | X18: =IF(ISERROR(SMALL($W$7:$W$1504,ROWS($W$7:W18))),"",SMALL($W$7:$W$1504,ROWS($W$7:W18))) -> 785 | Z18: =IF(ISERROR(INDEX($B$7:$K$1503,$T18,COLUMNS($Z$7:Z18))),"",(INDEX($B$7:$K$1503,$T18,COLUMNS($Z$7:Z18)))) -> Vilniaus m. sav. | AA18: =IF(ISERROR(INDEX($B$7:$K$1503,$T18,COLUMNS($Z$7:AA18))),"",(INDEX($B$7:$K$1503,$T18,COLUMNS($Z$7:AA18)))) -> Išgyvenusių 1 metus ir 1 dieną ir nepakeitusių statuso iš veikianti į kitą įmonių dalis tarp visų prieš metus įregistruotų įmonių | % | AB18: =IF(ISERROR(INDEX($B$7:$Q$1503,$T18,COLUMNS($Z$7:AB18))),"",(INDEX($B$7:$Q$1503,$T18,COLUMNS($Z$7:AB18)))) -> 49.79321754 | AC18: =IF(ISERROR(INDEX($B$7:$Q$1503,$T18,COLUMNS($Z$7:AC18))),"",(INDEX($B$7:$Q$1503,$T18,COLUMNS($Z$7:AC18)))) -> 47.5429678 | AD18: =IF(ISERROR(INDEX($B$7:$Q$1503,$T18,COLUMNS($Z$7:AD18))),"",(INDEX($B$7:$Q$1503,$T18,COLUMNS($Z$7:AD18)))) -> 41.38755981 | AE18: =IF(ISERROR(INDEX($B$7:$Q$1503,$T18,COLUMNS($Z$7:AE18))),"",(INDEX($B$7:$Q$1503,$T18,COLUMNS($Z$7:AE18)))) -> 26.65259269 | AF18: =IF(ISERROR(INDEX($B$7:$Q$1503,$T18,COLUMNS($Z$7:AF18))),"",(INDEX($B$7:$Q$1503,$T18,COLUMNS($Z$7:AF18)))) -> 24.5423341 | AG18: =IF(ISERROR(INDEX($B$7:$Q$1503,$T18,COLUMNS($Z$7:AG18))),"",(INDEX($B$7:$Q$1503,$T18,COLUMNS($Z$7:AG18)))) -> 24.89148128 | AH18: =IF(ISERROR(INDEX($B$7:$Q$1503,$T18,COLUMNS($Z$7:AH18))),"",(INDEX($B$7:$Q$1503,$T18,COLUMNS($Z$7:AH18)))) -> 33.73290303 | AI18: =IF(ISERROR(INDEX($B$7:$Q$1503,$T18,COLUMNS($Z$7:AI18))),"",(INDEX($B$7:$Q$1503,$T18,COLUMNS($Z$7:AI18)))) -> 36.95835441 | AJ18: =IF(ISERROR(INDEX($B$7:$Q$1503,$T18,COLUMNS($Z$7:AJ18))),"",(INDEX($B$7:$Q$1503,$T18,COLUMNS($Z$7:AJ18)))) -> 23.92026578 | AK18: =IF(ISERROR(INDEX($B$7:$Q$1503,$T18,COLUMNS($Z$7:AK18))),"",(INDEX($B$7:$Q$1503,$T18,COLUMNS($Z$7:AK18)))) -> 21.06802093 | AL18: =IF(ISERROR(INDEX($B$7:$Q$1503,$T18,COLUMNS($Z$7:AL18))),"",(INDEX($B$7:$Q$1503,$T18,COLUMNS($Z$7:AL18)))) -> 0 | AM18: =IF(ISERROR(INDEX($B$7:$Q$1503,$T18,COLUMNS($Z$7:AM18))),"",(INDEX($B$7:$Q$1503,$T18,COLUMNS($Z$7:AM18)))) -> 0 | AN18: =IF(ISERROR(INDEX($B$7:$Q$1503,$T18,COLUMNS($Z$7:AN18))),"",(INDEX($B$7:$Q$1503,$T18,COLUMNS($Z$7:AN18)))) -> 0 | AO18: =IF(ISERROR(INDEX($B$7:$Q$1503,$T18,COLUMNS($Z$7:AO18))),"",(INDEX($B$7:$Q$1503,$T18,COLUMNS($Z$7:AO18)))) -> 0
B19: Kauno r. sav. | C19: Neišregistruotų juridinių asmenų skaičius metų pradžioje | vnt. | D19: 3823 | E19: 3963 | F19: 4260 | G19: 4661 | H19: 4891 | I19: 5145 | J19: 5401 | K19: 5449 | L19: 5742 | M19: 6125 | N19: 6553 | O19: 7042 | P19: 7478 | Q19: =HLOOKUP(B19,'[1]2023_neišreg'!$B$2:$BT$23,22,FALSE) -> 7511 | R19: =ROWS($R$7:R19) -> 13 | T19: =IF(ISERROR(SMALL($S$7:$S$1504,ROWS($S$7:S19))),"",SMALL($S$7:$S$1504,ROWS($S$7:S19))) -> 925 | V19: =IF(ISERROR(SMALL($U$7:$U$1504,ROWS(U$7:$U19))),"",SMALL($U$7:$U$1504,ROWS(U$7:$U19))) -> 918 | X19: =IF(ISERROR(SMALL($W$7:$W$1504,ROWS($W$7:W19))),"",SMALL($W$7:$W$1504,ROWS($W$7:W19))) -> 856 | Z19: =IF(ISERROR(INDEX($B$7:$K$1503,$T19,COLUMNS($Z$7:Z19))),"",(INDEX($B$7:$K$1503,$T19,COLUMNS($Z$7:Z19)))) -> Vilniaus m. sav. | AA19: =IF(ISERROR(INDEX($B$7:$K$1503,$T19,COLUMNS($Z$7:AA19))),"",(INDEX($B$7:$K$1503,$T19,COLUMNS($Z$7:AA19)))) -> Registruoti bedarbiai | tūkst. | AB19: =IF(ISERROR(INDEX($B$7:$Q$1503,$T19,COLUMNS($Z$7:AB19))),"",(INDEX($B$7:$Q$1503,$T19,COLUMNS($Z$7:AB19)))) -> 50.6 | AC19: =IF(ISERROR(INDEX($B$7:$Q$1503,$T19,COLUMNS($Z$7:AC19))),"",(INDEX($B$7:$Q$1503,$T19,COLUMNS($Z$7:AC19)))) -> 37.6 | AD19: =IF(ISERROR(INDEX($B$7:$Q$1503,$T19,COLUMNS($Z$7:AD19))),"",(INDEX($B$7:$Q$1503,$T19,COLUMNS($Z$7:AD19)))) -> 31.3 | AE19: =IF(ISERROR(INDEX($B$7:$Q$1503,$T19,COLUMNS($Z$7:AE19))),"",(INDEX($B$7:$Q$1503,$T19,COLUMNS($Z$7:AE19)))) -> 28.1 | AF19: =IF(ISERROR(INDEX($B$7:$Q$1503,$T19,COLUMNS($Z$7:AF19))),"",(INDEX($B$7:$Q$1503,$T19,COLUMNS($Z$7:AF19)))) -> 23.8 | AG19: =IF(ISERROR(INDEX($B$7:$Q$1503,$T19,COLUMNS($Z$7:AG19))),"",(INDEX($B$7:$Q$1503,$T19,COLUMNS($Z$7:AG19)))) -> 22.2 | AH19: =IF(ISERROR(INDEX($B$7:$Q$1503,$T19,COLUMNS($Z$7:AH19))),"",(INDEX($B$7:$Q$1503,$T19,COLUMNS($Z$7:AH19)))) -> 20.514 | AI19: =IF(ISERROR(INDEX($B$7:$Q$1503,$T19,COLUMNS($Z$7:AI19))),"",(INDEX($B$7:$Q$1503,$T19,COLUMNS($Z$7:AI19)))) -> 21.331 | AJ19: =IF(ISERROR(INDEX($B$7:$Q$1503,$T19,COLUMNS($Z$7:AJ19))),"",(INDEX($B$7:$Q$1503,$T19,COLUMNS($Z$7:AJ19)))) -> 24.836 | AK19: =IF(ISERROR(INDEX($B$7:$Q$1503,$T19,COLUMNS($Z$7:AK19))),"",(INDEX($B$7:$Q$1503,$T19,COLUMNS($Z$7:AK19)))) -> 25.359 | AL19: =IF(ISERROR(INDEX($B$7:$Q$1503,$T19,COLUMNS($Z$7:AL19))),"",(INDEX($B$7:$Q$1503,$T19,COLUMNS($Z$7:AL19)))) -> 39.097 | AM19: =IF(ISERROR(INDEX($B$7:$Q$1503,$T19,COLUMNS($Z$7:AM19))),"",(INDEX($B$7:$Q$1503,$T19,COLUMNS($Z$7:AM19)))) -> 42.401 | AN19: =IF(ISERROR(INDEX($B$7:$Q$1503,$T19,COLUMNS($Z$7:AN19))),"",(INDEX($B$7:$Q$1503,$T19,COLUMNS($Z$7:AN19)))) -> 30.584 | AO19: =IF(ISERROR(INDEX($B$7:$Q$1503,$T19,COLUMNS($Z$7:AO19))),"",(INDEX($B$7:$Q$1503,$T19,COLUMNS($Z$7:AO19)))) -> 0
B20: Kėdainių r. sav. | C20: Neišregistruotų juridinių asmenų skaičius metų pradžioje | vnt. | D20: 1877 | E20: 1850 | F20: 1911 | G20: 1948 | H20: 1994 | I20: 2016 | J20: 2075 | K20: 1975 | L20: 1998 | M20: 2043 | N20: 2113 | O20: 2198 | P20: 2262 | Q20: =HLOOKUP(B20,'[1]2023_neišreg'!$B$2:$BT$23,22,FALSE) -> 2305 | R20: =ROWS($R$7:R20) -> 14 | T20: =IF(ISERROR(SMALL($S$7:$S$1504,ROWS($S$7:S20))),"",SMALL($S$7:$S$1504,ROWS($S$7:S20))) -> 996 | V20: =IF(ISERROR(SMALL($U$7:$U$1504,ROWS(U$7:$U20))),"",SMALL($U$7:$U$1504,ROWS(U$7:$U20))) -> 989 | X20: =IF(ISERROR(SMALL($W$7:$W$1504,ROWS($W$7:W20))),"",SMALL($W$7:$W$1504,ROWS($W$7:W20))) -> 927 | Z20: =IF(ISERROR(INDEX($B$7:$K$1503,$T20,COLUMNS($Z$7:Z20))),"",(INDEX($B$7:$K$1503,$T20,COLUMNS($Z$7:Z20)))) -> Vilniaus m. sav. | AA20: =IF(ISERROR(INDEX($B$7:$K$1503,$T20,COLUMNS($Z$7:AA20))),"",(INDEX($B$7:$K$1503,$T20,COLUMNS($Z$7:AA20)))) -> Registruotų bedarbių ir darbingo amžiaus gyventojų santykis | % | AB20: =IF(ISERROR(INDEX($B$7:$Q$1503,$T20,COLUMNS($Z$7:AB20))),"",(INDEX($B$7:$Q$1503,$T20,COLUMNS($Z$7:AB20)))) -> 14.1 | AC20: =IF(ISERROR(INDEX($B$7:$Q$1503,$T20,COLUMNS($Z$7:AC20))),"",(INDEX($B$7:$Q$1503,$T20,COLUMNS($Z$7:AC20)))) -> 10.8 | AD20: =IF(ISERROR(INDEX($B$7:$Q$1503,$T20,COLUMNS($Z$7:AD20))),"",(INDEX($B$7:$Q$1503,$T20,COLUMNS($Z$7:AD20)))) -> 9.1 | AE20: =IF(ISERROR(INDEX($B$7:$Q$1503,$T20,COLUMNS($Z$7:AE20))),"",(INDEX($B$7:$Q$1503,$T20,COLUMNS($Z$7:AE20)))) -> 8.1 | AF20: =IF(ISERROR(INDEX($B$7:$Q$1503,$T20,COLUMNS($Z$7:AF20))),"",(INDEX($B$7:$Q$1503,$T20,COLUMNS($Z$7:AF20)))) -> 6.9 | AG20: =IF(ISERROR(INDEX($B$7:$Q$1503,$T20,COLUMNS($Z$7:AG20))),"",(INDEX($B$7:$Q$1503,$T20,COLUMNS($Z$7:AG20)))) -> 6.4 | AH20: =IF(ISERROR(INDEX($B$7:$Q$1503,$T20,COLUMNS($Z$7:AH20))),"",(INDEX($B$7:$Q$1503,$T20,COLUMNS($Z$7:AH20)))) -> 5.9 | AI20: =IF(ISERROR(INDEX($B$7:$Q$1503,$T20,COLUMNS($Z$7:AI20))),"",(INDEX($B$7:$Q$1503,$T20,COLUMNS($Z$7:AI20)))) -> 6.1 | AJ20: =IF(ISERROR(INDEX($B$7:$Q$1503,$T20,COLUMNS($Z$7:AJ20))),"",(INDEX($B$7:$Q$1503,$T20,COLUMNS($Z$7:AJ20)))) -> 7.1 | AK20: =IF(ISERROR(INDEX($B$7:$Q$1503,$T20,COLUMNS($Z$7:AK20))),"",(INDEX($B$7:$Q$1503,$T20,COLUMNS($Z$7:AK20)))) -> 7.2 | AL20: =IF(ISERROR(INDEX($B$7:$Q$1503,$T20,COLUMNS($Z$7:AL20))),"",(INDEX($B$7:$Q$1503,$T20,COLUMNS($Z$7:AL20)))) -> 11 | AM20: =IF(ISERROR(INDEX($B$7:$Q$1503,$T20,COLUMNS($Z$7:AM20))),"",(INDEX($B$7:$Q$1503,$T20,COLUMNS($Z$7:AM20)))) -> 11.7 | AN20: =IF(ISERROR(INDEX($B$7:$Q$1503,$T20,COLUMNS($Z$7:AN20))),"",(INDEX($B$7:$Q$1503,$T20,COLUMNS($Z$7:AN20)))) -> 8.6 | AO20: =IF(ISERROR(INDEX($B$7:$Q$1503,$T20,COLUMNS($Z$7:AO20))),"",(INDEX($B$7:$Q$1503,$T20,COLUMNS($Z$7:AO20)))) -> 0
B21: Prienų r. sav. | C21: Neišregistruotų juridinių asmenų skaičius metų pradžioje | vnt. | D21: 1072 | E21: 1080 | F21: 1101 | G21: 1122 | H21: 1151 | I21: 1166 | J21: 1189 | K21: 1122 | L21: 1145 | M21: 1186 | N21: 1236 | O21: 1300 | P21: 1354 | Q21: =HLOOKUP(B21,'[1]2023_neišreg'!$B$2:$BT$23,22,FALSE) -> 1375 | R21: =ROWS($R$7:R21) -> 15 | T21: =IF(ISERROR(SMALL($S$7:$S$1504,ROWS($S$7:S21))),"",SMALL($S$7:$S$1504,ROWS($S$7:S21))) -> 1068 | V21: =IF(ISERROR(SMALL($U$7:$U$1504,ROWS(U$7:$U21))),"",SMALL($U$7:$U$1504,ROWS(U$7:$U21))) -> 1061 | X21: =IF(ISERROR(SMALL($W$7:$W$1504,ROWS($W$7:W21))),"",SMALL($W$7:$W$1504,ROWS($W$7:W21))) -> 998 | Z21: =IF(ISERROR(INDEX($B$7:$K$1503,$T21,COLUMNS($Z$7:Z21))),"",(INDEX($B$7:$K$1503,$T21,COLUMNS($Z$7:Z21)))) -> Vilniaus m. sav. | AA21: =IF(ISERROR(INDEX($B$7:$K$1503,$T21,COLUMNS($Z$7:AA21))),"",(INDEX($B$7:$K$1503,$T21,COLUMNS($Z$7:AA21)))) -> Darbo užmokestis | mėnesinis | bruto | EUR (nuo 2019 m. keitėsi rodiklio skaičiavimas) | AB21: =IF(ISERROR(INDEX($B$7:$Q$1503,$T21,COLUMNS($Z$7:AB21))),"",(INDEX($B$7:$Q$1503,$T21,COLUMNS($Z$7:AB21)))) -> 684.7 | AC21: =IF(ISERROR(INDEX($B$7:$Q$1503,$T21,COLUMNS($Z$7:AC21))),"",(INDEX($B$7:$Q$1503,$T21,COLUMNS($Z$7:AC21)))) -> 704.1 | AD21: =IF(ISERROR(INDEX($B$7:$Q$1503,$T21,COLUMNS($Z$7:AD21))),"",(INDEX($B$7:$Q$1503,$T21,COLUMNS($Z$7:AD21)))) -> 731.6 | AE21: =IF(ISERROR(INDEX($B$7:$Q$1503,$T21,COLUMNS($Z$7:AE21))),"",(INDEX($B$7:$Q$1503,$T21,COLUMNS($Z$7:AE21)))) -> 759.7 | AF21: =IF(ISERROR(INDEX($B$7:$Q$1503,$T21,COLUMNS($Z$7:AF21))),"",(INDEX($B$7:$Q$1503,$T21,COLUMNS($Z$7:AF21)))) -> 797.6 | AG21: =IF(ISERROR(INDEX($B$7:$Q$1503,$T21,COLUMNS($Z$7:AG21))),"",(INDEX($B$7:$Q$1503,$T21,COLUMNS($Z$7:AG21)))) -> 832.4 | AH21: =IF(ISERROR(INDEX($B$7:$Q$1503,$T21,COLUMNS($Z$7:AH21))),"",(INDEX($B$7:$Q$1503,$T21,COLUMNS($Z$7:AH21)))) -> 890.4 | AI21: =IF(ISERROR(INDEX($B$7:$Q$1503,$T21,COLUMNS($Z$7:AI21))),"",(INDEX($B$7:$Q$1503,$T21,COLUMNS($Z$7:AI21)))) -> 968.7 | AJ21: =IF(ISERROR(INDEX($B$7:$Q$1503,$T21,COLUMNS($Z$7:AJ21))),"",(INDEX($B$7:$Q$1503,$T21,COLUMNS($Z$7:AJ21)))) -> 1069.5 | AK21: =IF(ISERROR(INDEX($B$7:$Q$1503,$T21,COLUMNS($Z$7:AK21))),"",(INDEX($B$7:$Q$1503,$T21,COLUMNS($Z$7:AK21)))) -> 1501.5 | AL21: =IF(ISERROR(INDEX($B$7:$Q$1503,$T21,COLUMNS($Z$7:AL21))),"",(INDEX($B$7:$Q$1503,$T21,COLUMNS($Z$7:AL21)))) -> 1643.2 | AM21: =IF(ISERROR(INDEX($B$7:$Q$1503,$T21,COLUMNS($Z$7:AM21))),"",(INDEX($B$7:$Q$1503,$T21,COLUMNS($Z$7:AM21)))) -> 1819.9 | AN21: =IF(ISERROR(INDEX($B$7:$Q$1503,$T21,COLUMNS($Z$7:AN21))),"",(INDEX($B$7:$Q$1503,$T21,COLUMNS($Z$7:AN21)))) -> 2068.6 | AO21: =IF(ISERROR(INDEX($B$7:$Q$1503,$T21,COLUMNS($Z$7:AO21))),"",(INDEX($B$7:$Q$1503,$T21,COLUMNS($Z$7:AO21)))) -> 0
B22: Raseinių r. sav. | C22: Neišregistruotų juridinių asmenų skaičius metų pradžioje | vnt. | D22: 1263 | E22: 1298 | F22: 1348 | G22: 1402 | H22: 1420 | I22: 1449 | J22: 1482 | K22: 1442 | L22: 1477 | M22: 1497 | N22: 1530 | O22: 1574 | P22: 1594 | Q22: =HLOOKUP(B22,'[1]2023_neišreg'!$B$2:$BT$23,22,FALSE) -> 1525 | R22: =ROWS($R$7:R22) -> 16 | T22: =IF(ISERROR(SMALL($S$7:$S$1504,ROWS($S$7:S22))),"",SMALL($S$7:$S$1504,ROWS($S$7:S22))) -> 1140 | V22: =IF(ISERROR(SMALL($U$7:$U$1504,ROWS(U$7:$U22))),"",SMALL($U$7:$U$1504,ROWS(U$7:$U22))) -> 1133 | X22: =IF(ISERROR(SMALL($W$7:$W$1504,ROWS($W$7:W22))),"",SMALL($W$7:$W$1504,ROWS($W$7:W22))) -> 1070 | Z22: =IF(ISERROR(INDEX($B$7:$K$1503,$T22,COLUMNS($Z$7:Z22))),"",(INDEX($B$7:$K$1503,$T22,COLUMNS($Z$7:Z22)))) -> Vilniaus m. sav. | AA22: =IF(ISERROR(INDEX($B$7:$K$1503,$T22,COLUMNS($Z$7:AA22))),"",(INDEX($B$7:$K$1503,$T22,COLUMNS($Z$7:AA22)))) -> Darbo užmokestis | mėnesinis | neto | EUR | AB22: =IF(ISERROR(INDEX($B$7:$Q$1503,$T22,COLUMNS($Z$7:AB22))),"",(INDEX($B$7:$Q$1503,$T22,COLUMNS($Z$7:AB22)))) -> 529.1 | AC22: =IF(ISERROR(INDEX($B$7:$Q$1503,$T22,COLUMNS($Z$7:AC22))),"",(INDEX($B$7:$Q$1503,$T22,COLUMNS($Z$7:AC22)))) -> 543.3 | AD22: =IF(ISERROR(INDEX($B$7:$Q$1503,$T22,COLUMNS($Z$7:AD22))),"",(INDEX($B$7:$Q$1503,$T22,COLUMNS($Z$7:AD22)))) -> 563.3 | AE22: =IF(ISERROR(INDEX($B$7:$Q$1503,$T22,COLUMNS($Z$7:AE22))),"",(INDEX($B$7:$Q$1503,$T22,COLUMNS($Z$7:AE22)))) -> 583.9 | AF22: =IF(ISERROR(INDEX($B$7:$Q$1503,$T22,COLUMNS($Z$7:AF22))),"",(INDEX($B$7:$Q$1503,$T22,COLUMNS($Z$7:AF22)))) -> 613.9 | AG22: =IF(ISERROR(INDEX($B$7:$Q$1503,$T22,COLUMNS($Z$7:AG22))),"",(INDEX($B$7:$Q$1503,$T22,COLUMNS($Z$7:AG22)))) -> 639.2 | AH22: =IF(ISERROR(INDEX($B$7:$Q$1503,$T22,COLUMNS($Z$7:AH22))),"",(INDEX($B$7:$Q$1503,$T22,COLUMNS($Z$7:AH22)))) -> 684.8 | AI22: =IF(ISERROR(INDEX($B$7:$Q$1503,$T22,COLUMNS($Z$7:AI22))),"",(INDEX($B$7:$Q$1503,$T22,COLUMNS($Z$7:AI22)))) -> 748 | AJ22: =IF(ISERROR(INDEX($B$7:$Q$1503,$T22,COLUMNS($Z$7:AJ22))),"",(INDEX($B$7:$Q$1503,$T22,COLUMNS($Z$7:AJ22)))) -> 819.6 | AK22: =IF(ISERROR(INDEX($B$7:$Q$1503,$T22,COLUMNS($Z$7:AK22))),"",(INDEX($B$7:$Q$1503,$T22,COLUMNS($Z$7:AK22)))) -> 940 | AL22: =IF(ISERROR(INDEX($B$7:$Q$1503,$T22,COLUMNS($Z$7:AL22))),"",(INDEX($B$7:$Q$1503,$T22,COLUMNS($Z$7:AL22)))) -> 1034.8 | AM22: =IF(ISERROR(INDEX($B$7:$Q$1503,$T22,COLUMNS($Z$7:AM22))),"",(INDEX($B$7:$Q$1503,$T22,COLUMNS($Z$7:AM22)))) -> 1138.6 | AN22: =IF(ISERROR(INDEX($B$7:$Q$1503,$T22,COLUMNS($Z$7:AN22))),"",(INDEX($B$7:$Q$1503,$T22,COLUMNS($Z$7:AN22)))) -> 1280.1 | AO22: =IF(ISERROR(INDEX($B$7:$Q$1503,$T22,COLUMNS($Z$7:AO22))),"",(INDEX($B$7:$Q$1503,$T22,COLUMNS($Z$7:AO22)))) -> 0
B23: Klaipėdos apskritis | C23: Neišregistruotų juridinių asmenų skaičius metų pradžioje | vnt. | D23: 22125 | E23: 22385 | F23: 22970 | G23: 23854 | H23: 24566 | I23: 25037 | J23: 25211 | K23: 24092 | L23: 24512 | M23: 25027 | N23: 25576 | O23: 26399 | P23: 24961 | Q23: =HLOOKUP(B23,'[1]2023_neišreg'!$B$2:$BT$23,22,FALSE) -> 25075 | R23: =ROWS($R$7:R23) -> 17 | T23: =IF(ISERROR(SMALL($S$7:$S$1504,ROWS($S$7:S23))),"",SMALL($S$7:$S$1504,ROWS($S$7:S23))) -> 1211 | V23: =IF(ISERROR(SMALL($U$7:$U$1504,ROWS(U$7:$U23))),"",SMALL($U$7:$U$1504,ROWS(U$7:$U23))) -> 1204 | X23: =IF(ISERROR(SMALL($W$7:$W$1504,ROWS($W$7:W23))),"",SMALL($W$7:$W$1504,ROWS($W$7:W23))) -> 1142 | Z23: =IF(ISERROR(INDEX($B$7:$K$1503,$T23,COLUMNS($Z$7:Z23))),"",(INDEX($B$7:$K$1503,$T23,COLUMNS($Z$7:Z23)))) -> Vilniaus m. sav. | AA23: =IF(ISERROR(INDEX($B$7:$K$1503,$T23,COLUMNS($Z$7:AA23))),"",(INDEX($B$7:$K$1503,$T23,COLUMNS($Z$7:AA23)))) -> Materialinės investicijos to meto kainomis | mln. EUR | AB23: =IF(ISERROR(INDEX($B$7:$Q$1503,$T23,COLUMNS($Z$7:AB23))),"",(INDEX($B$7:$Q$1503,$T23,COLUMNS($Z$7:AB23)))) -> 1126.968 | AC23: =IF(ISERROR(INDEX($B$7:$Q$1503,$T23,COLUMNS($Z$7:AC23))),"",(INDEX($B$7:$Q$1503,$T23,COLUMNS($Z$7:AC23)))) -> 1415.455 | AD23: =IF(ISERROR(INDEX($B$7:$Q$1503,$T23,COLUMNS($Z$7:AD23))),"",(INDEX($B$7:$Q$1503,$T23,COLUMNS($Z$7:AD23)))) -> 1771.749 | AE23: =IF(ISERROR(INDEX($B$7:$Q$1503,$T23,COLUMNS($Z$7:AE23))),"",(INDEX($B$7:$Q$1503,$T23,COLUMNS($Z$7:AE23)))) -> 2008.253 | AF23: =IF(ISERROR(INDEX($B$7:$Q$1503,$T23,COLUMNS($Z$7:AF23))),"",(INDEX($B$7:$Q$1503,$T23,COLUMNS($Z$7:AF23)))) -> 2050.205 | AG23: =IF(ISERROR(INDEX($B$7:$Q$1503,$T23,COLUMNS($Z$7:AG23))),"",(INDEX($B$7:$Q$1503,$T23,COLUMNS($Z$7:AG23)))) -> 2266.812 | AH23: =IF(ISERROR(INDEX($B$7:$Q$1503,$T23,COLUMNS($Z$7:AH23))),"",(INDEX($B$7:$Q$1503,$T23,COLUMNS($Z$7:AH23)))) -> 2403.959 | AI23: =IF(ISERROR(INDEX($B$7:$Q$1503,$T23,COLUMNS($Z$7:AI23))),"",(INDEX($B$7:$Q$1503,$T23,COLUMNS($Z$7:AI23)))) -> 2482.925 | AJ23: =IF(ISERROR(INDEX($B$7:$Q$1503,$T23,COLUMNS($Z$7:AJ23))),"",(INDEX($B$7:$Q$1503,$T23,COLUMNS($Z$7:AJ23)))) -> 2996.503 | AK23: =IF(ISERROR(INDEX($B$7:$Q$1503,$T23,COLUMNS($Z$7:AK23))),"",(INDEX($B$7:$Q$1503,$T23,COLUMNS($Z$7:AK23)))) -> 3351.768 | AL23: =IF(ISERROR(INDEX($B$7:$Q$1503,$T23,COLUMNS($Z$7:AL23))),"",(INDEX($B$7:$Q$1503,$T23,COLUMNS($Z$7:AL23)))) -> 3150.093 | AM23: =IF(ISERROR(INDEX($B$7:$Q$1503,$T23,COLUMNS($Z$7:AM23))),"",(INDEX($B$7:$Q$1503,$T23,COLUMNS($Z$7:AM23)))) -> 3894.769 | AN23: =IF(ISERROR(INDEX($B$7:$Q$1503,$T23,COLUMNS($Z$7:AN23))),"",(INDEX($B$7:$Q$1503,$T23,COLUMNS($Z$7:AN23)))) -> 0 | AO23: =IF(ISERROR(INDEX($B$7:$Q$1503,$T23,COLUMNS($Z$7:AO23))),"",(INDEX($B$7:$Q$1503,$T23,COLUMNS($Z$7:AO23)))) -> 0
B24: Klaipėdos m. sav. | C24: Neišregistruotų juridinių asmenų skaičius metų pradžioje | vnt. | D24: 13054 | E24: 13287 | F24: 13621 | G24: 14171 | H24: 14577 | I24: 14839 | J24: 14814 | K24: 14186 | L24: 14304 | M24: 14416 | N24: 14564 | O24: 14900 | P24: 13376 | Q24: =HLOOKUP(B24,'[1]2023_neišreg'!$B$2:$BT$23,22,FALSE) -> 13133 | R24: =ROWS($R$7:R24) -> 18 | T24: =IF(ISERROR(SMALL($S$7:$S$1504,ROWS($S$7:S24))),"",SMALL($S$7:$S$1504,ROWS($S$7:S24))) -> 1282 | V24: =IF(ISERROR(SMALL($U$7:$U$1504,ROWS(U$7:$U24))),"",SMALL($U$7:$U$1504,ROWS(U$7:$U24))) -> 1275 | X24: =IF(ISERROR(SMALL($W$7:$W$1504,ROWS($W$7:W24))),"",SMALL($W$7:$W$1504,ROWS($W$7:W24))) -> 1213 | Z24: =IF(ISERROR(INDEX($B$7:$K$1503,$T24,COLUMNS($Z$7:Z24))),"",(INDEX($B$7:$K$1503,$T24,COLUMNS($Z$7:Z24)))) -> Vilniaus m. sav. | AA24: =IF(ISERROR(INDEX($B$7:$K$1503,$T24,COLUMNS($Z$7:AA24))),"",(INDEX($B$7:$K$1503,$T24,COLUMNS($Z$7:AA24)))) -> Apyvarta pagal veiklos vykdymo vietą | mln. EUR | AB24: =IF(ISERROR(INDEX($B$7:$Q$1503,$T24,COLUMNS($Z$7:AB24))),"",(INDEX($B$7:$Q$1503,$T24,COLUMNS($Z$7:AB24)))) -> 16618.971 | AC24: =IF(ISERROR(INDEX($B$7:$Q$1503,$T24,COLUMNS($Z$7:AC24))),"",(INDEX($B$7:$Q$1503,$T24,COLUMNS($Z$7:AC24)))) -> 19255.164 | AD24: =IF(ISERROR(INDEX($B$7:$Q$1503,$T24,COLUMNS($Z$7:AD24))),"",(INDEX($B$7:$Q$1503,$T24,COLUMNS($Z$7:AD24)))) -> 21824.419 | AE24: =IF(ISERROR(INDEX($B$7:$Q$1503,$T24,COLUMNS($Z$7:AE24))),"",(INDEX($B$7:$Q$1503,$T24,COLUMNS($Z$7:AE24)))) -> 23889.722 | AF24: =IF(ISERROR(INDEX($B$7:$Q$1503,$T24,COLUMNS($Z$7:AF24))),"",(INDEX($B$7:$Q$1503,$T24,COLUMNS($Z$7:AF24)))) -> 25677.258 | AG24: =IF(ISERROR(INDEX($B$7:$Q$1503,$T24,COLUMNS($Z$7:AG24))),"",(INDEX($B$7:$Q$1503,$T24,COLUMNS($Z$7:AG24)))) -> 27060.076 | AH24: =IF(ISERROR(INDEX($B$7:$Q$1503,$T24,COLUMNS($Z$7:AH24))),"",(INDEX($B$7:$Q$1503,$T24,COLUMNS($Z$7:AH24)))) -> 27992.601 | AI24: =IF(ISERROR(INDEX($B$7:$Q$1503,$T24,COLUMNS($Z$7:AI24))),"",(INDEX($B$7:$Q$1503,$T24,COLUMNS($Z$7:AI24)))) -> 30555.714 | AJ24: =IF(ISERROR(INDEX($B$7:$Q$1503,$T24,COLUMNS($Z$7:AJ24))),"",(INDEX($B$7:$Q$1503,$T24,COLUMNS($Z$7:AJ24)))) -> 33709.499 | AK24: =IF(ISERROR(INDEX($B$7:$Q$1503,$T24,COLUMNS($Z$7:AK24))),"",(INDEX($B$7:$Q$1503,$T24,COLUMNS($Z$7:AK24)))) -> 37023.476 | AL24: =IF(ISERROR(INDEX($B$7:$Q$1503,$T24,COLUMNS($Z$7:AL24))),"",(INDEX($B$7:$Q$1503,$T24,COLUMNS($Z$7:AL24)))) -> 37356.365 | AM24: =IF(ISERROR(INDEX($B$7:$Q$1503,$T24,COLUMNS($Z$7:AM24))),"",(INDEX($B$7:$Q$1503,$T24,COLUMNS($Z$7:AM24)))) -> 46942.705 | AN24: =IF(ISERROR(INDEX($B$7:$Q$1503,$T24,COLUMNS($Z$7:AN24))),"",(INDEX($B$7:$Q$1503,$T24,COLUMNS($Z$7:AN24)))) -> 0 | AO24: =IF(ISERROR(INDEX($B$7:$Q$1503,$T24,COLUMNS($Z$7:AO24))),"",(INDEX($B$7:$Q$1503,$T24,COLUMNS($Z$7:AO24)))) -> 0
B25: Klaipėdos r. sav. | C25: Neišregistruotų juridinių asmenų skaičius metų pradžioje | vnt. | D25: 2430 | E25: 2506 | F25: 2649 | G25: 2848 | H25: 2995 | I25: 3127 | J25: 3223 | K25: 3222 | L25: 3375 | M25: 3604 | N25: 3820 | O25: 4062 | P25: 4251 | Q25: =HLOOKUP(B25,'[1]2023_neišreg'!$B$2:$BT$23,22,FALSE) -> 4504 | R25: =ROWS($R$7:R25) -> 19 | T25: =IF(ISERROR(SMALL($S$7:$S$1504,ROWS($S$7:S25))),"",SMALL($S$7:$S$1504,ROWS($S$7:S25))) -> 1354 | V25: =IF(ISERROR(SMALL($U$7:$U$1504,ROWS(U$7:$U25))),"",SMALL($U$7:$U$1504,ROWS(U$7:$U25))) -> 1347 | X25: =IF(ISERROR(SMALL($W$7:$W$1504,ROWS($W$7:W25))),"",SMALL($W$7:$W$1504,ROWS($W$7:W25))) -> 1284 | Z25: =IF(ISERROR(INDEX($B$7:$K$1503,$T25,COLUMNS($Z$7:Z25))),"",(INDEX($B$7:$K$1503,$T25,COLUMNS($Z$7:Z25)))) -> Vilniaus m. sav. | AA25: =IF(ISERROR(INDEX($B$7:$K$1503,$T25,COLUMNS($Z$7:AA25))),"",(INDEX($B$7:$K$1503,$T25,COLUMNS($Z$7:AA25)))) -> Pridėtinė vertė gamybos kainomis pagal veiklos vykdymo vietą | mln. EUR | AB25: =IF(ISERROR(INDEX($B$7:$Q$1503,$T25,COLUMNS($Z$7:AB25))),"",(INDEX($B$7:$Q$1503,$T25,COLUMNS($Z$7:AB25)))) -> 3425.983 | AC25: =IF(ISERROR(INDEX($B$7:$Q$1503,$T25,COLUMNS($Z$7:AC25))),"",(INDEX($B$7:$Q$1503,$T25,COLUMNS($Z$7:AC25)))) -> 4167.56 | AD25: =IF(ISERROR(INDEX($B$7:$Q$1503,$T25,COLUMNS($Z$7:AD25))),"",(INDEX($B$7:$Q$1503,$T25,COLUMNS($Z$7:AD25)))) -> 4676.341 | AE25: =IF(ISERROR(INDEX($B$7:$Q$1503,$T25,COLUMNS($Z$7:AE25))),"",(INDEX($B$7:$Q$1503,$T25,COLUMNS($Z$7:AE25)))) -> 4909.243 | AF25: =IF(ISERROR(INDEX($B$7:$Q$1503,$T25,COLUMNS($Z$7:AF25))),"",(INDEX($B$7:$Q$1503,$T25,COLUMNS($Z$7:AF25)))) -> 5761.807 | AG25: =IF(ISERROR(INDEX($B$7:$Q$1503,$T25,COLUMNS($Z$7:AG25))),"",(INDEX($B$7:$Q$1503,$T25,COLUMNS($Z$7:AG25)))) -> 6124.33 | AH25: =IF(ISERROR(INDEX($B$7:$Q$1503,$T25,COLUMNS($Z$7:AH25))),"",(INDEX($B$7:$Q$1503,$T25,COLUMNS($Z$7:AH25)))) -> 6787.633 | AI25: =IF(ISERROR(INDEX($B$7:$Q$1503,$T25,COLUMNS($Z$7:AI25))),"",(INDEX($B$7:$Q$1503,$T25,COLUMNS($Z$7:AI25)))) -> 7434.026 | AJ25: =IF(ISERROR(INDEX($B$7:$Q$1503,$T25,COLUMNS($Z$7:AJ25))),"",(INDEX($B$7:$Q$1503,$T25,COLUMNS($Z$7:AJ25)))) -> 8459.894 | AK25: =IF(ISERROR(INDEX($B$7:$Q$1503,$T25,COLUMNS($Z$7:AK25))),"",(INDEX($B$7:$Q$1503,$T25,COLUMNS($Z$7:AK25)))) -> 9679.33 | AL25: =IF(ISERROR(INDEX($B$7:$Q$1503,$T25,COLUMNS($Z$7:AL25))),"",(INDEX($B$7:$Q$1503,$T25,COLUMNS($Z$7:AL25)))) -> 10142.776 | AM25: =IF(ISERROR(INDEX($B$7:$Q$1503,$T25,COLUMNS($Z$7:AM25))),"",(INDEX($B$7:$Q$1503,$T25,COLUMNS($Z$7:AM25)))) -> 12330.55 | AN25: =IF(ISERROR(INDEX($B$7:$Q$1503,$T25,COLUMNS($Z$7:AN25))),"",(INDEX($B$7:$Q$1503,$T25,COLUMNS($Z$7:AN25)))) -> 0 | AO25: =IF(ISERROR(INDEX($B$7:$Q$1503,$T25,COLUMNS($Z$7:AO25))),"",(INDEX($B$7:$Q$1503,$T25,COLUMNS($Z$7:AO25)))) -> 0
B26: Kretingos r. sav. | C26: Neišregistruotų juridinių asmenų skaičius metų pradžioje | vnt. | D26: 1892 | E26: 1877 | F26: 1911 | G26: 1947 | H26: 1980 | I26: 2017 | J26: 2039 | K26: 1890 | L26: 1932 | M26: 1992 | N26: 2010 | O26: 2071 | P26: 2093 | Q26: =HLOOKUP(B26,'[1]2023_neišreg'!$B$2:$BT$23,22,FALSE) -> 2118 | R26: =ROWS($R$7:R26) -> 20 | T26: =IF(ISERROR(SMALL($S$7:$S$1504,ROWS($S$7:S26))),"",SMALL($S$7:$S$1504,ROWS($S$7:S26))) -> 1425 | V26: =IF(ISERROR(SMALL($U$7:$U$1504,ROWS(U$7:$U26))),"",SMALL($U$7:$U$1504,ROWS(U$7:$U26))) -> 1418 | X26: =IF(ISERROR(SMALL($W$7:$W$1504,ROWS($W$7:W26))),"",SMALL($W$7:$W$1504,ROWS($W$7:W26))) -> 1356 | Z26: =IF(ISERROR(INDEX($B$7:$K$1503,$T26,COLUMNS($Z$7:Z26))),"",(INDEX($B$7:$K$1503,$T26,COLUMNS($Z$7:Z26)))) -> Vilniaus m. sav. | AA26: =IF(ISERROR(INDEX($B$7:$K$1503,$T26,COLUMNS($Z$7:AA26))),"",(INDEX($B$7:$K$1503,$T26,COLUMNS($Z$7:AA26)))) -> Tarptautinės emigracijos lygis | % | AB26: =IF(ISERROR(INDEX($B$7:$Q$1503,$T26,COLUMNS($Z$7:AB26))),"",(INDEX($B$7:$Q$1503,$T26,COLUMNS($Z$7:AB26)))) -> 2.110221455 | AC26: =IF(ISERROR(INDEX($B$7:$Q$1503,$T26,COLUMNS($Z$7:AC26))),"",(INDEX($B$7:$Q$1503,$T26,COLUMNS($Z$7:AC26)))) -> 1.656059532 | AD26: =IF(ISERROR(INDEX($B$7:$Q$1503,$T26,COLUMNS($Z$7:AD26))),"",(INDEX($B$7:$Q$1503,$T26,COLUMNS($Z$7:AD26)))) -> 1.26154674 | AE26: =IF(ISERROR(INDEX($B$7:$Q$1503,$T26,COLUMNS($Z$7:AE26))),"",(INDEX($B$7:$Q$1503,$T26,COLUMNS($Z$7:AE26)))) -> 1.241572721 | AF26: =IF(ISERROR(INDEX($B$7:$Q$1503,$T26,COLUMNS($Z$7:AF26))),"",(INDEX($B$7:$Q$1503,$T26,COLUMNS($Z$7:AF26)))) -> 1.197966617 | AG26: =IF(ISERROR(INDEX($B$7:$Q$1503,$T26,COLUMNS($Z$7:AG26))),"",(INDEX($B$7:$Q$1503,$T26,COLUMNS($Z$7:AG26)))) -> 1.716937355 | AH26: =IF(ISERROR(INDEX($B$7:$Q$1503,$T26,COLUMNS($Z$7:AH26))),"",(INDEX($B$7:$Q$1503,$T26,COLUMNS($Z$7:AH26)))) -> 1.626235796 | AI26: =IF(ISERROR(INDEX($B$7:$Q$1503,$T26,COLUMNS($Z$7:AI26))),"",(INDEX($B$7:$Q$1503,$T26,COLUMNS($Z$7:AI26)))) -> 1.435442602 | AJ26: =IF(ISERROR(INDEX($B$7:$Q$1503,$T26,COLUMNS($Z$7:AJ26))),"",(INDEX($B$7:$Q$1503,$T26,COLUMNS($Z$7:AJ26)))) -> 1.084924192 | AK26: =IF(ISERROR(INDEX($B$7:$Q$1503,$T26,COLUMNS($Z$7:AK26))),"",(INDEX($B$7:$Q$1503,$T26,COLUMNS($Z$7:AK26)))) -> 1.010088318 | AL26: =IF(ISERROR(INDEX($B$7:$Q$1503,$T26,COLUMNS($Z$7:AL26))),"",(INDEX($B$7:$Q$1503,$T26,COLUMNS($Z$7:AL26)))) -> 0.9024677349 | AM26: =IF(ISERROR(INDEX($B$7:$Q$1503,$T26,COLUMNS($Z$7:AM26))),"",(INDEX($B$7:$Q$1503,$T26,COLUMNS($Z$7:AM26)))) -> 0.9389889433 | AN26: =IF(ISERROR(INDEX($B$7:$Q$1503,$T26,COLUMNS($Z$7:AN26))),"",(INDEX($B$7:$Q$1503,$T26,COLUMNS($Z$7:AN26)))) -> 0.9729405774 | AO26: =IF(ISERROR(INDEX($B$7:$Q$1503,$T26,COLUMNS($Z$7:AO26))),"",(INDEX($B$7:$Q$1503,$T26,COLUMNS($Z$7:AO26)))) -> 0
B27: Neringos sav. | C27: Neišregistruotų juridinių asmenų skaičius metų pradžioje | vnt. | D27: 421 | E27: 424 | F27: 431 | G27: 452 | H27: 454 | I27: 472 | J27: 481 | K27: 473 | L27: 477 | M27: 497 | N27: 528 | O27: 583 | P27: 639 | Q27: =HLOOKUP(B27,'[1]2023_neišreg'!$B$2:$BT$23,22,FALSE) -> 690 | R27: =ROWS($R$7:R27) -> 21 | T27: =IF(ISERROR(SMALL($S$7:$S$1504,ROWS($S$7:S27))),"",SMALL($S$7:$S$1504,ROWS($S$7:S27))) -> 1496 | V27: =IF(ISERROR(SMALL($U$7:$U$1504,ROWS(U$7:$U27))),"",SMALL($U$7:$U$1504,ROWS(U$7:$U27))) -> 1489 | X27: =IF(ISERROR(SMALL($W$7:$W$1504,ROWS($W$7:W27))),"",SMALL($W$7:$W$1504,ROWS($W$7:W27))) -> 1427 | Z27: =IF(ISERROR(INDEX($B$7:$K$1503,$T27,COLUMNS($Z$7:Z27))),"",(INDEX($B$7:$K$1503,$T27,COLUMNS($Z$7:Z27)))) -> Vilniaus m. sav. | AA27: =IF(ISERROR(INDEX($B$7:$K$1503,$T27,COLUMNS($Z$7:AA27))),"",(INDEX($B$7:$K$1503,$T27,COLUMNS($Z$7:AA27)))) -> Tarptautinės imigracijos lygis | % | AB27: =IF(ISERROR(INDEX($B$7:$Q$1503,$T27,COLUMNS($Z$7:AB27))),"",(INDEX($B$7:$Q$1503,$T27,COLUMNS($Z$7:AB27)))) -> 0.2125416235 | AC27: =IF(ISERROR(INDEX($B$7:$Q$1503,$T27,COLUMNS($Z$7:AC27))),"",(INDEX($B$7:$Q$1503,$T27,COLUMNS($Z$7:AC27)))) -> 0.5513341051 | AD27: =IF(ISERROR(INDEX($B$7:$Q$1503,$T27,COLUMNS($Z$7:AD27))),"",(INDEX($B$7:$Q$1503,$T27,COLUMNS($Z$7:AD27)))) -> 0.7428776419 | AE27: =IF(ISERROR(INDEX($B$7:$Q$1503,$T27,COLUMNS($Z$7:AE27))),"",(INDEX($B$7:$Q$1503,$T27,COLUMNS($Z$7:AE27)))) -> 0.8669650651 | AF27: =IF(ISERROR(INDEX($B$7:$Q$1503,$T27,COLUMNS($Z$7:AF27))),"",(INDEX($B$7:$Q$1503,$T27,COLUMNS($Z$7:AF27)))) -> 1.0715731 | AG27: =IF(ISERROR(INDEX($B$7:$Q$1503,$T27,COLUMNS($Z$7:AG27))),"",(INDEX($B$7:$Q$1503,$T27,COLUMNS($Z$7:AG27)))) -> 0.8595735278 | AH27: =IF(ISERROR(INDEX($B$7:$Q$1503,$T27,COLUMNS($Z$7:AH27))),"",(INDEX($B$7:$Q$1503,$T27,COLUMNS($Z$7:AH27)))) -> 0.9765129889 | AI27: =IF(ISERROR(INDEX($B$7:$Q$1503,$T27,COLUMNS($Z$7:AI27))),"",(INDEX($B$7:$Q$1503,$T27,COLUMNS($Z$7:AI27)))) -> 0.9213334261 | AJ27: =IF(ISERROR(INDEX($B$7:$Q$1503,$T27,COLUMNS($Z$7:AJ27))),"",(INDEX($B$7:$Q$1503,$T27,COLUMNS($Z$7:AJ27)))) -> 1.183322178 | AK27: =IF(ISERROR(INDEX($B$7:$Q$1503,$T27,COLUMNS($Z$7:AK27))),"",(INDEX($B$7:$Q$1503,$T27,COLUMNS($Z$7:AK27)))) -> 1.702987004 | AL27: =IF(ISERROR(INDEX($B$7:$Q$1503,$T27,COLUMNS($Z$7:AL27))),"",(INDEX($B$7:$Q$1503,$T27,COLUMNS($Z$7:AL27)))) -> 1.833921899 | AM27: =IF(ISERROR(INDEX($B$7:$Q$1503,$T27,COLUMNS($Z$7:AM27))),"",(INDEX($B$7:$Q$1503,$T27,COLUMNS($Z$7:AM27)))) -> 1.968732526 | AN27: =IF(ISERROR(INDEX($B$7:$Q$1503,$T27,COLUMNS($Z$7:AN27))),"",(INDEX($B$7:$Q$1503,$T27,COLUMNS($Z$7:AN27)))) -> 5.550975019 | AO27: =IF(ISERROR(INDEX($B$7:$Q$1503,$T27,COLUMNS($Z$7:AO27))),"",(INDEX($B$7:$Q$1503,$T27,COLUMNS($Z$7:AO27)))) -> 0
B28: Palangos m. sav. | C28: Neišregistruotų juridinių asmenų skaičius metų pradžioje | vnt. | D28: 1909 | E28: 1873 | F28: 1888 | G28: 1913 | H28: 1966 | I28: 1965 | J28: 1997 | K28: 1778 | L28: 1820 | M28: 1863 | N28: 1919 | O28: 1984 | P28: 1872 | Q28: =HLOOKUP(B28,'[1]2023_neišreg'!$B$2:$BT$23,22,FALSE) -> 1905 | R28: =ROWS($R$7:R28) -> 22 | T28: =IF(ISERROR(SMALL($S$7:$S$1504,ROWS($S$7:S28))),"",SMALL($S$7:$S$1504,ROWS($S$7:S28))) ->  | V28: =IF(ISERROR(SMALL($U$7:$U$1504,ROWS(U$7:$U28))),"",SMALL($U$7:$U$1504,ROWS(U$7:$U28))) ->  | X28: =IF(ISERROR(SMALL($W$7:$W$1504,ROWS($W$7:W28))),"",SMALL($W$7:$W$1504,ROWS($W$7:W28))) ->  | Z28: =IF(ISERROR(INDEX($B$7:$K$1503,$T28,COLUMNS($Z$7:Z28))),"",(INDEX($B$7:$K$1503,$T28,COLUMNS($Z$7:Z28)))) ->  | AA28: =IF(ISERROR(INDEX($B$7:$K$1503,$T28,COLUMNS($Z$7:AA28))),"",(INDEX($B$7:$K$1503,$T28,COLUMNS($Z$7:AA28)))) ->  | AB28: =IF(ISERROR(INDEX($B$7:$O$1503,$T28,COLUMNS($Z$7:AB28))),"",(INDEX($B$7:$O$1503,$T28,COLUMNS($Z$7:AB28)))) ->  | AC28: =IF(ISERROR(INDEX($B$7:$O$1503,$T28,COLUMNS($Z$7:AC28))),"",(INDEX($B$7:$O$1503,$T28,COLUMNS($Z$7:AC28)))) ->  | AD28: =IF(ISERROR(INDEX($B$7:$O$1503,$T28,COLUMNS($Z$7:AD28))),"",(INDEX($B$7:$O$1503,$T28,COLUMNS($Z$7:AD28)))) ->  | AE28: =IF(ISERROR(INDEX($B$7:$O$1503,$T28,COLUMNS($Z$7:AE28))),"",(INDEX($B$7:$O$1503,$T28,COLUMNS($Z$7:AE28)))) ->  | AF28: =IF(ISERROR(INDEX($B$7:$O$1503,$T28,COLUMNS($Z$7:AF28))),"",(INDEX($B$7:$O$1503,$T28,COLUMNS($Z$7:AF28)))) ->  | AG28: =IF(ISERROR(INDEX($B$7:$O$1503,$T28,COLUMNS($Z$7:AG28))),"",(INDEX($B$7:$O$1503,$T28,COLUMNS($Z$7:AG28)))) ->  | AH28: =IF(ISERROR(INDEX($B$7:$O$1503,$T28,COLUMNS($Z$7:AH28))),"",(INDEX($B$7:$O$1503,$T28,COLUMNS($Z$7:AH28)))) ->  | AI28: =IF(ISERROR(INDEX($B$7:$O$1503,$T28,COLUMNS($Z$7:AI28))),"",(INDEX($B$7:$O$1503,$T28,COLUMNS($Z$7:AI28)))) -> 
B29: Skuodo r. sav. | C29: Neišregistruotų juridinių asmenų skaičius metų pradžioje | vnt. | D29: 604 | E29: 593 | F29: 601 | G29: 629 | H29: 631 | I29: 635 | J29: 641 | K29: 595 | L29: 604 | M29: 613 | N29: 635 | O29: 640 | P29: 623 | Q29: =HLOOKUP(B29,'[1]2023_neišreg'!$B$2:$BT$23,22,FALSE) -> 622 | R29: =ROWS($R$7:R29) -> 23 | T29: =IF(ISERROR(SMALL($S$7:$S$1504,ROWS($S$7:S29))),"",SMALL($S$7:$S$1504,ROWS($S$7:S29))) ->  | V29: =IF(ISERROR(SMALL($U$7:$U$1504,ROWS(U$7:$U29))),"",SMALL($U$7:$U$1504,ROWS(U$7:$U29))) ->  | X29: =IF(ISERROR(SMALL($W$7:$W$1504,ROWS($W$7:W29))),"",SMALL($W$7:$W$1504,ROWS($W$7:W29))) -> 
B30: Šilutės r. sav. | C30: Neišregistruotų juridinių asmenų skaičius metų pradžioje | vnt. | D30: 1815 | E30: 1825 | F30: 1869 | G30: 1894 | H30: 1963 | I30: 1982 | J30: 2016 | K30: 1948 | L30: 2000 | M30: 2042 | N30: 2100 | O30: 2159 | P30: 2107 | Q30: =HLOOKUP(B30,'[1]2023_neišreg'!$B$2:$BT$23,22,FALSE) -> 2103 | R30: =ROWS($R$7:R30) -> 24 | T30: =IF(ISERROR(SMALL($S$7:$S$1504,ROWS($S$7:S30))),"",SMALL($S$7:$S$1504,ROWS($S$7:S30))) ->  | V30: =IF(ISERROR(SMALL($U$7:$U$1504,ROWS(U$7:$U30))),"",SMALL($U$7:$U$1504,ROWS(U$7:$U30))) ->  | X30: =IF(ISERROR(SMALL($W$7:$W$1504,ROWS($W$7:W30))),"",SMALL($W$7:$W$1504,ROWS($W$7:W30))) ->  | Z30: =+Z6 -> Administracinė teritorija | AA30: =+AA6 -> Rodiklis | AB30: 2010 | AC30: 2011 | AD30: 2012 | AE30: 2013 | AF30: 2014 | AG30: 2015 | AH30: 2016 | AI30: 2017 | AJ30: 2018 | AK30: =+AK6 -> 2019 | AL30: =+AL6 -> 2020 | AM30: =+AM6 -> 2021 | AN30: =+AN6 -> 2022 | AO30: =+AO6 -> 2023
B31: Marijampolės apskritis | C31: Neišregistruotų juridinių asmenų skaičius metų pradžioje | vnt. | D31: 5703 | E31: 5714 | F31: 5824 | G31: 6038 | H31: 6166 | I31: 6219 | J31: 6239 | K31: 5993 | L31: 6133 | M31: 6255 | N31: 6449 | O31: 6680 | P31: 6769 | Q31: =HLOOKUP(B31,'[1]2023_neišreg'!$B$2:$BT$23,22,FALSE) -> 6847 | R31: =ROWS($R$7:R31) -> 25 | T31: =IF(ISERROR(SMALL($S$7:$S$1504,ROWS($S$7:S31))),"",SMALL($S$7:$S$1504,ROWS($S$7:S31))) ->  | V31: =IF(ISERROR(SMALL($U$7:$U$1504,ROWS(U$7:$U31))),"",SMALL($U$7:$U$1504,ROWS(U$7:$U31))) ->  | X31: =IF(ISERROR(SMALL($W$7:$W$1504,ROWS($W$7:W31))),"",SMALL($W$7:$W$1504,ROWS($W$7:W31))) ->  | Z31: =IF(ISERROR(INDEX($B$7:$K$1503,$V7,COLUMNS($Z$31:Z31))),"",INDEX($B$7:$K$1503,$V7,COLUMNS($Z$31:Z31))) -> Vilniaus apskritis | AA31: =IF(ISERROR(INDEX($B$7:$K$1503,$V7,COLUMNS($Z$31:AA31))),"",INDEX($B$7:$K$1503,$V7,COLUMNS($Z$31:AA31))) -> Neišregistruotų juridinių asmenų skaičius metų pradžioje | vnt. | AB31: =IF(ISERROR(INDEX($B$7:$Q$1503,$V7,COLUMNS($Z$31:AB31))),"",INDEX($B$7:$Q$1503,$V7,COLUMNS($Z$31:AB31))) -> 69193 | AC31: =IF(ISERROR(INDEX($B$7:$Q$1503,$V7,COLUMNS($Z$31:AC31))),"",INDEX($B$7:$Q$1503,$V7,COLUMNS($Z$31:AC31))) -> 71414 | AD31: =IF(ISERROR(INDEX($B$7:$Q$1503,$V7,COLUMNS($Z$31:AD31))),"",INDEX($B$7:$Q$1503,$V7,COLUMNS($Z$31:AD31))) -> 75825 | AE31: =IF(ISERROR(INDEX($B$7:$Q$1503,$V7,COLUMNS($Z$31:AE31))),"",INDEX($B$7:$Q$1503,$V7,COLUMNS($Z$31:AE31))) -> 82959 | AF31: =IF(ISERROR(INDEX($B$7:$Q$1503,$V7,COLUMNS($Z$31:AF31))),"",INDEX($B$7:$Q$1503,$V7,COLUMNS($Z$31:AF31))) -> 89424 | AG31: =IF(ISERROR(INDEX($B$7:$Q$1503,$V7,COLUMNS($Z$31:AG31))),"",INDEX($B$7:$Q$1503,$V7,COLUMNS($Z$31:AG31))) -> 96097 | AH31: =IF(ISERROR(INDEX($B$7:$Q$1503,$V7,COLUMNS($Z$31:AH31))),"",INDEX($B$7:$Q$1503,$V7,COLUMNS($Z$31:AH31))) -> 99501 | AI31: =IF(ISERROR(INDEX($B$7:$Q$1503,$V7,COLUMNS($Z$31:AI31))),"",INDEX($B$7:$Q$1503,$V7,COLUMNS($Z$31:AI31))) -> 98305 | AJ31: =IF(ISERROR(INDEX($B$7:$Q$1503,$V7,COLUMNS($Z$31:AJ31))),"",INDEX($B$7:$Q$1503,$V7,COLUMNS($Z$31:AJ31))) -> 102222 | AK31: =IF(ISERROR(INDEX($B$7:$Q$1503,$V7,COLUMNS($Z$31:AK31))),"",INDEX($B$7:$Q$1503,$V7,COLUMNS($Z$31:AK31))) -> 106079 | AL31: =IF(ISERROR(INDEX($B$7:$Q$1503,$V7,COLUMNS($Z$31:AL31))),"",INDEX($B$7:$Q$1503,$V7,COLUMNS($Z$31:AL31))) -> 110319 | AM31: =IF(ISERROR(INDEX($B$7:$Q$1503,$V7,COLUMNS($Z$31:AM31))),"",INDEX($B$7:$Q$1503,$V7,COLUMNS($Z$31:AM31))) -> 115349 | AN31: =IF(ISERROR(INDEX($B$7:$Q$1503,$V7,COLUMNS($Z$31:AN31))),"",INDEX($B$7:$Q$1503,$V7,COLUMNS($Z$31:AN31))) -> 120821 | AO31: =IF(ISERROR(INDEX($B$7:$Q$1503,$V7,COLUMNS($Z$31:AO31))),"",INDEX($B$7:$Q$1503,$V7,COLUMNS($Z$31:AO31))) -> 114151
B32: Kalvarijos sav. | C32: Neišregistruotų juridinių asmenų skaičius metų pradžioje | vnt. | D32: 337 | E32: 332 | F32: 331 | G32: 341 | H32: 348 | I32: 349 | J32: 346 | K32: 331 | L32: 356 | M32: 387 | N32: 414 | O32: 448 | P32: 451 | Q32: =HLOOKUP(B32,'[1]2023_neišreg'!$B$2:$BT$23,22,FALSE) -> 466 | R32: =ROWS($R$7:R32) -> 26 | T32: =IF(ISERROR(SMALL($S$7:$S$1504,ROWS($S$7:S32))),"",SMALL($S$7:$S$1504,ROWS($S$7:S32))) ->  | V32: =IF(ISERROR(SMALL($U$7:$U$1504,ROWS(U$7:$U32))),"",SMALL($U$7:$U$1504,ROWS(U$7:$U32))) ->  | X32: =IF(ISERROR(SMALL($W$7:$W$1504,ROWS($W$7:W32))),"",SMALL($W$7:$W$1504,ROWS($W$7:W32))) ->  | Z32: =IF(ISERROR(INDEX($B$7:$K$1503,$V8,COLUMNS($Z$31:Z32))),"",INDEX($B$7:$K$1503,$V8,COLUMNS($Z$31:Z32))) -> Vilniaus apskritis | AA32: =IF(ISERROR(INDEX($B$7:$K$1503,$V8,COLUMNS($Z$31:AA32))),"",INDEX($B$7:$K$1503,$V8,COLUMNS($Z$31:AA32))) -> Per metus įregistruota juridinių asmenų skaičius | vnt. | AB32: =IF(ISERROR(INDEX($B$7:$Q$1503,$V8,COLUMNS($Z$31:AB32))),"",INDEX($B$7:$Q$1503,$V8,COLUMNS($Z$31:AB32))) -> 4515 | AC32: =IF(ISERROR(INDEX($B$7:$Q$1503,$V8,COLUMNS($Z$31:AC32))),"",INDEX($B$7:$Q$1503,$V8,COLUMNS($Z$31:AC32))) -> 5444 | AD32: =IF(ISERROR(INDEX($B$7:$Q$1503,$V8,COLUMNS($Z$31:AD32))),"",INDEX($B$7:$Q$1503,$V8,COLUMNS($Z$31:AD32))) -> 8082 | AE32: =IF(ISERROR(INDEX($B$7:$Q$1503,$V8,COLUMNS($Z$31:AE32))),"",INDEX($B$7:$Q$1503,$V8,COLUMNS($Z$31:AE32))) -> 7551 | AF32: =IF(ISERROR(INDEX($B$7:$Q$1503,$V8,COLUMNS($Z$31:AF32))),"",INDEX($B$7:$Q$1503,$V8,COLUMNS($Z$31:AF32))) -> 7891 | AG32: =IF(ISERROR(INDEX($B$7:$Q$1503,$V8,COLUMNS($Z$31:AG32))),"",INDEX($B$7:$Q$1503,$V8,COLUMNS($Z$31:AG32))) -> 4951 | AH32: =IF(ISERROR(INDEX($B$7:$Q$1503,$V8,COLUMNS($Z$31:AH32))),"",INDEX($B$7:$Q$1503,$V8,COLUMNS($Z$31:AH32))) -> 5078 | AI32: =IF(ISERROR(INDEX($B$7:$Q$1503,$V8,COLUMNS($Z$31:AI32))),"",INDEX($B$7:$Q$1503,$V8,COLUMNS($Z$31:AI32))) -> 5711 | AJ32: =IF(ISERROR(INDEX($B$7:$Q$1503,$V8,COLUMNS($Z$31:AJ32))),"",INDEX($B$7:$Q$1503,$V8,COLUMNS($Z$31:AJ32))) -> 5683 | AK32: =IF(ISERROR(INDEX($B$7:$Q$1503,$V8,COLUMNS($Z$31:AK32))),"",INDEX($B$7:$Q$1503,$V8,COLUMNS($Z$31:AK32))) -> 6143 | AL32: =IF(ISERROR(INDEX($B$7:$Q$1503,$V8,COLUMNS($Z$31:AL32))),"",INDEX($B$7:$Q$1503,$V8,COLUMNS($Z$31:AL32))) -> 6353 | AM32: =IF(ISERROR(INDEX($B$7:$Q$1503,$V8,COLUMNS($Z$31:AM32))),"",INDEX($B$7:$Q$1503,$V8,COLUMNS($Z$31:AM32))) -> 7393 | AN32: =IF(ISERROR(INDEX($B$7:$Q$1503,$V8,COLUMNS($Z$31:AN32))),"",INDEX($B$7:$Q$1503,$V8,COLUMNS($Z$31:AN32))) -> 7514 | AO32: =IF(ISERROR(INDEX($B$7:$Q$1503,$V8,COLUMNS($Z$31:AO32))),"",INDEX($B$7:$Q$1503,$V8,COLUMNS($Z$31:AO32))) -> 0
B33: Kazlų Rūdos sav. | C33: Neišregistruotų juridinių asmenų skaičius metų pradžioje | vnt. | D33: 433 | E33: 435 | F33: 452 | G33: 475 | H33: 513 | I33: 525 | J33: 519 | K33: 500 | L33: 520 | M33: 533 | N33: 556 | O33: 585 | P33: 583 | Q33: =HLOOKUP(B33,'[1]2023_neišreg'!$B$2:$BT$23,22,FALSE) -> 594 | R33: =ROWS($R$7:R33) -> 27 | T33: =IF(ISERROR(SMALL($S$7:$S$1504,ROWS($S$7:S33))),"",SMALL($S$7:$S$1504,ROWS($S$7:S33))) ->  | V33: =IF(ISERROR(SMALL($U$7:$U$1504,ROWS(U$7:$U33))),"",SMALL($U$7:$U$1504,ROWS(U$7:$U33))) ->  | X33: =IF(ISERROR(SMALL($W$7:$W$1504,ROWS($W$7:W33))),"",SMALL($W$7:$W$1504,ROWS($W$7:W33))) ->  | Z33: =IF(ISERROR(INDEX($B$7:$K$1503,$V9,COLUMNS($Z$31:Z33))),"",INDEX($B$7:$K$1503,$V9,COLUMNS($Z$31:Z33))) -> Vilniaus apskritis | AA33: =IF(ISERROR(INDEX($B$7:$K$1503,$V9,COLUMNS($Z$31:AA33))),"",INDEX($B$7:$K$1503,$V9,COLUMNS($Z$31:AA33))) -> Per metus išregistruota juridinių asmenų skaičius | vnt. | AB33: =IF(ISERROR(INDEX($B$7:$Q$1503,$V9,COLUMNS($Z$31:AB33))),"",INDEX($B$7:$Q$1503,$V9,COLUMNS($Z$31:AB33))) -> 2316 | AC33: =IF(ISERROR(INDEX($B$7:$Q$1503,$V9,COLUMNS($Z$31:AC33))),"",INDEX($B$7:$Q$1503,$V9,COLUMNS($Z$31:AC33))) -> 1056 | AD33: =IF(ISERROR(INDEX($B$7:$Q$1503,$V9,COLUMNS($Z$31:AD33))),"",INDEX($B$7:$Q$1503,$V9,COLUMNS($Z$31:AD33))) -> 1068 | AE33: =IF(ISERROR(INDEX($B$7:$Q$1503,$V9,COLUMNS($Z$31:AE33))),"",INDEX($B$7:$Q$1503,$V9,COLUMNS($Z$31:AE33))) -> 1105 | AF33: =IF(ISERROR(INDEX($B$7:$Q$1503,$V9,COLUMNS($Z$31:AF33))),"",INDEX($B$7:$Q$1503,$V9,COLUMNS($Z$31:AF33))) -> 1212 | AG33: =IF(ISERROR(INDEX($B$7:$Q$1503,$V9,COLUMNS($Z$31:AG33))),"",INDEX($B$7:$Q$1503,$V9,COLUMNS($Z$31:AG33))) -> 1548 | AH33: =IF(ISERROR(INDEX($B$7:$Q$1503,$V9,COLUMNS($Z$31:AH33))),"",INDEX($B$7:$Q$1503,$V9,COLUMNS($Z$31:AH33))) -> 6309 | AI33: =IF(ISERROR(INDEX($B$7:$Q$1503,$V9,COLUMNS($Z$31:AI33))),"",INDEX($B$7:$Q$1503,$V9,COLUMNS($Z$31:AI33))) -> 1799 | AJ33: =IF(ISERROR(INDEX($B$7:$Q$1503,$V9,COLUMNS($Z$31:AJ33))),"",INDEX($B$7:$Q$1503,$V9,COLUMNS($Z$31:AJ33))) -> 1881 | AK33: =IF(ISERROR(INDEX($B$7:$Q$1503,$V9,COLUMNS($Z$31:AK33))),"",INDEX($B$7:$Q$1503,$V9,COLUMNS($Z$31:AK33))) -> 1915 | AL33: =IF(ISERROR(INDEX($B$7:$Q$1503,$V9,COLUMNS($Z$31:AL33))),"",INDEX($B$7:$Q$1503,$V9,COLUMNS($Z$31:AL33))) -> 1349 | AM33: =IF(ISERROR(INDEX($B$7:$Q$1503,$V9,COLUMNS($Z$31:AM33))),"",INDEX($B$7:$Q$1503,$V9,COLUMNS($Z$31:AM33))) -> 1826 | AN33: =IF(ISERROR(INDEX($B$7:$Q$1503,$V9,COLUMNS($Z$31:AN33))),"",INDEX($B$7:$Q$1503,$V9,COLUMNS($Z$31:AN33))) -> 14174 | AO33: =IF(ISERROR(INDEX($B$7:$Q$1503,$V9,COLUMNS($Z$31:AO33))),"",INDEX($B$7:$Q$1503,$V9,COLUMNS($Z$31:AO33))) -> 0
B34: Marijampolės sav. | C34: Neišregistruotų juridinių asmenų skaičius metų pradžioje | vnt. | D34: 2786 | E34: 2784 | F34: 2844 | G34: 2937 | H34: 2975 | I34: 3030 | J34: 3040 | K34: 2921 | L34: 2961 | M34: 3027 | N34: 3103 | O34: 3194 | P34: 3228 | Q34: =HLOOKUP(B34,'[1]2023_neišreg'!$B$2:$BT$23,22,FALSE) -> 3246 | R34: =ROWS($R$7:R34) -> 28 | T34: =IF(ISERROR(SMALL($S$7:$S$1504,ROWS($S$7:S34))),"",SMALL($S$7:$S$1504,ROWS($S$7:S34))) ->  | V34: =IF(ISERROR(SMALL($U$7:$U$1504,ROWS(U$7:$U34))),"",SMALL($U$7:$U$1504,ROWS(U$7:$U34))) ->  | X34: =IF(ISERROR(SMALL($W$7:$W$1504,ROWS($W$7:W34))),"",SMALL($W$7:$W$1504,ROWS($W$7:W34))) ->  | Z34: =IF(ISERROR(INDEX($B$7:$K$1503,$V10,COLUMNS($Z$31:Z34))),"",INDEX($B$7:$K$1503,$V10,COLUMNS($Z$31:Z34))) -> Vilniaus apskritis | AA34: =IF(ISERROR(INDEX($B$7:$K$1503,$V10,COLUMNS($Z$31:AA34))),"",INDEX($B$7:$K$1503,$V10,COLUMNS($Z$31:AA34))) -> Per metus įregistruota mažų ir vidutinių įmonių | vnt. | AB34: =IF(ISERROR(INDEX($B$7:$Q$1503,$V10,COLUMNS($Z$31:AB34))),"",INDEX($B$7:$Q$1503,$V10,COLUMNS($Z$31:AB34))) -> 3701 | AC34: =IF(ISERROR(INDEX($B$7:$Q$1503,$V10,COLUMNS($Z$31:AC34))),"",INDEX($B$7:$Q$1503,$V10,COLUMNS($Z$31:AC34))) -> 4683 | AD34: =IF(ISERROR(INDEX($B$7:$Q$1503,$V10,COLUMNS($Z$31:AD34))),"",INDEX($B$7:$Q$1503,$V10,COLUMNS($Z$31:AD34))) -> 7345 | AE34: =IF(ISERROR(INDEX($B$7:$Q$1503,$V10,COLUMNS($Z$31:AE34))),"",INDEX($B$7:$Q$1503,$V10,COLUMNS($Z$31:AE34))) -> 6729 | AF34: =IF(ISERROR(INDEX($B$7:$Q$1503,$V10,COLUMNS($Z$31:AF34))),"",INDEX($B$7:$Q$1503,$V10,COLUMNS($Z$31:AF34))) -> 7115 | AG34: =IF(ISERROR(INDEX($B$7:$Q$1503,$V10,COLUMNS($Z$31:AG34))),"",INDEX($B$7:$Q$1503,$V10,COLUMNS($Z$31:AG34))) -> 4127 | AH34: =IF(ISERROR(INDEX($B$7:$Q$1503,$V10,COLUMNS($Z$31:AH34))),"",INDEX($B$7:$Q$1503,$V10,COLUMNS($Z$31:AH34))) -> 4415 | AI34: =IF(ISERROR(INDEX($B$7:$Q$1503,$V10,COLUMNS($Z$31:AI34))),"",INDEX($B$7:$Q$1503,$V10,COLUMNS($Z$31:AI34))) -> 4981 | AJ34: =IF(ISERROR(INDEX($B$7:$Q$1503,$V10,COLUMNS($Z$31:AJ34))),"",INDEX($B$7:$Q$1503,$V10,COLUMNS($Z$31:AJ34))) -> 5077 | AK34: =IF(ISERROR(INDEX($B$7:$Q$1503,$V10,COLUMNS($Z$31:AK34))),"",INDEX($B$7:$Q$1503,$V10,COLUMNS($Z$31:AK34))) -> 5432 | AL34: =IF(ISERROR(INDEX($B$7:$Q$1503,$V10,COLUMNS($Z$31:AL34))),"",INDEX($B$7:$Q$1503,$V10,COLUMNS($Z$31:AL34))) -> 5651 | AM34: =IF(ISERROR(INDEX($B$7:$Q$1503,$V10,COLUMNS($Z$31:AM34))),"",INDEX($B$7:$Q$1503,$V10,COLUMNS($Z$31:AM34))) -> 6874 | AN34: =IF(ISERROR(INDEX($B$7:$Q$1503,$V10,COLUMNS($Z$31:AN34))),"",INDEX($B$7:$Q$1503,$V10,COLUMNS($Z$31:AN34))) -> 6691 | AO34: =IF(ISERROR(INDEX($B$7:$Q$1503,$V10,COLUMNS($Z$31:AO34))),"",INDEX($B$7:$Q$1503,$V10,COLUMNS($Z$31:AO34))) -> 0
B35: Šakių r. sav. | C35: Neišregistruotų juridinių asmenų skaičius metų pradžioje | vnt. | D35: 880 | E35: 906 | F35: 923 | G35: 959 | H35: 979 | I35: 982 | J35: 1008 | K35: 986 | L35: 1023 | M35: 1046 | N35: 1086 | O35: 1125 | P35: 1155 | Q35: =HLOOKUP(B35,'[1]2023_neišreg'!$B$2:$BT$23,22,FALSE) -> 1151 | R35: =ROWS($R$7:R35) -> 29 | T35: =IF(ISERROR(SMALL($S$7:$S$1504,ROWS($S$7:S35))),"",SMALL($S$7:$S$1504,ROWS($S$7:S35))) ->  | V35: =IF(ISERROR(SMALL($U$7:$U$1504,ROWS(U$7:$U35))),"",SMALL($U$7:$U$1504,ROWS(U$7:$U35))) ->  | X35: =IF(ISERROR(SMALL($W$7:$W$1504,ROWS($W$7:W35))),"",SMALL($W$7:$W$1504,ROWS($W$7:W35))) ->  | Z35: =IF(ISERROR(INDEX($B$7:$K$1503,$V11,COLUMNS($Z$31:Z35))),"",INDEX($B$7:$K$1503,$V11,COLUMNS($Z$31:Z35))) -> Vilniaus apskritis | AA35: =IF(ISERROR(INDEX($B$7:$K$1503,$V11,COLUMNS($Z$31:AA35))),"",INDEX($B$7:$K$1503,$V11,COLUMNS($Z$31:AA35))) -> Per metus išregistruota mažų ir vidutinių įmonių | vnt. | AB35: =IF(ISERROR(INDEX($B$7:$Q$1503,$V11,COLUMNS($Z$31:AB35))),"",INDEX($B$7:$Q$1503,$V11,COLUMNS($Z$31:AB35))) -> 2571 | AC35: =IF(ISERROR(INDEX($B$7:$Q$1503,$V11,COLUMNS($Z$31:AC35))),"",INDEX($B$7:$Q$1503,$V11,COLUMNS($Z$31:AC35))) -> 1505 | AD35: =IF(ISERROR(INDEX($B$7:$Q$1503,$V11,COLUMNS($Z$31:AD35))),"",INDEX($B$7:$Q$1503,$V11,COLUMNS($Z$31:AD35))) -> 1492 | AE35: =IF(ISERROR(INDEX($B$7:$Q$1503,$V11,COLUMNS($Z$31:AE35))),"",INDEX($B$7:$Q$1503,$V11,COLUMNS($Z$31:AE35))) -> 1511 | AF35: =IF(ISERROR(INDEX($B$7:$Q$1503,$V11,COLUMNS($Z$31:AF35))),"",INDEX($B$7:$Q$1503,$V11,COLUMNS($Z$31:AF35))) -> 1656 | AG35: =IF(ISERROR(INDEX($B$7:$Q$1503,$V11,COLUMNS($Z$31:AG35))),"",INDEX($B$7:$Q$1503,$V11,COLUMNS($Z$31:AG35))) -> 1982 | AH35: =IF(ISERROR(INDEX($B$7:$Q$1503,$V11,COLUMNS($Z$31:AH35))),"",INDEX($B$7:$Q$1503,$V11,COLUMNS($Z$31:AH35))) -> 6649 | AI35: =IF(ISERROR(INDEX($B$7:$Q$1503,$V11,COLUMNS($Z$31:AI35))),"",INDEX($B$7:$Q$1503,$V11,COLUMNS($Z$31:AI35))) -> 1634 | AJ35: =IF(ISERROR(INDEX($B$7:$Q$1503,$V11,COLUMNS($Z$31:AJ35))),"",INDEX($B$7:$Q$1503,$V11,COLUMNS($Z$31:AJ35))) -> 1707 | AK35: =IF(ISERROR(INDEX($B$7:$Q$1503,$V11,COLUMNS($Z$31:AK35))),"",INDEX($B$7:$Q$1503,$V11,COLUMNS($Z$31:AK35))) -> 1641 | AL35: =IF(ISERROR(INDEX($B$7:$Q$1503,$V11,COLUMNS($Z$31:AL35))),"",INDEX($B$7:$Q$1503,$V11,COLUMNS($Z$31:AL35))) -> 1177 | AM35: =IF(ISERROR(INDEX($B$7:$Q$1503,$V11,COLUMNS($Z$31:AM35))),"",INDEX($B$7:$Q$1503,$V11,COLUMNS($Z$31:AM35))) -> 1504 | AN35: =IF(ISERROR(INDEX($B$7:$Q$1503,$V11,COLUMNS($Z$31:AN35))),"",INDEX($B$7:$Q$1503,$V11,COLUMNS($Z$31:AN35))) -> 10117 | AO35: =IF(ISERROR(INDEX($B$7:$Q$1503,$V11,COLUMNS($Z$31:AO35))),"",INDEX($B$7:$Q$1503,$V11,COLUMNS($Z$31:AO35))) -> 0
B36: Vilkaviškio r. sav. | C36: Neišregistruotų juridinių asmenų skaičius metų pradžioje | vnt. | D36: 1267 | E36: 1257 | F36: 1274 | G36: 1326 | H36: 1351 | I36: 1333 | J36: 1326 | K36: 1255 | L36: 1273 | M36: 1262 | N36: 1290 | O36: 1328 | P36: 1352 | Q36: =HLOOKUP(B36,'[1]2023_neišreg'!$B$2:$BT$23,22,FALSE) -> 1390 | R36: =ROWS($R$7:R36) -> 30 | T36: =IF(ISERROR(SMALL($S$7:$S$1504,ROWS($S$7:S36))),"",SMALL($S$7:$S$1504,ROWS($S$7:S36))) ->  | V36: =IF(ISERROR(SMALL($U$7:$U$1504,ROWS(U$7:$U36))),"",SMALL($U$7:$U$1504,ROWS(U$7:$U36))) ->  | X36: =IF(ISERROR(SMALL($W$7:$W$1504,ROWS($W$7:W36))),"",SMALL($W$7:$W$1504,ROWS($W$7:W36))) ->  | Z36: =IF(ISERROR(INDEX($B$7:$K$1503,$V12,COLUMNS($Z$31:Z36))),"",INDEX($B$7:$K$1503,$V12,COLUMNS($Z$31:Z36))) -> Vilniaus apskritis | AA36: =IF(ISERROR(INDEX($B$7:$K$1503,$V12,COLUMNS($Z$31:AA36))),"",INDEX($B$7:$K$1503,$V12,COLUMNS($Z$31:AA36))) -> Veikiančių mažų ir vidutinių įmonių skaičius metų pradžioje | vnt. | AB36: =IF(ISERROR(INDEX($B$7:$Q$1503,$V12,COLUMNS($Z$31:AB36))),"",INDEX($B$7:$Q$1503,$V12,COLUMNS($Z$31:AB36))) -> 23786 | AC36: =IF(ISERROR(INDEX($B$7:$Q$1503,$V12,COLUMNS($Z$31:AC36))),"",INDEX($B$7:$Q$1503,$V12,COLUMNS($Z$31:AC36))) -> 25071 | AD36: =IF(ISERROR(INDEX($B$7:$Q$1503,$V12,COLUMNS($Z$31:AD36))),"",INDEX($B$7:$Q$1503,$V12,COLUMNS($Z$31:AD36))) -> 24141 | AE36: =IF(ISERROR(INDEX($B$7:$Q$1503,$V12,COLUMNS($Z$31:AE36))),"",INDEX($B$7:$Q$1503,$V12,COLUMNS($Z$31:AE36))) -> 26070 | AF36: =IF(ISERROR(INDEX($B$7:$Q$1503,$V12,COLUMNS($Z$31:AF36))),"",INDEX($B$7:$Q$1503,$V12,COLUMNS($Z$31:AF36))) -> 27545 | AG36: =IF(ISERROR(INDEX($B$7:$Q$1503,$V12,COLUMNS($Z$31:AG36))),"",INDEX($B$7:$Q$1503,$V12,COLUMNS($Z$31:AG36))) -> 32122 | AH36: =IF(ISERROR(INDEX($B$7:$Q$1503,$V12,COLUMNS($Z$31:AH36))),"",INDEX($B$7:$Q$1503,$V12,COLUMNS($Z$31:AH36))) -> 33998 | AI36: =IF(ISERROR(INDEX($B$7:$Q$1503,$V12,COLUMNS($Z$31:AI36))),"",INDEX($B$7:$Q$1503,$V12,COLUMNS($Z$31:AI36))) -> 35119 | AJ36: =IF(ISERROR(INDEX($B$7:$Q$1503,$V12,COLUMNS($Z$31:AJ36))),"",INDEX($B$7:$Q$1503,$V12,COLUMNS($Z$31:AJ36))) -> 34923 | AK36: =IF(ISERROR(INDEX($B$7:$Q$1503,$V12,COLUMNS($Z$31:AK36))),"",INDEX($B$7:$Q$1503,$V12,COLUMNS($Z$31:AK36))) -> 35384 | AL36: =IF(ISERROR(INDEX($B$7:$Q$1503,$V12,COLUMNS($Z$31:AL36))),"",INDEX($B$7:$Q$1503,$V12,COLUMNS($Z$31:AL36))) -> 36478 | AM36: =IF(ISERROR(INDEX($B$7:$Q$1503,$V12,COLUMNS($Z$31:AM36))),"",INDEX($B$7:$Q$1503,$V12,COLUMNS($Z$31:AM36))) -> 36945 | AN36: =IF(ISERROR(INDEX($B$7:$Q$1503,$V12,COLUMNS($Z$31:AN36))),"",INDEX($B$7:$Q$1503,$V12,COLUMNS($Z$31:AN36))) -> 39639 | AO36: =IF(ISERROR(INDEX($B$7:$Q$1503,$V12,COLUMNS($Z$31:AO36))),"",INDEX($B$7:$Q$1503,$V12,COLUMNS($Z$31:AO36))) -> 42774
B37: Panevėžio apskritis | C37: Neišregistruotų juridinių asmenų skaičius metų pradžioje | vnt. | D37: 11927 | E37: 11918 | F37: 12034 | G37: 12332 | H37: 12657 | I37: 12952 | J37: 13122 | K37: 12509 | L37: 12705 | M37: 12924 | N37: 13212 | O37: 13499 | P37: 13669 | Q37: =HLOOKUP(B37,'[1]2023_neišreg'!$B$2:$BT$23,22,FALSE) -> 13586 | R37: =ROWS($R$7:R37) -> 31 | T37: =IF(ISERROR(SMALL($S$7:$S$1504,ROWS($S$7:S37))),"",SMALL($S$7:$S$1504,ROWS($S$7:S37))) ->  | V37: =IF(ISERROR(SMALL($U$7:$U$1504,ROWS(U$7:$U37))),"",SMALL($U$7:$U$1504,ROWS(U$7:$U37))) ->  | X37: =IF(ISERROR(SMALL($W$7:$W$1504,ROWS($W$7:W37))),"",SMALL($W$7:$W$1504,ROWS($W$7:W37))) ->  | Z37: =IF(ISERROR(INDEX($B$7:$K$1503,$V13,COLUMNS($Z$31:Z37))),"",INDEX($B$7:$K$1503,$V13,COLUMNS($Z$31:Z37))) -> Vilniaus apskritis | AA37: =IF(ISERROR(INDEX($B$7:$K$1503,$V13,COLUMNS($Z$31:AA37))),"",INDEX($B$7:$K$1503,$V13,COLUMNS($Z$31:AA37))) -> Veikiančių įmonių skaičius metų pradžioje | vnt. | AB37: =IF(ISERROR(INDEX($B$7:$Q$1503,$V13,COLUMNS($Z$31:AB37))),"",INDEX($B$7:$Q$1503,$V13,COLUMNS($Z$31:AB37))) -> 23961 | AC37: =IF(ISERROR(INDEX($B$7:$Q$1503,$V13,COLUMNS($Z$31:AC37))),"",INDEX($B$7:$Q$1503,$V13,COLUMNS($Z$31:AC37))) -> 25208 | AD37: =IF(ISERROR(INDEX($B$7:$Q$1503,$V13,COLUMNS($Z$31:AD37))),"",INDEX($B$7:$Q$1503,$V13,COLUMNS($Z$31:AD37))) -> 24276 | AE37: =IF(ISERROR(INDEX($B$7:$Q$1503,$V13,COLUMNS($Z$31:AE37))),"",INDEX($B$7:$Q$1503,$V13,COLUMNS($Z$31:AE37))) -> 26209 | AF37: =IF(ISERROR(INDEX($B$7:$Q$1503,$V13,COLUMNS($Z$31:AF37))),"",INDEX($B$7:$Q$1503,$V13,COLUMNS($Z$31:AF37))) -> 27698 | AG37: =IF(ISERROR(INDEX($B$7:$Q$1503,$V13,COLUMNS($Z$31:AG37))),"",INDEX($B$7:$Q$1503,$V13,COLUMNS($Z$31:AG37))) -> 32277 | AH37: =IF(ISERROR(INDEX($B$7:$Q$1503,$V13,COLUMNS($Z$31:AH37))),"",INDEX($B$7:$Q$1503,$V13,COLUMNS($Z$31:AH37))) -> 34165 | AI37: =IF(ISERROR(INDEX($B$7:$Q$1503,$V13,COLUMNS($Z$31:AI37))),"",INDEX($B$7:$Q$1503,$V13,COLUMNS($Z$31:AI37))) -> 35284 | AJ37: =IF(ISERROR(INDEX($B$7:$Q$1503,$V13,COLUMNS($Z$31:AJ37))),"",INDEX($B$7:$Q$1503,$V13,COLUMNS($Z$31:AJ37))) -> 35089 | AK37: =IF(ISERROR(INDEX($B$7:$Q$1503,$V13,COLUMNS($Z$31:AK37))),"",INDEX($B$7:$Q$1503,$V13,COLUMNS($Z$31:AK37))) -> 35561 | AL37: =IF(ISERROR(INDEX($B$7:$Q$1503,$V13,COLUMNS($Z$31:AL37))),"",INDEX($B$7:$Q$1503,$V13,COLUMNS($Z$31:AL37))) -> 36666 | AM37: =IF(ISERROR(INDEX($B$7:$Q$1503,$V13,COLUMNS($Z$31:AM37))),"",INDEX($B$7:$Q$1503,$V13,COLUMNS($Z$31:AM37))) -> 37145 | AN37: =IF(ISERROR(INDEX($B$7:$Q$1503,$V13,COLUMNS($Z$31:AN37))),"",INDEX($B$7:$Q$1503,$V13,COLUMNS($Z$31:AN37))) -> 39836 | AO37: =IF(ISERROR(INDEX($B$7:$Q$1503,$V13,COLUMNS($Z$31:AO37))),"",INDEX($B$7:$Q$1503,$V13,COLUMNS($Z$31:AO37))) -> 42974
B38: Biržų r. sav. | C38: Neišregistruotų juridinių asmenų skaičius metų pradžioje | vnt. | D38: 1091 | E38: 1077 | F38: 1119 | G38: 1135 | H38: 1159 | I38: 1185 | J38: 1210 | K38: 1143 | L38: 1150 | M38: 1176 | N38: 1212 | O38: 1227 | P38: 1235 | Q38: =HLOOKUP(B38,'[1]2023_neišreg'!$B$2:$BT$23,22,FALSE) -> 1226 | R38: =ROWS($R$7:R38) -> 32 | T38: =IF(ISERROR(SMALL($S$7:$S$1504,ROWS($S$7:S38))),"",SMALL($S$7:$S$1504,ROWS($S$7:S38))) ->  | V38: =IF(ISERROR(SMALL($U$7:$U$1504,ROWS(U$7:$U38))),"",SMALL($U$7:$U$1504,ROWS(U$7:$U38))) ->  | X38: =IF(ISERROR(SMALL($W$7:$W$1504,ROWS($W$7:W38))),"",SMALL($W$7:$W$1504,ROWS($W$7:W38))) ->  | Z38: =IF(ISERROR(INDEX($B$7:$K$1503,$V14,COLUMNS($Z$31:Z38))),"",INDEX($B$7:$K$1503,$V14,COLUMNS($Z$31:Z38))) -> Vilniaus apskritis | AA38: =IF(ISERROR(INDEX($B$7:$K$1503,$V14,COLUMNS($Z$31:AA38))),"",INDEX($B$7:$K$1503,$V14,COLUMNS($Z$31:AA38))) -> Darbuotojų skaičius veikiančiose mažose ir vidutinėse įmonėse metų pradžioje | vnt. | AB38: =IF(ISERROR(INDEX($B$7:$Q$1503,$V14,COLUMNS($Z$31:AB38))),"",INDEX($B$7:$Q$1503,$V14,COLUMNS($Z$31:AB38))) -> 256915 | AC38: =IF(ISERROR(INDEX($B$7:$Q$1503,$V14,COLUMNS($Z$31:AC38))),"",INDEX($B$7:$Q$1503,$V14,COLUMNS($Z$31:AC38))) -> 225900 | AD38: =IF(ISERROR(INDEX($B$7:$Q$1503,$V14,COLUMNS($Z$31:AD38))),"",INDEX($B$7:$Q$1503,$V14,COLUMNS($Z$31:AD38))) -> 219250 | AE38: =IF(ISERROR(INDEX($B$7:$Q$1503,$V14,COLUMNS($Z$31:AE38))),"",INDEX($B$7:$Q$1503,$V14,COLUMNS($Z$31:AE38))) -> 232401 | AF38: =IF(ISERROR(INDEX($B$7:$Q$1503,$V14,COLUMNS($Z$31:AF38))),"",INDEX($B$7:$Q$1503,$V14,COLUMNS($Z$31:AF38))) -> 237440 | AG38: =IF(ISERROR(INDEX($B$7:$Q$1503,$V14,COLUMNS($Z$31:AG38))),"",INDEX($B$7:$Q$1503,$V14,COLUMNS($Z$31:AG38))) -> 250944 | AH38: =IF(ISERROR(INDEX($B$7:$Q$1503,$V14,COLUMNS($Z$31:AH38))),"",INDEX($B$7:$Q$1503,$V14,COLUMNS($Z$31:AH38))) -> 258435 | AI38: =IF(ISERROR(INDEX($B$7:$Q$1503,$V14,COLUMNS($Z$31:AI38))),"",INDEX($B$7:$Q$1503,$V14,COLUMNS($Z$31:AI38))) -> 264940 | AJ38: =IF(ISERROR(INDEX($B$7:$Q$1503,$V14,COLUMNS($Z$31:AJ38))),"",INDEX($B$7:$Q$1503,$V14,COLUMNS($Z$31:AJ38))) -> 267298 | AK38: =IF(ISERROR(INDEX($B$7:$Q$1503,$V14,COLUMNS($Z$31:AK38))),"",INDEX($B$7:$Q$1503,$V14,COLUMNS($Z$31:AK38))) -> 265155 | AL38: =IF(ISERROR(INDEX($B$7:$Q$1503,$V14,COLUMNS($Z$31:AL38))),"",INDEX($B$7:$Q$1503,$V14,COLUMNS($Z$31:AL38))) -> 263602 | AM38: =IF(ISERROR(INDEX($B$7:$Q$1503,$V14,COLUMNS($Z$31:AM38))),"",INDEX($B$7:$Q$1503,$V14,COLUMNS($Z$31:AM38))) -> 260155 | AN38: =IF(ISERROR(INDEX($B$7:$Q$1503,$V14,COLUMNS($Z$31:AN38))),"",INDEX($B$7:$Q$1503,$V14,COLUMNS($Z$31:AN38))) -> 260995 | AO38: =IF(ISERROR(INDEX($B$7:$Q$1503,$V14,COLUMNS($Z$31:AO38))),"",INDEX($B$7:$Q$1503,$V14,COLUMNS($Z$31:AO38))) -> 277600
B39: Kupiškio r. sav. | C39: Neišregistruotų juridinių asmenų skaičius metų pradžioje | vnt. | D39: 780 | E39: 776 | F39: 769 | G39: 774 | H39: 799 | I39: 793 | J39: 800 | K39: 773 | L39: 780 | M39: 809 | N39: 813 | O39: 819 | P39: 830 | Q39: =HLOOKUP(B39,'[1]2023_neišreg'!$B$2:$BT$23,22,FALSE) -> 815 | R39: =ROWS($R$7:R39) -> 33 | T39: =IF(ISERROR(SMALL($S$7:$S$1504,ROWS($S$7:S39))),"",SMALL($S$7:$S$1504,ROWS($S$7:S39))) ->  | V39: =IF(ISERROR(SMALL($U$7:$U$1504,ROWS(U$7:$U39))),"",SMALL($U$7:$U$1504,ROWS(U$7:$U39))) ->  | X39: =IF(ISERROR(SMALL($W$7:$W$1504,ROWS($W$7:W39))),"",SMALL($W$7:$W$1504,ROWS($W$7:W39))) ->  | Z39: =IF(ISERROR(INDEX($B$7:$K$1503,$V15,COLUMNS($Z$31:Z39))),"",INDEX($B$7:$K$1503,$V15,COLUMNS($Z$31:Z39))) -> Vilniaus apskritis | AA39: =IF(ISERROR(INDEX($B$7:$K$1503,$V15,COLUMNS($Z$31:AA39))),"",INDEX($B$7:$K$1503,$V15,COLUMNS($Z$31:AA39))) -> Darbuotojų skaičius veikiančiose įmonėse metų pradžioje | vnt. | AB39: =IF(ISERROR(INDEX($B$7:$Q$1503,$V15,COLUMNS($Z$31:AB39))),"",INDEX($B$7:$Q$1503,$V15,COLUMNS($Z$31:AB39))) -> 416104 | AC39: =IF(ISERROR(INDEX($B$7:$Q$1503,$V15,COLUMNS($Z$31:AC39))),"",INDEX($B$7:$Q$1503,$V15,COLUMNS($Z$31:AC39))) -> 344601 | AD39: =IF(ISERROR(INDEX($B$7:$Q$1503,$V15,COLUMNS($Z$31:AD39))),"",INDEX($B$7:$Q$1503,$V15,COLUMNS($Z$31:AD39))) -> 336914 | AE39: =IF(ISERROR(INDEX($B$7:$Q$1503,$V15,COLUMNS($Z$31:AE39))),"",INDEX($B$7:$Q$1503,$V15,COLUMNS($Z$31:AE39))) -> 357849 | AF39: =IF(ISERROR(INDEX($B$7:$Q$1503,$V15,COLUMNS($Z$31:AF39))),"",INDEX($B$7:$Q$1503,$V15,COLUMNS($Z$31:AF39))) -> 368822 | AG39: =IF(ISERROR(INDEX($B$7:$Q$1503,$V15,COLUMNS($Z$31:AG39))),"",INDEX($B$7:$Q$1503,$V15,COLUMNS($Z$31:AG39))) -> 387139 | AH39: =IF(ISERROR(INDEX($B$7:$Q$1503,$V15,COLUMNS($Z$31:AH39))),"",INDEX($B$7:$Q$1503,$V15,COLUMNS($Z$31:AH39))) -> 400873 | AI39: =IF(ISERROR(INDEX($B$7:$Q$1503,$V15,COLUMNS($Z$31:AI39))),"",INDEX($B$7:$Q$1503,$V15,COLUMNS($Z$31:AI39))) -> 405776 | AJ39: =IF(ISERROR(INDEX($B$7:$Q$1503,$V15,COLUMNS($Z$31:AJ39))),"",INDEX($B$7:$Q$1503,$V15,COLUMNS($Z$31:AJ39))) -> 413423 | AK39: =IF(ISERROR(INDEX($B$7:$Q$1503,$V15,COLUMNS($Z$31:AK39))),"",INDEX($B$7:$Q$1503,$V15,COLUMNS($Z$31:AK39))) -> 412398 | AL39: =IF(ISERROR(INDEX($B$7:$Q$1503,$V15,COLUMNS($Z$31:AL39))),"",INDEX($B$7:$Q$1503,$V15,COLUMNS($Z$31:AL39))) -> 417911 | AM39: =IF(ISERROR(INDEX($B$7:$Q$1503,$V15,COLUMNS($Z$31:AM39))),"",INDEX($B$7:$Q$1503,$V15,COLUMNS($Z$31:AM39))) -> 419568 | AN39: =IF(ISERROR(INDEX($B$7:$Q$1503,$V15,COLUMNS($Z$31:AN39))),"",INDEX($B$7:$Q$1503,$V15,COLUMNS($Z$31:AN39))) -> 419521 | AO39: =IF(ISERROR(INDEX($B$7:$Q$1503,$V15,COLUMNS($Z$31:AO39))),"",INDEX($B$7:$Q$1503,$V15,COLUMNS($Z$31:AO39))) -> 438611
B40: Panevėžio m. sav. | C40: Neišregistruotų juridinių asmenų skaičius metų pradžioje | vnt. | D40: 6439 | E40: 6404 | F40: 6438 | G40: 6627 | H40: 6787 | I40: 6915 | J40: 6966 | K40: 6548 | L40: 6606 | M40: 6605 | N40: 6678 | O40: 6760 | P40: 6738 | Q40: =HLOOKUP(B40,'[1]2023_neišreg'!$B$2:$BT$23,22,FALSE) -> 6572 | R40: =ROWS($R$7:R40) -> 34 | T40: =IF(ISERROR(SMALL($S$7:$S$1504,ROWS($S$7:S40))),"",SMALL($S$7:$S$1504,ROWS($S$7:S40))) ->  | V40: =IF(ISERROR(SMALL($U$7:$U$1504,ROWS(U$7:$U40))),"",SMALL($U$7:$U$1504,ROWS(U$7:$U40))) ->  | X40: =IF(ISERROR(SMALL($W$7:$W$1504,ROWS($W$7:W40))),"",SMALL($W$7:$W$1504,ROWS($W$7:W40))) ->  | Z40: =IF(ISERROR(INDEX($B$7:$K$1503,$V16,COLUMNS($Z$31:Z40))),"",INDEX($B$7:$K$1503,$V16,COLUMNS($Z$31:Z40))) -> Vilniaus apskritis | AA40: =IF(ISERROR(INDEX($B$7:$K$1503,$V16,COLUMNS($Z$31:AA40))),"",INDEX($B$7:$K$1503,$V16,COLUMNS($Z$31:AA40))) -> Asmenys, įsigiję verslo liudijimus | vnt. | AB40: =IF(ISERROR(INDEX($B$7:$Q$1503,$V16,COLUMNS($Z$31:AB40))),"",INDEX($B$7:$Q$1503,$V16,COLUMNS($Z$31:AB40))) ->  | AC40: =IF(ISERROR(INDEX($B$7:$Q$1503,$V16,COLUMNS($Z$31:AC40))),"",INDEX($B$7:$Q$1503,$V16,COLUMNS($Z$31:AC40))) -> 25450 | AD40: =IF(ISERROR(INDEX($B$7:$Q$1503,$V16,COLUMNS($Z$31:AD40))),"",INDEX($B$7:$Q$1503,$V16,COLUMNS($Z$31:AD40))) -> 23304 | AE40: =IF(ISERROR(INDEX($B$7:$Q$1503,$V16,COLUMNS($Z$31:AE40))),"",INDEX($B$7:$Q$1503,$V16,COLUMNS($Z$31:AE40))) -> 23650 | AF40: =IF(ISERROR(INDEX($B$7:$Q$1503,$V16,COLUMNS($Z$31:AF40))),"",INDEX($B$7:$Q$1503,$V16,COLUMNS($Z$31:AF40))) -> 26560 | AG40: =IF(ISERROR(INDEX($B$7:$Q$1503,$V16,COLUMNS($Z$31:AG40))),"",INDEX($B$7:$Q$1503,$V16,COLUMNS($Z$31:AG40))) -> 28619 | AH40: =IF(ISERROR(INDEX($B$7:$Q$1503,$V16,COLUMNS($Z$31:AH40))),"",INDEX($B$7:$Q$1503,$V16,COLUMNS($Z$31:AH40))) -> 31379 | AI40: =IF(ISERROR(INDEX($B$7:$Q$1503,$V16,COLUMNS($Z$31:AI40))),"",INDEX($B$7:$Q$1503,$V16,COLUMNS($Z$31:AI40))) -> 31823 | AJ40: =IF(ISERROR(INDEX($B$7:$Q$1503,$V16,COLUMNS($Z$31:AJ40))),"",INDEX($B$7:$Q$1503,$V16,COLUMNS($Z$31:AJ40))) -> 31170 | AK40: =IF(ISERROR(INDEX($B$7:$Q$1503,$V16,COLUMNS($Z$31:AK40))),"",INDEX($B$7:$Q$1503,$V16,COLUMNS($Z$31:AK40))) -> 34784 | AL40: =IF(ISERROR(INDEX($B$7:$Q$1503,$V16,COLUMNS($Z$31:AL40))),"",INDEX($B$7:$Q$1503,$V16,COLUMNS($Z$31:AL40))) -> 31958 | AM40: =IF(ISERROR(INDEX($B$7:$Q$1503,$V16,COLUMNS($Z$31:AM40))),"",INDEX($B$7:$Q$1503,$V16,COLUMNS($Z$31:AM40))) -> 30808 | AN40: =IF(ISERROR(INDEX($B$7:$Q$1503,$V16,COLUMNS($Z$31:AN40))),"",INDEX($B$7:$Q$1503,$V16,COLUMNS($Z$31:AN40))) -> 34931 | AO40: =IF(ISERROR(INDEX($B$7:$Q$1503,$V16,COLUMNS($Z$31:AO40))),"",INDEX($B$7:$Q$1503,$V16,COLUMNS($Z$31:AO40))) -> 0
B41: Panevėžio r. sav. | C41: Neišregistruotų juridinių asmenų skaičius metų pradžioje | vnt. | D41: 1558 | E41: 1604 | F41: 1620 | G41: 1664 | H41: 1698 | I41: 1735 | J41: 1786 | K41: 1729 | L41: 1786 | M41: 1839 | N41: 1918 | O41: 2000 | P41: 2064 | Q41: =HLOOKUP(B41,'[1]2023_neišreg'!$B$2:$BT$23,22,FALSE) -> 2101 | R41: =ROWS($R$7:R41) -> 35 | T41: =IF(ISERROR(SMALL($S$7:$S$1504,ROWS($S$7:S41))),"",SMALL($S$7:$S$1504,ROWS($S$7:S41))) ->  | V41: =IF(ISERROR(SMALL($U$7:$U$1504,ROWS(U$7:$U41))),"",SMALL($U$7:$U$1504,ROWS(U$7:$U41))) ->  | X41: =IF(ISERROR(SMALL($W$7:$W$1504,ROWS($W$7:W41))),"",SMALL($W$7:$W$1504,ROWS($W$7:W41))) ->  | Z41: =IF(ISERROR(INDEX($B$7:$K$1503,$V17,COLUMNS($Z$31:Z41))),"",INDEX($B$7:$K$1503,$V17,COLUMNS($Z$31:Z41))) -> Vilniaus apskritis | AA41: =IF(ISERROR(INDEX($B$7:$K$1503,$V17,COLUMNS($Z$31:AA41))),"",INDEX($B$7:$K$1503,$V17,COLUMNS($Z$31:AA41))) -> Veikiančios MVĮ tenkančios 1000 gyventojų metų pradžioje | vnt. | AB41: =IF(ISERROR(INDEX($B$7:$Q$1503,$V17,COLUMNS($Z$31:AB41))),"",INDEX($B$7:$Q$1503,$V17,COLUMNS($Z$31:AB41))) -> 28.85974523 | AC41: =IF(ISERROR(INDEX($B$7:$Q$1503,$V17,COLUMNS($Z$31:AC41))),"",INDEX($B$7:$Q$1503,$V17,COLUMNS($Z$31:AC41))) -> 30.8940685 | AD41: =IF(ISERROR(INDEX($B$7:$Q$1503,$V17,COLUMNS($Z$31:AD41))),"",INDEX($B$7:$Q$1503,$V17,COLUMNS($Z$31:AD41))) -> 29.95477191 | AE41: =IF(ISERROR(INDEX($B$7:$Q$1503,$V17,COLUMNS($Z$31:AE41))),"",INDEX($B$7:$Q$1503,$V17,COLUMNS($Z$31:AE41))) -> 32.33255778 | AF41: =IF(ISERROR(INDEX($B$7:$Q$1503,$V17,COLUMNS($Z$31:AF41))),"",INDEX($B$7:$Q$1503,$V17,COLUMNS($Z$31:AF41))) -> 34.17044409 | AG41: =IF(ISERROR(INDEX($B$7:$Q$1503,$V17,COLUMNS($Z$31:AG41))),"",INDEX($B$7:$Q$1503,$V17,COLUMNS($Z$31:AG41))) -> 39.77843356 | AH41: =IF(ISERROR(INDEX($B$7:$Q$1503,$V17,COLUMNS($Z$31:AH41))),"",INDEX($B$7:$Q$1503,$V17,COLUMNS($Z$31:AH41))) -> 42.21361345 | AI41: =IF(ISERROR(INDEX($B$7:$Q$1503,$V17,COLUMNS($Z$31:AI41))),"",INDEX($B$7:$Q$1503,$V17,COLUMNS($Z$31:AI41))) -> 43.61671343 | AJ41: =IF(ISERROR(INDEX($B$7:$Q$1503,$V17,COLUMNS($Z$31:AJ41))),"",INDEX($B$7:$Q$1503,$V17,COLUMNS($Z$31:AJ41))) -> 43.36283955 | AK41: =IF(ISERROR(INDEX($B$7:$Q$1503,$V17,COLUMNS($Z$31:AK41))),"",INDEX($B$7:$Q$1503,$V17,COLUMNS($Z$31:AK41))) -> 43.6549551 | AL41: =IF(ISERROR(INDEX($B$7:$Q$1503,$V17,COLUMNS($Z$31:AL41))),"",INDEX($B$7:$Q$1503,$V17,COLUMNS($Z$31:AL41))) -> 44.44606902 | AM41: =IF(ISERROR(INDEX($B$7:$Q$1503,$V17,COLUMNS($Z$31:AM41))),"",INDEX($B$7:$Q$1503,$V17,COLUMNS($Z$31:AM41))) -> 45.56627615 | AN41: =IF(ISERROR(INDEX($B$7:$Q$1503,$V17,COLUMNS($Z$31:AN41))),"",INDEX($B$7:$Q$1503,$V17,COLUMNS($Z$31:AN41))) -> 48.4613974 | AO41: =IF(ISERROR(INDEX($B$7:$Q$1503,$V17,COLUMNS($Z$31:AO41))),"",INDEX($B$7:$Q$1503,$V17,COLUMNS($Z$31:AO41))) -> 50.242792
B42: Pasvalio r. sav. | C42: Neišregistruotų juridinių asmenų skaičius metų pradžioje | vnt. | D42: 922 | E42: 920 | F42: 931 | G42: 951 | H42: 975 | I42: 1004 | J42: 1022 | K42: 991 | L42: 1014 | M42: 1036 | N42: 1052 | O42: 1076 | P42: 1113 | Q42: =HLOOKUP(B42,'[1]2023_neišreg'!$B$2:$BT$23,22,FALSE) -> 1159 | R42: =ROWS($R$7:R42) -> 36 | T42: =IF(ISERROR(SMALL($S$7:$S$1504,ROWS($S$7:S42))),"",SMALL($S$7:$S$1504,ROWS($S$7:S42))) ->  | V42: =IF(ISERROR(SMALL($U$7:$U$1504,ROWS(U$7:$U42))),"",SMALL($U$7:$U$1504,ROWS(U$7:$U42))) ->  | X42: =IF(ISERROR(SMALL($W$7:$W$1504,ROWS($W$7:W42))),"",SMALL($W$7:$W$1504,ROWS($W$7:W42))) ->  | Z42: =IF(ISERROR(INDEX($B$7:$K$1503,$V18,COLUMNS($Z$31:Z42))),"",INDEX($B$7:$K$1503,$V18,COLUMNS($Z$31:Z42))) -> Vilniaus apskritis | AA42: =IF(ISERROR(INDEX($B$7:$K$1503,$V18,COLUMNS($Z$31:AA42))),"",INDEX($B$7:$K$1503,$V18,COLUMNS($Z$31:AA42))) -> Išgyvenusių 1 metus ir 1 dieną ir nepakeitusių statuso iš veikianti į kitą įmonių dalis tarp visų prieš metus įregistruotų įmonių | % | AB42: =IF(ISERROR(INDEX($B$7:$Q$1503,$V18,COLUMNS($Z$31:AB42))),"",INDEX($B$7:$Q$1503,$V18,COLUMNS($Z$31:AB42))) -> 54.80957031 | AC42: =IF(ISERROR(INDEX($B$7:$Q$1503,$V18,COLUMNS($Z$31:AC42))),"",INDEX($B$7:$Q$1503,$V18,COLUMNS($Z$31:AC42))) -> 52.92730002 | AD42: =IF(ISERROR(INDEX($B$7:$Q$1503,$V18,COLUMNS($Z$31:AD42))),"",INDEX($B$7:$Q$1503,$V18,COLUMNS($Z$31:AD42))) -> 47.11538462 | AE42: =IF(ISERROR(INDEX($B$7:$Q$1503,$V18,COLUMNS($Z$31:AE42))),"",INDEX($B$7:$Q$1503,$V18,COLUMNS($Z$31:AE42))) -> 31.12630443 | AF42: =IF(ISERROR(INDEX($B$7:$Q$1503,$V18,COLUMNS($Z$31:AF42))),"",INDEX($B$7:$Q$1503,$V18,COLUMNS($Z$31:AF42))) -> 29.63496009 | AG42: =IF(ISERROR(INDEX($B$7:$Q$1503,$V18,COLUMNS($Z$31:AG42))),"",INDEX($B$7:$Q$1503,$V18,COLUMNS($Z$31:AG42))) -> 29.75881262 | AH42: =IF(ISERROR(INDEX($B$7:$Q$1503,$V18,COLUMNS($Z$31:AH42))),"",INDEX($B$7:$Q$1503,$V18,COLUMNS($Z$31:AH42))) -> 38.29968723 | AI42: =IF(ISERROR(INDEX($B$7:$Q$1503,$V18,COLUMNS($Z$31:AI42))),"",INDEX($B$7:$Q$1503,$V18,COLUMNS($Z$31:AI42))) -> 42.0746634 | AJ42: =IF(ISERROR(INDEX($B$7:$Q$1503,$V18,COLUMNS($Z$31:AJ42))),"",INDEX($B$7:$Q$1503,$V18,COLUMNS($Z$31:AJ42))) -> 29.72545637 | AK42: =IF(ISERROR(INDEX($B$7:$Q$1503,$V18,COLUMNS($Z$31:AK42))),"",INDEX($B$7:$Q$1503,$V18,COLUMNS($Z$31:AK42))) -> 26.9412091 | AL42: =IF(ISERROR(INDEX($B$7:$Q$1503,$V18,COLUMNS($Z$31:AL42))),"",INDEX($B$7:$Q$1503,$V18,COLUMNS($Z$31:AL42))) -> 0 | AM42: =IF(ISERROR(INDEX($B$7:$Q$1503,$V18,COLUMNS($Z$31:AM42))),"",INDEX($B$7:$Q$1503,$V18,COLUMNS($Z$31:AM42))) -> 0 | AN42: =IF(ISERROR(INDEX($B$7:$Q$1503,$V18,COLUMNS($Z$31:AN42))),"",INDEX($B$7:$Q$1503,$V18,COLUMNS($Z$31:AN42))) -> 0 | AO42: =IF(ISERROR(INDEX($B$7:$Q$1503,$V18,COLUMNS($Z$31:AO42))),"",INDEX($B$7:$Q$1503,$V18,COLUMNS($Z$31:AO42))) -> 0
B43: Rokiškio r. sav. | C43: Neišregistruotų juridinių asmenų skaičius metų pradžioje | vnt. | D43: 1137 | E43: 1137 | F43: 1157 | G43: 1181 | H43: 1239 | I43: 1320 | J43: 1338 | K43: 1325 | L43: 1369 | M43: 1459 | N43: 1539 | O43: 1617 | P43: 1689 | Q43: =HLOOKUP(B43,'[1]2023_neišreg'!$B$2:$BT$23,22,FALSE) -> 1713 | R43: =ROWS($R$7:R43) -> 37 | T43: =IF(ISERROR(SMALL($S$7:$S$1504,ROWS($S$7:S43))),"",SMALL($S$7:$S$1504,ROWS($S$7:S43))) ->  | V43: =IF(ISERROR(SMALL($U$7:$U$1504,ROWS(U$7:$U43))),"",SMALL($U$7:$U$1504,ROWS(U$7:$U43))) ->  | X43: =IF(ISERROR(SMALL($W$7:$W$1504,ROWS($W$7:W43))),"",SMALL($W$7:$W$1504,ROWS($W$7:W43))) ->  | Z43: =IF(ISERROR(INDEX($B$7:$K$1503,$V19,COLUMNS($Z$31:Z43))),"",INDEX($B$7:$K$1503,$V19,COLUMNS($Z$31:Z43))) -> Vilniaus apskritis | AA43: =IF(ISERROR(INDEX($B$7:$K$1503,$V19,COLUMNS($Z$31:AA43))),"",INDEX($B$7:$K$1503,$V19,COLUMNS($Z$31:AA43))) -> Registruoti bedarbiai | tūkst. | AB43: =IF(ISERROR(INDEX($B$7:$Q$1503,$V19,COLUMNS($Z$31:AB43))),"",INDEX($B$7:$Q$1503,$V19,COLUMNS($Z$31:AB43))) -> 81.9 | AC43: =IF(ISERROR(INDEX($B$7:$Q$1503,$V19,COLUMNS($Z$31:AC43))),"",INDEX($B$7:$Q$1503,$V19,COLUMNS($Z$31:AC43))) -> 62.2 | AD43: =IF(ISERROR(INDEX($B$7:$Q$1503,$V19,COLUMNS($Z$31:AD43))),"",INDEX($B$7:$Q$1503,$V19,COLUMNS($Z$31:AD43))) -> 52.9 | AE43: =IF(ISERROR(INDEX($B$7:$Q$1503,$V19,COLUMNS($Z$31:AE43))),"",INDEX($B$7:$Q$1503,$V19,COLUMNS($Z$31:AE43))) -> 47.9 | AF43: =IF(ISERROR(INDEX($B$7:$Q$1503,$V19,COLUMNS($Z$31:AF43))),"",INDEX($B$7:$Q$1503,$V19,COLUMNS($Z$31:AF43))) -> 40.5 | AG43: =IF(ISERROR(INDEX($B$7:$Q$1503,$V19,COLUMNS($Z$31:AG43))),"",INDEX($B$7:$Q$1503,$V19,COLUMNS($Z$31:AG43))) -> 37.4 | AH43: =IF(ISERROR(INDEX($B$7:$Q$1503,$V19,COLUMNS($Z$31:AH43))),"",INDEX($B$7:$Q$1503,$V19,COLUMNS($Z$31:AH43))) -> 34.794 | AI43: =IF(ISERROR(INDEX($B$7:$Q$1503,$V19,COLUMNS($Z$31:AI43))),"",INDEX($B$7:$Q$1503,$V19,COLUMNS($Z$31:AI43))) -> 34.536 | AJ43: =IF(ISERROR(INDEX($B$7:$Q$1503,$V19,COLUMNS($Z$31:AJ43))),"",INDEX($B$7:$Q$1503,$V19,COLUMNS($Z$31:AJ43))) -> 38.612 | AK43: =IF(ISERROR(INDEX($B$7:$Q$1503,$V19,COLUMNS($Z$31:AK43))),"",INDEX($B$7:$Q$1503,$V19,COLUMNS($Z$31:AK43))) -> 39.071 | AL43: =IF(ISERROR(INDEX($B$7:$Q$1503,$V19,COLUMNS($Z$31:AL43))),"",INDEX($B$7:$Q$1503,$V19,COLUMNS($Z$31:AL43))) -> 59.595 | AM43: =IF(ISERROR(INDEX($B$7:$Q$1503,$V19,COLUMNS($Z$31:AM43))),"",INDEX($B$7:$Q$1503,$V19,COLUMNS($Z$31:AM43))) -> 63.553 | AN43: =IF(ISERROR(INDEX($B$7:$Q$1503,$V19,COLUMNS($Z$31:AN43))),"",INDEX($B$7:$Q$1503,$V19,COLUMNS($Z$31:AN43))) -> 45.986 | AO43: =IF(ISERROR(INDEX($B$7:$Q$1503,$V19,COLUMNS($Z$31:AO43))),"",INDEX($B$7:$Q$1503,$V19,COLUMNS($Z$31:AO43))) -> 0
B44: Šiaulių apskritis | C44: Neišregistruotų juridinių asmenų skaičius metų pradžioje | vnt. | D44: 13700 | E44: 13666 | F44: 13948 | G44: 14464 | H44: 14918 | I44: 15432 | J44: 15564 | K44: 14579 | L44: 14769 | M44: 14929 | N44: 15228 | O44: 15728 | P44: 15821 | Q44: =HLOOKUP(B44,'[1]2023_neišreg'!$B$2:$BT$23,22,FALSE) -> 15464 | R44: =ROWS($R$7:R44) -> 38 | T44: =IF(ISERROR(SMALL($S$7:$S$1504,ROWS($S$7:S44))),"",SMALL($S$7:$S$1504,ROWS($S$7:S44))) ->  | V44: =IF(ISERROR(SMALL($U$7:$U$1504,ROWS(U$7:$U44))),"",SMALL($U$7:$U$1504,ROWS(U$7:$U44))) ->  | X44: =IF(ISERROR(SMALL($W$7:$W$1504,ROWS($W$7:W44))),"",SMALL($W$7:$W$1504,ROWS($W$7:W44))) ->  | Z44: =IF(ISERROR(INDEX($B$7:$K$1503,$V20,COLUMNS($Z$31:Z44))),"",INDEX($B$7:$K$1503,$V20,COLUMNS($Z$31:Z44))) -> Vilniaus apskritis | AA44: =IF(ISERROR(INDEX($B$7:$K$1503,$V20,COLUMNS($Z$31:AA44))),"",INDEX($B$7:$K$1503,$V20,COLUMNS($Z$31:AA44))) -> Registruotų bedarbių ir darbingo amžiaus gyventojų santykis | % | AB44: =IF(ISERROR(INDEX($B$7:$Q$1503,$V20,COLUMNS($Z$31:AB44))),"",INDEX($B$7:$Q$1503,$V20,COLUMNS($Z$31:AB44))) -> 15.4 | AC44: =IF(ISERROR(INDEX($B$7:$Q$1503,$V20,COLUMNS($Z$31:AC44))),"",INDEX($B$7:$Q$1503,$V20,COLUMNS($Z$31:AC44))) -> 11.9 | AD44: =IF(ISERROR(INDEX($B$7:$Q$1503,$V20,COLUMNS($Z$31:AD44))),"",INDEX($B$7:$Q$1503,$V20,COLUMNS($Z$31:AD44))) -> 10.3 | AE44: =IF(ISERROR(INDEX($B$7:$Q$1503,$V20,COLUMNS($Z$31:AE44))),"",INDEX($B$7:$Q$1503,$V20,COLUMNS($Z$31:AE44))) -> 9.3 | AF44: =IF(ISERROR(INDEX($B$7:$Q$1503,$V20,COLUMNS($Z$31:AF44))),"",INDEX($B$7:$Q$1503,$V20,COLUMNS($Z$31:AF44))) -> 7.9 | AG44: =IF(ISERROR(INDEX($B$7:$Q$1503,$V20,COLUMNS($Z$31:AG44))),"",INDEX($B$7:$Q$1503,$V20,COLUMNS($Z$31:AG44))) -> 7.3 | AH44: =IF(ISERROR(INDEX($B$7:$Q$1503,$V20,COLUMNS($Z$31:AH44))),"",INDEX($B$7:$Q$1503,$V20,COLUMNS($Z$31:AH44))) -> 6.8 | AI44: =IF(ISERROR(INDEX($B$7:$Q$1503,$V20,COLUMNS($Z$31:AI44))),"",INDEX($B$7:$Q$1503,$V20,COLUMNS($Z$31:AI44))) -> 6.7 | AJ44: =IF(ISERROR(INDEX($B$7:$Q$1503,$V20,COLUMNS($Z$31:AJ44))),"",INDEX($B$7:$Q$1503,$V20,COLUMNS($Z$31:AJ44))) -> 7.6 | AK44: =IF(ISERROR(INDEX($B$7:$Q$1503,$V20,COLUMNS($Z$31:AK44))),"",INDEX($B$7:$Q$1503,$V20,COLUMNS($Z$31:AK44))) -> 7.6 | AL44: =IF(ISERROR(INDEX($B$7:$Q$1503,$V20,COLUMNS($Z$31:AL44))),"",INDEX($B$7:$Q$1503,$V20,COLUMNS($Z$31:AL44))) -> 11.5 | AM44: =IF(ISERROR(INDEX($B$7:$Q$1503,$V20,COLUMNS($Z$31:AM44))),"",INDEX($B$7:$Q$1503,$V20,COLUMNS($Z$31:AM44))) -> 12 | AN44: =IF(ISERROR(INDEX($B$7:$Q$1503,$V20,COLUMNS($Z$31:AN44))),"",INDEX($B$7:$Q$1503,$V20,COLUMNS($Z$31:AN44))) -> 8.9 | AO44: =IF(ISERROR(INDEX($B$7:$Q$1503,$V20,COLUMNS($Z$31:AO44))),"",INDEX($B$7:$Q$1503,$V20,COLUMNS($Z$31:AO44))) -> 0
B45: Akmenės r. sav. | C45: Neišregistruotų juridinių asmenų skaičius metų pradžioje | vnt. | D45: 781 | E45: 792 | F45: 795 | G45: 834 | H45: 905 | I45: 1099 | J45: 1103 | K45: 1021 | L45: 1037 | M45: 1069 | N45: 1081 | O45: 1120 | P45: 1155 | Q45: =HLOOKUP(B45,'[1]2023_neišreg'!$B$2:$BT$23,22,FALSE) -> 1130 | R45: =ROWS($R$7:R45) -> 39 | T45: =IF(ISERROR(SMALL($S$7:$S$1504,ROWS($S$7:S45))),"",SMALL($S$7:$S$1504,ROWS($S$7:S45))) ->  | V45: =IF(ISERROR(SMALL($U$7:$U$1504,ROWS(U$7:$U45))),"",SMALL($U$7:$U$1504,ROWS(U$7:$U45))) ->  | X45: =IF(ISERROR(SMALL($W$7:$W$1504,ROWS($W$7:W45))),"",SMALL($W$7:$W$1504,ROWS($W$7:W45))) ->  | Z45: =IF(ISERROR(INDEX($B$7:$K$1503,$V21,COLUMNS($Z$31:Z45))),"",INDEX($B$7:$K$1503,$V21,COLUMNS($Z$31:Z45))) -> Vilniaus apskritis | AA45: =IF(ISERROR(INDEX($B$7:$K$1503,$V21,COLUMNS($Z$31:AA45))),"",INDEX($B$7:$K$1503,$V21,COLUMNS($Z$31:AA45))) -> Darbo užmokestis | mėnesinis | bruto | EUR (nuo 2019 m. keitėsi rodiklio skaičiavimas) | AB45: =IF(ISERROR(INDEX($B$7:$Q$1503,$V21,COLUMNS($Z$31:AB45))),"",INDEX($B$7:$Q$1503,$V21,COLUMNS($Z$31:AB45))) -> 659.9 | AC45: =IF(ISERROR(INDEX($B$7:$Q$1503,$V21,COLUMNS($Z$31:AC45))),"",INDEX($B$7:$Q$1503,$V21,COLUMNS($Z$31:AC45))) -> 677.2 | AD45: =IF(ISERROR(INDEX($B$7:$Q$1503,$V21,COLUMNS($Z$31:AD45))),"",INDEX($B$7:$Q$1503,$V21,COLUMNS($Z$31:AD45))) -> 703.8 | AE45: =IF(ISERROR(INDEX($B$7:$Q$1503,$V21,COLUMNS($Z$31:AE45))),"",INDEX($B$7:$Q$1503,$V21,COLUMNS($Z$31:AE45))) -> 732.9 | AF45: =IF(ISERROR(INDEX($B$7:$Q$1503,$V21,COLUMNS($Z$31:AF45))),"",INDEX($B$7:$Q$1503,$V21,COLUMNS($Z$31:AF45))) -> 768.3 | AG45: =IF(ISERROR(INDEX($B$7:$Q$1503,$V21,COLUMNS($Z$31:AG45))),"",INDEX($B$7:$Q$1503,$V21,COLUMNS($Z$31:AG45))) -> 803.7 | AH45: =IF(ISERROR(INDEX($B$7:$Q$1503,$V21,COLUMNS($Z$31:AH45))),"",INDEX($B$7:$Q$1503,$V21,COLUMNS($Z$31:AH45))) -> 863.7 | AI45: =IF(ISERROR(INDEX($B$7:$Q$1503,$V21,COLUMNS($Z$31:AI45))),"",INDEX($B$7:$Q$1503,$V21,COLUMNS($Z$31:AI45))) -> 939.8 | AJ45: =IF(ISERROR(INDEX($B$7:$Q$1503,$V21,COLUMNS($Z$31:AJ45))),"",INDEX($B$7:$Q$1503,$V21,COLUMNS($Z$31:AJ45))) -> 1034.6 | AK45: =IF(ISERROR(INDEX($B$7:$Q$1503,$V21,COLUMNS($Z$31:AK45))),"",INDEX($B$7:$Q$1503,$V21,COLUMNS($Z$31:AK45))) -> 1452.6 | AL45: =IF(ISERROR(INDEX($B$7:$Q$1503,$V21,COLUMNS($Z$31:AL45))),"",INDEX($B$7:$Q$1503,$V21,COLUMNS($Z$31:AL45))) -> 1590.6 | AM45: =IF(ISERROR(INDEX($B$7:$Q$1503,$V21,COLUMNS($Z$31:AM45))),"",INDEX($B$7:$Q$1503,$V21,COLUMNS($Z$31:AM45))) -> 1762.8 | AN45: =IF(ISERROR(INDEX($B$7:$Q$1503,$V21,COLUMNS($Z$31:AN45))),"",INDEX($B$7:$Q$1503,$V21,COLUMNS($Z$31:AN45))) -> 2002 | AO45: =IF(ISERROR(INDEX($B$7:$Q$1503,$V21,COLUMNS($Z$31:AO45))),"",INDEX($B$7:$Q$1503,$V21,COLUMNS($Z$31:AO45))) -> 0
B46: Joniškio r. sav. | C46: Neišregistruotų juridinių asmenų skaičius metų pradžioje | vnt. | D46: 881 | E46: 884 | F46: 901 | G46: 929 | H46: 957 | I46: 983 | J46: 987 | K46: 908 | L46: 912 | M46: 916 | N46: 946 | O46: 993 | P46: 1007 | Q46: =HLOOKUP(B46,'[1]2023_neišreg'!$B$2:$BT$23,22,FALSE) -> 984 | R46: =ROWS($R$7:R46) -> 40 | T46: =IF(ISERROR(SMALL($S$7:$S$1504,ROWS($S$7:S46))),"",SMALL($S$7:$S$1504,ROWS($S$7:S46))) ->  | V46: =IF(ISERROR(SMALL($U$7:$U$1504,ROWS(U$7:$U46))),"",SMALL($U$7:$U$1504,ROWS(U$7:$U46))) ->  | X46: =IF(ISERROR(SMALL($W$7:$W$1504,ROWS($W$7:W46))),"",SMALL($W$7:$W$1504,ROWS($W$7:W46))) ->  | Z46: =IF(ISERROR(INDEX($B$7:$K$1503,$V22,COLUMNS($Z$31:Z46))),"",INDEX($B$7:$K$1503,$V22,COLUMNS($Z$31:Z46))) -> Vilniaus apskritis | AA46: =IF(ISERROR(INDEX($B$7:$K$1503,$V22,COLUMNS($Z$31:AA46))),"",INDEX($B$7:$K$1503,$V22,COLUMNS($Z$31:AA46))) -> Darbo užmokestis | mėnesinis | neto | EUR | AB46: =IF(ISERROR(INDEX($B$7:$Q$1503,$V22,COLUMNS($Z$31:AB46))),"",INDEX($B$7:$Q$1503,$V22,COLUMNS($Z$31:AB46))) -> 511 | AC46: =IF(ISERROR(INDEX($B$7:$Q$1503,$V22,COLUMNS($Z$31:AC46))),"",INDEX($B$7:$Q$1503,$V22,COLUMNS($Z$31:AC46))) -> 523.7 | AD46: =IF(ISERROR(INDEX($B$7:$Q$1503,$V22,COLUMNS($Z$31:AD46))),"",INDEX($B$7:$Q$1503,$V22,COLUMNS($Z$31:AD46))) -> 543.1 | AE46: =IF(ISERROR(INDEX($B$7:$Q$1503,$V22,COLUMNS($Z$31:AE46))),"",INDEX($B$7:$Q$1503,$V22,COLUMNS($Z$31:AE46))) -> 564.3 | AF46: =IF(ISERROR(INDEX($B$7:$Q$1503,$V22,COLUMNS($Z$31:AF46))),"",INDEX($B$7:$Q$1503,$V22,COLUMNS($Z$31:AF46))) -> 592.7 | AG46: =IF(ISERROR(INDEX($B$7:$Q$1503,$V22,COLUMNS($Z$31:AG46))),"",INDEX($B$7:$Q$1503,$V22,COLUMNS($Z$31:AG46))) -> 618.5 | AH46: =IF(ISERROR(INDEX($B$7:$Q$1503,$V22,COLUMNS($Z$31:AH46))),"",INDEX($B$7:$Q$1503,$V22,COLUMNS($Z$31:AH46))) -> 665.9 | AI46: =IF(ISERROR(INDEX($B$7:$Q$1503,$V22,COLUMNS($Z$31:AI46))),"",INDEX($B$7:$Q$1503,$V22,COLUMNS($Z$31:AI46))) -> 728.2 | AJ46: =IF(ISERROR(INDEX($B$7:$Q$1503,$V22,COLUMNS($Z$31:AJ46))),"",INDEX($B$7:$Q$1503,$V22,COLUMNS($Z$31:AJ46))) -> 795.7 | AK46: =IF(ISERROR(INDEX($B$7:$Q$1503,$V22,COLUMNS($Z$31:AK46))),"",INDEX($B$7:$Q$1503,$V22,COLUMNS($Z$31:AK46))) -> 911.9 | AL46: =IF(ISERROR(INDEX($B$7:$Q$1503,$V22,COLUMNS($Z$31:AL46))),"",INDEX($B$7:$Q$1503,$V22,COLUMNS($Z$31:AL46))) -> 1004.9 | AM46: =IF(ISERROR(INDEX($B$7:$Q$1503,$V22,COLUMNS($Z$31:AM46))),"",INDEX($B$7:$Q$1503,$V22,COLUMNS($Z$31:AM46))) -> 1106.1 | AN46: =IF(ISERROR(INDEX($B$7:$Q$1503,$V22,COLUMNS($Z$31:AN46))),"",INDEX($B$7:$Q$1503,$V22,COLUMNS($Z$31:AN46))) -> 1242.2 | AO46: =IF(ISERROR(INDEX($B$7:$Q$1503,$V22,COLUMNS($Z$31:AO46))),"",INDEX($B$7:$Q$1503,$V22,COLUMNS($Z$31:AO46))) -> 0
B47: Kelmės r. sav. | C47: Neišregistruotų juridinių asmenų skaičius metų pradžioje | vnt. | D47: 1101 | E47: 1100 | F47: 1131 | G47: 1154 | H47: 1173 | I47: 1181 | J47: 1207 | K47: 1083 | L47: 1128 | M47: 1172 | N47: 1211 | O47: 1264 | P47: 1293 | Q47: =HLOOKUP(B47,'[1]2023_neišreg'!$B$2:$BT$23,22,FALSE) -> 1277 | R47: =ROWS($R$7:R47) -> 41 | T47: =IF(ISERROR(SMALL($S$7:$S$1504,ROWS($S$7:S47))),"",SMALL($S$7:$S$1504,ROWS($S$7:S47))) ->  | V47: =IF(ISERROR(SMALL($U$7:$U$1504,ROWS(U$7:$U47))),"",SMALL($U$7:$U$1504,ROWS(U$7:$U47))) ->  | X47: =IF(ISERROR(SMALL($W$7:$W$1504,ROWS($W$7:W47))),"",SMALL($W$7:$W$1504,ROWS($W$7:W47))) ->  | Z47: =IF(ISERROR(INDEX($B$7:$K$1503,$V23,COLUMNS($Z$31:Z47))),"",INDEX($B$7:$K$1503,$V23,COLUMNS($Z$31:Z47))) -> Vilniaus apskritis | AA47: =IF(ISERROR(INDEX($B$7:$K$1503,$V23,COLUMNS($Z$31:AA47))),"",INDEX($B$7:$K$1503,$V23,COLUMNS($Z$31:AA47))) -> Materialinės investicijos to meto kainomis | mln. EUR | AB47: =IF(ISERROR(INDEX($B$7:$Q$1503,$V23,COLUMNS($Z$31:AB47))),"",INDEX($B$7:$Q$1503,$V23,COLUMNS($Z$31:AB47))) -> 1583.965 | AC47: =IF(ISERROR(INDEX($B$7:$Q$1503,$V23,COLUMNS($Z$31:AC47))),"",INDEX($B$7:$Q$1503,$V23,COLUMNS($Z$31:AC47))) -> 1846.942 | AD47: =IF(ISERROR(INDEX($B$7:$Q$1503,$V23,COLUMNS($Z$31:AD47))),"",INDEX($B$7:$Q$1503,$V23,COLUMNS($Z$31:AD47))) -> 2156.038 | AE47: =IF(ISERROR(INDEX($B$7:$Q$1503,$V23,COLUMNS($Z$31:AE47))),"",INDEX($B$7:$Q$1503,$V23,COLUMNS($Z$31:AE47))) -> 2367.567 | AF47: =IF(ISERROR(INDEX($B$7:$Q$1503,$V23,COLUMNS($Z$31:AF47))),"",INDEX($B$7:$Q$1503,$V23,COLUMNS($Z$31:AF47))) -> 2475.896 | AG47: =IF(ISERROR(INDEX($B$7:$Q$1503,$V23,COLUMNS($Z$31:AG47))),"",INDEX($B$7:$Q$1503,$V23,COLUMNS($Z$31:AG47))) -> 2724.475 | AH47: =IF(ISERROR(INDEX($B$7:$Q$1503,$V23,COLUMNS($Z$31:AH47))),"",INDEX($B$7:$Q$1503,$V23,COLUMNS($Z$31:AH47))) -> 2882.711 | AI47: =IF(ISERROR(INDEX($B$7:$Q$1503,$V23,COLUMNS($Z$31:AI47))),"",INDEX($B$7:$Q$1503,$V23,COLUMNS($Z$31:AI47))) -> 2937.523 | AJ47: =IF(ISERROR(INDEX($B$7:$Q$1503,$V23,COLUMNS($Z$31:AJ47))),"",INDEX($B$7:$Q$1503,$V23,COLUMNS($Z$31:AJ47))) -> 3591.119 | AK47: =IF(ISERROR(INDEX($B$7:$Q$1503,$V23,COLUMNS($Z$31:AK47))),"",INDEX($B$7:$Q$1503,$V23,COLUMNS($Z$31:AK47))) -> 3952.557 | AL47: =IF(ISERROR(INDEX($B$7:$Q$1503,$V23,COLUMNS($Z$31:AL47))),"",INDEX($B$7:$Q$1503,$V23,COLUMNS($Z$31:AL47))) -> 3771.335 | AM47: =IF(ISERROR(INDEX($B$7:$Q$1503,$V23,COLUMNS($Z$31:AM47))),"",INDEX($B$7:$Q$1503,$V23,COLUMNS($Z$31:AM47))) -> 4777.772 | AN47: =IF(ISERROR(INDEX($B$7:$Q$1503,$V23,COLUMNS($Z$31:AN47))),"",INDEX($B$7:$Q$1503,$V23,COLUMNS($Z$31:AN47))) -> 0 | AO47: =IF(ISERROR(INDEX($B$7:$Q$1503,$V23,COLUMNS($Z$31:AO47))),"",INDEX($B$7:$Q$1503,$V23,COLUMNS($Z$31:AO47))) -> 0
B48: Pakruojo r. sav. | C48: Neišregistruotų juridinių asmenų skaičius metų pradžioje | vnt. | D48: 823 | E48: 790 | F48: 787 | G48: 791 | H48: 808 | I48: 818 | J48: 821 | K48: 786 | L48: 787 | M48: 797 | N48: 805 | O48: 827 | P48: 841 | Q48: =HLOOKUP(B48,'[1]2023_neišreg'!$B$2:$BT$23,22,FALSE) -> 837 | R48: =ROWS($R$7:R48) -> 42 | T48: =IF(ISERROR(SMALL($S$7:$S$1504,ROWS($S$7:S48))),"",SMALL($S$7:$S$1504,ROWS($S$7:S48))) ->  | V48: =IF(ISERROR(SMALL($U$7:$U$1504,ROWS(U$7:$U48))),"",SMALL($U$7:$U$1504,ROWS(U$7:$U48))) ->  | X48: =IF(ISERROR(SMALL($W$7:$W$1504,ROWS($W$7:W48))),"",SMALL($W$7:$W$1504,ROWS($W$7:W48))) ->  | Z48: =IF(ISERROR(INDEX($B$7:$K$1503,$V24,COLUMNS($Z$31:Z48))),"",INDEX($B$7:$K$1503,$V24,COLUMNS($Z$31:Z48))) -> Vilniaus apskritis | AA48: =IF(ISERROR(INDEX($B$7:$K$1503,$V24,COLUMNS($Z$31:AA48))),"",INDEX($B$7:$K$1503,$V24,COLUMNS($Z$31:AA48))) -> Apyvarta pagal veiklos vykdymo vietą | mln. EUR | AB48: =IF(ISERROR(INDEX($B$7:$Q$1503,$V24,COLUMNS($Z$31:AB48))),"",INDEX($B$7:$Q$1503,$V24,COLUMNS($Z$31:AB48))) -> 18853.001 | AC48: =IF(ISERROR(INDEX($B$7:$Q$1503,$V24,COLUMNS($Z$31:AC48))),"",INDEX($B$7:$Q$1503,$V24,COLUMNS($Z$31:AC48))) -> 22118.243 | AD48: =IF(ISERROR(INDEX($B$7:$Q$1503,$V24,COLUMNS($Z$31:AD48))),"",INDEX($B$7:$Q$1503,$V24,COLUMNS($Z$31:AD48))) -> 25001.406 | AE48: =IF(ISERROR(INDEX($B$7:$Q$1503,$V24,COLUMNS($Z$31:AE48))),"",INDEX($B$7:$Q$1503,$V24,COLUMNS($Z$31:AE48))) -> 27340.916 | AF48: =IF(ISERROR(INDEX($B$7:$Q$1503,$V24,COLUMNS($Z$31:AF48))),"",INDEX($B$7:$Q$1503,$V24,COLUMNS($Z$31:AF48))) -> 28918.966 | AG48: =IF(ISERROR(INDEX($B$7:$Q$1503,$V24,COLUMNS($Z$31:AG48))),"",INDEX($B$7:$Q$1503,$V24,COLUMNS($Z$31:AG48))) -> 30542.642 | AH48: =IF(ISERROR(INDEX($B$7:$Q$1503,$V24,COLUMNS($Z$31:AH48))),"",INDEX($B$7:$Q$1503,$V24,COLUMNS($Z$31:AH48))) -> 31696.718 | AI48: =IF(ISERROR(INDEX($B$7:$Q$1503,$V24,COLUMNS($Z$31:AI48))),"",INDEX($B$7:$Q$1503,$V24,COLUMNS($Z$31:AI48))) -> 34787.304 | AJ48: =IF(ISERROR(INDEX($B$7:$Q$1503,$V24,COLUMNS($Z$31:AJ48))),"",INDEX($B$7:$Q$1503,$V24,COLUMNS($Z$31:AJ48))) -> 38477.197 | AK48: =IF(ISERROR(INDEX($B$7:$Q$1503,$V24,COLUMNS($Z$31:AK48))),"",INDEX($B$7:$Q$1503,$V24,COLUMNS($Z$31:AK48))) -> 42205.447 | AL48: =IF(ISERROR(INDEX($B$7:$Q$1503,$V24,COLUMNS($Z$31:AL48))),"",INDEX($B$7:$Q$1503,$V24,COLUMNS($Z$31:AL48))) -> 42787.619 | AM48: =IF(ISERROR(INDEX($B$7:$Q$1503,$V24,COLUMNS($Z$31:AM48))),"",INDEX($B$7:$Q$1503,$V24,COLUMNS($Z$31:AM48))) -> 53365.016 | AN48: =IF(ISERROR(INDEX($B$7:$Q$1503,$V24,COLUMNS($Z$31:AN48))),"",INDEX($B$7:$Q$1503,$V24,COLUMNS($Z$31:AN48))) -> 0 | AO48: =IF(ISERROR(INDEX($B$7:$Q$1503,$V24,COLUMNS($Z$31:AO48))),"",INDEX($B$7:$Q$1503,$V24,COLUMNS($Z$31:AO48))) -> 0
B49: Radviliškio r. sav. | C49: Neišregistruotų juridinių asmenų skaičius metų pradžioje | vnt. | D49: 1303 | E49: 1236 | F49: 1265 | G49: 1334 | H49: 1393 | I49: 1431 | J49: 1489 | K49: 1423 | L49: 1454 | M49: 1462 | N49: 1489 | O49: 1537 | P49: 1570 | Q49: =HLOOKUP(B49,'[1]2023_neišreg'!$B$2:$BT$23,22,FALSE) -> 1548 | R49: =ROWS($R$7:R49) -> 43 | T49: =IF(ISERROR(SMALL($S$7:$S$1504,ROWS($S$7:S49))),"",SMALL($S$7:$S$1504,ROWS($S$7:S49))) ->  | V49: =IF(ISERROR(SMALL($U$7:$U$1504,ROWS(U$7:$U49))),"",SMALL($U$7:$U$1504,ROWS(U$7:$U49))) ->  | X49: =IF(ISERROR(SMALL($W$7:$W$1504,ROWS($W$7:W49))),"",SMALL($W$7:$W$1504,ROWS($W$7:W49))) ->  | Z49: =IF(ISERROR(INDEX($B$7:$K$1503,$V25,COLUMNS($Z$31:Z49))),"",INDEX($B$7:$K$1503,$V25,COLUMNS($Z$31:Z49))) -> Vilniaus apskritis | AA49: =IF(ISERROR(INDEX($B$7:$K$1503,$V25,COLUMNS($Z$31:AA49))),"",INDEX($B$7:$K$1503,$V25,COLUMNS($Z$31:AA49))) -> Pridėtinė vertė gamybos kainomis pagal veiklos vykdymo vietą | mln. EUR | AB49: =IF(ISERROR(INDEX($B$7:$Q$1503,$V25,COLUMNS($Z$31:AB49))),"",INDEX($B$7:$Q$1503,$V25,COLUMNS($Z$31:AB49))) -> 3894.922 | AC49: =IF(ISERROR(INDEX($B$7:$Q$1503,$V25,COLUMNS($Z$31:AC49))),"",INDEX($B$7:$Q$1503,$V25,COLUMNS($Z$31:AC49))) -> 4716.282 | AD49: =IF(ISERROR(INDEX($B$7:$Q$1503,$V25,COLUMNS($Z$31:AD49))),"",INDEX($B$7:$Q$1503,$V25,COLUMNS($Z$31:AD49))) -> 5323.299 | AE49: =IF(ISERROR(INDEX($B$7:$Q$1503,$V25,COLUMNS($Z$31:AE49))),"",INDEX($B$7:$Q$1503,$V25,COLUMNS($Z$31:AE49))) -> 5642.242 | AF49: =IF(ISERROR(INDEX($B$7:$Q$1503,$V25,COLUMNS($Z$31:AF49))),"",INDEX($B$7:$Q$1503,$V25,COLUMNS($Z$31:AF49))) -> 6568.759 | AG49: =IF(ISERROR(INDEX($B$7:$Q$1503,$V25,COLUMNS($Z$31:AG49))),"",INDEX($B$7:$Q$1503,$V25,COLUMNS($Z$31:AG49))) -> 6984.673 | AH49: =IF(ISERROR(INDEX($B$7:$Q$1503,$V25,COLUMNS($Z$31:AH49))),"",INDEX($B$7:$Q$1503,$V25,COLUMNS($Z$31:AH49))) -> 7743.945 | AI49: =IF(ISERROR(INDEX($B$7:$Q$1503,$V25,COLUMNS($Z$31:AI49))),"",INDEX($B$7:$Q$1503,$V25,COLUMNS($Z$31:AI49))) -> 8510.863 | AJ49: =IF(ISERROR(INDEX($B$7:$Q$1503,$V25,COLUMNS($Z$31:AJ49))),"",INDEX($B$7:$Q$1503,$V25,COLUMNS($Z$31:AJ49))) -> 9634.865 | AK49: =IF(ISERROR(INDEX($B$7:$Q$1503,$V25,COLUMNS($Z$31:AK49))),"",INDEX($B$7:$Q$1503,$V25,COLUMNS($Z$31:AK49))) -> 11006.247 | AL49: =IF(ISERROR(INDEX($B$7:$Q$1503,$V25,COLUMNS($Z$31:AL49))),"",INDEX($B$7:$Q$1503,$V25,COLUMNS($Z$31:AL49))) -> 11616.342 | AM49: =IF(ISERROR(INDEX($B$7:$Q$1503,$V25,COLUMNS($Z$31:AM49))),"",INDEX($B$7:$Q$1503,$V25,COLUMNS($Z$31:AM49))) -> 13990.178 | AN49: =IF(ISERROR(INDEX($B$7:$Q$1503,$V25,COLUMNS($Z$31:AN49))),"",INDEX($B$7:$Q$1503,$V25,COLUMNS($Z$31:AN49))) -> 0 | AO49: =IF(ISERROR(INDEX($B$7:$Q$1503,$V25,COLUMNS($Z$31:AO49))),"",INDEX($B$7:$Q$1503,$V25,COLUMNS($Z$31:AO49))) -> 0
B50: Šiaulių m. sav. | C50: Neišregistruotų juridinių asmenų skaičius metų pradžioje | vnt. | D50: 7190 | E50: 7215 | F50: 7344 | G50: 7606 | H50: 7805 | I50: 7980 | J50: 7985 | K50: 7477 | L50: 7474 | M50: 7494 | N50: 7614 | O50: 7796 | P50: 7678 | Q50: =HLOOKUP(B50,'[1]2023_neišreg'!$B$2:$BT$23,22,FALSE) -> 7415 | R50: =ROWS($R$7:R50) -> 44 | T50: =IF(ISERROR(SMALL($S$7:$S$1504,ROWS($S$7:S50))),"",SMALL($S$7:$S$1504,ROWS($S$7:S50))) ->  | V50: =IF(ISERROR(SMALL($U$7:$U$1504,ROWS(U$7:$U50))),"",SMALL($U$7:$U$1504,ROWS(U$7:$U50))) ->  | X50: =IF(ISERROR(SMALL($W$7:$W$1504,ROWS($W$7:W50))),"",SMALL($W$7:$W$1504,ROWS($W$7:W50))) ->  | Z50: =IF(ISERROR(INDEX($B$7:$K$1503,$V26,COLUMNS($Z$31:Z50))),"",INDEX($B$7:$K$1503,$V26,COLUMNS($Z$31:Z50))) -> Vilniaus apskritis | AA50: =IF(ISERROR(INDEX($B$7:$K$1503,$V26,COLUMNS($Z$31:AA50))),"",INDEX($B$7:$K$1503,$V26,COLUMNS($Z$31:AA50))) -> Tarptautinės emigracijos lygis | % | AB50: =IF(ISERROR(INDEX($B$7:$Q$1503,$V26,COLUMNS($Z$31:AB50))),"",INDEX($B$7:$Q$1503,$V26,COLUMNS($Z$31:AB50))) -> 1.980549096 | AC50: =IF(ISERROR(INDEX($B$7:$Q$1503,$V26,COLUMNS($Z$31:AC50))),"",INDEX($B$7:$Q$1503,$V26,COLUMNS($Z$31:AC50))) -> 1.511039118 | AD50: =IF(ISERROR(INDEX($B$7:$Q$1503,$V26,COLUMNS($Z$31:AD50))),"",INDEX($B$7:$Q$1503,$V26,COLUMNS($Z$31:AD50))) -> 1.169938135 | AE50: =IF(ISERROR(INDEX($B$7:$Q$1503,$V26,COLUMNS($Z$31:AE50))),"",INDEX($B$7:$Q$1503,$V26,COLUMNS($Z$31:AE50))) -> 1.151317218 | AF50: =IF(ISERROR(INDEX($B$7:$Q$1503,$V26,COLUMNS($Z$31:AF50))),"",INDEX($B$7:$Q$1503,$V26,COLUMNS($Z$31:AF50))) -> 1.116614238 | AG50: =IF(ISERROR(INDEX($B$7:$Q$1503,$V26,COLUMNS($Z$31:AG50))),"",INDEX($B$7:$Q$1503,$V26,COLUMNS($Z$31:AG50))) -> 1.549629178 | AH50: =IF(ISERROR(INDEX($B$7:$Q$1503,$V26,COLUMNS($Z$31:AH50))),"",INDEX($B$7:$Q$1503,$V26,COLUMNS($Z$31:AH50))) -> 1.508923649 | AI50: =IF(ISERROR(INDEX($B$7:$Q$1503,$V26,COLUMNS($Z$31:AI50))),"",INDEX($B$7:$Q$1503,$V26,COLUMNS($Z$31:AI50))) -> 1.379288934 | AJ50: =IF(ISERROR(INDEX($B$7:$Q$1503,$V26,COLUMNS($Z$31:AJ50))),"",INDEX($B$7:$Q$1503,$V26,COLUMNS($Z$31:AJ50))) -> 1.02691617 | AK50: =IF(ISERROR(INDEX($B$7:$Q$1503,$V26,COLUMNS($Z$31:AK50))),"",INDEX($B$7:$Q$1503,$V26,COLUMNS($Z$31:AK50))) -> 0.9666123938 | AL50: =IF(ISERROR(INDEX($B$7:$Q$1503,$V26,COLUMNS($Z$31:AL50))),"",INDEX($B$7:$Q$1503,$V26,COLUMNS($Z$31:AL50))) -> 0.8527089507 | AM50: =IF(ISERROR(INDEX($B$7:$Q$1503,$V26,COLUMNS($Z$31:AM50))),"",INDEX($B$7:$Q$1503,$V26,COLUMNS($Z$31:AM50))) -> 0.8967624212 | AN50: =IF(ISERROR(INDEX($B$7:$Q$1503,$V26,COLUMNS($Z$31:AN50))),"",INDEX($B$7:$Q$1503,$V26,COLUMNS($Z$31:AN50))) -> 0.9013380491 | AO50: =IF(ISERROR(INDEX($B$7:$Q$1503,$V26,COLUMNS($Z$31:AO50))),"",INDEX($B$7:$Q$1503,$V26,COLUMNS($Z$31:AO50))) -> 0
B51: Šiaulių r. sav. | C51: Neišregistruotų juridinių asmenų skaičius metų pradžioje | vnt. | D51: 1621 | E51: 1649 | F51: 1725 | G51: 1816 | H51: 1877 | I51: 1940 | J51: 1972 | K51: 1881 | L51: 1977 | M51: 2019 | N51: 2082 | O51: 2191 | P51: 2277 | Q51: =HLOOKUP(B51,'[1]2023_neišreg'!$B$2:$BT$23,22,FALSE) -> 2273 | R51: =ROWS($R$7:R51) -> 45 | T51: =IF(ISERROR(SMALL($S$7:$S$1504,ROWS($S$7:S51))),"",SMALL($S$7:$S$1504,ROWS($S$7:S51))) ->  | V51: =IF(ISERROR(SMALL($U$7:$U$1504,ROWS(U$7:$U51))),"",SMALL($U$7:$U$1504,ROWS(U$7:$U51))) ->  | X51: =IF(ISERROR(SMALL($W$7:$W$1504,ROWS($W$7:W51))),"",SMALL($W$7:$W$1504,ROWS($W$7:W51))) ->  | Z51: =IF(ISERROR(INDEX($B$7:$K$1503,$V27,COLUMNS($Z$31:Z51))),"",INDEX($B$7:$K$1503,$V27,COLUMNS($Z$31:Z51))) -> Vilniaus apskritis | AA51: =IF(ISERROR(INDEX($B$7:$K$1503,$V27,COLUMNS($Z$31:AA51))),"",INDEX($B$7:$K$1503,$V27,COLUMNS($Z$31:AA51))) -> Tarptautinės imigracijos lygis | % | AB51: =IF(ISERROR(INDEX($B$7:$Q$1503,$V27,COLUMNS($Z$31:AB51))),"",INDEX($B$7:$Q$1503,$V27,COLUMNS($Z$31:AB51))) -> 0.1744810198 | AC51: =IF(ISERROR(INDEX($B$7:$Q$1503,$V27,COLUMNS($Z$31:AC51))),"",INDEX($B$7:$Q$1503,$V27,COLUMNS($Z$31:AC51))) -> 0.4894183983 | AD51: =IF(ISERROR(INDEX($B$7:$Q$1503,$V27,COLUMNS($Z$31:AD51))),"",INDEX($B$7:$Q$1503,$V27,COLUMNS($Z$31:AD51))) -> 0.6386217283 | AE51: =IF(ISERROR(INDEX($B$7:$Q$1503,$V27,COLUMNS($Z$31:AE51))),"",INDEX($B$7:$Q$1503,$V27,COLUMNS($Z$31:AE51))) -> 0.7576218018 | AF51: =IF(ISERROR(INDEX($B$7:$Q$1503,$V27,COLUMNS($Z$31:AF51))),"",INDEX($B$7:$Q$1503,$V27,COLUMNS($Z$31:AF51))) -> 0.92921045 | AG51: =IF(ISERROR(INDEX($B$7:$Q$1503,$V27,COLUMNS($Z$31:AG51))),"",INDEX($B$7:$Q$1503,$V27,COLUMNS($Z$31:AG51))) -> 0.7666925827 | AH51: =IF(ISERROR(INDEX($B$7:$Q$1503,$V27,COLUMNS($Z$31:AH51))),"",INDEX($B$7:$Q$1503,$V27,COLUMNS($Z$31:AH51))) -> 0.8434375295 | AI51: =IF(ISERROR(INDEX($B$7:$Q$1503,$V27,COLUMNS($Z$31:AI51))),"",INDEX($B$7:$Q$1503,$V27,COLUMNS($Z$31:AI51))) -> 0.8466725446 | AJ51: =IF(ISERROR(INDEX($B$7:$Q$1503,$V27,COLUMNS($Z$31:AJ51))),"",INDEX($B$7:$Q$1503,$V27,COLUMNS($Z$31:AJ51))) -> 1.139422714 | AK51: =IF(ISERROR(INDEX($B$7:$Q$1503,$V27,COLUMNS($Z$31:AK51))),"",INDEX($B$7:$Q$1503,$V27,COLUMNS($Z$31:AK51))) -> 1.608200757 | AL51: =IF(ISERROR(INDEX($B$7:$Q$1503,$V27,COLUMNS($Z$31:AL51))),"",INDEX($B$7:$Q$1503,$V27,COLUMNS($Z$31:AL51))) -> 1.732201397 | AM51: =IF(ISERROR(INDEX($B$7:$Q$1503,$V27,COLUMNS($Z$31:AM51))),"",INDEX($B$7:$Q$1503,$V27,COLUMNS($Z$31:AM51))) -> 1.838835719 | AN51: =IF(ISERROR(INDEX($B$7:$Q$1503,$V27,COLUMNS($Z$31:AN51))),"",INDEX($B$7:$Q$1503,$V27,COLUMNS($Z$31:AN51))) -> 4.425218775 | AO51: =IF(ISERROR(INDEX($B$7:$Q$1503,$V27,COLUMNS($Z$31:AO51))),"",INDEX($B$7:$Q$1503,$V27,COLUMNS($Z$31:AO51))) -> 0
B52: Tauragės apskritis | C52: Neišregistruotų juridinių asmenų skaičius metų pradžioje | vnt. | D52: 3770 | E52: 3794 | F52: 3870 | G52: 4090 | H52: 4167 | I52: 4232 | J52: 4208 | K52: 4106 | L52: 4191 | M52: 4274 | N52: 4365 | O52: 4446 | P52: 4519 | Q52: =HLOOKUP(B52,'[1]2023_neišreg'!$B$2:$BT$23,22,FALSE) -> 4584 | R52: =ROWS($R$7:R52) -> 46 | T52: =IF(ISERROR(SMALL($S$7:$S$1504,ROWS($S$7:S52))),"",SMALL($S$7:$S$1504,ROWS($S$7:S52))) ->  | V52: =IF(ISERROR(SMALL($U$7:$U$1504,ROWS(U$7:$U52))),"",SMALL($U$7:$U$1504,ROWS(U$7:$U52))) ->  | X52: =IF(ISERROR(SMALL($W$7:$W$1504,ROWS($W$7:W52))),"",SMALL($W$7:$W$1504,ROWS($W$7:W52))) ->  | Z52: =IF(ISERROR(INDEX($B$7:$K$1503,$V28,COLUMNS($Z$31:Z52))),"",INDEX($B$7:$K$1503,$V28,COLUMNS($Z$31:Z52))) ->  | AA52: =IF(ISERROR(INDEX($B$7:$K$1503,$V28,COLUMNS($Z$31:AA52))),"",INDEX($B$7:$K$1503,$V28,COLUMNS($Z$31:AA52))) ->  | AB52: =IF(ISERROR(INDEX($B$7:$O$1503,$V28,COLUMNS($Z$31:AB52))),"",INDEX($B$7:$O$1503,$V28,COLUMNS($Z$31:AB52))) ->  | AC52: =IF(ISERROR(INDEX($B$7:$O$1503,$V28,COLUMNS($Z$31:AC52))),"",INDEX($B$7:$O$1503,$V28,COLUMNS($Z$31:AC52))) ->  | AD52: =IF(ISERROR(INDEX($B$7:$O$1503,$V28,COLUMNS($Z$31:AD52))),"",INDEX($B$7:$O$1503,$V28,COLUMNS($Z$31:AD52))) ->  | AE52: =IF(ISERROR(INDEX($B$7:$O$1503,$V28,COLUMNS($Z$31:AE52))),"",INDEX($B$7:$O$1503,$V28,COLUMNS($Z$31:AE52))) ->  | AF52: =IF(ISERROR(INDEX($B$7:$O$1503,$V28,COLUMNS($Z$31:AF52))),"",INDEX($B$7:$O$1503,$V28,COLUMNS($Z$31:AF52))) ->  | AG52: =IF(ISERROR(INDEX($B$7:$O$1503,$V28,COLUMNS($Z$31:AG52))),"",INDEX($B$7:$O$1503,$V28,COLUMNS($Z$31:AG52))) ->  | AH52: =IF(ISERROR(INDEX($B$7:$O$1503,$V28,COLUMNS($Z$31:AH52))),"",INDEX($B$7:$O$1503,$V28,COLUMNS($Z$31:AH52))) ->  | AI52: =IF(ISERROR(INDEX($B$7:$O$1503,$V28,COLUMNS($Z$31:AI52))),"",INDEX($B$7:$O$1503,$V28,COLUMNS($Z$31:AI52))) -> 
B53: Jurbarko r. sav. | C53: Neišregistruotų juridinių asmenų skaičius metų pradžioje | vnt. | D53: 1095 | E53: 1096 | F53: 1118 | G53: 1137 | H53: 1165 | I53: 1164 | J53: 1185 | K53: 1146 | L53: 1167 | M53: 1201 | N53: 1223 | O53: 1245 | P53: 1263 | Q53: =HLOOKUP(B53,'[1]2023_neišreg'!$B$2:$BT$23,22,FALSE) -> 1274 | R53: =ROWS($R$7:R53) -> 47 | T53: =IF(ISERROR(SMALL($S$7:$S$1504,ROWS($S$7:S53))),"",SMALL($S$7:$S$1504,ROWS($S$7:S53))) ->  | V53: =IF(ISERROR(SMALL($U$7:$U$1504,ROWS(U$7:$U53))),"",SMALL($U$7:$U$1504,ROWS(U$7:$U53))) ->  | X53: =IF(ISERROR(SMALL($W$7:$W$1504,ROWS($W$7:W53))),"",SMALL($W$7:$W$1504,ROWS($W$7:W53))) -> 
B54: Pagėgių sav. | C54: Neišregistruotų juridinių asmenų skaičius metų pradžioje | vnt. | D54: 289 | E54: 293 | F54: 299 | G54: 328 | H54: 334 | I54: 339 | J54: 338 | K54: 333 | L54: 340 | M54: 336 | N54: 345 | O54: 348 | P54: 354 | Q54: =HLOOKUP(B54,'[1]2023_neišreg'!$B$2:$BT$23,22,FALSE) -> 358 | R54: =ROWS($R$7:R54) -> 48 | T54: =IF(ISERROR(SMALL($S$7:$S$1504,ROWS($S$7:S54))),"",SMALL($S$7:$S$1504,ROWS($S$7:S54))) ->  | V54: =IF(ISERROR(SMALL($U$7:$U$1504,ROWS(U$7:$U54))),"",SMALL($U$7:$U$1504,ROWS(U$7:$U54))) ->  | X54: =IF(ISERROR(SMALL($W$7:$W$1504,ROWS($W$7:W54))),"",SMALL($W$7:$W$1504,ROWS($W$7:W54))) ->  | Z54: =+Z6 -> Administracinė teritorija | AA54: =+AA6 -> Rodiklis | AB54: 2010 | AC54: 2011 | AD54: 2012 | AE54: 2013 | AF54: 2014 | AG54: 2015 | AH54: 2016 | AI54: 2017 | AJ54: 2018 | AK54: =+AK6 -> 2019 | AL54: =+AL6 -> 2020 | AM54: =+AM6 -> 2021 | AN54: =+AN6 -> 2022 | AO54: =+AO6 -> 2023
B55: Šilalės r. sav. | C55: Neišregistruotų juridinių asmenų skaičius metų pradžioje | vnt. | D55: 731 | E55: 726 | F55: 754 | G55: 770 | H55: 790 | I55: 806 | J55: 803 | K55: 792 | L55: 825 | M55: 835 | N55: 862 | O55: 873 | P55: 910 | Q55: =HLOOKUP(B55,'[1]2023_neišreg'!$B$2:$BT$23,22,FALSE) -> 944 | R55: =ROWS($R$7:R55) -> 49 | T55: =IF(ISERROR(SMALL($S$7:$S$1504,ROWS($S$7:S55))),"",SMALL($S$7:$S$1504,ROWS($S$7:S55))) ->  | V55: =IF(ISERROR(SMALL($U$7:$U$1504,ROWS(U$7:$U55))),"",SMALL($U$7:$U$1504,ROWS(U$7:$U55))) ->  | X55: =IF(ISERROR(SMALL($W$7:$W$1504,ROWS($W$7:W55))),"",SMALL($W$7:$W$1504,ROWS($W$7:W55))) ->  | Z55: =IF(ISERROR(INDEX($B$7:$K$1503,$X7,COLUMNS($Z$31:Z53))),"",INDEX($B$7:$K$1503,$X7,COLUMNS($Z$31:Z53))) -> Lietuvos Respublika | AA55: =IF(ISERROR(INDEX($B$7:$K$1503,$X7,COLUMNS($Z$31:AA55))),"",INDEX($B$7:$K$1503,$X7,COLUMNS($Z$31:AA55))) -> Neišregistruotų juridinių asmenų skaičius metų pradžioje | vnt. | AB55: =IF(ISERROR(INDEX($B$7:$Q$1503,$X7,COLUMNS($Z$55:AB55))),"",INDEX($B$7:$Q$1503,$X7,COLUMNS($Z$55:AB55))) -> 181574 | AC55: =IF(ISERROR(INDEX($B$7:$Q$1503,$X7,COLUMNS($Z$55:AC55))),"",INDEX($B$7:$Q$1503,$X7,COLUMNS($Z$55:AC55))) -> 184714 | AD55: =IF(ISERROR(INDEX($B$7:$Q$1503,$X7,COLUMNS($Z$55:AD55))),"",INDEX($B$7:$Q$1503,$X7,COLUMNS($Z$55:AD55))) -> 191882 | AE55: =IF(ISERROR(INDEX($B$7:$Q$1503,$X7,COLUMNS($Z$55:AE55))),"",INDEX($B$7:$Q$1503,$X7,COLUMNS($Z$55:AE55))) -> 203557 | AF55: =IF(ISERROR(INDEX($B$7:$Q$1503,$X7,COLUMNS($Z$55:AF55))),"",INDEX($B$7:$Q$1503,$X7,COLUMNS($Z$55:AF55))) -> 213846 | AG55: =IF(ISERROR(INDEX($B$7:$Q$1503,$X7,COLUMNS($Z$55:AG55))),"",INDEX($B$7:$Q$1503,$X7,COLUMNS($Z$55:AG55))) -> 223644 | AH55: =IF(ISERROR(INDEX($B$7:$Q$1503,$X7,COLUMNS($Z$55:AH55))),"",INDEX($B$7:$Q$1503,$X7,COLUMNS($Z$55:AH55))) -> 228925 | AI55: =IF(ISERROR(INDEX($B$7:$Q$1503,$X7,COLUMNS($Z$55:AI55))),"",INDEX($B$7:$Q$1503,$X7,COLUMNS($Z$55:AI55))) -> 222066 | AJ55: =IF(ISERROR(INDEX($B$7:$Q$1503,$X7,COLUMNS($Z$55:AJ55))),"",INDEX($B$7:$Q$1503,$X7,COLUMNS($Z$55:AJ55))) -> 228625 | AK55: =IF(ISERROR(INDEX($B$7:$Q$1503,$X7,COLUMNS($Z$55:AK55))),"",INDEX($B$7:$Q$1503,$X7,COLUMNS($Z$55:AK55))) -> 235554 | AL55: =IF(ISERROR(INDEX($B$7:$Q$1503,$X7,COLUMNS($Z$55:AL55))),"",INDEX($B$7:$Q$1503,$X7,COLUMNS($Z$55:AL55))) -> 243459 | AM55: =IF(ISERROR(INDEX($B$7:$Q$1503,$X7,COLUMNS($Z$55:AM55))),"",INDEX($B$7:$Q$1503,$X7,COLUMNS($Z$55:AM55))) -> 253197 | AN55: =IF(ISERROR(INDEX($B$7:$Q$1503,$X7,COLUMNS($Z$55:AN55))),"",INDEX($B$7:$Q$1503,$X7,COLUMNS($Z$55:AN55))) -> 258399 | AO55: =IF(ISERROR(INDEX($B$7:$Q$1503,$X7,COLUMNS($Z$55:AO55))),"",INDEX($B$7:$Q$1503,$X7,COLUMNS($Z$55:AO55))) -> 250338
B56: Tauragės r. sav. | C56: Neišregistruotų juridinių asmenų skaičius metų pradžioje | vnt. | D56: 1655 | E56: 1679 | F56: 1699 | G56: 1855 | H56: 1878 | I56: 1923 | J56: 1882 | K56: 1835 | L56: 1859 | M56: 1902 | N56: 1935 | O56: 1980 | P56: 1992 | Q56: =HLOOKUP(B56,'[1]2023_neišreg'!$B$2:$BT$23,22,FALSE) -> 2008 | R56: =ROWS($R$7:R56) -> 50 | T56: =IF(ISERROR(SMALL($S$7:$S$1504,ROWS($S$7:S56))),"",SMALL($S$7:$S$1504,ROWS($S$7:S56))) ->  | V56: =IF(ISERROR(SMALL($U$7:$U$1504,ROWS(U$7:$U56))),"",SMALL($U$7:$U$1504,ROWS(U$7:$U56))) ->  | X56: =IF(ISERROR(SMALL($W$7:$W$1504,ROWS($W$7:W56))),"",SMALL($W$7:$W$1504,ROWS($W$7:W56))) ->  | Z56: =IF(ISERROR(INDEX($B$7:$K$1503,$X8,COLUMNS($Z$31:Z54))),"",INDEX($B$7:$K$1503,$X8,COLUMNS($Z$31:Z54))) -> Lietuvos Respublika | AA56: =IF(ISERROR(INDEX($B$7:$K$1503,$X8,COLUMNS($Z$31:AA56))),"",INDEX($B$7:$K$1503,$X8,COLUMNS($Z$31:AA56))) -> Per metus įregistruota juridinių asmenų skaičius | vnt. | AB56: =IF(ISERROR(INDEX($B$7:$Q$1503,$X8,COLUMNS($Z$55:AB56))),"",INDEX($B$7:$Q$1503,$X8,COLUMNS($Z$55:AB56))) -> 9198 | AC56: =IF(ISERROR(INDEX($B$7:$Q$1503,$X8,COLUMNS($Z$55:AC56))),"",INDEX($B$7:$Q$1503,$X8,COLUMNS($Z$55:AC56))) -> 10391 | AD56: =IF(ISERROR(INDEX($B$7:$Q$1503,$X8,COLUMNS($Z$55:AD56))),"",INDEX($B$7:$Q$1503,$X8,COLUMNS($Z$55:AD56))) -> 14866 | AE56: =IF(ISERROR(INDEX($B$7:$Q$1503,$X8,COLUMNS($Z$55:AE56))),"",INDEX($B$7:$Q$1503,$X8,COLUMNS($Z$55:AE56))) -> 13471 | AF56: =IF(ISERROR(INDEX($B$7:$Q$1503,$X8,COLUMNS($Z$55:AF56))),"",INDEX($B$7:$Q$1503,$X8,COLUMNS($Z$55:AF56))) -> 13858 | AG56: =IF(ISERROR(INDEX($B$7:$Q$1503,$X8,COLUMNS($Z$55:AG56))),"",INDEX($B$7:$Q$1503,$X8,COLUMNS($Z$55:AG56))) -> 10167 | AH56: =IF(ISERROR(INDEX($B$7:$Q$1503,$X8,COLUMNS($Z$55:AH56))),"",INDEX($B$7:$Q$1503,$X8,COLUMNS($Z$55:AH56))) -> 10481 | AI56: =IF(ISERROR(INDEX($B$7:$Q$1503,$X8,COLUMNS($Z$55:AI56))),"",INDEX($B$7:$Q$1503,$X8,COLUMNS($Z$55:AI56))) -> 11381 | AJ56: =IF(ISERROR(INDEX($B$7:$Q$1503,$X8,COLUMNS($Z$55:AJ56))),"",INDEX($B$7:$Q$1503,$X8,COLUMNS($Z$55:AJ56))) -> 11789 | AK56: =IF(ISERROR(INDEX($B$7:$Q$1503,$X8,COLUMNS($Z$55:AK56))),"",INDEX($B$7:$Q$1503,$X8,COLUMNS($Z$55:AK56))) -> 12692 | AL56: =IF(ISERROR(INDEX($B$7:$Q$1503,$X8,COLUMNS($Z$55:AL56))),"",INDEX($B$7:$Q$1503,$X8,COLUMNS($Z$55:AL56))) -> 13363 | AM56: =IF(ISERROR(INDEX($B$7:$Q$1503,$X8,COLUMNS($Z$55:AM56))),"",INDEX($B$7:$Q$1503,$X8,COLUMNS($Z$55:AM56))) -> 15113 | AN56: =IF(ISERROR(INDEX($B$7:$Q$1503,$X8,COLUMNS($Z$55:AN56))),"",INDEX($B$7:$Q$1503,$X8,COLUMNS($Z$55:AN56))) -> 14543 | AO56: =IF(ISERROR(INDEX($B$7:$Q$1503,$X8,COLUMNS($Z$55:AO56))),"",INDEX($B$7:$Q$1503,$X8,COLUMNS($Z$55:AO56))) -> 0
B57: Telšių apskritis | C57: Neišregistruotų juridinių asmenų skaičius metų pradžioje | vnt. | D57: 6124 | E57: 6095 | F57: 6221 | G57: 6428 | H57: 6617 | I57: 6674 | J57: 6710 | K57: 6385 | L57: 6480 | M57: 6666 | N57: 6810 | O57: 7027 | P57: 6977 | Q57: =HLOOKUP(B57,'[1]2023_neišreg'!$B$2:$BT$23,22,FALSE) -> 7138 | R57: =ROWS($R$7:R57) -> 51 | T57: =IF(ISERROR(SMALL($S$7:$S$1504,ROWS($S$7:S57))),"",SMALL($S$7:$S$1504,ROWS($S$7:S57))) ->  | V57: =IF(ISERROR(SMALL($U$7:$U$1504,ROWS(U$7:$U57))),"",SMALL($U$7:$U$1504,ROWS(U$7:$U57))) ->  | X57: =IF(ISERROR(SMALL($W$7:$W$1504,ROWS($W$7:W57))),"",SMALL($W$7:$W$1504,ROWS($W$7:W57))) ->  | Z57: =IF(ISERROR(INDEX($B$7:$K$1503,$X9,COLUMNS($Z$31:Z55))),"",INDEX($B$7:$K$1503,$X9,COLUMNS($Z$31:Z55))) -> Lietuvos Respublika | AA57: =IF(ISERROR(INDEX($B$7:$K$1503,$X9,COLUMNS($Z$31:AA57))),"",INDEX($B$7:$K$1503,$X9,COLUMNS($Z$31:AA57))) -> Per metus išregistruota juridinių asmenų skaičius | vnt. | AB57: =IF(ISERROR(INDEX($B$7:$Q$1503,$X9,COLUMNS($Z$55:AB57))),"",INDEX($B$7:$Q$1503,$X9,COLUMNS($Z$55:AB57))) -> 6057 | AC57: =IF(ISERROR(INDEX($B$7:$Q$1503,$X9,COLUMNS($Z$55:AC57))),"",INDEX($B$7:$Q$1503,$X9,COLUMNS($Z$55:AC57))) -> 3213 | AD57: =IF(ISERROR(INDEX($B$7:$Q$1503,$X9,COLUMNS($Z$55:AD57))),"",INDEX($B$7:$Q$1503,$X9,COLUMNS($Z$55:AD57))) -> 3160 | AE57: =IF(ISERROR(INDEX($B$7:$Q$1503,$X9,COLUMNS($Z$55:AE57))),"",INDEX($B$7:$Q$1503,$X9,COLUMNS($Z$55:AE57))) -> 3165 | AF57: =IF(ISERROR(INDEX($B$7:$Q$1503,$X9,COLUMNS($Z$55:AF57))),"",INDEX($B$7:$Q$1503,$X9,COLUMNS($Z$55:AF57))) -> 4033 | AG57: =IF(ISERROR(INDEX($B$7:$Q$1503,$X9,COLUMNS($Z$55:AG57))),"",INDEX($B$7:$Q$1503,$X9,COLUMNS($Z$55:AG57))) -> 4879 | AH57: =IF(ISERROR(INDEX($B$7:$Q$1503,$X9,COLUMNS($Z$55:AH57))),"",INDEX($B$7:$Q$1503,$X9,COLUMNS($Z$55:AH57))) -> 17336 | AI57: =IF(ISERROR(INDEX($B$7:$Q$1503,$X9,COLUMNS($Z$55:AI57))),"",INDEX($B$7:$Q$1503,$X9,COLUMNS($Z$55:AI57))) -> 4811 | AJ57: =IF(ISERROR(INDEX($B$7:$Q$1503,$X9,COLUMNS($Z$55:AJ57))),"",INDEX($B$7:$Q$1503,$X9,COLUMNS($Z$55:AJ57))) -> 4850 | AK57: =IF(ISERROR(INDEX($B$7:$Q$1503,$X9,COLUMNS($Z$55:AK57))),"",INDEX($B$7:$Q$1503,$X9,COLUMNS($Z$55:AK57))) -> 4776 | AL57: =IF(ISERROR(INDEX($B$7:$Q$1503,$X9,COLUMNS($Z$55:AL57))),"",INDEX($B$7:$Q$1503,$X9,COLUMNS($Z$55:AL57))) -> 3615 | AM57: =IF(ISERROR(INDEX($B$7:$Q$1503,$X9,COLUMNS($Z$55:AM57))),"",INDEX($B$7:$Q$1503,$X9,COLUMNS($Z$55:AM57))) -> 9916 | AN57: =IF(ISERROR(INDEX($B$7:$Q$1503,$X9,COLUMNS($Z$55:AN57))),"",INDEX($B$7:$Q$1503,$X9,COLUMNS($Z$55:AN57))) -> 22611 | AO57: =IF(ISERROR(INDEX($B$7:$Q$1503,$X9,COLUMNS($Z$55:AO57))),"",INDEX($B$7:$Q$1503,$X9,COLUMNS($Z$55:AO57))) -> 0
B58: Mažeikių r. sav. | C58: Neišregistruotų juridinių asmenų skaičius metų pradžioje | vnt. | D58: 2566 | E58: 2540 | F58: 2552 | G58: 2669 | H58: 2732 | I58: 2715 | J58: 2721 | K58: 2535 | L58: 2576 | M58: 2636 | N58: 2661 | O58: 2731 | P58: 2674 | Q58: =HLOOKUP(B58,'[1]2023_neišreg'!$B$2:$BT$23,22,FALSE) -> 2732 | R58: =ROWS($R$7:R58) -> 52 | T58: =IF(ISERROR(SMALL($S$7:$S$1504,ROWS($S$7:S58))),"",SMALL($S$7:$S$1504,ROWS($S$7:S58))) ->  | V58: =IF(ISERROR(SMALL($U$7:$U$1504,ROWS(U$7:$U58))),"",SMALL($U$7:$U$1504,ROWS(U$7:$U58))) ->  | X58: =IF(ISERROR(SMALL($W$7:$W$1504,ROWS($W$7:W58))),"",SMALL($W$7:$W$1504,ROWS($W$7:W58))) ->  | Z58: =IF(ISERROR(INDEX($B$7:$K$1503,$X10,COLUMNS($Z$31:Z56))),"",INDEX($B$7:$K$1503,$X10,COLUMNS($Z$31:Z56))) -> Lietuvos Respublika | AA58: =IF(ISERROR(INDEX($B$7:$K$1503,$X10,COLUMNS($Z$31:AA58))),"",INDEX($B$7:$K$1503,$X10,COLUMNS($Z$31:AA58))) -> Per metus įregistruota mažų ir vidutinių įmonių | vnt. | AB58: =IF(ISERROR(INDEX($B$7:$Q$1503,$X10,COLUMNS($Z$55:AB58))),"",INDEX($B$7:$Q$1503,$X10,COLUMNS($Z$55:AB58))) -> 7173 | AC58: =IF(ISERROR(INDEX($B$7:$Q$1503,$X10,COLUMNS($Z$55:AC58))),"",INDEX($B$7:$Q$1503,$X10,COLUMNS($Z$55:AC58))) -> 8634 | AD58: =IF(ISERROR(INDEX($B$7:$Q$1503,$X10,COLUMNS($Z$55:AD58))),"",INDEX($B$7:$Q$1503,$X10,COLUMNS($Z$55:AD58))) -> 13018 | AE58: =IF(ISERROR(INDEX($B$7:$Q$1503,$X10,COLUMNS($Z$55:AE58))),"",INDEX($B$7:$Q$1503,$X10,COLUMNS($Z$55:AE58))) -> 11663 | AF58: =IF(ISERROR(INDEX($B$7:$Q$1503,$X10,COLUMNS($Z$55:AF58))),"",INDEX($B$7:$Q$1503,$X10,COLUMNS($Z$55:AF58))) -> 12143 | AG58: =IF(ISERROR(INDEX($B$7:$Q$1503,$X10,COLUMNS($Z$55:AG58))),"",INDEX($B$7:$Q$1503,$X10,COLUMNS($Z$55:AG58))) -> 8274 | AH58: =IF(ISERROR(INDEX($B$7:$Q$1503,$X10,COLUMNS($Z$55:AH58))),"",INDEX($B$7:$Q$1503,$X10,COLUMNS($Z$55:AH58))) -> 8887 | AI58: =IF(ISERROR(INDEX($B$7:$Q$1503,$X10,COLUMNS($Z$55:AI58))),"",INDEX($B$7:$Q$1503,$X10,COLUMNS($Z$55:AI58))) -> 9881 | AJ58: =IF(ISERROR(INDEX($B$7:$Q$1503,$X10,COLUMNS($Z$55:AJ58))),"",INDEX($B$7:$Q$1503,$X10,COLUMNS($Z$55:AJ58))) -> 10457 | AK58: =IF(ISERROR(INDEX($B$7:$Q$1503,$X10,COLUMNS($Z$55:AK58))),"",INDEX($B$7:$Q$1503,$X10,COLUMNS($Z$55:AK58))) -> 11153 | AL58: =IF(ISERROR(INDEX($B$7:$Q$1503,$X10,COLUMNS($Z$55:AL58))),"",INDEX($B$7:$Q$1503,$X10,COLUMNS($Z$55:AL58))) -> 11830 | AM58: =IF(ISERROR(INDEX($B$7:$Q$1503,$X10,COLUMNS($Z$55:AM58))),"",INDEX($B$7:$Q$1503,$X10,COLUMNS($Z$55:AM58))) -> 13767 | AN58: =IF(ISERROR(INDEX($B$7:$Q$1503,$X10,COLUMNS($Z$55:AN58))),"",INDEX($B$7:$Q$1503,$X10,COLUMNS($Z$55:AN58))) -> 12716 | AO58: =IF(ISERROR(INDEX($B$7:$Q$1503,$X10,COLUMNS($Z$55:AO58))),"",INDEX($B$7:$Q$1503,$X10,COLUMNS($Z$55:AO58))) -> 0
B59: Plungės r. sav. | C59: Neišregistruotų juridinių asmenų skaičius metų pradžioje | vnt. | D59: 1498 | E59: 1501 | F59: 1561 | G59: 1608 | H59: 1661 | I59: 1694 | J59: 1683 | K59: 1606 | L59: 1627 | M59: 1671 | N59: 1739 | O59: 1802 | P59: 1784 | Q59: =HLOOKUP(B59,'[1]2023_neišreg'!$B$2:$BT$23,22,FALSE) -> 1829 | R59: =ROWS($R$7:R59) -> 53 | T59: =IF(ISERROR(SMALL($S$7:$S$1504,ROWS($S$7:S59))),"",SMALL($S$7:$S$1504,ROWS($S$7:S59))) ->  | V59: =IF(ISERROR(SMALL($U$7:$U$1504,ROWS(U$7:$U59))),"",SMALL($U$7:$U$1504,ROWS(U$7:$U59))) ->  | X59: =IF(ISERROR(SMALL($W$7:$W$1504,ROWS($W$7:W59))),"",SMALL($W$7:$W$1504,ROWS($W$7:W59))) ->  | Z59: =IF(ISERROR(INDEX($B$7:$K$1503,$X11,COLUMNS($Z$31:Z57))),"",INDEX($B$7:$K$1503,$X11,COLUMNS($Z$31:Z57))) -> Lietuvos Respublika | AA59: =IF(ISERROR(INDEX($B$7:$K$1503,$X11,COLUMNS($Z$31:AA59))),"",INDEX($B$7:$K$1503,$X11,COLUMNS($Z$31:AA59))) -> Per metus išregistruota mažų ir vidutinių įmonių | vnt. | AB59: =IF(ISERROR(INDEX($B$7:$Q$1503,$X11,COLUMNS($Z$55:AB59))),"",INDEX($B$7:$Q$1503,$X11,COLUMNS($Z$55:AB59))) -> 6689 | AC59: =IF(ISERROR(INDEX($B$7:$Q$1503,$X11,COLUMNS($Z$55:AC59))),"",INDEX($B$7:$Q$1503,$X11,COLUMNS($Z$55:AC59))) -> 4166 | AD59: =IF(ISERROR(INDEX($B$7:$Q$1503,$X11,COLUMNS($Z$55:AD59))),"",INDEX($B$7:$Q$1503,$X11,COLUMNS($Z$55:AD59))) -> 4118 | AE59: =IF(ISERROR(INDEX($B$7:$Q$1503,$X11,COLUMNS($Z$55:AE59))),"",INDEX($B$7:$Q$1503,$X11,COLUMNS($Z$55:AE59))) -> 4078 | AF59: =IF(ISERROR(INDEX($B$7:$Q$1503,$X11,COLUMNS($Z$55:AF59))),"",INDEX($B$7:$Q$1503,$X11,COLUMNS($Z$55:AF59))) -> 4950 | AG59: =IF(ISERROR(INDEX($B$7:$Q$1503,$X11,COLUMNS($Z$55:AG59))),"",INDEX($B$7:$Q$1503,$X11,COLUMNS($Z$55:AG59))) -> 5598 | AH59: =IF(ISERROR(INDEX($B$7:$Q$1503,$X11,COLUMNS($Z$55:AH59))),"",INDEX($B$7:$Q$1503,$X11,COLUMNS($Z$55:AH59))) -> 17982 | AI59: =IF(ISERROR(INDEX($B$7:$Q$1503,$X11,COLUMNS($Z$55:AI59))),"",INDEX($B$7:$Q$1503,$X11,COLUMNS($Z$55:AI59))) -> 4199 | AJ59: =IF(ISERROR(INDEX($B$7:$Q$1503,$X11,COLUMNS($Z$55:AJ59))),"",INDEX($B$7:$Q$1503,$X11,COLUMNS($Z$55:AJ59))) -> 4188 | AK59: =IF(ISERROR(INDEX($B$7:$Q$1503,$X11,COLUMNS($Z$55:AK59))),"",INDEX($B$7:$Q$1503,$X11,COLUMNS($Z$55:AK59))) -> 4038 | AL59: =IF(ISERROR(INDEX($B$7:$Q$1503,$X11,COLUMNS($Z$55:AL59))),"",INDEX($B$7:$Q$1503,$X11,COLUMNS($Z$55:AL59))) -> 2968 | AM59: =IF(ISERROR(INDEX($B$7:$Q$1503,$X11,COLUMNS($Z$55:AM59))),"",INDEX($B$7:$Q$1503,$X11,COLUMNS($Z$55:AM59))) -> 8307 | AN59: =IF(ISERROR(INDEX($B$7:$Q$1503,$X11,COLUMNS($Z$55:AN59))),"",INDEX($B$7:$Q$1503,$X11,COLUMNS($Z$55:AN59))) -> 16100 | AO59: =IF(ISERROR(INDEX($B$7:$Q$1503,$X11,COLUMNS($Z$55:AO59))),"",INDEX($B$7:$Q$1503,$X11,COLUMNS($Z$55:AO59))) -> 0
B60: Rietavo sav. | C60: Neišregistruotų juridinių asmenų skaičius metų pradžioje | vnt. | D60: 331 | E60: 327 | F60: 342 | G60: 347 | H60: 356 | I60: 367 | J60: 376 | K60: 369 | L60: 368 | M60: 376 | N60: 380 | O60: 400 | P60: 407 | Q60: =HLOOKUP(B60,'[1]2023_neišreg'!$B$2:$BT$23,22,FALSE) -> 425 | R60: =ROWS($R$7:R60) -> 54 | T60: =IF(ISERROR(SMALL($S$7:$S$1504,ROWS($S$7:S60))),"",SMALL($S$7:$S$1504,ROWS($S$7:S60))) ->  | V60: =IF(ISERROR(SMALL($U$7:$U$1504,ROWS(U$7:$U60))),"",SMALL($U$7:$U$1504,ROWS(U$7:$U60))) ->  | X60: =IF(ISERROR(SMALL($W$7:$W$1504,ROWS($W$7:W60))),"",SMALL($W$7:$W$1504,ROWS($W$7:W60))) ->  | Z60: =IF(ISERROR(INDEX($B$7:$K$1503,$X12,COLUMNS($Z$31:Z58))),"",INDEX($B$7:$K$1503,$X12,COLUMNS($Z$31:Z58))) -> Lietuvos Respublika | AA60: =IF(ISERROR(INDEX($B$7:$K$1503,$X12,COLUMNS($Z$31:AA60))),"",INDEX($B$7:$K$1503,$X12,COLUMNS($Z$31:AA60))) -> Veikiančių mažų ir vidutinių įmonių skaičius metų pradžioje | vnt. | AB60: =IF(ISERROR(INDEX($B$7:$Q$1503,$X12,COLUMNS($Z$55:AB60))),"",INDEX($B$7:$Q$1503,$X12,COLUMNS($Z$55:AB60))) -> 63447 | AC60: =IF(ISERROR(INDEX($B$7:$Q$1503,$X12,COLUMNS($Z$55:AC60))),"",INDEX($B$7:$Q$1503,$X12,COLUMNS($Z$55:AC60))) -> 66534 | AD60: =IF(ISERROR(INDEX($B$7:$Q$1503,$X12,COLUMNS($Z$55:AD60))),"",INDEX($B$7:$Q$1503,$X12,COLUMNS($Z$55:AD60))) -> 62586 | AE60: =IF(ISERROR(INDEX($B$7:$Q$1503,$X12,COLUMNS($Z$55:AE60))),"",INDEX($B$7:$Q$1503,$X12,COLUMNS($Z$55:AE60))) -> 65461 | AF60: =IF(ISERROR(INDEX($B$7:$Q$1503,$X12,COLUMNS($Z$55:AF60))),"",INDEX($B$7:$Q$1503,$X12,COLUMNS($Z$55:AF60))) -> 67943 | AG60: =IF(ISERROR(INDEX($B$7:$Q$1503,$X12,COLUMNS($Z$55:AG60))),"",INDEX($B$7:$Q$1503,$X12,COLUMNS($Z$55:AG60))) -> 76076 | AH60: =IF(ISERROR(INDEX($B$7:$Q$1503,$X12,COLUMNS($Z$55:AH60))),"",INDEX($B$7:$Q$1503,$X12,COLUMNS($Z$55:AH60))) -> 79472 | AI60: =IF(ISERROR(INDEX($B$7:$Q$1503,$X12,COLUMNS($Z$55:AI60))),"",INDEX($B$7:$Q$1503,$X12,COLUMNS($Z$55:AI60))) -> 82885 | AJ60: =IF(ISERROR(INDEX($B$7:$Q$1503,$X12,COLUMNS($Z$55:AJ60))),"",INDEX($B$7:$Q$1503,$X12,COLUMNS($Z$55:AJ60))) -> 83069 | AK60: =IF(ISERROR(INDEX($B$7:$Q$1503,$X12,COLUMNS($Z$55:AK60))),"",INDEX($B$7:$Q$1503,$X12,COLUMNS($Z$55:AK60))) -> 84510 | AL60: =IF(ISERROR(INDEX($B$7:$Q$1503,$X12,COLUMNS($Z$55:AL60))),"",INDEX($B$7:$Q$1503,$X12,COLUMNS($Z$55:AL60))) -> 86738 | AM60: =IF(ISERROR(INDEX($B$7:$Q$1503,$X12,COLUMNS($Z$55:AM60))),"",INDEX($B$7:$Q$1503,$X12,COLUMNS($Z$55:AM60))) -> 87284 | AN60: =IF(ISERROR(INDEX($B$7:$Q$1503,$X12,COLUMNS($Z$55:AN60))),"",INDEX($B$7:$Q$1503,$X12,COLUMNS($Z$55:AN60))) -> 92628 | AO60: =IF(ISERROR(INDEX($B$7:$Q$1503,$X12,COLUMNS($Z$55:AO60))),"",INDEX($B$7:$Q$1503,$X12,COLUMNS($Z$55:AO60))) -> 100045
B61: Telšių r. sav. | C61: Neišregistruotų juridinių asmenų skaičius metų pradžioje | vnt. | D61: 1729 | E61: 1727 | F61: 1766 | G61: 1804 | H61: 1868 | I61: 1898 | J61: 1930 | K61: 1875 | L61: 1909 | M61: 1983 | N61: 2030 | O61: 2094 | P61: 2112 | Q61: =HLOOKUP(B61,'[1]2023_neišreg'!$B$2:$BT$23,22,FALSE) -> 2152 | R61: =ROWS($R$7:R61) -> 55 | T61: =IF(ISERROR(SMALL($S$7:$S$1504,ROWS($S$7:S61))),"",SMALL($S$7:$S$1504,ROWS($S$7:S61))) ->  | V61: =IF(ISERROR(SMALL($U$7:$U$1504,ROWS(U$7:$U61))),"",SMALL($U$7:$U$1504,ROWS(U$7:$U61))) ->  | X61: =IF(ISERROR(SMALL($W$7:$W$1504,ROWS($W$7:W61))),"",SMALL($W$7:$W$1504,ROWS($W$7:W61))) ->  | Z61: =IF(ISERROR(INDEX($B$7:$K$1503,$X13,COLUMNS($Z$31:Z59))),"",INDEX($B$7:$K$1503,$X13,COLUMNS($Z$31:Z59))) -> Lietuvos Respublika | AA61: =IF(ISERROR(INDEX($B$7:$K$1503,$X13,COLUMNS($Z$31:AA61))),"",INDEX($B$7:$K$1503,$X13,COLUMNS($Z$31:AA61))) -> Veikiančių įmonių skaičius metų pradžioje | vnt. | AB61: =IF(ISERROR(INDEX($B$7:$Q$1503,$X13,COLUMNS($Z$55:AB61))),"",INDEX($B$7:$Q$1503,$X13,COLUMNS($Z$55:AB61))) -> 63840 | AC61: =IF(ISERROR(INDEX($B$7:$Q$1503,$X13,COLUMNS($Z$55:AC61))),"",INDEX($B$7:$Q$1503,$X13,COLUMNS($Z$55:AC61))) -> 66840 | AD61: =IF(ISERROR(INDEX($B$7:$Q$1503,$X13,COLUMNS($Z$55:AD61))),"",INDEX($B$7:$Q$1503,$X13,COLUMNS($Z$55:AD61))) -> 62889 | AE61: =IF(ISERROR(INDEX($B$7:$Q$1503,$X13,COLUMNS($Z$55:AE61))),"",INDEX($B$7:$Q$1503,$X13,COLUMNS($Z$55:AE61))) -> 65779 | AF61: =IF(ISERROR(INDEX($B$7:$Q$1503,$X13,COLUMNS($Z$55:AF61))),"",INDEX($B$7:$Q$1503,$X13,COLUMNS($Z$55:AF61))) -> 68279 | AG61: =IF(ISERROR(INDEX($B$7:$Q$1503,$X13,COLUMNS($Z$55:AG61))),"",INDEX($B$7:$Q$1503,$X13,COLUMNS($Z$55:AG61))) -> 76427 | AH61: =IF(ISERROR(INDEX($B$7:$Q$1503,$X13,COLUMNS($Z$55:AH61))),"",INDEX($B$7:$Q$1503,$X13,COLUMNS($Z$55:AH61))) -> 79840 | AI61: =IF(ISERROR(INDEX($B$7:$Q$1503,$X13,COLUMNS($Z$55:AI61))),"",INDEX($B$7:$Q$1503,$X13,COLUMNS($Z$55:AI61))) -> 83256 | AJ61: =IF(ISERROR(INDEX($B$7:$Q$1503,$X13,COLUMNS($Z$55:AJ61))),"",INDEX($B$7:$Q$1503,$X13,COLUMNS($Z$55:AJ61))) -> 83439 | AK61: =IF(ISERROR(INDEX($B$7:$Q$1503,$X13,COLUMNS($Z$55:AK61))),"",INDEX($B$7:$Q$1503,$X13,COLUMNS($Z$55:AK61))) -> 84890 | AL61: =IF(ISERROR(INDEX($B$7:$Q$1503,$X13,COLUMNS($Z$55:AL61))),"",INDEX($B$7:$Q$1503,$X13,COLUMNS($Z$55:AL61))) -> 87143 | AM61: =IF(ISERROR(INDEX($B$7:$Q$1503,$X13,COLUMNS($Z$55:AM61))),"",INDEX($B$7:$Q$1503,$X13,COLUMNS($Z$55:AM61))) -> 87707 | AN61: =IF(ISERROR(INDEX($B$7:$Q$1503,$X13,COLUMNS($Z$55:AN61))),"",INDEX($B$7:$Q$1503,$X13,COLUMNS($Z$55:AN61))) -> 93059 | AO61: =IF(ISERROR(INDEX($B$7:$Q$1503,$X13,COLUMNS($Z$55:AO61))),"",INDEX($B$7:$Q$1503,$X13,COLUMNS($Z$55:AO61))) -> 100488
B62: Utenos apskritis | C62: Neišregistruotų juridinių asmenų skaičius metų pradžioje | vnt. | D62: 5949 | E62: 5957 | F62: 6087 | G62: 6266 | H62: 6392 | I62: 6455 | J62: 6564 | K62: 6284 | L62: 6349 | M62: 6538 | N62: 6760 | O62: 7026 | P62: 7025 | Q62: =HLOOKUP(B62,'[1]2023_neišreg'!$B$2:$BT$23,22,FALSE) -> 7053 | R62: =ROWS($R$7:R62) -> 56 | T62: =IF(ISERROR(SMALL($S$7:$S$1504,ROWS($S$7:S62))),"",SMALL($S$7:$S$1504,ROWS($S$7:S62))) ->  | V62: =IF(ISERROR(SMALL($U$7:$U$1504,ROWS(U$7:$U62))),"",SMALL($U$7:$U$1504,ROWS(U$7:$U62))) ->  | X62: =IF(ISERROR(SMALL($W$7:$W$1504,ROWS($W$7:W62))),"",SMALL($W$7:$W$1504,ROWS($W$7:W62))) ->  | Z62: =IF(ISERROR(INDEX($B$7:$K$1503,$X14,COLUMNS($Z$31:Z59))),"",INDEX($B$7:$K$1503,$X14,COLUMNS($Z$31:Z59))) -> Lietuvos Respublika | AA62: =IF(ISERROR(INDEX($B$7:$K$1503,$X14,COLUMNS($Z$31:AA62))),"",INDEX($B$7:$K$1503,$X14,COLUMNS($Z$31:AA62))) -> Darbuotojų skaičius veikiančiose mažose ir vidutinėse įmonėse metų pradžioje | vnt. | AB62: =IF(ISERROR(INDEX($B$7:$Q$1503,$X14,COLUMNS($Z$55:AB62))),"",INDEX($B$7:$Q$1503,$X14,COLUMNS($Z$55:AB62))) -> 720489 | AC62: =IF(ISERROR(INDEX($B$7:$Q$1503,$X14,COLUMNS($Z$55:AC62))),"",INDEX($B$7:$Q$1503,$X14,COLUMNS($Z$55:AC62))) -> 630270 | AD62: =IF(ISERROR(INDEX($B$7:$Q$1503,$X14,COLUMNS($Z$55:AD62))),"",INDEX($B$7:$Q$1503,$X14,COLUMNS($Z$55:AD62))) -> 608232 | AE62: =IF(ISERROR(INDEX($B$7:$Q$1503,$X14,COLUMNS($Z$55:AE62))),"",INDEX($B$7:$Q$1503,$X14,COLUMNS($Z$55:AE62))) -> 636340 | AF62: =IF(ISERROR(INDEX($B$7:$Q$1503,$X14,COLUMNS($Z$55:AF62))),"",INDEX($B$7:$Q$1503,$X14,COLUMNS($Z$55:AF62))) -> 646017 | AG62: =IF(ISERROR(INDEX($B$7:$Q$1503,$X14,COLUMNS($Z$55:AG62))),"",INDEX($B$7:$Q$1503,$X14,COLUMNS($Z$55:AG62))) -> 671862 | AH62: =IF(ISERROR(INDEX($B$7:$Q$1503,$X14,COLUMNS($Z$55:AH62))),"",INDEX($B$7:$Q$1503,$X14,COLUMNS($Z$55:AH62))) -> 686412 | AI62: =IF(ISERROR(INDEX($B$7:$Q$1503,$X14,COLUMNS($Z$55:AI62))),"",INDEX($B$7:$Q$1503,$X14,COLUMNS($Z$55:AI62))) -> 696118 | AJ62: =IF(ISERROR(INDEX($B$7:$Q$1503,$X14,COLUMNS($Z$55:AJ62))),"",INDEX($B$7:$Q$1503,$X14,COLUMNS($Z$55:AJ62))) -> 700080 | AK62: =IF(ISERROR(INDEX($B$7:$Q$1503,$X14,COLUMNS($Z$55:AK62))),"",INDEX($B$7:$Q$1503,$X14,COLUMNS($Z$55:AK62))) -> 694455 | AL62: =IF(ISERROR(INDEX($B$7:$Q$1503,$X14,COLUMNS($Z$55:AL62))),"",INDEX($B$7:$Q$1503,$X14,COLUMNS($Z$55:AL62))) -> 686952 | AM62: =IF(ISERROR(INDEX($B$7:$Q$1503,$X14,COLUMNS($Z$55:AM62))),"",INDEX($B$7:$Q$1503,$X14,COLUMNS($Z$55:AM62))) -> 674337 | AN62: =IF(ISERROR(INDEX($B$7:$Q$1503,$X14,COLUMNS($Z$55:AN62))),"",INDEX($B$7:$Q$1503,$X14,COLUMNS($Z$55:AN62))) -> 668249 | AO62: =IF(ISERROR(INDEX($B$7:$Q$1503,$X14,COLUMNS($Z$55:AO62))),"",INDEX($B$7:$Q$1503,$X14,COLUMNS($Z$55:AO62))) -> 701866
B63: Anykščių r. sav. | C63: Neišregistruotų juridinių asmenų skaičius metų pradžioje | vnt. | D63: 1058 | E63: 1051 | F63: 1082 | G63: 1116 | H63: 1138 | I63: 1161 | J63: 1182 | K63: 1144 | L63: 1158 | M63: 1186 | N63: 1236 | O63: 1287 | P63: 1309 | Q63: =HLOOKUP(B63,'[1]2023_neišreg'!$B$2:$BT$23,22,FALSE) -> 1321 | R63: =ROWS($R$7:R63) -> 57 | T63: =IF(ISERROR(SMALL($S$7:$S$1504,ROWS($S$7:S63))),"",SMALL($S$7:$S$1504,ROWS($S$7:S63))) ->  | V63: =IF(ISERROR(SMALL($U$7:$U$1504,ROWS(U$7:$U63))),"",SMALL($U$7:$U$1504,ROWS(U$7:$U63))) ->  | X63: =IF(ISERROR(SMALL($W$7:$W$1504,ROWS($W$7:W63))),"",SMALL($W$7:$W$1504,ROWS($W$7:W63))) ->  | Z63: =IF(ISERROR(INDEX($B$7:$K$1503,$X15,COLUMNS($Z$31:Z60))),"",INDEX($B$7:$K$1503,$X15,COLUMNS($Z$31:Z60))) -> Lietuvos Respublika | AA63: =IF(ISERROR(INDEX($B$7:$K$1503,$X15,COLUMNS($Z$31:AA63))),"",INDEX($B$7:$K$1503,$X15,COLUMNS($Z$31:AA63))) -> Darbuotojų skaičius veikiančiose įmonėse metų pradžioje | vnt. | AB63: =IF(ISERROR(INDEX($B$7:$Q$1503,$X15,COLUMNS($Z$55:AB63))),"",INDEX($B$7:$Q$1503,$X15,COLUMNS($Z$55:AB63))) -> 995148 | AC63: =IF(ISERROR(INDEX($B$7:$Q$1503,$X15,COLUMNS($Z$55:AC63))),"",INDEX($B$7:$Q$1503,$X15,COLUMNS($Z$55:AC63))) -> 834408 | AD63: =IF(ISERROR(INDEX($B$7:$Q$1503,$X15,COLUMNS($Z$55:AD63))),"",INDEX($B$7:$Q$1503,$X15,COLUMNS($Z$55:AD63))) -> 806359 | AE63: =IF(ISERROR(INDEX($B$7:$Q$1503,$X15,COLUMNS($Z$55:AE63))),"",INDEX($B$7:$Q$1503,$X15,COLUMNS($Z$55:AE63))) -> 847365 | AF63: =IF(ISERROR(INDEX($B$7:$Q$1503,$X15,COLUMNS($Z$55:AF63))),"",INDEX($B$7:$Q$1503,$X15,COLUMNS($Z$55:AF63))) -> 865974 | AG63: =IF(ISERROR(INDEX($B$7:$Q$1503,$X15,COLUMNS($Z$55:AG63))),"",INDEX($B$7:$Q$1503,$X15,COLUMNS($Z$55:AG63))) -> 901324 | AH63: =IF(ISERROR(INDEX($B$7:$Q$1503,$X15,COLUMNS($Z$55:AH63))),"",INDEX($B$7:$Q$1503,$X15,COLUMNS($Z$55:AH63))) -> 928022 | AI63: =IF(ISERROR(INDEX($B$7:$Q$1503,$X15,COLUMNS($Z$55:AI63))),"",INDEX($B$7:$Q$1503,$X15,COLUMNS($Z$55:AI63))) -> 939388 | AJ63: =IF(ISERROR(INDEX($B$7:$Q$1503,$X15,COLUMNS($Z$55:AJ63))),"",INDEX($B$7:$Q$1503,$X15,COLUMNS($Z$55:AJ63))) -> 951548 | AK63: =IF(ISERROR(INDEX($B$7:$Q$1503,$X15,COLUMNS($Z$55:AK63))),"",INDEX($B$7:$Q$1503,$X15,COLUMNS($Z$55:AK63))) -> 948024 | AL63: =IF(ISERROR(INDEX($B$7:$Q$1503,$X15,COLUMNS($Z$55:AL63))),"",INDEX($B$7:$Q$1503,$X15,COLUMNS($Z$55:AL63))) -> 960147 | AM63: =IF(ISERROR(INDEX($B$7:$Q$1503,$X15,COLUMNS($Z$55:AM63))),"",INDEX($B$7:$Q$1503,$X15,COLUMNS($Z$55:AM63))) -> 958041 | AN63: =IF(ISERROR(INDEX($B$7:$Q$1503,$X15,COLUMNS($Z$55:AN63))),"",INDEX($B$7:$Q$1503,$X15,COLUMNS($Z$55:AN63))) -> 952156 | AO63: =IF(ISERROR(INDEX($B$7:$Q$1503,$X15,COLUMNS($Z$55:AO63))),"",INDEX($B$7:$Q$1503,$X15,COLUMNS($Z$55:AO63))) -> 992770
B64: Ignalinos r. sav. | C64: Neišregistruotų juridinių asmenų skaičius metų pradžioje | vnt. | D64: 534 | E64: 531 | F64: 529 | G64: 536 | H64: 544 | I64: 549 | J64: 578 | K64: 585 | L64: 600 | M64: 626 | N64: 655 | O64: 696 | P64: 732 | Q64: =HLOOKUP(B64,'[1]2023_neišreg'!$B$2:$BT$23,22,FALSE) -> 750 | R64: =ROWS($R$7:R64) -> 58 | T64: =IF(ISERROR(SMALL($S$7:$S$1504,ROWS($S$7:S64))),"",SMALL($S$7:$S$1504,ROWS($S$7:S64))) ->  | V64: =IF(ISERROR(SMALL($U$7:$U$1504,ROWS(U$7:$U64))),"",SMALL($U$7:$U$1504,ROWS(U$7:$U64))) ->  | X64: =IF(ISERROR(SMALL($W$7:$W$1504,ROWS($W$7:W64))),"",SMALL($W$7:$W$1504,ROWS($W$7:W64))) ->  | Z64: =IF(ISERROR(INDEX($B$7:$K$1503,$X16,COLUMNS($Z$31:Z61))),"",INDEX($B$7:$K$1503,$X16,COLUMNS($Z$31:Z61))) -> Lietuvos Respublika | AA64: =IF(ISERROR(INDEX($B$7:$K$1503,$X16,COLUMNS($Z$31:AA64))),"",INDEX($B$7:$K$1503,$X16,COLUMNS($Z$31:AA64))) -> Asmenys, įsigiję verslo liudijimus | vnt. | AB64: =IF(ISERROR(INDEX($B$7:$Q$1503,$X16,COLUMNS($Z$55:AB64))),"",INDEX($B$7:$Q$1503,$X16,COLUMNS($Z$55:AB64))) ->  | AC64: =IF(ISERROR(INDEX($B$7:$Q$1503,$X16,COLUMNS($Z$55:AC64))),"",INDEX($B$7:$Q$1503,$X16,COLUMNS($Z$55:AC64))) -> 85754 | AD64: =IF(ISERROR(INDEX($B$7:$Q$1503,$X16,COLUMNS($Z$55:AD64))),"",INDEX($B$7:$Q$1503,$X16,COLUMNS($Z$55:AD64))) -> 78253 | AE64: =IF(ISERROR(INDEX($B$7:$Q$1503,$X16,COLUMNS($Z$55:AE64))),"",INDEX($B$7:$Q$1503,$X16,COLUMNS($Z$55:AE64))) -> 80886 | AF64: =IF(ISERROR(INDEX($B$7:$Q$1503,$X16,COLUMNS($Z$55:AF64))),"",INDEX($B$7:$Q$1503,$X16,COLUMNS($Z$55:AF64))) -> 89451 | AG64: =IF(ISERROR(INDEX($B$7:$Q$1503,$X16,COLUMNS($Z$55:AG64))),"",INDEX($B$7:$Q$1503,$X16,COLUMNS($Z$55:AG64))) -> 94067 | AH64: =IF(ISERROR(INDEX($B$7:$Q$1503,$X16,COLUMNS($Z$55:AH64))),"",INDEX($B$7:$Q$1503,$X16,COLUMNS($Z$55:AH64))) -> 101816 | AI64: =IF(ISERROR(INDEX($B$7:$Q$1503,$X16,COLUMNS($Z$55:AI64))),"",INDEX($B$7:$Q$1503,$X16,COLUMNS($Z$55:AI64))) -> 101039 | AJ64: =IF(ISERROR(INDEX($B$7:$Q$1503,$X16,COLUMNS($Z$55:AJ64))),"",INDEX($B$7:$Q$1503,$X16,COLUMNS($Z$55:AJ64))) -> 96796 | AK64: =IF(ISERROR(INDEX($B$7:$Q$1503,$X16,COLUMNS($Z$55:AK64))),"",INDEX($B$7:$Q$1503,$X16,COLUMNS($Z$55:AK64))) -> 105107 | AL64: =IF(ISERROR(INDEX($B$7:$Q$1503,$X16,COLUMNS($Z$55:AL64))),"",INDEX($B$7:$Q$1503,$X16,COLUMNS($Z$55:AL64))) -> 96094 | AM64: =IF(ISERROR(INDEX($B$7:$Q$1503,$X16,COLUMNS($Z$55:AM64))),"",INDEX($B$7:$Q$1503,$X16,COLUMNS($Z$55:AM64))) -> 91185 | AN64: =IF(ISERROR(INDEX($B$7:$Q$1503,$X16,COLUMNS($Z$55:AN64))),"",INDEX($B$7:$Q$1503,$X16,COLUMNS($Z$55:AN64))) -> 99193 | AO64: =IF(ISERROR(INDEX($B$7:$Q$1503,$X16,COLUMNS($Z$55:AO64))),"",INDEX($B$7:$Q$1503,$X16,COLUMNS($Z$55:AO64))) -> 0
B65: Molėtų r. sav. | C65: Neišregistruotų juridinių asmenų skaičius metų pradžioje | vnt. | D65: 738 | E65: 749 | F65: 770 | G65: 832 | H65: 861 | I65: 890 | J65: 917 | K65: 875 | L65: 911 | M65: 949 | N65: 973 | O65: 1029 | P65: 1057 | Q65: =HLOOKUP(B65,'[1]2023_neišreg'!$B$2:$BT$23,22,FALSE) -> 1094 | R65: =ROWS($R$7:R65) -> 59 | T65: =IF(ISERROR(SMALL($S$7:$S$1504,ROWS($S$7:S65))),"",SMALL($S$7:$S$1504,ROWS($S$7:S65))) ->  | V65: =IF(ISERROR(SMALL($U$7:$U$1504,ROWS(U$7:$U65))),"",SMALL($U$7:$U$1504,ROWS(U$7:$U65))) ->  | X65: =IF(ISERROR(SMALL($W$7:$W$1504,ROWS($W$7:W65))),"",SMALL($W$7:$W$1504,ROWS($W$7:W65))) ->  | Z65: =IF(ISERROR(INDEX($B$7:$K$1503,$X17,COLUMNS($Z$31:Z62))),"",INDEX($B$7:$K$1503,$X17,COLUMNS($Z$31:Z62))) -> Lietuvos Respublika | AA65: =IF(ISERROR(INDEX($B$7:$K$1503,$X17,COLUMNS($Z$31:AA65))),"",INDEX($B$7:$K$1503,$X17,COLUMNS($Z$31:AA65))) -> Veikiančios MVĮ tenkančios 1000 gyventojų metų pradžioje | vnt. | AB65: =IF(ISERROR(INDEX($B$7:$Q$1503,$X17,COLUMNS($Z$55:AB65))),"",INDEX($B$7:$Q$1503,$X17,COLUMNS($Z$55:AB65))) -> 20.1933433 | AC65: =IF(ISERROR(INDEX($B$7:$Q$1503,$X17,COLUMNS($Z$55:AC65))),"",INDEX($B$7:$Q$1503,$X17,COLUMNS($Z$55:AC65))) -> 21.79593185 | AD65: =IF(ISERROR(INDEX($B$7:$Q$1503,$X17,COLUMNS($Z$55:AD65))),"",INDEX($B$7:$Q$1503,$X17,COLUMNS($Z$55:AD65))) -> 20.83671118 | AE65: =IF(ISERROR(INDEX($B$7:$Q$1503,$X17,COLUMNS($Z$55:AE65))),"",INDEX($B$7:$Q$1503,$X17,COLUMNS($Z$55:AE65))) -> 22.02661256 | AF65: =IF(ISERROR(INDEX($B$7:$Q$1503,$X17,COLUMNS($Z$55:AF65))),"",INDEX($B$7:$Q$1503,$X17,COLUMNS($Z$55:AF65))) -> 23.08260449 | AG65: =IF(ISERROR(INDEX($B$7:$Q$1503,$X17,COLUMNS($Z$55:AG65))),"",INDEX($B$7:$Q$1503,$X17,COLUMNS($Z$55:AG65))) -> 26.04216945 | AH65: =IF(ISERROR(INDEX($B$7:$Q$1503,$X17,COLUMNS($Z$55:AH65))),"",INDEX($B$7:$Q$1503,$X17,COLUMNS($Z$55:AH65))) -> 27.51268972 | AI65: =IF(ISERROR(INDEX($B$7:$Q$1503,$X17,COLUMNS($Z$55:AI65))),"",INDEX($B$7:$Q$1503,$X17,COLUMNS($Z$55:AI65))) -> 29.10386024 | AJ65: =IF(ISERROR(INDEX($B$7:$Q$1503,$X17,COLUMNS($Z$55:AJ65))),"",INDEX($B$7:$Q$1503,$X17,COLUMNS($Z$55:AJ65))) -> 29.57348799 | AK65: =IF(ISERROR(INDEX($B$7:$Q$1503,$X17,COLUMNS($Z$55:AK65))),"",INDEX($B$7:$Q$1503,$X17,COLUMNS($Z$55:AK65))) -> 30.24496597 | AL65: =IF(ISERROR(INDEX($B$7:$Q$1503,$X17,COLUMNS($Z$55:AL65))),"",INDEX($B$7:$Q$1503,$X17,COLUMNS($Z$55:AL65))) -> 31.0407257 | AM65: =IF(ISERROR(INDEX($B$7:$Q$1503,$X17,COLUMNS($Z$55:AM65))),"",INDEX($B$7:$Q$1503,$X17,COLUMNS($Z$55:AM65))) -> 31.05351184 | AN65: =IF(ISERROR(INDEX($B$7:$Q$1503,$X17,COLUMNS($Z$55:AN65))),"",INDEX($B$7:$Q$1503,$X17,COLUMNS($Z$55:AN65))) -> 33.0107149 | AO65: =IF(ISERROR(INDEX($B$7:$Q$1503,$X17,COLUMNS($Z$55:AO65))),"",INDEX($B$7:$Q$1503,$X17,COLUMNS($Z$55:AO65))) -> 34.98074477
B66: Utenos r. sav. | C66: Neišregistruotų juridinių asmenų skaičius metų pradžioje | vnt. | D66: 1801 | E66: 1812 | F66: 1841 | G66: 1872 | H66: 1911 | I66: 1936 | J66: 1971 | K66: 1897 | L66: 1906 | M66: 1925 | N66: 1955 | O66: 2004 | P66: 1996 | Q66: =HLOOKUP(B66,'[1]2023_neišreg'!$B$2:$BT$23,22,FALSE) -> 2010 | R66: =ROWS($R$7:R66) -> 60 | T66: =IF(ISERROR(SMALL($S$7:$S$1504,ROWS($S$7:S66))),"",SMALL($S$7:$S$1504,ROWS($S$7:S66))) ->  | V66: =IF(ISERROR(SMALL($U$7:$U$1504,ROWS(U$7:$U66))),"",SMALL($U$7:$U$1504,ROWS(U$7:$U66))) ->  | X66: =IF(ISERROR(SMALL($W$7:$W$1504,ROWS($W$7:W66))),"",SMALL($W$7:$W$1504,ROWS($W$7:W66))) ->  | Z66: =IF(ISERROR(INDEX($B$7:$K$1503,$X18,COLUMNS($Z$31:Z63))),"",INDEX($B$7:$K$1503,$X18,COLUMNS($Z$31:Z63))) -> Lietuvos Respublika | AA66: =IF(ISERROR(INDEX($B$7:$K$1503,$X18,COLUMNS($Z$31:AA66))),"",INDEX($B$7:$K$1503,$X18,COLUMNS($Z$31:AA66))) -> Išgyvenusių 1 metus ir 1 dieną ir nepakeitusių statuso iš veikianti į kitą įmonių dalis tarp visų prieš metus įregistruotų įmonių | % | AB66: =IF(ISERROR(INDEX($B$7:$Q$1503,$X18,COLUMNS($Z$55:AB66))),"",INDEX($B$7:$Q$1503,$X18,COLUMNS($Z$55:AB66))) -> 72.74332117 | AC66: =IF(ISERROR(INDEX($B$7:$Q$1503,$X18,COLUMNS($Z$55:AC66))),"",INDEX($B$7:$Q$1503,$X18,COLUMNS($Z$55:AC66))) -> 71.4545844 | AD66: =IF(ISERROR(INDEX($B$7:$Q$1503,$X18,COLUMNS($Z$55:AD66))),"",INDEX($B$7:$Q$1503,$X18,COLUMNS($Z$55:AD66))) -> 67.19090478 | AE66: =IF(ISERROR(INDEX($B$7:$Q$1503,$X18,COLUMNS($Z$55:AE66))),"",INDEX($B$7:$Q$1503,$X18,COLUMNS($Z$55:AE66))) -> 51.77342863 | AF66: =IF(ISERROR(INDEX($B$7:$Q$1503,$X18,COLUMNS($Z$55:AF66))),"",INDEX($B$7:$Q$1503,$X18,COLUMNS($Z$55:AF66))) -> 52.52481027 | AG66: =IF(ISERROR(INDEX($B$7:$Q$1503,$X18,COLUMNS($Z$55:AG66))),"",INDEX($B$7:$Q$1503,$X18,COLUMNS($Z$55:AG66))) -> 52.38432651 | AH66: =IF(ISERROR(INDEX($B$7:$Q$1503,$X18,COLUMNS($Z$55:AH66))),"",INDEX($B$7:$Q$1503,$X18,COLUMNS($Z$55:AH66))) -> 59.59941378 | AI66: =IF(ISERROR(INDEX($B$7:$Q$1503,$X18,COLUMNS($Z$55:AI66))),"",INDEX($B$7:$Q$1503,$X18,COLUMNS($Z$55:AI66))) -> 63.41442953 | AJ66: =IF(ISERROR(INDEX($B$7:$Q$1503,$X18,COLUMNS($Z$55:AJ66))),"",INDEX($B$7:$Q$1503,$X18,COLUMNS($Z$55:AJ66))) -> 52.55659332 | AK66: =IF(ISERROR(INDEX($B$7:$Q$1503,$X18,COLUMNS($Z$55:AK66))),"",INDEX($B$7:$Q$1503,$X18,COLUMNS($Z$55:AK66))) -> 50.50809183 | AL66: =IF(ISERROR(INDEX($B$7:$Q$1503,$X18,COLUMNS($Z$55:AL66))),"",INDEX($B$7:$Q$1503,$X18,COLUMNS($Z$55:AL66))) -> 0 | AM66: =IF(ISERROR(INDEX($B$7:$Q$1503,$X18,COLUMNS($Z$55:AM66))),"",INDEX($B$7:$Q$1503,$X18,COLUMNS($Z$55:AM66))) -> 0 | AN66: =IF(ISERROR(INDEX($B$7:$Q$1503,$X18,COLUMNS($Z$55:AN66))),"",INDEX($B$7:$Q$1503,$X18,COLUMNS($Z$55:AN66))) -> 0 | AO66: =IF(ISERROR(INDEX($B$7:$Q$1503,$X18,COLUMNS($Z$55:AO66))),"",INDEX($B$7:$Q$1503,$X18,COLUMNS($Z$55:AO66))) -> 0
B67: Visagino sav. | C67: Neišregistruotų juridinių asmenų skaičius metų pradžioje | vnt. | D67: 1234 | E67: 1212 | F67: 1246 | G67: 1260 | H67: 1268 | I67: 1245 | J67: 1222 | K67: 1077 | L67: 1055 | M67: 1079 | N67: 1089 | O67: 1101 | P67: 1012 | Q67: =HLOOKUP(B67,'[1]2023_neišreg'!$B$2:$BT$23,22,FALSE) -> 961 | R67: =ROWS($R$7:R67) -> 61 | T67: =IF(ISERROR(SMALL($S$7:$S$1504,ROWS($S$7:S67))),"",SMALL($S$7:$S$1504,ROWS($S$7:S67))) ->  | V67: =IF(ISERROR(SMALL($U$7:$U$1504,ROWS(U$7:$U67))),"",SMALL($U$7:$U$1504,ROWS(U$7:$U67))) ->  | X67: =IF(ISERROR(SMALL($W$7:$W$1504,ROWS($W$7:W67))),"",SMALL($W$7:$W$1504,ROWS($W$7:W67))) ->  | Z67: =IF(ISERROR(INDEX($B$7:$K$1503,$X19,COLUMNS($Z$31:Z65))),"",INDEX($B$7:$K$1503,$X19,COLUMNS($Z$31:Z65))) -> Lietuvos Respublika | AA67: =IF(ISERROR(INDEX($B$7:$K$1503,$X19,COLUMNS($Z$31:AA67))),"",INDEX($B$7:$K$1503,$X19,COLUMNS($Z$31:AA67))) -> Registruoti bedarbiai | tūkst. | AB67: =IF(ISERROR(INDEX($B$7:$Q$1503,$X19,COLUMNS($Z$55:AB67))),"",INDEX($B$7:$Q$1503,$X19,COLUMNS($Z$55:AB67))) -> 312.1 | AC67: =IF(ISERROR(INDEX($B$7:$Q$1503,$X19,COLUMNS($Z$55:AC67))),"",INDEX($B$7:$Q$1503,$X19,COLUMNS($Z$55:AC67))) -> 247.2 | AD67: =IF(ISERROR(INDEX($B$7:$Q$1503,$X19,COLUMNS($Z$55:AD67))),"",INDEX($B$7:$Q$1503,$X19,COLUMNS($Z$55:AD67))) -> 216.9 | AE67: =IF(ISERROR(INDEX($B$7:$Q$1503,$X19,COLUMNS($Z$55:AE67))),"",INDEX($B$7:$Q$1503,$X19,COLUMNS($Z$55:AE67))) -> 201.3 | AF67: =IF(ISERROR(INDEX($B$7:$Q$1503,$X19,COLUMNS($Z$55:AF67))),"",INDEX($B$7:$Q$1503,$X19,COLUMNS($Z$55:AF67))) -> 173 | AG67: =IF(ISERROR(INDEX($B$7:$Q$1503,$X19,COLUMNS($Z$55:AG67))),"",INDEX($B$7:$Q$1503,$X19,COLUMNS($Z$55:AG67))) -> 158.2 | AH67: =IF(ISERROR(INDEX($B$7:$Q$1503,$X19,COLUMNS($Z$55:AH67))),"",INDEX($B$7:$Q$1503,$X19,COLUMNS($Z$55:AH67))) -> 144.864 | AI67: =IF(ISERROR(INDEX($B$7:$Q$1503,$X19,COLUMNS($Z$55:AI67))),"",INDEX($B$7:$Q$1503,$X19,COLUMNS($Z$55:AI67))) -> 139.615 | AJ67: =IF(ISERROR(INDEX($B$7:$Q$1503,$X19,COLUMNS($Z$55:AJ67))),"",INDEX($B$7:$Q$1503,$X19,COLUMNS($Z$55:AJ67))) -> 148.242 | AK67: =IF(ISERROR(INDEX($B$7:$Q$1503,$X19,COLUMNS($Z$55:AK67))),"",INDEX($B$7:$Q$1503,$X19,COLUMNS($Z$55:AK67))) -> 144.898 | AL67: =IF(ISERROR(INDEX($B$7:$Q$1503,$X19,COLUMNS($Z$55:AL67))),"",INDEX($B$7:$Q$1503,$X19,COLUMNS($Z$55:AL67))) -> 216.187 | AM67: =IF(ISERROR(INDEX($B$7:$Q$1503,$X19,COLUMNS($Z$55:AM67))),"",INDEX($B$7:$Q$1503,$X19,COLUMNS($Z$55:AM67))) -> 225.225 | AN67: =IF(ISERROR(INDEX($B$7:$Q$1503,$X19,COLUMNS($Z$55:AN67))),"",INDEX($B$7:$Q$1503,$X19,COLUMNS($Z$55:AN67))) -> 157.344 | AO67: =IF(ISERROR(INDEX($B$7:$Q$1503,$X19,COLUMNS($Z$55:AO67))),"",INDEX($B$7:$Q$1503,$X19,COLUMNS($Z$55:AO67))) -> 0
B68: Zarasų r. sav. | C68: Neišregistruotų juridinių asmenų skaičius metų pradžioje | vnt. | D68: 584 | E68: 602 | F68: 619 | G68: 650 | H68: 670 | I68: 674 | J68: 694 | K68: 706 | L68: 719 | M68: 773 | N68: 852 | O68: 909 | P68: 919 | Q68: =HLOOKUP(B68,'[1]2023_neišreg'!$B$2:$BT$23,22,FALSE) -> 917 | R68: =ROWS($R$7:R68) -> 62 | T68: =IF(ISERROR(SMALL($S$7:$S$1504,ROWS($S$7:S68))),"",SMALL($S$7:$S$1504,ROWS($S$7:S68))) ->  | V68: =IF(ISERROR(SMALL($U$7:$U$1504,ROWS(U$7:$U68))),"",SMALL($U$7:$U$1504,ROWS(U$7:$U68))) ->  | X68: =IF(ISERROR(SMALL($W$7:$W$1504,ROWS($W$7:W68))),"",SMALL($W$7:$W$1504,ROWS($W$7:W68))) ->  | Z68: =IF(ISERROR(INDEX($B$7:$K$1503,$X20,COLUMNS($Z$31:Z66))),"",INDEX($B$7:$K$1503,$X20,COLUMNS($Z$31:Z66))) -> Lietuvos Respublika | AA68: =IF(ISERROR(INDEX($B$7:$K$1503,$X20,COLUMNS($Z$31:AA68))),"",INDEX($B$7:$K$1503,$X20,COLUMNS($Z$31:AA68))) -> Registruotų bedarbių ir darbingo amžiaus gyventojų santykis | % | AB68: =IF(ISERROR(INDEX($B$7:$Q$1503,$X20,COLUMNS($Z$55:AB68))),"",INDEX($B$7:$Q$1503,$X20,COLUMNS($Z$55:AB68))) -> 15.9 | AC68: =IF(ISERROR(INDEX($B$7:$Q$1503,$X20,COLUMNS($Z$55:AC68))),"",INDEX($B$7:$Q$1503,$X20,COLUMNS($Z$55:AC68))) -> 13.1 | AD68: =IF(ISERROR(INDEX($B$7:$Q$1503,$X20,COLUMNS($Z$55:AD68))),"",INDEX($B$7:$Q$1503,$X20,COLUMNS($Z$55:AD68))) -> 11.7 | AE68: =IF(ISERROR(INDEX($B$7:$Q$1503,$X20,COLUMNS($Z$55:AE68))),"",INDEX($B$7:$Q$1503,$X20,COLUMNS($Z$55:AE68))) -> 10.9 | AF68: =IF(ISERROR(INDEX($B$7:$Q$1503,$X20,COLUMNS($Z$55:AF68))),"",INDEX($B$7:$Q$1503,$X20,COLUMNS($Z$55:AF68))) -> 9.5 | AG68: =IF(ISERROR(INDEX($B$7:$Q$1503,$X20,COLUMNS($Z$55:AG68))),"",INDEX($B$7:$Q$1503,$X20,COLUMNS($Z$55:AG68))) -> 8.7 | AH68: =IF(ISERROR(INDEX($B$7:$Q$1503,$X20,COLUMNS($Z$55:AH68))),"",INDEX($B$7:$Q$1503,$X20,COLUMNS($Z$55:AH68))) -> 8.1 | AI68: =IF(ISERROR(INDEX($B$7:$Q$1503,$X20,COLUMNS($Z$55:AI68))),"",INDEX($B$7:$Q$1503,$X20,COLUMNS($Z$55:AI68))) -> 7.9 | AJ68: =IF(ISERROR(INDEX($B$7:$Q$1503,$X20,COLUMNS($Z$55:AJ68))),"",INDEX($B$7:$Q$1503,$X20,COLUMNS($Z$55:AJ68))) -> 8.5 | AK68: =IF(ISERROR(INDEX($B$7:$Q$1503,$X20,COLUMNS($Z$55:AK68))),"",INDEX($B$7:$Q$1503,$X20,COLUMNS($Z$55:AK68))) -> 8.4 | AL68: =IF(ISERROR(INDEX($B$7:$Q$1503,$X20,COLUMNS($Z$55:AL68))),"",INDEX($B$7:$Q$1503,$X20,COLUMNS($Z$55:AL68))) -> 12.6 | AM68: =IF(ISERROR(INDEX($B$7:$Q$1503,$X20,COLUMNS($Z$55:AM68))),"",INDEX($B$7:$Q$1503,$X20,COLUMNS($Z$55:AM68))) -> 13 | AN68: =IF(ISERROR(INDEX($B$7:$Q$1503,$X20,COLUMNS($Z$55:AN68))),"",INDEX($B$7:$Q$1503,$X20,COLUMNS($Z$55:AN68))) -> 9 | AO68: =IF(ISERROR(INDEX($B$7:$Q$1503,$X20,COLUMNS($Z$55:AO68))),"",INDEX($B$7:$Q$1503,$X20,COLUMNS($Z$55:AO68))) -> 0
B69: Vilniaus apskritis | C69: Neišregistruotų juridinių asmenų skaičius metų pradžioje | vnt. | D69: 69193 | E69: 71414 | F69: 75825 | G69: 82959 | H69: 89424 | I69: 96097 | J69: 99501 | K69: 98305 | L69: 102222 | M69: 106079 | N69: 110319 | O69: 115349 | P69: 120821 | Q69: =HLOOKUP(B69,'[1]2023_neišreg'!$B$2:$BT$23,22,FALSE) -> 114151 | R69: =ROWS($R$7:R69) -> 63 | T69: =IF(ISERROR(SMALL($S$7:$S$1504,ROWS($S$7:S69))),"",SMALL($S$7:$S$1504,ROWS($S$7:S69))) ->  | U69: 63 | V69: =IF(ISERROR(SMALL($U$7:$U$1504,ROWS(U$7:$U69))),"",SMALL($U$7:$U$1504,ROWS(U$7:$U69))) ->  | X69: =IF(ISERROR(SMALL($W$7:$W$1504,ROWS($W$7:W69))),"",SMALL($W$7:$W$1504,ROWS($W$7:W69))) ->  | Z69: =IF(ISERROR(INDEX($B$7:$K$1503,$X21,COLUMNS($Z$31:Z67))),"",INDEX($B$7:$K$1503,$X21,COLUMNS($Z$31:Z67))) -> Lietuvos Respublika | AA69: =IF(ISERROR(INDEX($B$7:$K$1503,$X21,COLUMNS($Z$31:AA69))),"",INDEX($B$7:$K$1503,$X21,COLUMNS($Z$31:AA69))) -> Darbo užmokestis | mėnesinis | bruto | EUR (nuo 2019 m. keitėsi rodiklio skaičiavimas) | AB69: =IF(ISERROR(INDEX($B$7:$Q$1503,$X21,COLUMNS($Z$55:AB69))),"",INDEX($B$7:$Q$1503,$X21,COLUMNS($Z$55:AB69))) -> 575.8 | AC69: =IF(ISERROR(INDEX($B$7:$Q$1503,$X21,COLUMNS($Z$55:AC69))),"",INDEX($B$7:$Q$1503,$X21,COLUMNS($Z$55:AC69))) -> 592.5 | AD69: =IF(ISERROR(INDEX($B$7:$Q$1503,$X21,COLUMNS($Z$55:AD69))),"",INDEX($B$7:$Q$1503,$X21,COLUMNS($Z$55:AD69))) -> 615.1 | AE69: =IF(ISERROR(INDEX($B$7:$Q$1503,$X21,COLUMNS($Z$55:AE69))),"",INDEX($B$7:$Q$1503,$X21,COLUMNS($Z$55:AE69))) -> 646.3 | AF69: =IF(ISERROR(INDEX($B$7:$Q$1503,$X21,COLUMNS($Z$55:AF69))),"",INDEX($B$7:$Q$1503,$X21,COLUMNS($Z$55:AF69))) -> 677.4 | AG69: =IF(ISERROR(INDEX($B$7:$Q$1503,$X21,COLUMNS($Z$55:AG69))),"",INDEX($B$7:$Q$1503,$X21,COLUMNS($Z$55:AG69))) -> 714.1 | AH69: =IF(ISERROR(INDEX($B$7:$Q$1503,$X21,COLUMNS($Z$55:AH69))),"",INDEX($B$7:$Q$1503,$X21,COLUMNS($Z$55:AH69))) -> 774 | AI69: =IF(ISERROR(INDEX($B$7:$Q$1503,$X21,COLUMNS($Z$55:AI69))),"",INDEX($B$7:$Q$1503,$X21,COLUMNS($Z$55:AI69))) -> 840.4 | AJ69: =IF(ISERROR(INDEX($B$7:$Q$1503,$X21,COLUMNS($Z$55:AJ69))),"",INDEX($B$7:$Q$1503,$X21,COLUMNS($Z$55:AJ69))) -> 924.1 | AK69: =IF(ISERROR(INDEX($B$7:$Q$1503,$X21,COLUMNS($Z$55:AK69))),"",INDEX($B$7:$Q$1503,$X21,COLUMNS($Z$55:AK69))) -> 1296.4 | AL69: =IF(ISERROR(INDEX($B$7:$Q$1503,$X21,COLUMNS($Z$55:AL69))),"",INDEX($B$7:$Q$1503,$X21,COLUMNS($Z$55:AL69))) -> 1428.6 | AM69: =IF(ISERROR(INDEX($B$7:$Q$1503,$X21,COLUMNS($Z$55:AM69))),"",INDEX($B$7:$Q$1503,$X21,COLUMNS($Z$55:AM69))) -> 1579.4 | AN69: =IF(ISERROR(INDEX($B$7:$Q$1503,$X21,COLUMNS($Z$55:AN69))),"",INDEX($B$7:$Q$1503,$X21,COLUMNS($Z$55:AN69))) -> 1789 | AO69: =IF(ISERROR(INDEX($B$7:$Q$1503,$X21,COLUMNS($Z$55:AO69))),"",INDEX($B$7:$Q$1503,$X21,COLUMNS($Z$55:AO69))) -> 0
B70: Elektrėnų sav. | C70: Neišregistruotų juridinių asmenų skaičius metų pradžioje | vnt. | D70: 762 | E70: 779 | F70: 808 | G70: 847 | H70: 878 | I70: 925 | J70: 950 | K70: 923 | L70: 958 | M70: 1019 | N70: 1073 | O70: 1154 | P70: 1201 | Q70: =HLOOKUP(B70,'[1]2023_neišreg'!$B$2:$BT$23,22,FALSE) -> 1193 | R70: =ROWS($R$7:R70) -> 64 | T70: =IF(ISERROR(SMALL($S$7:$S$1504,ROWS($S$7:S70))),"",SMALL($S$7:$S$1504,ROWS($S$7:S70))) ->  | V70: =IF(ISERROR(SMALL($U$7:$U$1504,ROWS(U$7:$U70))),"",SMALL($U$7:$U$1504,ROWS(U$7:$U70))) ->  | X70: =IF(ISERROR(SMALL($W$7:$W$1504,ROWS($W$7:W70))),"",SMALL($W$7:$W$1504,ROWS($W$7:W70))) ->  | Z70: =IF(ISERROR(INDEX($B$7:$K$1503,$X22,COLUMNS($Z$31:Z68))),"",INDEX($B$7:$K$1503,$X22,COLUMNS($Z$31:Z68))) -> Lietuvos Respublika | AA70: =IF(ISERROR(INDEX($B$7:$K$1503,$X22,COLUMNS($Z$31:AA70))),"",INDEX($B$7:$K$1503,$X22,COLUMNS($Z$31:AA70))) -> Darbo užmokestis | mėnesinis | neto | EUR | AB70: =IF(ISERROR(INDEX($B$7:$Q$1503,$X22,COLUMNS($Z$55:AB70))),"",INDEX($B$7:$Q$1503,$X22,COLUMNS($Z$55:AB70))) -> 449.6 | AC70: =IF(ISERROR(INDEX($B$7:$Q$1503,$X22,COLUMNS($Z$55:AC70))),"",INDEX($B$7:$Q$1503,$X22,COLUMNS($Z$55:AC70))) -> 461.8 | AD70: =IF(ISERROR(INDEX($B$7:$Q$1503,$X22,COLUMNS($Z$55:AD70))),"",INDEX($B$7:$Q$1503,$X22,COLUMNS($Z$55:AD70))) -> 478.3 | AE70: =IF(ISERROR(INDEX($B$7:$Q$1503,$X22,COLUMNS($Z$55:AE70))),"",INDEX($B$7:$Q$1503,$X22,COLUMNS($Z$55:AE70))) -> 501.1 | AF70: =IF(ISERROR(INDEX($B$7:$Q$1503,$X22,COLUMNS($Z$55:AF70))),"",INDEX($B$7:$Q$1503,$X22,COLUMNS($Z$55:AF70))) -> 527.2 | AG70: =IF(ISERROR(INDEX($B$7:$Q$1503,$X22,COLUMNS($Z$55:AG70))),"",INDEX($B$7:$Q$1503,$X22,COLUMNS($Z$55:AG70))) -> 553.9 | AH70: =IF(ISERROR(INDEX($B$7:$Q$1503,$X22,COLUMNS($Z$55:AH70))),"",INDEX($B$7:$Q$1503,$X22,COLUMNS($Z$55:AH70))) -> 602.3 | AI70: =IF(ISERROR(INDEX($B$7:$Q$1503,$X22,COLUMNS($Z$55:AI70))),"",INDEX($B$7:$Q$1503,$X22,COLUMNS($Z$55:AI70))) -> 660.2 | AJ70: =IF(ISERROR(INDEX($B$7:$Q$1503,$X22,COLUMNS($Z$55:AJ70))),"",INDEX($B$7:$Q$1503,$X22,COLUMNS($Z$55:AJ70))) -> 720 | AK70: =IF(ISERROR(INDEX($B$7:$Q$1503,$X22,COLUMNS($Z$55:AK70))),"",INDEX($B$7:$Q$1503,$X22,COLUMNS($Z$55:AK70))) -> 822.1 | AL70: =IF(ISERROR(INDEX($B$7:$Q$1503,$X22,COLUMNS($Z$55:AL70))),"",INDEX($B$7:$Q$1503,$X22,COLUMNS($Z$55:AL70))) -> 913.1 | AM70: =IF(ISERROR(INDEX($B$7:$Q$1503,$X22,COLUMNS($Z$55:AM70))),"",INDEX($B$7:$Q$1503,$X22,COLUMNS($Z$55:AM70))) -> 1001.8 | AN70: =IF(ISERROR(INDEX($B$7:$Q$1503,$X22,COLUMNS($Z$55:AN70))),"",INDEX($B$7:$Q$1503,$X22,COLUMNS($Z$55:AN70))) -> 1121.1 | AO70: =IF(ISERROR(INDEX($B$7:$Q$1503,$X22,COLUMNS($Z$55:AO70))),"",INDEX($B$7:$Q$1503,$X22,COLUMNS($Z$55:AO70))) -> 0
B71: Šalčininkų r. sav. | C71: Neišregistruotų juridinių asmenų skaičius metų pradžioje | vnt. | D71: 956 | E71: 961 | F71: 994 | G71: 1021 | H71: 1078 | I71: 1188 | J71: 1208 | K71: 1167 | L71: 1197 | M71: 1223 | N71: 1267 | O71: 1300 | P71: 1346 | Q71: =HLOOKUP(B71,'[1]2023_neišreg'!$B$2:$BT$23,22,FALSE) -> 1310 | R71: =ROWS($R$7:R71) -> 65 | S71: =IF(ISNUMBER(SEARCH($R$3,B71)),R71,"") ->  | T71: =IF(ISERROR(SMALL($S$7:$S$1504,ROWS($S$7:S71))),"",SMALL($S$7:$S$1504,ROWS($S$7:S71))) ->  | U71: =IF($R$4=B71,R71,"") ->  | V71: =IF(ISERROR(SMALL($U$7:$U$1504,ROWS(U$7:$U71))),"",SMALL($U$7:$U$1504,ROWS(U$7:$U71))) ->  | W71: =IF("Lietuvos Respublika"=B71,R71,"") ->  | X71: =IF(ISERROR(SMALL($W$7:$W$1504,ROWS($W$7:W71))),"",SMALL($W$7:$W$1504,ROWS($W$7:W71))) ->  | Z71: =IF(ISERROR(INDEX($B$7:$K$1503,$X23,COLUMNS($Z$31:Z69))),"",INDEX($B$7:$K$1503,$X23,COLUMNS($Z$31:Z69))) -> Lietuvos Respublika | AA71: =IF(ISERROR(INDEX($B$7:$K$1503,$X23,COLUMNS($Z$31:AA71))),"",INDEX($B$7:$K$1503,$X23,COLUMNS($Z$31:AA71))) -> Materialinės investicijos to meto kainomis | mln. EUR | AB71: =IF(ISERROR(INDEX($B$7:$Q$1503,$X23,COLUMNS($Z$55:AB71))),"",INDEX($B$7:$Q$1503,$X23,COLUMNS($Z$55:AB71))) -> 4153.679 | AC71: =IF(ISERROR(INDEX($B$7:$Q$1503,$X23,COLUMNS($Z$55:AC71))),"",INDEX($B$7:$Q$1503,$X23,COLUMNS($Z$55:AC71))) -> 5068.977 | AD71: =IF(ISERROR(INDEX($B$7:$Q$1503,$X23,COLUMNS($Z$55:AD71))),"",INDEX($B$7:$Q$1503,$X23,COLUMNS($Z$55:AD71))) -> 5305.553 | AE71: =IF(ISERROR(INDEX($B$7:$Q$1503,$X23,COLUMNS($Z$55:AE71))),"",INDEX($B$7:$Q$1503,$X23,COLUMNS($Z$55:AE71))) -> 5933.867 | AF71: =IF(ISERROR(INDEX($B$7:$Q$1503,$X23,COLUMNS($Z$55:AF71))),"",INDEX($B$7:$Q$1503,$X23,COLUMNS($Z$55:AF71))) -> 6081.759 | AG71: =IF(ISERROR(INDEX($B$7:$Q$1503,$X23,COLUMNS($Z$55:AG71))),"",INDEX($B$7:$Q$1503,$X23,COLUMNS($Z$55:AG71))) -> 6912.736 | AH71: =IF(ISERROR(INDEX($B$7:$Q$1503,$X23,COLUMNS($Z$55:AH71))),"",INDEX($B$7:$Q$1503,$X23,COLUMNS($Z$55:AH71))) -> 6895.354 | AI71: =IF(ISERROR(INDEX($B$7:$Q$1503,$X23,COLUMNS($Z$55:AI71))),"",INDEX($B$7:$Q$1503,$X23,COLUMNS($Z$55:AI71))) -> 7315.932 | AJ71: =IF(ISERROR(INDEX($B$7:$Q$1503,$X23,COLUMNS($Z$55:AJ71))),"",INDEX($B$7:$Q$1503,$X23,COLUMNS($Z$55:AJ71))) -> 8077.81 | AK71: =IF(ISERROR(INDEX($B$7:$Q$1503,$X23,COLUMNS($Z$55:AK71))),"",INDEX($B$7:$Q$1503,$X23,COLUMNS($Z$55:AK71))) -> 9539.717 | AL71: =IF(ISERROR(INDEX($B$7:$Q$1503,$X23,COLUMNS($Z$55:AL71))),"",INDEX($B$7:$Q$1503,$X23,COLUMNS($Z$55:AL71))) -> 9053.253 | AM71: =IF(ISERROR(INDEX($B$7:$Q$1503,$X23,COLUMNS($Z$55:AM71))),"",INDEX($B$7:$Q$1503,$X23,COLUMNS($Z$55:AM71))) -> 10803.374 | AN71: =IF(ISERROR(INDEX($B$7:$Q$1503,$X23,COLUMNS($Z$55:AN71))),"",INDEX($B$7:$Q$1503,$X23,COLUMNS($Z$55:AN71))) -> 0 | AO71: =IF(ISERROR(INDEX($B$7:$Q$1503,$X23,COLUMNS($Z$55:AO71))),"",INDEX($B$7:$Q$1503,$X23,COLUMNS($Z$55:AO71))) -> 0
B72: Širvintų r. sav. | C72: Neišregistruotų juridinių asmenų skaičius metų pradžioje | vnt. | D72: 663 | E72: 670 | F72: 691 | G72: 704 | H72: 735 | I72: 744 | J72: 770 | K72: 727 | L72: 751 | M72: 784 | N72: 820 | O72: 876 | P72: 933 | Q72: =HLOOKUP(B72,'[1]2023_neišreg'!$B$2:$BT$23,22,FALSE) -> 947 | R72: =ROWS($R$7:R72) -> 66 | T72: =IF(ISERROR(SMALL($S$7:$S$1504,ROWS($S$7:S72))),"",SMALL($S$7:$S$1504,ROWS($S$7:S72))) ->  | V72: =IF(ISERROR(SMALL($U$7:$U$1504,ROWS(U$7:$U72))),"",SMALL($U$7:$U$1504,ROWS(U$7:$U72))) ->  | X72: =IF(ISERROR(SMALL($W$7:$W$1504,ROWS($W$7:W72))),"",SMALL($W$7:$W$1504,ROWS($W$7:W72))) ->  | Z72: =IF(ISERROR(INDEX($B$7:$K$1503,$X24,COLUMNS($Z$31:Z70))),"",INDEX($B$7:$K$1503,$X24,COLUMNS($Z$31:Z70))) -> Lietuvos Respublika | AA72: =IF(ISERROR(INDEX($B$7:$K$1503,$X24,COLUMNS($Z$31:AA72))),"",INDEX($B$7:$K$1503,$X24,COLUMNS($Z$31:AA72))) -> Apyvarta pagal veiklos vykdymo vietą | mln. EUR | AB72: =IF(ISERROR(INDEX($B$7:$Q$1503,$X24,COLUMNS($Z$55:AB72))),"",INDEX($B$7:$Q$1503,$X24,COLUMNS($Z$55:AB72))) -> 52800.998 | AC72: =IF(ISERROR(INDEX($B$7:$Q$1503,$X24,COLUMNS($Z$55:AC72))),"",INDEX($B$7:$Q$1503,$X24,COLUMNS($Z$55:AC72))) -> 63437.507 | AD72: =IF(ISERROR(INDEX($B$7:$Q$1503,$X24,COLUMNS($Z$55:AD72))),"",INDEX($B$7:$Q$1503,$X24,COLUMNS($Z$55:AD72))) -> 69322.489 | AE72: =IF(ISERROR(INDEX($B$7:$Q$1503,$X24,COLUMNS($Z$55:AE72))),"",INDEX($B$7:$Q$1503,$X24,COLUMNS($Z$55:AE72))) -> 73216.409 | AF72: =IF(ISERROR(INDEX($B$7:$Q$1503,$X24,COLUMNS($Z$55:AF72))),"",INDEX($B$7:$Q$1503,$X24,COLUMNS($Z$55:AF72))) -> 74876.148 | AG72: =IF(ISERROR(INDEX($B$7:$Q$1503,$X24,COLUMNS($Z$55:AG72))),"",INDEX($B$7:$Q$1503,$X24,COLUMNS($Z$55:AG72))) -> 75995.99 | AH72: =IF(ISERROR(INDEX($B$7:$Q$1503,$X24,COLUMNS($Z$55:AH72))),"",INDEX($B$7:$Q$1503,$X24,COLUMNS($Z$55:AH72))) -> 77979.909 | AI72: =IF(ISERROR(INDEX($B$7:$Q$1503,$X24,COLUMNS($Z$55:AI72))),"",INDEX($B$7:$Q$1503,$X24,COLUMNS($Z$55:AI72))) -> 86986.501 | AJ72: =IF(ISERROR(INDEX($B$7:$Q$1503,$X24,COLUMNS($Z$55:AJ72))),"",INDEX($B$7:$Q$1503,$X24,COLUMNS($Z$55:AJ72))) -> 94451.705 | AK72: =IF(ISERROR(INDEX($B$7:$Q$1503,$X24,COLUMNS($Z$55:AK72))),"",INDEX($B$7:$Q$1503,$X24,COLUMNS($Z$55:AK72))) -> 101154.275 | AL72: =IF(ISERROR(INDEX($B$7:$Q$1503,$X24,COLUMNS($Z$55:AL72))),"",INDEX($B$7:$Q$1503,$X24,COLUMNS($Z$55:AL72))) -> 99870.068 | AM72: =IF(ISERROR(INDEX($B$7:$Q$1503,$X24,COLUMNS($Z$55:AM72))),"",INDEX($B$7:$Q$1503,$X24,COLUMNS($Z$55:AM72))) -> 124410.463 | AN72: =IF(ISERROR(INDEX($B$7:$Q$1503,$X24,COLUMNS($Z$55:AN72))),"",INDEX($B$7:$Q$1503,$X24,COLUMNS($Z$55:AN72))) -> 0 | AO72: =IF(ISERROR(INDEX($B$7:$Q$1503,$X24,COLUMNS($Z$55:AO72))),"",INDEX($B$7:$Q$1503,$X24,COLUMNS($Z$55:AO72))) -> 0
B73: Švenčionių r. sav. | C73: Neišregistruotų juridinių asmenų skaičius metų pradžioje | vnt. | D73: 812 | E73: 806 | F73: 830 | G73: 861 | H73: 862 | I73: 868 | J73: 891 | K73: 863 | L73: 887 | M73: 907 | N73: 946 | O73: 991 | P73: 1002 | Q73: =HLOOKUP(B73,'[1]2023_neišreg'!$B$2:$BT$23,22,FALSE) -> 997 | R73: =ROWS($R$7:R73) -> 67 | T73: =IF(ISERROR(SMALL($S$7:$S$1504,ROWS($S$7:S73))),"",SMALL($S$7:$S$1504,ROWS($S$7:S73))) ->  | V73: =IF(ISERROR(SMALL($U$7:$U$1504,ROWS(U$7:$U73))),"",SMALL($U$7:$U$1504,ROWS(U$7:$U73))) ->  | X73: =IF(ISERROR(SMALL($W$7:$W$1504,ROWS($W$7:W73))),"",SMALL($W$7:$W$1504,ROWS($W$7:W73))) ->  | Z73: =IF(ISERROR(INDEX($B$7:$K$1503,$X25,COLUMNS($Z$31:Z71))),"",INDEX($B$7:$K$1503,$X25,COLUMNS($Z$31:Z71))) -> Lietuvos Respublika | AA73: =IF(ISERROR(INDEX($B$7:$K$1503,$X25,COLUMNS($Z$31:AA73))),"",INDEX($B$7:$K$1503,$X25,COLUMNS($Z$31:AA73))) -> Pridėtinė vertė gamybos kainomis pagal veiklos vykdymo vietą | mln. EUR | AB73: =IF(ISERROR(INDEX($B$7:$Q$1503,$X25,COLUMNS($Z$55:AB73))),"",INDEX($B$7:$Q$1503,$X25,COLUMNS($Z$55:AB73))) -> 9753.953 | AC73: =IF(ISERROR(INDEX($B$7:$Q$1503,$X25,COLUMNS($Z$55:AC73))),"",INDEX($B$7:$Q$1503,$X25,COLUMNS($Z$55:AC73))) -> 11878.057 | AD73: =IF(ISERROR(INDEX($B$7:$Q$1503,$X25,COLUMNS($Z$55:AD73))),"",INDEX($B$7:$Q$1503,$X25,COLUMNS($Z$55:AD73))) -> 12560.322 | AE73: =IF(ISERROR(INDEX($B$7:$Q$1503,$X25,COLUMNS($Z$55:AE73))),"",INDEX($B$7:$Q$1503,$X25,COLUMNS($Z$55:AE73))) -> 13002.056 | AF73: =IF(ISERROR(INDEX($B$7:$Q$1503,$X25,COLUMNS($Z$55:AF73))),"",INDEX($B$7:$Q$1503,$X25,COLUMNS($Z$55:AF73))) -> 15133.377 | AG73: =IF(ISERROR(INDEX($B$7:$Q$1503,$X25,COLUMNS($Z$55:AG73))),"",INDEX($B$7:$Q$1503,$X25,COLUMNS($Z$55:AG73))) -> 16364.799 | AH73: =IF(ISERROR(INDEX($B$7:$Q$1503,$X25,COLUMNS($Z$55:AH73))),"",INDEX($B$7:$Q$1503,$X25,COLUMNS($Z$55:AH73))) -> 17591.092 | AI73: =IF(ISERROR(INDEX($B$7:$Q$1503,$X25,COLUMNS($Z$55:AI73))),"",INDEX($B$7:$Q$1503,$X25,COLUMNS($Z$55:AI73))) -> 19445.508 | AJ73: =IF(ISERROR(INDEX($B$7:$Q$1503,$X25,COLUMNS($Z$55:AJ73))),"",INDEX($B$7:$Q$1503,$X25,COLUMNS($Z$55:AJ73))) -> 21611.072 | AK73: =IF(ISERROR(INDEX($B$7:$Q$1503,$X25,COLUMNS($Z$55:AK73))),"",INDEX($B$7:$Q$1503,$X25,COLUMNS($Z$55:AK73))) -> 24007.459 | AL73: =IF(ISERROR(INDEX($B$7:$Q$1503,$X25,COLUMNS($Z$55:AL73))),"",INDEX($B$7:$Q$1503,$X25,COLUMNS($Z$55:AL73))) -> 25481.778 | AM73: =IF(ISERROR(INDEX($B$7:$Q$1503,$X25,COLUMNS($Z$55:AM73))),"",INDEX($B$7:$Q$1503,$X25,COLUMNS($Z$55:AM73))) -> 30476.313 | AN73: =IF(ISERROR(INDEX($B$7:$Q$1503,$X25,COLUMNS($Z$55:AN73))),"",INDEX($B$7:$Q$1503,$X25,COLUMNS($Z$55:AN73))) -> 0 | AO73: =IF(ISERROR(INDEX($B$7:$Q$1503,$X25,COLUMNS($Z$55:AO73))),"",INDEX($B$7:$Q$1503,$X25,COLUMNS($Z$55:AO73))) -> 0
B74: Trakų r. sav. | C74: Neišregistruotų juridinių asmenų skaičius metų pradžioje | vnt. | D74: 1337 | E74: 1356 | F74: 1403 | G74: 1526 | H74: 1599 | I74: 1638 | J74: 1676 | K74: 1639 | L74: 1723 | M74: 1792 | N74: 1888 | O74: 1984 | P74: 2078 | Q74: =HLOOKUP(B74,'[1]2023_neišreg'!$B$2:$BT$23,22,FALSE) -> 2102 | R74: =ROWS($R$7:R74) -> 68 | T74: =IF(ISERROR(SMALL($S$7:$S$1504,ROWS($S$7:S74))),"",SMALL($S$7:$S$1504,ROWS($S$7:S74))) ->  | V74: =IF(ISERROR(SMALL($U$7:$U$1504,ROWS(U$7:$U74))),"",SMALL($U$7:$U$1504,ROWS(U$7:$U74))) ->  | X74: =IF(ISERROR(SMALL($W$7:$W$1504,ROWS($W$7:W74))),"",SMALL($W$7:$W$1504,ROWS($W$7:W74))) ->  | Z74: =IF(ISERROR(INDEX($B$7:$K$1503,$X26,COLUMNS($Z$31:Z72))),"",INDEX($B$7:$K$1503,$X26,COLUMNS($Z$31:Z72))) -> Lietuvos Respublika | AA74: =IF(ISERROR(INDEX($B$7:$K$1503,$X26,COLUMNS($Z$31:AA74))),"",INDEX($B$7:$K$1503,$X26,COLUMNS($Z$31:AA74))) -> Tarptautinės emigracijos lygis | % | AB74: =IF(ISERROR(INDEX($B$7:$Q$1503,$X26,COLUMNS($Z$55:AB74))),"",INDEX($B$7:$Q$1503,$X26,COLUMNS($Z$55:AB74))) -> 2.684837868 | AC74: =IF(ISERROR(INDEX($B$7:$Q$1503,$X26,COLUMNS($Z$55:AC74))),"",INDEX($B$7:$Q$1503,$X26,COLUMNS($Z$55:AC74))) -> 1.778763356 | AD74: =IF(ISERROR(INDEX($B$7:$Q$1503,$X26,COLUMNS($Z$55:AD74))),"",INDEX($B$7:$Q$1503,$X26,COLUMNS($Z$55:AD74))) -> 1.375606514 | AE74: =IF(ISERROR(INDEX($B$7:$Q$1503,$X26,COLUMNS($Z$55:AE74))),"",INDEX($B$7:$Q$1503,$X26,COLUMNS($Z$55:AE74))) -> 1.3124436 | AF74: =IF(ISERROR(INDEX($B$7:$Q$1503,$X26,COLUMNS($Z$55:AF74))),"",INDEX($B$7:$Q$1503,$X26,COLUMNS($Z$55:AF74))) -> 1.248854594 | AG74: =IF(ISERROR(INDEX($B$7:$Q$1503,$X26,COLUMNS($Z$55:AG74))),"",INDEX($B$7:$Q$1503,$X26,COLUMNS($Z$55:AG74))) -> 1.53302512 | AH74: =IF(ISERROR(INDEX($B$7:$Q$1503,$X26,COLUMNS($Z$55:AH74))),"",INDEX($B$7:$Q$1503,$X26,COLUMNS($Z$55:AH74))) -> 1.754844711 | AI74: =IF(ISERROR(INDEX($B$7:$Q$1503,$X26,COLUMNS($Z$55:AI74))),"",INDEX($B$7:$Q$1503,$X26,COLUMNS($Z$55:AI74))) -> 1.694419077 | AJ74: =IF(ISERROR(INDEX($B$7:$Q$1503,$X26,COLUMNS($Z$55:AJ74))),"",INDEX($B$7:$Q$1503,$X26,COLUMNS($Z$55:AJ74))) -> 1.149580785 | AK74: =IF(ISERROR(INDEX($B$7:$Q$1503,$X26,COLUMNS($Z$55:AK74))),"",INDEX($B$7:$Q$1503,$X26,COLUMNS($Z$55:AK74))) -> 1.047613015 | AL74: =IF(ISERROR(INDEX($B$7:$Q$1503,$X26,COLUMNS($Z$55:AL74))),"",INDEX($B$7:$Q$1503,$X26,COLUMNS($Z$55:AL74))) -> 0.8266917338 | AM74: =IF(ISERROR(INDEX($B$7:$Q$1503,$X26,COLUMNS($Z$55:AM74))),"",INDEX($B$7:$Q$1503,$X26,COLUMNS($Z$55:AM74))) -> 0.8974925046 | AN74: =IF(ISERROR(INDEX($B$7:$Q$1503,$X26,COLUMNS($Z$55:AN74))),"",INDEX($B$7:$Q$1503,$X26,COLUMNS($Z$55:AN74))) -> 0.8126014825 | AO74: =IF(ISERROR(INDEX($B$7:$Q$1503,$X26,COLUMNS($Z$55:AO74))),"",INDEX($B$7:$Q$1503,$X26,COLUMNS($Z$55:AO74))) -> 0
B75: Ukmergės r. sav. | C75: Neišregistruotų juridinių asmenų skaičius metų pradžioje | vnt. | D75: 1594 | E75: 1609 | F75: 1641 | G75: 1686 | H75: 1717 | I75: 1726 | J75: 1722 | K75: 1626 | L75: 1671 | M75: 1712 | N75: 1784 | O75: 1841 | P75: 1913 | Q75: =HLOOKUP(B75,'[1]2023_neišreg'!$B$2:$BT$23,22,FALSE) -> 1909 | R75: =ROWS($R$7:R75) -> 69 | T75: =IF(ISERROR(SMALL($S$7:$S$1504,ROWS($S$7:S75))),"",SMALL($S$7:$S$1504,ROWS($S$7:S75))) ->  | V75: =IF(ISERROR(SMALL($U$7:$U$1504,ROWS(U$7:$U75))),"",SMALL($U$7:$U$1504,ROWS(U$7:$U75))) ->  | X75: =IF(ISERROR(SMALL($W$7:$W$1504,ROWS($W$7:W75))),"",SMALL($W$7:$W$1504,ROWS($W$7:W75))) ->  | Z75: =IF(ISERROR(INDEX($B$7:$K$1503,$X27,COLUMNS($Z$31:Z73))),"",INDEX($B$7:$K$1503,$X27,COLUMNS($Z$31:Z73))) -> Lietuvos Respublika | AA75: =IF(ISERROR(INDEX($B$7:$K$1503,$X27,COLUMNS($Z$31:AA75))),"",INDEX($B$7:$K$1503,$X27,COLUMNS($Z$31:AA75))) -> Tarptautinės imigracijos lygis | % | AB75: =IF(ISERROR(INDEX($B$7:$Q$1503,$X27,COLUMNS($Z$55:AB75))),"",INDEX($B$7:$Q$1503,$X27,COLUMNS($Z$55:AB75))) -> 0.1683088592 | AC75: =IF(ISERROR(INDEX($B$7:$Q$1503,$X27,COLUMNS($Z$55:AC75))),"",INDEX($B$7:$Q$1503,$X27,COLUMNS($Z$55:AC75))) -> 0.5179790067 | AD75: =IF(ISERROR(INDEX($B$7:$Q$1503,$X27,COLUMNS($Z$55:AD75))),"",INDEX($B$7:$Q$1503,$X27,COLUMNS($Z$55:AD75))) -> 0.6641401472 | AE75: =IF(ISERROR(INDEX($B$7:$Q$1503,$X27,COLUMNS($Z$55:AE75))),"",INDEX($B$7:$Q$1503,$X27,COLUMNS($Z$55:AE75))) -> 0.7441958908 | AF75: =IF(ISERROR(INDEX($B$7:$Q$1503,$X27,COLUMNS($Z$55:AF75))),"",INDEX($B$7:$Q$1503,$X27,COLUMNS($Z$55:AF75))) -> 0.8284774723 | AG75: =IF(ISERROR(INDEX($B$7:$Q$1503,$X27,COLUMNS($Z$55:AG75))),"",INDEX($B$7:$Q$1503,$X27,COLUMNS($Z$55:AG75))) -> 0.761813619 | AH75: =IF(ISERROR(INDEX($B$7:$Q$1503,$X27,COLUMNS($Z$55:AH75))),"",INDEX($B$7:$Q$1503,$X27,COLUMNS($Z$55:AH75))) -> 0.7029419876 | AI75: =IF(ISERROR(INDEX($B$7:$Q$1503,$X27,COLUMNS($Z$55:AI75))),"",INDEX($B$7:$Q$1503,$X27,COLUMNS($Z$55:AI75))) -> 0.7201236882 | AJ75: =IF(ISERROR(INDEX($B$7:$Q$1503,$X27,COLUMNS($Z$55:AJ75))),"",INDEX($B$7:$Q$1503,$X27,COLUMNS($Z$55:AJ75))) -> 1.032074111 | AK75: =IF(ISERROR(INDEX($B$7:$Q$1503,$X27,COLUMNS($Z$55:AK75))),"",INDEX($B$7:$Q$1503,$X27,COLUMNS($Z$55:AK75))) -> 1.433905328 | AL75: =IF(ISERROR(INDEX($B$7:$Q$1503,$X27,COLUMNS($Z$55:AL75))),"",INDEX($B$7:$Q$1503,$X27,COLUMNS($Z$55:AL75))) -> 1.54209873 | AM75: =IF(ISERROR(INDEX($B$7:$Q$1503,$X27,COLUMNS($Z$55:AM75))),"",INDEX($B$7:$Q$1503,$X27,COLUMNS($Z$55:AM75))) -> 1.597290965 | AN75: =IF(ISERROR(INDEX($B$7:$Q$1503,$X27,COLUMNS($Z$55:AN75))),"",INDEX($B$7:$Q$1503,$X27,COLUMNS($Z$55:AN75))) -> 3.367207907 | AO75: =IF(ISERROR(INDEX($B$7:$Q$1503,$X27,COLUMNS($Z$55:AO75))),"",INDEX($B$7:$Q$1503,$X27,COLUMNS($Z$55:AO75))) -> 0
B76: Vilniaus m. sav. | C76: Neišregistruotų juridinių asmenų skaičius metų pradžioje | vnt. | D76: 60021 | E76: 62033 | F76: 65950 | G76: 72477 | H76: 78380 | I76: 84455 | J76: 87443 | K76: 86420 | L76: 89789 | M76: 93043 | N76: 96518 | O76: 100701 | P76: 105301 | Q76: =HLOOKUP(B76,'[1]2023_neišreg'!$B$2:$BT$23,22,FALSE) -> 98540 | R76: =ROWS($R$7:R76) -> 70 | S76: 70 | T76: =IF(ISERROR(SMALL($S$7:$S$1504,ROWS($S$7:S76))),"",SMALL($S$7:$S$1504,ROWS($S$7:S76))) ->  | V76: =IF(ISERROR(SMALL($U$7:$U$1504,ROWS(U$7:$U76))),"",SMALL($U$7:$U$1504,ROWS(U$7:$U76))) ->  | X76: =IF(ISERROR(SMALL($W$7:$W$1504,ROWS($W$7:W76))),"",SMALL($W$7:$W$1504,ROWS($W$7:W76))) ->  | Z76: =IF(ISERROR(INDEX($B$7:$K$1503,$X28,COLUMNS($Z$31:Z74))),"",INDEX($B$7:$K$1503,$X28,COLUMNS($Z$31:Z74))) ->  | AA76: =IF(ISERROR(INDEX($B$7:$K$1503,$X28,COLUMNS($Z$31:AA76))),"",INDEX($B$7:$K$1503,$X28,COLUMNS($Z$31:AA76))) ->  | AB76: =IF(ISERROR(INDEX($B$7:$O$1503,$X28,COLUMNS($Z$55:AB76))),"",INDEX($B$7:$O$1503,$X28,COLUMNS($Z$55:AB76))) ->  | AC76: =IF(ISERROR(INDEX($B$7:$O$1503,$X28,COLUMNS($Z$55:AC76))),"",INDEX($B$7:$O$1503,$X28,COLUMNS($Z$55:AC76))) ->  | AD76: =IF(ISERROR(INDEX($B$7:$O$1503,$X28,COLUMNS($Z$55:AD76))),"",INDEX($B$7:$O$1503,$X28,COLUMNS($Z$55:AD76))) ->  | AE76: =IF(ISERROR(INDEX($B$7:$O$1503,$X28,COLUMNS($Z$55:AE76))),"",INDEX($B$7:$O$1503,$X28,COLUMNS($Z$55:AE76))) ->  | AF76: =IF(ISERROR(INDEX($B$7:$O$1503,$X28,COLUMNS($Z$55:AF76))),"",INDEX($B$7:$O$1503,$X28,COLUMNS($Z$55:AF76))) ->  | AG76: =IF(ISERROR(INDEX($B$7:$O$1503,$X28,COLUMNS($Z$55:AG76))),"",INDEX($B$7:$O$1503,$X28,COLUMNS($Z$55:AG76))) ->  | AH76: =IF(ISERROR(INDEX($B$7:$O$1503,$X28,COLUMNS($Z$55:AH76))),"",INDEX($B$7:$O$1503,$X28,COLUMNS($Z$55:AH76))) ->  | AI76: =IF(ISERROR(INDEX($B$7:$O$1503,$X28,COLUMNS($Z$55:AI76))),"",INDEX($B$7:$O$1503,$X28,COLUMNS($Z$55:AI76))) -> 
B77: Vilniaus r. sav. | C77: Neišregistruotų juridinių asmenų skaičius metų pradžioje | vnt. | D77: 3048 | E77: 3200 | F77: 3508 | G77: 3837 | H77: 4175 | I77: 4553 | J77: 4841 | K77: 4940 | L77: 5246 | M77: 5599 | N77: 6023 | O77: 6502 | P77: 7047 | Q77: =HLOOKUP(B77,'[1]2023_neišreg'!$B$2:$BT$23,22,FALSE) -> 7153 | R77: =ROWS($R$7:R77) -> 71 | T77: =IF(ISERROR(SMALL($S$7:$S$1504,ROWS($S$7:S77))),"",SMALL($S$7:$S$1504,ROWS($S$7:S77))) ->  | V77: =IF(ISERROR(SMALL($U$7:$U$1504,ROWS(U$7:$U77))),"",SMALL($U$7:$U$1504,ROWS(U$7:$U77))) ->  | X77: =IF(ISERROR(SMALL($W$7:$W$1504,ROWS($W$7:W77))),"",SMALL($W$7:$W$1504,ROWS($W$7:W77))) -> 
B78: Lietuvos Respublika | C78: Per metus įregistruota juridinių asmenų skaičius | vnt. | D78: 9198 | E78: 10391 | F78: 14866 | G78: 13471 | H78: 13858 | I78: 10167 | J78: 10481 | K78: 11381 | L78: 11789 | M78: 12692 | N78: 13363 | O78: 15113 | P78: 14543 | R78: =ROWS($R$7:R78) -> 72 | T78: =IF(ISERROR(SMALL($S$7:$S$1504,ROWS($S$7:S78))),"",SMALL($S$7:$S$1504,ROWS($S$7:S78))) ->  | V78: =IF(ISERROR(SMALL($U$7:$U$1504,ROWS(U$7:$U78))),"",SMALL($U$7:$U$1504,ROWS(U$7:$U78))) ->  | W78: 72 | X78: =IF(ISERROR(SMALL($W$7:$W$1504,ROWS($W$7:W78))),"",SMALL($W$7:$W$1504,ROWS($W$7:W78))) -> 
B79: Alytaus apskritis | C79: Per metus įregistruota juridinių asmenų skaičius | vnt. | D79: 302 | E79: 388 | F79: 619 | G79: 460 | H79: 511 | I79: 345 | J79: 334 | K79: 341 | L79: 372 | M79: 417 | N79: 404 | O79: 359 | P79: 358 | R79: =ROWS($R$7:R79) -> 73 | T79: =IF(ISERROR(SMALL($S$7:$S$1504,ROWS($S$7:S79))),"",SMALL($S$7:$S$1504,ROWS($S$7:S79))) ->  | V79: =IF(ISERROR(SMALL($U$7:$U$1504,ROWS(U$7:$U79))),"",SMALL($U$7:$U$1504,ROWS(U$7:$U79))) ->  | X79: =IF(ISERROR(SMALL($W$7:$W$1504,ROWS($W$7:W79))),"",SMALL($W$7:$W$1504,ROWS($W$7:W79))) ->  | Z79: 1 | AA79: =+INDEX($AA$7:$AA$28,Z79) -> Neišregistruotų juridinių asmenų skaičius metų pradžioje | vnt.
B80: Alytaus m. sav. | C80: Per metus įregistruota juridinių asmenų skaičius | vnt. | D80: 140 | E80: 181 | F80: 388 | G80: 263 | H80: 314 | I80: 187 | J80: 155 | K80: 157 | L80: 170 | M80: 173 | N80: 142 | O80: 144 | P80: 127 | R80: =ROWS($R$7:R80) -> 74 | T80: =IF(ISERROR(SMALL($S$7:$S$1504,ROWS($S$7:S80))),"",SMALL($S$7:$S$1504,ROWS($S$7:S80))) ->  | V80: =IF(ISERROR(SMALL($U$7:$U$1504,ROWS(U$7:$U80))),"",SMALL($U$7:$U$1504,ROWS(U$7:$U80))) ->  | X80: =IF(ISERROR(SMALL($W$7:$W$1504,ROWS($W$7:W80))),"",SMALL($W$7:$W$1504,ROWS($W$7:W80))) ->  | AB80: =+AB$6 -> 2010 | AC80: 2011 | AD80: 2012 | AE80: 2013 | AF80: 2014 | AG80: 2015 | AH80: 2016 | AI80: 2017 | AJ80: 2018 | AK80: 2019 | AL80: 2020 | AM80: 2021 | AN80: 2022 | AO80: 2023
B81: Alytaus r. sav. | C81: Per metus įregistruota juridinių asmenų skaičius | vnt. | D81: 44 | E81: 45 | F81: 53 | G81: 53 | H81: 61 | I81: 59 | J81: 74 | K81: 69 | L81: 82 | M81: 103 | N81: 106 | O81: 87 | P81: 98 | R81: =ROWS($R$7:R81) -> 75 | T81: =IF(ISERROR(SMALL($S$7:$S$1504,ROWS($S$7:S81))),"",SMALL($S$7:$S$1504,ROWS($S$7:S81))) ->  | V81: =IF(ISERROR(SMALL($U$7:$U$1504,ROWS(U$7:$U81))),"",SMALL($U$7:$U$1504,ROWS(U$7:$U81))) ->  | X81: =IF(ISERROR(SMALL($W$7:$W$1504,ROWS($W$7:W81))),"",SMALL($W$7:$W$1504,ROWS($W$7:W81))) ->  | AA81: =+INDEX($Z$7:$Z$28,MATCH($AA79,$AA$7:$AA$28,0)) -> Vilniaus m. sav. | AB81: =+INDEX(AB$7:AB$28,MATCH($AA79,$AA$7:$AA$28,0)) -> 60021 | AC81: 62033 | AD81: 65950 | AE81: 72477 | AF81: 78380 | AG81: 84455 | AH81: 87443 | AI81: 86420 | AJ81: 89789 | AK81: =+INDEX(AK$7:AK$28,MATCH($AA79,$AA$7:$AA$28,0)) -> 93043 | AL81: =+INDEX(AL$7:AL$28,MATCH($AA79,$AA$7:$AA$28,0)) -> 96518 | AM81: =+INDEX(AM$7:AM$28,MATCH($AA79,$AA$7:$AA$28,0)) -> 100701 | AN81: =+INDEX(AN$7:AN$28,MATCH($AA79,$AA$7:$AA$28,0)) -> 105301
B82: Druskininkų sav. | C82: Per metus įregistruota juridinių asmenų skaičius | vnt. | D82: 55 | E82: 86 | F82: 114 | G82: 87 | H82: 87 | I82: 45 | J82: 49 | K82: 48 | L82: 44 | M82: 43 | N82: 46 | O82: 41 | P82: 51 | R82: =ROWS($R$7:R82) -> 76 | T82: =IF(ISERROR(SMALL($S$7:$S$1504,ROWS($S$7:S82))),"",SMALL($S$7:$S$1504,ROWS($S$7:S82))) ->  | V82: =IF(ISERROR(SMALL($U$7:$U$1504,ROWS(U$7:$U82))),"",SMALL($U$7:$U$1504,ROWS(U$7:$U82))) ->  | X82: =IF(ISERROR(SMALL($W$7:$W$1504,ROWS($W$7:W82))),"",SMALL($W$7:$W$1504,ROWS($W$7:W82))) ->  | AA82: =IF(ISERROR(INDEX($Z$31:$Z$52,MATCH(AA79,$AA$31:$AA$52,0))),"",INDEX($Z$31:$Z$52,MATCH(AA79,$AA$31:$AA$52,0))) -> Vilniaus apskritis | AB82: =IF(ISERROR(INDEX(AB$31:AB$52,MATCH($AA79,$AA$31:$AA$52,0))),"",INDEX(AB$31:AB$52,MATCH($AA79,$AA$31:$AA$52,0))) -> 69193 | AC82: 71414 | AD82: 75825 | AE82: 82959 | AF82: 89424 | AG82: 96097 | AH82: 99501 | AI82: 98305 | AJ82: 102222 | AK82: =IF(ISERROR(INDEX(AK$31:AK$52,MATCH($AA79,$AA$31:$AA$52,0))),"",INDEX(AK$31:AK$52,MATCH($AA79,$AA$31:$AA$52,0))) -> 106079 | AL82: =IF(ISERROR(INDEX(AL$31:AL$52,MATCH($AA79,$AA$31:$AA$52,0))),"",INDEX(AL$31:AL$52,MATCH($AA79,$AA$31:$AA$52,0))) -> 110319 | AM82: =IF(ISERROR(INDEX(AM$31:AM$52,MATCH($AA79,$AA$31:$AA$52,0))),"",INDEX(AM$31:AM$52,MATCH($AA79,$AA$31:$AA$52,0))) -> 115349 | AN82: =IF(ISERROR(INDEX(AN$31:AN$52,MATCH($AA79,$AA$31:$AA$52,0))),"",INDEX(AN$31:AN$52,MATCH($AA79,$AA$31:$AA$52,0))) -> 120821
B83: Lazdijų r. sav. | C83: Per metus įregistruota juridinių asmenų skaičius | vnt. | D83: 22 | E83: 33 | F83: 24 | G83: 33 | H83: 24 | I83: 24 | J83: 25 | K83: 21 | L83: 44 | M83: 48 | N83: 57 | O83: 36 | P83: 32 | R83: =ROWS($R$7:R83) -> 77 | T83: =IF(ISERROR(SMALL($S$7:$S$1504,ROWS($S$7:S83))),"",SMALL($S$7:$S$1504,ROWS($S$7:S83))) ->  | V83: =IF(ISERROR(SMALL($U$7:$U$1504,ROWS(U$7:$U83))),"",SMALL($U$7:$U$1504,ROWS(U$7:$U83))) ->  | X83: =IF(ISERROR(SMALL($W$7:$W$1504,ROWS($W$7:W83))),"",SMALL($W$7:$W$1504,ROWS($W$7:W83))) ->  | AA83: =IF(ISERROR(INDEX($Z$55:$Z$76,MATCH(AA79,$AA$55:$AA$76,0))),"",INDEX($Z$55:$Z$76,MATCH(AA79,$AA$55:$AA$76,0))) -> Lietuvos Respublika | AB83: =IF(ISERROR(INDEX(AB$55:AB$76,MATCH($AA79,$AA$55:$AA$76,0))),"",INDEX(AB$55:AB$76,MATCH($AA79,$AA$55:$AA$76,0))) -> 181574 | AC83: 184714 | AD83: 191882 | AE83: 203557 | AF83: 213846 | AG83: 223644 | AH83: 228925 | AI83: 222066 | AJ83: 228625 | AK83: =IF(ISERROR(INDEX(AK$55:AK$76,MATCH($AA79,$AA$55:$AA$76,0))),"",INDEX(AK$55:AK$76,MATCH($AA79,$AA$55:$AA$76,0))) -> 235554 | AL83: =IF(ISERROR(INDEX(AL$55:AL$76,MATCH($AA79,$AA$55:$AA$76,0))),"",INDEX(AL$55:AL$76,MATCH($AA79,$AA$55:$AA$76,0))) -> 243459 | AM83: =IF(ISERROR(INDEX(AM$55:AM$76,MATCH($AA79,$AA$55:$AA$76,0))),"",INDEX(AM$55:AM$76,MATCH($AA79,$AA$55:$AA$76,0))) -> 253197 | AN83: =IF(ISERROR(INDEX(AN$55:AN$76,MATCH($AA79,$AA$55:$AA$76,0))),"",INDEX(AN$55:AN$76,MATCH($AA79,$AA$55:$AA$76,0))) -> 258399
B84: Varėnos r. sav. | C84: Per metus įregistruota juridinių asmenų skaičius | vnt. | D84: 41 | E84: 43 | F84: 40 | G84: 24 | H84: 25 | I84: 30 | J84: 31 | K84: 46 | L84: 32 | M84: 50 | N84: 53 | O84: 51 | P84: 50 | R84: =ROWS($R$7:R84) -> 78 | T84: =IF(ISERROR(SMALL($S$7:$S$1504,ROWS($S$7:S84))),"",SMALL($S$7:$S$1504,ROWS($S$7:S84))) ->  | V84: =IF(ISERROR(SMALL($U$7:$U$1504,ROWS(U$7:$U84))),"",SMALL($U$7:$U$1504,ROWS(U$7:$U84))) ->  | X84: =IF(ISERROR(SMALL($W$7:$W$1504,ROWS($W$7:W84))),"",SMALL($W$7:$W$1504,ROWS($W$7:W84))) -> 
B85: Kauno apskritis | C85: Per metus įregistruota juridinių asmenų skaičius | vnt. | D85: 1552 | E85: 1673 | F85: 2260 | G85: 2185 | H85: 2269 | I85: 2115 | J85: 2195 | K85: 2362 | L85: 2507 | M85: 2693 | N85: 2906 | O85: 3277 | P85: 3123 | R85: =ROWS($R$7:R85) -> 79 | T85: =IF(ISERROR(SMALL($S$7:$S$1504,ROWS($S$7:S85))),"",SMALL($S$7:$S$1504,ROWS($S$7:S85))) ->  | V85: =IF(ISERROR(SMALL($U$7:$U$1504,ROWS(U$7:$U85))),"",SMALL($U$7:$U$1504,ROWS(U$7:$U85))) ->  | X85: =IF(ISERROR(SMALL($W$7:$W$1504,ROWS($W$7:W85))),"",SMALL($W$7:$W$1504,ROWS($W$7:W85))) -> 
B86: Birštono sav. | C86: Per metus įregistruota juridinių asmenų skaičius | vnt. | D86: 8 | E86: 6 | F86: 11 | G86: 9 | H86: 12 | I86: 10 | J86: 12 | K86: 21 | L86: 17 | M86: 17 | N86: 12 | O86: 19 | P86: 13 | R86: =ROWS($R$7:R86) -> 80 | T86: =IF(ISERROR(SMALL($S$7:$S$1504,ROWS($S$7:S86))),"",SMALL($S$7:$S$1504,ROWS($S$7:S86))) ->  | V86: =IF(ISERROR(SMALL($U$7:$U$1504,ROWS(U$7:$U86))),"",SMALL($U$7:$U$1504,ROWS(U$7:$U86))) ->  | X86: =IF(ISERROR(SMALL($W$7:$W$1504,ROWS($W$7:W86))),"",SMALL($W$7:$W$1504,ROWS($W$7:W86))) -> 
B87: Jonavos r. sav. | C87: Per metus įregistruota juridinių asmenų skaičius | vnt. | D87: 64 | E87: 49 | F87: 57 | G87: 89 | H87: 83 | I87: 58 | J87: 69 | K87: 71 | L87: 75 | M87: 107 | N87: 108 | O87: 126 | P87: 112 | R87: =ROWS($R$7:R87) -> 81 | T87: =IF(ISERROR(SMALL($S$7:$S$1504,ROWS($S$7:S87))),"",SMALL($S$7:$S$1504,ROWS($S$7:S87))) ->  | V87: =IF(ISERROR(SMALL($U$7:$U$1504,ROWS(U$7:$U87))),"",SMALL($U$7:$U$1504,ROWS(U$7:$U87))) ->  | X87: =IF(ISERROR(SMALL($W$7:$W$1504,ROWS($W$7:W87))),"",SMALL($W$7:$W$1504,ROWS($W$7:W87))) -> 
B88: Kaišiadorių r. sav. | C88: Per metus įregistruota juridinių asmenų skaičius | vnt. | D88: 43 | E88: 46 | F88: 64 | G88: 51 | H88: 45 | I88: 42 | J88: 52 | K88: 54 | L88: 50 | M88: 65 | N88: 77 | O88: 94 | P88: 84 | R88: =ROWS($R$7:R88) -> 82 | T88: =IF(ISERROR(SMALL($S$7:$S$1504,ROWS($S$7:S88))),"",SMALL($S$7:$S$1504,ROWS($S$7:S88))) ->  | V88: =IF(ISERROR(SMALL($U$7:$U$1504,ROWS(U$7:$U88))),"",SMALL($U$7:$U$1504,ROWS(U$7:$U88))) ->  | X88: =IF(ISERROR(SMALL($W$7:$W$1504,ROWS($W$7:W88))),"",SMALL($W$7:$W$1504,ROWS($W$7:W88))) -> 
B89: Kauno m. sav. | C89: Per metus įregistruota juridinių asmenų skaičius | vnt. | D89: 1039 | E89: 1066 | F89: 1504 | G89: 1578 | H89: 1669 | I89: 1530 | J89: 1592 | K89: 1706 | L89: 1769 | M89: 1839 | N89: 1934 | O89: 2150 | P89: 2141 | R89: =ROWS($R$7:R89) -> 83 | T89: =IF(ISERROR(SMALL($S$7:$S$1504,ROWS($S$7:S89))),"",SMALL($S$7:$S$1504,ROWS($S$7:S89))) ->  | V89: =IF(ISERROR(SMALL($U$7:$U$1504,ROWS(U$7:$U89))),"",SMALL($U$7:$U$1504,ROWS(U$7:$U89))) ->  | X89: =IF(ISERROR(SMALL($W$7:$W$1504,ROWS($W$7:W89))),"",SMALL($W$7:$W$1504,ROWS($W$7:W89))) -> 
B90: Kauno r. sav. | C90: Per metus įregistruota juridinių asmenų skaičius | vnt. | D90: 231 | E90: 322 | F90: 438 | G90: 301 | H90: 301 | I90: 310 | J90: 304 | K90: 345 | L90: 410 | M90: 448 | N90: 516 | O90: 585 | P90: 499 | R90: =ROWS($R$7:R90) -> 84 | T90: =IF(ISERROR(SMALL($S$7:$S$1504,ROWS($S$7:S90))),"",SMALL($S$7:$S$1504,ROWS($S$7:S90))) ->  | V90: =IF(ISERROR(SMALL($U$7:$U$1504,ROWS(U$7:$U90))),"",SMALL($U$7:$U$1504,ROWS(U$7:$U90))) ->  | X90: =IF(ISERROR(SMALL($W$7:$W$1504,ROWS($W$7:W90))),"",SMALL($W$7:$W$1504,ROWS($W$7:W90))) -> 
B91: Kėdainių r. sav. | C91: Per metus įregistruota juridinių asmenų skaičius | vnt. | D91: 69 | E91: 89 | F91: 83 | G91: 74 | H91: 79 | I91: 80 | J91: 62 | K91: 70 | L91: 73 | M91: 96 | N91: 115 | O91: 127 | P91: 128 | R91: =ROWS($R$7:R91) -> 85 | T91: =IF(ISERROR(SMALL($S$7:$S$1504,ROWS($S$7:S91))),"",SMALL($S$7:$S$1504,ROWS($S$7:S91))) ->  | V91: =IF(ISERROR(SMALL($U$7:$U$1504,ROWS(U$7:$U91))),"",SMALL($U$7:$U$1504,ROWS(U$7:$U91))) ->  | X91: =IF(ISERROR(SMALL($W$7:$W$1504,ROWS($W$7:W91))),"",SMALL($W$7:$W$1504,ROWS($W$7:W91))) -> 
B92: Prienų r. sav. | C92: Per metus įregistruota juridinių asmenų skaičius | vnt. | D92: 40 | E92: 38 | F92: 41 | G92: 38 | H92: 31 | I92: 36 | J92: 43 | K92: 39 | L92: 68 | M92: 59 | N92: 76 | O92: 92 | P92: 96 | R92: =ROWS($R$7:R92) -> 86 | T92: =IF(ISERROR(SMALL($S$7:$S$1504,ROWS($S$7:S92))),"",SMALL($S$7:$S$1504,ROWS($S$7:S92))) ->  | V92: =IF(ISERROR(SMALL($U$7:$U$1504,ROWS(U$7:$U92))),"",SMALL($U$7:$U$1504,ROWS(U$7:$U92))) ->  | X92: =IF(ISERROR(SMALL($W$7:$W$1504,ROWS($W$7:W92))),"",SMALL($W$7:$W$1504,ROWS($W$7:W92))) -> 
B93: Raseinių r. sav. | C93: Per metus įregistruota juridinių asmenų skaičius | vnt. | D93: 58 | E93: 57 | F93: 62 | G93: 45 | H93: 49 | I93: 49 | J93: 61 | K93: 56 | L93: 45 | M93: 62 | N93: 68 | O93: 84 | P93: 50 | R93: =ROWS($R$7:R93) -> 87 | T93: =IF(ISERROR(SMALL($S$7:$S$1504,ROWS($S$7:S93))),"",SMALL($S$7:$S$1504,ROWS($S$7:S93))) ->  | V93: =IF(ISERROR(SMALL($U$7:$U$1504,ROWS(U$7:$U93))),"",SMALL($U$7:$U$1504,ROWS(U$7:$U93))) ->  | X93: =IF(ISERROR(SMALL($W$7:$W$1504,ROWS($W$7:W93))),"",SMALL($W$7:$W$1504,ROWS($W$7:W93))) -> 
B94: Klaipėdos apskritis | C94: Per metus įregistruota juridinių asmenų skaičius | vnt. | D94: 967 | E94: 1000 | F94: 1307 | G94: 1147 | H94: 1017 | I94: 962 | J94: 937 | K94: 1001 | L94: 1063 | M94: 1159 | N94: 1238 | O94: 1491 | P94: 1396 | R94: =ROWS($R$7:R94) -> 88 | T94: =IF(ISERROR(SMALL($S$7:$S$1504,ROWS($S$7:S94))),"",SMALL($S$7:$S$1504,ROWS($S$7:S94))) ->  | V94: =IF(ISERROR(SMALL($U$7:$U$1504,ROWS(U$7:$U94))),"",SMALL($U$7:$U$1504,ROWS(U$7:$U94))) ->  | X94: =IF(ISERROR(SMALL($W$7:$W$1504,ROWS($W$7:W94))),"",SMALL($W$7:$W$1504,ROWS($W$7:W94))) -> 
B95: Klaipėdos m. sav. | C95: Per metus įregistruota juridinių asmenų skaičius | vnt. | D95: 601 | E95: 584 | F95: 841 | G95: 688 | H95: 626 | I95: 510 | J95: 506 | K95: 535 | L95: 556 | M95: 591 | N95: 598 | O95: 715 | P95: 694 | R95: =ROWS($R$7:R95) -> 89 | T95: =IF(ISERROR(SMALL($S$7:$S$1504,ROWS($S$7:S95))),"",SMALL($S$7:$S$1504,ROWS($S$7:S95))) ->  | V95: =IF(ISERROR(SMALL($U$7:$U$1504,ROWS(U$7:$U95))),"",SMALL($U$7:$U$1504,ROWS(U$7:$U95))) ->  | X95: =IF(ISERROR(SMALL($W$7:$W$1504,ROWS($W$7:W95))),"",SMALL($W$7:$W$1504,ROWS($W$7:W95))) -> 
B96: Klaipėdos r. sav. | C96: Per metus įregistruota juridinių asmenų skaičius | vnt. | D96: 141 | E96: 189 | F96: 212 | G96: 178 | H96: 165 | I96: 183 | J96: 175 | K96: 199 | L96: 219 | M96: 255 | N96: 297 | O96: 372 | P96: 365 | R96: =ROWS($R$7:R96) -> 90 | T96: =IF(ISERROR(SMALL($S$7:$S$1504,ROWS($S$7:S96))),"",SMALL($S$7:$S$1504,ROWS($S$7:S96))) ->  | V96: =IF(ISERROR(SMALL($U$7:$U$1504,ROWS(U$7:$U96))),"",SMALL($U$7:$U$1504,ROWS(U$7:$U96))) ->  | X96: =IF(ISERROR(SMALL($W$7:$W$1504,ROWS($W$7:W96))),"",SMALL($W$7:$W$1504,ROWS($W$7:W96))) -> 
B97: Kretingos r. sav. | C97: Per metus įregistruota juridinių asmenų skaičius | vnt. | D97: 57 | E97: 66 | F97: 71 | G97: 80 | H97: 86 | I97: 72 | J97: 75 | K97: 81 | L97: 86 | M97: 73 | N97: 95 | O97: 121 | P97: 88 | R97: =ROWS($R$7:R97) -> 91 | T97: =IF(ISERROR(SMALL($S$7:$S$1504,ROWS($S$7:S97))),"",SMALL($S$7:$S$1504,ROWS($S$7:S97))) ->  | V97: =IF(ISERROR(SMALL($U$7:$U$1504,ROWS(U$7:$U97))),"",SMALL($U$7:$U$1504,ROWS(U$7:$U97))) ->  | X97: =IF(ISERROR(SMALL($W$7:$W$1504,ROWS($W$7:W97))),"",SMALL($W$7:$W$1504,ROWS($W$7:W97))) -> 
B98: Neringos sav. | C98: Per metus įregistruota juridinių asmenų skaičius | vnt. | D98: 14 | E98: 12 | F98: 21 | G98: 10 | H98: 14 | I98: 26 | J98: 19 | K98: 8 | L98: 12 | M98: 22 | N98: 31 | O98: 38 | P98: 29 | R98: =ROWS($R$7:R98) -> 92 | T98: =IF(ISERROR(SMALL($S$7:$S$1504,ROWS($S$7:S98))),"",SMALL($S$7:$S$1504,ROWS($S$7:S98))) ->  | V98: =IF(ISERROR(SMALL($U$7:$U$1504,ROWS(U$7:$U98))),"",SMALL($U$7:$U$1504,ROWS(U$7:$U98))) ->  | X98: =IF(ISERROR(SMALL($W$7:$W$1504,ROWS($W$7:W98))),"",SMALL($W$7:$W$1504,ROWS($W$7:W98))) -> 
B99: Palangos m. sav. | C99: Per metus įregistruota juridinių asmenų skaičius | vnt. | D99: 54 | E99: 52 | F99: 59 | G99: 79 | H99: 55 | I99: 66 | J99: 76 | K99: 75 | L99: 75 | M99: 90 | N99: 89 | O99: 124 | P99: 110 | R99: =ROWS($R$7:R99) -> 93 | T99: =IF(ISERROR(SMALL($S$7:$S$1504,ROWS($S$7:S99))),"",SMALL($S$7:$S$1504,ROWS($S$7:S99))) ->  | V99: =IF(ISERROR(SMALL($U$7:$U$1504,ROWS(U$7:$U99))),"",SMALL($U$7:$U$1504,ROWS(U$7:$U99))) ->  | X99: =IF(ISERROR(SMALL($W$7:$W$1504,ROWS($W$7:W99))),"",SMALL($W$7:$W$1504,ROWS($W$7:W99))) -> 
B100: Skuodo r. sav. | C100: Per metus įregistruota juridinių asmenų skaičius | vnt. | D100: 22 | E100: 23 | F100: 29 | G100: 12 | H100: 14 | I100: 36 | J100: 18 | K100: 18 | L100: 25 | M100: 27 | N100: 24 | O100: 21 | P100: 31 | R100: =ROWS($R$7:R100) -> 94 | T100: =IF(ISERROR(SMALL($S$7:$S$1504,ROWS($S$7:S100))),"",SMALL($S$7:$S$1504,ROWS($S$7:S100))) ->  | V100: =IF(ISERROR(SMALL($U$7:$U$1504,ROWS(U$7:$U100))),"",SMALL($U$7:$U$1504,ROWS(U$7:$U100))) ->  | X100: =IF(ISERROR(SMALL($W$7:$W$1504,ROWS($W$7:W100))),"",SMALL($W$7:$W$1504,ROWS($W$7:W100))) ->  | Z100: 2 | AA100: =+INDEX($AA$7:$AA$28,Z100) -> Per metus įregistruota juridinių asmenų skaičius | vnt.
B101: Šilutės r. sav. | C101: Per metus įregistruota juridinių asmenų skaičius | vnt. | D101: 78 | E101: 74 | F101: 74 | G101: 100 | H101: 57 | I101: 69 | J101: 68 | K101: 85 | L101: 90 | M101: 101 | N101: 104 | O101: 100 | P101: 79 | R101: =ROWS($R$7:R101) -> 95 | T101: =IF(ISERROR(SMALL($S$7:$S$1504,ROWS($S$7:S101))),"",SMALL($S$7:$S$1504,ROWS($S$7:S101))) ->  | V101: =IF(ISERROR(SMALL($U$7:$U$1504,ROWS(U$7:$U101))),"",SMALL($U$7:$U$1504,ROWS(U$7:$U101))) ->  | X101: =IF(ISERROR(SMALL($W$7:$W$1504,ROWS($W$7:W101))),"",SMALL($W$7:$W$1504,ROWS($W$7:W101))) ->  | AB101: =+AB$6 -> 2010 | AC101: 2011 | AD101: 2012 | AE101: 2013 | AF101: 2014 | AG101: 2015 | AH101: 2016 | AI101: 2017 | AJ101: 2018 | AK101: 2019 | AL101: 2020 | AM101: 2021
B102: Marijampolės apskritis | C102: Per metus įregistruota juridinių asmenų skaičius | vnt. | D102: 217 | E102: 202 | F102: 340 | G102: 270 | H102: 231 | I102: 238 | J102: 238 | K102: 292 | L102: 293 | M102: 301 | N102: 310 | O102: 388 | P102: 286 | R102: =ROWS($R$7:R102) -> 96 | T102: =IF(ISERROR(SMALL($S$7:$S$1504,ROWS($S$7:S102))),"",SMALL($S$7:$S$1504,ROWS($S$7:S102))) ->  | V102: =IF(ISERROR(SMALL($U$7:$U$1504,ROWS(U$7:$U102))),"",SMALL($U$7:$U$1504,ROWS(U$7:$U102))) ->  | X102: =IF(ISERROR(SMALL($W$7:$W$1504,ROWS($W$7:W102))),"",SMALL($W$7:$W$1504,ROWS($W$7:W102))) ->  | AA102: =+INDEX($Z$7:$Z$28,MATCH($AA100,$AA$7:$AA$28,0)) -> Vilniaus m. sav. | AB102: =+INDEX(AB$7:AB$28,MATCH($AA100,$AA$7:$AA$28,0)) -> 4001 | AC102: 4865 | AD102: 7369 | AE102: 6918 | AF102: 7205 | AG102: 4450 | AH102: 4520 | AI102: 5116 | AJ102: 5014 | AK102: =+INDEX(AK$7:AK$28,MATCH($AA100,$AA$7:$AA$28,0)) -> 5353 | AL102: =+INDEX(AL$7:AL$28,MATCH($AA100,$AA$7:$AA$28,0)) -> 5405 | AM102: =+INDEX(AM$7:AM$28,MATCH($AA100,$AA$7:$AA$28,0)) -> 6473
B103: Kalvarijos sav. | C103: Per metus įregistruota juridinių asmenų skaičius | vnt. | D103: 7 | E103: 8 | F103: 14 | G103: 12 | H103: 9 | I103: 16 | J103: 15 | K103: 31 | L103: 41 | M103: 34 | N103: 32 | O103: 23 | P103: 25 | R103: =ROWS($R$7:R103) -> 97 | T103: =IF(ISERROR(SMALL($S$7:$S$1504,ROWS($S$7:S103))),"",SMALL($S$7:$S$1504,ROWS($S$7:S103))) ->  | V103: =IF(ISERROR(SMALL($U$7:$U$1504,ROWS(U$7:$U103))),"",SMALL($U$7:$U$1504,ROWS(U$7:$U103))) ->  | X103: =IF(ISERROR(SMALL($W$7:$W$1504,ROWS($W$7:W103))),"",SMALL($W$7:$W$1504,ROWS($W$7:W103))) ->  | AA103: =IF(ISERROR(INDEX($Z$31:$Z$52,MATCH(AA100,$AA$31:$AA$52,0))),"",INDEX($Z$31:$Z$52,MATCH(AA100,$AA$31:$AA$52,0))) -> Vilniaus apskritis | AB103: =IF(ISERROR(INDEX(AB$31:AB$52,MATCH($AA100,$AA$31:$AA$52,0))),"",INDEX(AB$31:AB$52,MATCH($AA100,$AA$31:$AA$52,0))) -> 4515 | AC103: 5444 | AD103: 8082 | AE103: 7551 | AF103: 7891 | AG103: 4951 | AH103: 5078 | AI103: 5711 | AJ103: 5683 | AK103: =IF(ISERROR(INDEX(AK$31:AK$52,MATCH($AA100,$AA$31:$AA$52,0))),"",INDEX(AK$31:AK$52,MATCH($AA100,$AA$31:$AA$52,0))) -> 6143 | AL103: =IF(ISERROR(INDEX(AL$31:AL$52,MATCH($AA100,$AA$31:$AA$52,0))),"",INDEX(AL$31:AL$52,MATCH($AA100,$AA$31:$AA$52,0))) -> 6353 | AM103: =IF(ISERROR(INDEX(AM$31:AM$52,MATCH($AA100,$AA$31:$AA$52,0))),"",INDEX(AM$31:AM$52,MATCH($AA100,$AA$31:$AA$52,0))) -> 7393
B104: Kazlų Rūdos sav. | C104: Per metus įregistruota juridinių asmenų skaičius | vnt. | D104: 15 | E104: 22 | F104: 35 | G104: 39 | H104: 29 | I104: 19 | J104: 22 | K104: 38 | L104: 36 | M104: 30 | N104: 34 | O104: 23 | P104: 19 | R104: =ROWS($R$7:R104) -> 98 | T104: =IF(ISERROR(SMALL($S$7:$S$1504,ROWS($S$7:S104))),"",SMALL($S$7:$S$1504,ROWS($S$7:S104))) ->  | V104: =IF(ISERROR(SMALL($U$7:$U$1504,ROWS(U$7:$U104))),"",SMALL($U$7:$U$1504,ROWS(U$7:$U104))) ->  | X104: =IF(ISERROR(SMALL($W$7:$W$1504,ROWS($W$7:W104))),"",SMALL($W$7:$W$1504,ROWS($W$7:W104))) ->  | AA104: =IF(ISERROR(INDEX($Z$55:$Z$76,MATCH(AA100,$AA$55:$AA$76,0))),"",INDEX($Z$55:$Z$76,MATCH(AA100,$AA$55:$AA$76,0))) -> Lietuvos Respublika | AB104: =IF(ISERROR(INDEX(AB$55:AB$76,MATCH($AA100,$AA$55:$AA$76,0))),"",INDEX(AB$55:AB$76,MATCH($AA100,$AA$55:$AA$76,0))) -> 9198 | AC104: 10391 | AD104: 14866 | AE104: 13471 | AF104: 13858 | AG104: 10167 | AH104: 10481 | AI104: 11381 | AJ104: 11789 | AK104: =IF(ISERROR(INDEX(AK$55:AK$76,MATCH($AA100,$AA$55:$AA$76,0))),"",INDEX(AK$55:AK$76,MATCH($AA100,$AA$55:$AA$76,0))) -> 12692 | AL104: =IF(ISERROR(INDEX(AL$55:AL$76,MATCH($AA100,$AA$55:$AA$76,0))),"",INDEX(AL$55:AL$76,MATCH($AA100,$AA$55:$AA$76,0))) -> 13363 | AM104: =IF(ISERROR(INDEX(AM$55:AM$76,MATCH($AA100,$AA$55:$AA$76,0))),"",INDEX(AM$55:AM$76,MATCH($AA100,$AA$55:$AA$76,0))) -> 15113
B105: Marijampolės sav. | C105: Per metus įregistruota juridinių asmenų skaičius | vnt. | D105: 113 | E105: 101 | F105: 158 | G105: 119 | H105: 119 | I105: 119 | J105: 110 | K105: 129 | L105: 143 | M105: 123 | N105: 131 | O105: 196 | P105: 135 | R105: =ROWS($R$7:R105) -> 99 | T105: =IF(ISERROR(SMALL($S$7:$S$1504,ROWS($S$7:S105))),"",SMALL($S$7:$S$1504,ROWS($S$7:S105))) ->  | V105: =IF(ISERROR(SMALL($U$7:$U$1504,ROWS(U$7:$U105))),"",SMALL($U$7:$U$1504,ROWS(U$7:$U105))) ->  | X105: =IF(ISERROR(SMALL($W$7:$W$1504,ROWS($W$7:W105))),"",SMALL($W$7:$W$1504,ROWS($W$7:W105))) -> 
B106: Šakių r. sav. | C106: Per metus įregistruota juridinių asmenų skaičius | vnt. | D106: 42 | E106: 37 | F106: 69 | G106: 53 | H106: 44 | I106: 46 | J106: 49 | K106: 46 | L106: 39 | M106: 58 | N106: 54 | O106: 71 | P106: 48 | R106: =ROWS($R$7:R106) -> 100 | T106: =IF(ISERROR(SMALL($S$7:$S$1504,ROWS($S$7:S106))),"",SMALL($S$7:$S$1504,ROWS($S$7:S106))) ->  | V106: =IF(ISERROR(SMALL($U$7:$U$1504,ROWS(U$7:$U106))),"",SMALL($U$7:$U$1504,ROWS(U$7:$U106))) ->  | X106: =IF(ISERROR(SMALL($W$7:$W$1504,ROWS($W$7:W106))),"",SMALL($W$7:$W$1504,ROWS($W$7:W106))) -> 
B107: Vilkaviškio r. sav. | C107: Per metus įregistruota juridinių asmenų skaičius | vnt. | D107: 40 | E107: 34 | F107: 64 | G107: 47 | H107: 30 | I107: 38 | J107: 42 | K107: 48 | L107: 34 | M107: 56 | N107: 59 | O107: 75 | P107: 59 | R107: =ROWS($R$7:R107) -> 101 | T107: =IF(ISERROR(SMALL($S$7:$S$1504,ROWS($S$7:S107))),"",SMALL($S$7:$S$1504,ROWS($S$7:S107))) ->  | V107: =IF(ISERROR(SMALL($U$7:$U$1504,ROWS(U$7:$U107))),"",SMALL($U$7:$U$1504,ROWS(U$7:$U107))) ->  | X107: =IF(ISERROR(SMALL($W$7:$W$1504,ROWS($W$7:W107))),"",SMALL($W$7:$W$1504,ROWS($W$7:W107))) -> 
B108: Panevėžio apskritis | C108: Per metus įregistruota juridinių asmenų skaičius | vnt. | D108: 426 | E108: 433 | F108: 571 | G108: 524 | H108: 562 | I108: 439 | J108: 439 | K108: 435 | L108: 507 | M108: 542 | N108: 562 | O108: 518 | P108: 461 | R108: =ROWS($R$7:R108) -> 102 | T108: =IF(ISERROR(SMALL($S$7:$S$1504,ROWS($S$7:S108))),"",SMALL($S$7:$S$1504,ROWS($S$7:S108))) ->  | V108: =IF(ISERROR(SMALL($U$7:$U$1504,ROWS(U$7:$U108))),"",SMALL($U$7:$U$1504,ROWS(U$7:$U108))) ->  | X108: =IF(ISERROR(SMALL($W$7:$W$1504,ROWS($W$7:W108))),"",SMALL($W$7:$W$1504,ROWS($W$7:W108))) -> 
B109: Biržų r. sav. | C109: Per metus įregistruota juridinių asmenų skaičius | vnt. | D109: 29 | E109: 66 | F109: 62 | G109: 38 | H109: 49 | I109: 46 | J109: 42 | K109: 25 | L109: 45 | M109: 46 | N109: 39 | O109: 38 | P109: 32 | R109: =ROWS($R$7:R109) -> 103 | T109: =IF(ISERROR(SMALL($S$7:$S$1504,ROWS($S$7:S109))),"",SMALL($S$7:$S$1504,ROWS($S$7:S109))) ->  | V109: =IF(ISERROR(SMALL($U$7:$U$1504,ROWS(U$7:$U109))),"",SMALL($U$7:$U$1504,ROWS(U$7:$U109))) ->  | X109: =IF(ISERROR(SMALL($W$7:$W$1504,ROWS($W$7:W109))),"",SMALL($W$7:$W$1504,ROWS($W$7:W109))) -> 
B110: Kupiškio r. sav. | C110: Per metus įregistruota juridinių asmenų skaičius | vnt. | D110: 30 | E110: 12 | F110: 32 | G110: 22 | H110: 17 | I110: 24 | J110: 23 | K110: 25 | L110: 45 | M110: 30 | N110: 29 | O110: 26 | P110: 26 | R110: =ROWS($R$7:R110) -> 104 | T110: =IF(ISERROR(SMALL($S$7:$S$1504,ROWS($S$7:S110))),"",SMALL($S$7:$S$1504,ROWS($S$7:S110))) ->  | V110: =IF(ISERROR(SMALL($U$7:$U$1504,ROWS(U$7:$U110))),"",SMALL($U$7:$U$1504,ROWS(U$7:$U110))) ->  | X110: =IF(ISERROR(SMALL($W$7:$W$1504,ROWS($W$7:W110))),"",SMALL($W$7:$W$1504,ROWS($W$7:W110))) -> 
B111: Panevėžio m. sav. | C111: Per metus įregistruota juridinių asmenų skaičius | vnt. | D111: 204 | E111: 197 | F111: 321 | G111: 285 | H111: 283 | I111: 233 | J111: 187 | K111: 210 | L111: 202 | M111: 265 | N111: 237 | O111: 204 | P111: 160 | R111: =ROWS($R$7:R111) -> 105 | T111: =IF(ISERROR(SMALL($S$7:$S$1504,ROWS($S$7:S111))),"",SMALL($S$7:$S$1504,ROWS($S$7:S111))) ->  | V111: =IF(ISERROR(SMALL($U$7:$U$1504,ROWS(U$7:$U111))),"",SMALL($U$7:$U$1504,ROWS(U$7:$U111))) ->  | X111: =IF(ISERROR(SMALL($W$7:$W$1504,ROWS($W$7:W111))),"",SMALL($W$7:$W$1504,ROWS($W$7:W111))) -> 
B112: Panevėžio r. sav. | C112: Per metus įregistruota juridinių asmenų skaičius | vnt. | D112: 92 | E112: 83 | F112: 70 | G112: 65 | H112: 56 | I112: 55 | J112: 80 | K112: 72 | L112: 73 | M112: 79 | N112: 115 | O112: 107 | P112: 92 | R112: =ROWS($R$7:R112) -> 106 | T112: =IF(ISERROR(SMALL($S$7:$S$1504,ROWS($S$7:S112))),"",SMALL($S$7:$S$1504,ROWS($S$7:S112))) ->  | V112: =IF(ISERROR(SMALL($U$7:$U$1504,ROWS(U$7:$U112))),"",SMALL($U$7:$U$1504,ROWS(U$7:$U112))) ->  | X112: =IF(ISERROR(SMALL($W$7:$W$1504,ROWS($W$7:W112))),"",SMALL($W$7:$W$1504,ROWS($W$7:W112))) -> 
B113: Pasvalio r. sav. | C113: Per metus įregistruota juridinių asmenų skaičius | vnt. | D113: 34 | E113: 32 | F113: 40 | G113: 42 | H113: 48 | I113: 31 | J113: 39 | K113: 36 | L113: 36 | M113: 28 | N113: 40 | O113: 49 | P113: 79 | R113: =ROWS($R$7:R113) -> 107 | T113: =IF(ISERROR(SMALL($S$7:$S$1504,ROWS($S$7:S113))),"",SMALL($S$7:$S$1504,ROWS($S$7:S113))) ->  | V113: =IF(ISERROR(SMALL($U$7:$U$1504,ROWS(U$7:$U113))),"",SMALL($U$7:$U$1504,ROWS(U$7:$U113))) ->  | X113: =IF(ISERROR(SMALL($W$7:$W$1504,ROWS($W$7:W113))),"",SMALL($W$7:$W$1504,ROWS($W$7:W113))) -> 
B114: Rokiškio r. sav. | C114: Per metus įregistruota juridinių asmenų skaičius | vnt. | D114: 37 | E114: 43 | F114: 46 | G114: 72 | H114: 109 | I114: 50 | J114: 68 | K114: 67 | L114: 106 | M114: 94 | N114: 102 | O114: 94 | P114: 72 | R114: =ROWS($R$7:R114) -> 108 | T114: =IF(ISERROR(SMALL($S$7:$S$1504,ROWS($S$7:S114))),"",SMALL($S$7:$S$1504,ROWS($S$7:S114))) ->  | V114: =IF(ISERROR(SMALL($U$7:$U$1504,ROWS(U$7:$U114))),"",SMALL($U$7:$U$1504,ROWS(U$7:$U114))) ->  | X114: =IF(ISERROR(SMALL($W$7:$W$1504,ROWS($W$7:W114))),"",SMALL($W$7:$W$1504,ROWS($W$7:W114))) -> 
B115: Šiaulių apskritis | C115: Per metus įregistruota juridinių asmenų skaičius | vnt. | D115: 559 | E115: 563 | F115: 684 | G115: 644 | H115: 754 | I115: 521 | J115: 564 | K115: 585 | L115: 581 | M115: 607 | N115: 683 | O115: 810 | P115: 623 | R115: =ROWS($R$7:R115) -> 109 | T115: =IF(ISERROR(SMALL($S$7:$S$1504,ROWS($S$7:S115))),"",SMALL($S$7:$S$1504,ROWS($S$7:S115))) ->  | V115: =IF(ISERROR(SMALL($U$7:$U$1504,ROWS(U$7:$U115))),"",SMALL($U$7:$U$1504,ROWS(U$7:$U115))) ->  | X115: =IF(ISERROR(SMALL($W$7:$W$1504,ROWS($W$7:W115))),"",SMALL($W$7:$W$1504,ROWS($W$7:W115))) -> 
B116: Akmenės r. sav. | C116: Per metus įregistruota juridinių asmenų skaičius | vnt. | D116: 29 | E116: 21 | F116: 46 | G116: 80 | H116: 217 | I116: 33 | J116: 52 | K116: 30 | L116: 62 | M116: 36 | N116: 55 | O116: 63 | P116: 51 | R116: =ROWS($R$7:R116) -> 110 | T116: =IF(ISERROR(SMALL($S$7:$S$1504,ROWS($S$7:S116))),"",SMALL($S$7:$S$1504,ROWS($S$7:S116))) ->  | V116: =IF(ISERROR(SMALL($U$7:$U$1504,ROWS(U$7:$U116))),"",SMALL($U$7:$U$1504,ROWS(U$7:$U116))) ->  | X116: =IF(ISERROR(SMALL($W$7:$W$1504,ROWS($W$7:W116))),"",SMALL($W$7:$W$1504,ROWS($W$7:W116))) -> 
B117: Joniškio r. sav. | C117: Per metus įregistruota juridinių asmenų skaičius | vnt. | D117: 35 | E117: 35 | F117: 36 | G117: 42 | H117: 39 | I117: 26 | J117: 25 | K117: 36 | L117: 33 | M117: 40 | N117: 53 | O117: 49 | P117: 37 | R117: =ROWS($R$7:R117) -> 111 | T117: =IF(ISERROR(SMALL($S$7:$S$1504,ROWS($S$7:S117))),"",SMALL($S$7:$S$1504,ROWS($S$7:S117))) ->  | V117: =IF(ISERROR(SMALL($U$7:$U$1504,ROWS(U$7:$U117))),"",SMALL($U$7:$U$1504,ROWS(U$7:$U117))) ->  | X117: =IF(ISERROR(SMALL($W$7:$W$1504,ROWS($W$7:W117))),"",SMALL($W$7:$W$1504,ROWS($W$7:W117))) -> 
B118: Kelmės r. sav. | C118: Per metus įregistruota juridinių asmenų skaičius | vnt. | D118: 33 | E118: 40 | F118: 38 | G118: 34 | H118: 32 | I118: 42 | J118: 51 | K118: 69 | L118: 67 | M118: 56 | N118: 67 | O118: 59 | P118: 50 | R118: =ROWS($R$7:R118) -> 112 | T118: =IF(ISERROR(SMALL($S$7:$S$1504,ROWS($S$7:S118))),"",SMALL($S$7:$S$1504,ROWS($S$7:S118))) ->  | V118: =IF(ISERROR(SMALL($U$7:$U$1504,ROWS(U$7:$U118))),"",SMALL($U$7:$U$1504,ROWS(U$7:$U118))) ->  | X118: =IF(ISERROR(SMALL($W$7:$W$1504,ROWS($W$7:W118))),"",SMALL($W$7:$W$1504,ROWS($W$7:W118))) -> 
B119: Pakruojo r. sav. | C119: Per metus įregistruota juridinių asmenų skaičius | vnt. | D119: 26 | E119: 20 | F119: 19 | G119: 24 | H119: 27 | I119: 26 | J119: 27 | K119: 13 | L119: 26 | M119: 23 | N119: 33 | O119: 33 | P119: 17 | R119: =ROWS($R$7:R119) -> 113 | T119: =IF(ISERROR(SMALL($S$7:$S$1504,ROWS($S$7:S119))),"",SMALL($S$7:$S$1504,ROWS($S$7:S119))) ->  | V119: =IF(ISERROR(SMALL($U$7:$U$1504,ROWS(U$7:$U119))),"",SMALL($U$7:$U$1504,ROWS(U$7:$U119))) ->  | X119: =IF(ISERROR(SMALL($W$7:$W$1504,ROWS($W$7:W119))),"",SMALL($W$7:$W$1504,ROWS($W$7:W119))) -> 
B120: Radviliškio r. sav. | C120: Per metus įregistruota juridinių asmenų skaičius | vnt. | D120: 46 | E120: 64 | F120: 84 | G120: 87 | H120: 65 | I120: 69 | J120: 56 | K120: 63 | L120: 50 | M120: 54 | N120: 56 | O120: 75 | P120: 60 | R120: =ROWS($R$7:R120) -> 114 | T120: =IF(ISERROR(SMALL($S$7:$S$1504,ROWS($S$7:S120))),"",SMALL($S$7:$S$1504,ROWS($S$7:S120))) ->  | V120: =IF(ISERROR(SMALL($U$7:$U$1504,ROWS(U$7:$U120))),"",SMALL($U$7:$U$1504,ROWS(U$7:$U120))) ->  | X120: =IF(ISERROR(SMALL($W$7:$W$1504,ROWS($W$7:W120))),"",SMALL($W$7:$W$1504,ROWS($W$7:W120))) -> 
B121: Šiaulių m. sav. | C121: Per metus įregistruota juridinių asmenų skaičius | vnt. | D121: 302 | E121: 288 | F121: 362 | G121: 298 | H121: 298 | I121: 247 | J121: 269 | K121: 255 | L121: 251 | M121: 301 | N121: 305 | O121: 396 | P121: 310 | R121: =ROWS($R$7:R121) -> 115 | T121: =IF(ISERROR(SMALL($S$7:$S$1504,ROWS($S$7:S121))),"",SMALL($S$7:$S$1504,ROWS($S$7:S121))) ->  | V121: =IF(ISERROR(SMALL($U$7:$U$1504,ROWS(U$7:$U121))),"",SMALL($U$7:$U$1504,ROWS(U$7:$U121))) ->  | X121: =IF(ISERROR(SMALL($W$7:$W$1504,ROWS($W$7:W121))),"",SMALL($W$7:$W$1504,ROWS($W$7:W121))) ->  | Z121: 3 | AA121: =+INDEX($AA$7:$AA$28,Z121) -> Per metus išregistruota juridinių asmenų skaičius | vnt.
B122: Šiaulių r. sav. | C122: Per metus įregistruota juridinių asmenų skaičius | vnt. | D122: 88 | E122: 95 | F122: 99 | G122: 79 | H122: 76 | I122: 78 | J122: 84 | K122: 119 | L122: 92 | M122: 97 | N122: 114 | O122: 135 | P122: 98 | R122: =ROWS($R$7:R122) -> 116 | T122: =IF(ISERROR(SMALL($S$7:$S$1504,ROWS($S$7:S122))),"",SMALL($S$7:$S$1504,ROWS($S$7:S122))) ->  | V122: =IF(ISERROR(SMALL($U$7:$U$1504,ROWS(U$7:$U122))),"",SMALL($U$7:$U$1504,ROWS(U$7:$U122))) ->  | X122: =IF(ISERROR(SMALL($W$7:$W$1504,ROWS($W$7:W122))),"",SMALL($W$7:$W$1504,ROWS($W$7:W122))) ->  | AB122: =+AB$6 -> 2010 | AC122: 2011 | AD122: 2012 | AE122: 2013 | AF122: 2014 | AG122: 2015 | AH122: 2016 | AI122: 2017 | AJ122: 2018 | AK122: 2019 | AL122: 2020 | AM122: 2021
B123: Tauragės apskritis | C123: Per metus įregistruota juridinių asmenų skaičius | vnt. | D123: 167 | E123: 157 | F123: 289 | G123: 159 | H123: 170 | I123: 134 | J123: 183 | K123: 159 | L123: 177 | M123: 201 | N123: 193 | O123: 211 | P123: 190 | R123: =ROWS($R$7:R123) -> 117 | T123: =IF(ISERROR(SMALL($S$7:$S$1504,ROWS($S$7:S123))),"",SMALL($S$7:$S$1504,ROWS($S$7:S123))) ->  | V123: =IF(ISERROR(SMALL($U$7:$U$1504,ROWS(U$7:$U123))),"",SMALL($U$7:$U$1504,ROWS(U$7:$U123))) ->  | X123: =IF(ISERROR(SMALL($W$7:$W$1504,ROWS($W$7:W123))),"",SMALL($W$7:$W$1504,ROWS($W$7:W123))) ->  | AA123: =+INDEX($Z$7:$Z$28,MATCH($AA121,$AA$7:$AA$28,0)) -> Vilniaus m. sav. | AB123: =+INDEX(AB$7:AB$28,MATCH($AA121,$AA$7:$AA$28,0)) -> 1970 | AC123: 918 | AD123: 917 | AE123: 950 | AF123: 1046 | AG123: 1341 | AH123: 5423 | AI123: 1597 | AJ123: 1666 | AK123: =+INDEX(AK$7:AK$28,MATCH($AA121,$AA$7:$AA$28,0)) -> 1736 | AL123: =+INDEX(AL$7:AL$28,MATCH($AA121,$AA$7:$AA$28,0)) -> 1114 | AM123: =+INDEX(AM$7:AM$28,MATCH($AA121,$AA$7:$AA$28,0)) -> 1642
B124: Jurbarko r. sav. | C124: Per metus įregistruota juridinių asmenų skaičius | vnt. | D124: 39 | E124: 40 | F124: 40 | G124: 52 | H124: 40 | I124: 42 | J124: 46 | K124: 39 | L124: 54 | M124: 64 | N124: 55 | O124: 66 | P124: 43 | R124: =ROWS($R$7:R124) -> 118 | T124: =IF(ISERROR(SMALL($S$7:$S$1504,ROWS($S$7:S124))),"",SMALL($S$7:$S$1504,ROWS($S$7:S124))) ->  | V124: =IF(ISERROR(SMALL($U$7:$U$1504,ROWS(U$7:$U124))),"",SMALL($U$7:$U$1504,ROWS(U$7:$U124))) ->  | X124: =IF(ISERROR(SMALL($W$7:$W$1504,ROWS($W$7:W124))),"",SMALL($W$7:$W$1504,ROWS($W$7:W124))) ->  | AA124: =IF(ISERROR(INDEX($Z$31:$Z$52,MATCH(AA121,$AA$31:$AA$52,0))),"",INDEX($Z$31:$Z$52,MATCH(AA121,$AA$31:$AA$52,0))) -> Vilniaus apskritis | AB124: =IF(ISERROR(INDEX(AB$31:AB$52,MATCH($AA121,$AA$31:$AA$52,0))),"",INDEX(AB$31:AB$52,MATCH($AA121,$AA$31:$AA$52,0))) -> 2316 | AC124: 1056 | AD124: 1068 | AE124: 1105 | AF124: 1212 | AG124: 1548 | AH124: 6309 | AI124: 1799 | AJ124: 1881 | AK124: =IF(ISERROR(INDEX(AK$31:AK$52,MATCH($AA121,$AA$31:$AA$52,0))),"",INDEX(AK$31:AK$52,MATCH($AA121,$AA$31:$AA$52,0))) -> 1915 | AL124: =IF(ISERROR(INDEX(AL$31:AL$52,MATCH($AA121,$AA$31:$AA$52,0))),"",INDEX(AL$31:AL$52,MATCH($AA121,$AA$31:$AA$52,0))) -> 1349 | AM124: =IF(ISERROR(INDEX(AM$31:AM$52,MATCH($AA121,$AA$31:$AA$52,0))),"",INDEX(AM$31:AM$52,MATCH($AA121,$AA$31:$AA$52,0))) -> 1826
B125: Pagėgių sav. | C125: Per metus įregistruota juridinių asmenų skaičius | vnt. | D125: 14 | E125: 21 | F125: 31 | G125: 14 | H125: 7 | I125: 7 | J125: 13 | K125: 12 | L125: 5 | M125: 12 | N125: 12 | O125: 19 | P125: 18 | R125: =ROWS($R$7:R125) -> 119 | T125: =IF(ISERROR(SMALL($S$7:$S$1504,ROWS($S$7:S125))),"",SMALL($S$7:$S$1504,ROWS($S$7:S125))) ->  | V125: =IF(ISERROR(SMALL($U$7:$U$1504,ROWS(U$7:$U125))),"",SMALL($U$7:$U$1504,ROWS(U$7:$U125))) ->  | X125: =IF(ISERROR(SMALL($W$7:$W$1504,ROWS($W$7:W125))),"",SMALL($W$7:$W$1504,ROWS($W$7:W125))) ->  | AA125: =IF(ISERROR(INDEX($Z$55:$Z$76,MATCH(AA121,$AA$55:$AA$76,0))),"",INDEX($Z$55:$Z$76,MATCH(AA121,$AA$55:$AA$76,0))) -> Lietuvos Respublika | AB125: =IF(ISERROR(INDEX(AB$55:AB$76,MATCH($AA121,$AA$55:$AA$76,0))),"",INDEX(AB$55:AB$76,MATCH($AA121,$AA$55:$AA$76,0))) -> 6057 | AC125: 3213 | AD125: 3160 | AE125: 3165 | AF125: 4033 | AG125: 4879 | AH125: 17336 | AI125: 4811 | AJ125: 4850 | AK125: =IF(ISERROR(INDEX(AK$55:AK$76,MATCH($AA121,$AA$55:$AA$76,0))),"",INDEX(AK$55:AK$76,MATCH($AA121,$AA$55:$AA$76,0))) -> 4776 | AL125: =IF(ISERROR(INDEX(AL$55:AL$76,MATCH($AA121,$AA$55:$AA$76,0))),"",INDEX(AL$55:AL$76,MATCH($AA121,$AA$55:$AA$76,0))) -> 3615 | AM125: =IF(ISERROR(INDEX(AM$55:AM$76,MATCH($AA121,$AA$55:$AA$76,0))),"",INDEX(AM$55:AM$76,MATCH($AA121,$AA$55:$AA$76,0))) -> 9916
B126: Šilalės r. sav. | C126: Per metus įregistruota juridinių asmenų skaičius | vnt. | D126: 37 | E126: 40 | F126: 24 | G126: 30 | H126: 34 | I126: 26 | J126: 35 | K126: 42 | L126: 30 | M126: 40 | N126: 39 | O126: 55 | P126: 46 | R126: =ROWS($R$7:R126) -> 120 | T126: =IF(ISERROR(SMALL($S$7:$S$1504,ROWS($S$7:S126))),"",SMALL($S$7:$S$1504,ROWS($S$7:S126))) ->  | V126: =IF(ISERROR(SMALL($U$7:$U$1504,ROWS(U$7:$U126))),"",SMALL($U$7:$U$1504,ROWS(U$7:$U126))) ->  | X126: =IF(ISERROR(SMALL($W$7:$W$1504,ROWS($W$7:W126))),"",SMALL($W$7:$W$1504,ROWS($W$7:W126))) -> 
B127: Tauragės r. sav. | C127: Per metus įregistruota juridinių asmenų skaičius | vnt. | D127: 77 | E127: 56 | F127: 194 | G127: 63 | H127: 89 | I127: 59 | J127: 89 | K127: 66 | L127: 88 | M127: 85 | N127: 87 | O127: 71 | P127: 83 | R127: =ROWS($R$7:R127) -> 121 | T127: =IF(ISERROR(SMALL($S$7:$S$1504,ROWS($S$7:S127))),"",SMALL($S$7:$S$1504,ROWS($S$7:S127))) ->  | V127: =IF(ISERROR(SMALL($U$7:$U$1504,ROWS(U$7:$U127))),"",SMALL($U$7:$U$1504,ROWS(U$7:$U127))) ->  | X127: =IF(ISERROR(SMALL($W$7:$W$1504,ROWS($W$7:W127))),"",SMALL($W$7:$W$1504,ROWS($W$7:W127))) -> 
B128: Telšių apskritis | C128: Per metus įregistruota juridinių asmenų skaičius | vnt. | D128: 246 | E128: 280 | F128: 331 | G128: 291 | H128: 257 | I128: 250 | J128: 274 | K128: 260 | L128: 299 | M128: 293 | N128: 361 | O128: 322 | P128: 320 | R128: =ROWS($R$7:R128) -> 122 | T128: =IF(ISERROR(SMALL($S$7:$S$1504,ROWS($S$7:S128))),"",SMALL($S$7:$S$1504,ROWS($S$7:S128))) ->  | V128: =IF(ISERROR(SMALL($U$7:$U$1504,ROWS(U$7:$U128))),"",SMALL($U$7:$U$1504,ROWS(U$7:$U128))) ->  | X128: =IF(ISERROR(SMALL($W$7:$W$1504,ROWS($W$7:W128))),"",SMALL($W$7:$W$1504,ROWS($W$7:W128))) -> 
B129: Mažeikių r. sav. | C129: Per metus įregistruota juridinių asmenų skaičius | vnt. | D129: 112 | E129: 111 | F129: 169 | G129: 110 | H129: 113 | I129: 107 | J129: 114 | K129: 118 | L129: 112 | M129: 104 | N129: 123 | O129: 121 | P129: 126 | R129: =ROWS($R$7:R129) -> 123 | T129: =IF(ISERROR(SMALL($S$7:$S$1504,ROWS($S$7:S129))),"",SMALL($S$7:$S$1504,ROWS($S$7:S129))) ->  | V129: =IF(ISERROR(SMALL($U$7:$U$1504,ROWS(U$7:$U129))),"",SMALL($U$7:$U$1504,ROWS(U$7:$U129))) ->  | X129: =IF(ISERROR(SMALL($W$7:$W$1504,ROWS($W$7:W129))),"",SMALL($W$7:$W$1504,ROWS($W$7:W129))) -> 
B130: Plungės r. sav. | C130: Per metus įregistruota juridinių asmenų skaičius | vnt. | D130: 52 | E130: 78 | F130: 78 | G130: 78 | H130: 58 | I130: 52 | J130: 62 | K130: 50 | L130: 73 | M130: 81 | N130: 107 | O130: 68 | P130: 87 | R130: =ROWS($R$7:R130) -> 124 | T130: =IF(ISERROR(SMALL($S$7:$S$1504,ROWS($S$7:S130))),"",SMALL($S$7:$S$1504,ROWS($S$7:S130))) ->  | V130: =IF(ISERROR(SMALL($U$7:$U$1504,ROWS(U$7:$U130))),"",SMALL($U$7:$U$1504,ROWS(U$7:$U130))) ->  | X130: =IF(ISERROR(SMALL($W$7:$W$1504,ROWS($W$7:W130))),"",SMALL($W$7:$W$1504,ROWS($W$7:W130))) -> 
B131: Rietavo sav. | C131: Per metus įregistruota juridinių asmenų skaičius | vnt. | D131: 15 | E131: 19 | F131: 12 | G131: 12 | H131: 12 | I131: 16 | J131: 14 | K131: 12 | L131: 15 | M131: 10 | N131: 29 | O131: 22 | P131: 23 | R131: =ROWS($R$7:R131) -> 125 | T131: =IF(ISERROR(SMALL($S$7:$S$1504,ROWS($S$7:S131))),"",SMALL($S$7:$S$1504,ROWS($S$7:S131))) ->  | V131: =IF(ISERROR(SMALL($U$7:$U$1504,ROWS(U$7:$U131))),"",SMALL($U$7:$U$1504,ROWS(U$7:$U131))) ->  | X131: =IF(ISERROR(SMALL($W$7:$W$1504,ROWS($W$7:W131))),"",SMALL($W$7:$W$1504,ROWS($W$7:W131))) -> 
B132: Telšių r. sav. | C132: Per metus įregistruota juridinių asmenų skaičius | vnt. | D132: 67 | E132: 72 | F132: 72 | G132: 91 | H132: 74 | I132: 75 | J132: 84 | K132: 80 | L132: 99 | M132: 98 | N132: 102 | O132: 111 | P132: 84 | R132: =ROWS($R$7:R132) -> 126 | T132: =IF(ISERROR(SMALL($S$7:$S$1504,ROWS($S$7:S132))),"",SMALL($S$7:$S$1504,ROWS($S$7:S132))) ->  | V132: =IF(ISERROR(SMALL($U$7:$U$1504,ROWS(U$7:$U132))),"",SMALL($U$7:$U$1504,ROWS(U$7:$U132))) ->  | X132: =IF(ISERROR(SMALL($W$7:$W$1504,ROWS($W$7:W132))),"",SMALL($W$7:$W$1504,ROWS($W$7:W132))) -> 
B133: Utenos apskritis | C133: Per metus įregistruota juridinių asmenų skaičius | vnt. | D133: 245 | E133: 252 | F133: 381 | G133: 244 | H133: 194 | I133: 251 | J133: 239 | K133: 235 | L133: 307 | M133: 336 | N133: 353 | O133: 344 | P133: 272 | R133: =ROWS($R$7:R133) -> 127 | T133: =IF(ISERROR(SMALL($S$7:$S$1504,ROWS($S$7:S133))),"",SMALL($S$7:$S$1504,ROWS($S$7:S133))) ->  | V133: =IF(ISERROR(SMALL($U$7:$U$1504,ROWS(U$7:$U133))),"",SMALL($U$7:$U$1504,ROWS(U$7:$U133))) ->  | X133: =IF(ISERROR(SMALL($W$7:$W$1504,ROWS($W$7:W133))),"",SMALL($W$7:$W$1504,ROWS($W$7:W133))) -> 
B134: Anykščių r. sav. | C134: Per metus įregistruota juridinių asmenų skaičius | vnt. | D134: 45 | E134: 47 | F134: 53 | G134: 45 | H134: 33 | I134: 41 | J134: 54 | K134: 38 | L134: 49 | M134: 72 | N134: 64 | O134: 63 | P134: 52 | R134: =ROWS($R$7:R134) -> 128 | T134: =IF(ISERROR(SMALL($S$7:$S$1504,ROWS($S$7:S134))),"",SMALL($S$7:$S$1504,ROWS($S$7:S134))) ->  | V134: =IF(ISERROR(SMALL($U$7:$U$1504,ROWS(U$7:$U134))),"",SMALL($U$7:$U$1504,ROWS(U$7:$U134))) ->  | X134: =IF(ISERROR(SMALL($W$7:$W$1504,ROWS($W$7:W134))),"",SMALL($W$7:$W$1504,ROWS($W$7:W134))) -> 
B135: Ignalinos r. sav. | C135: Per metus įregistruota juridinių asmenų skaičius | vnt. | D135: 18 | E135: 13 | F135: 25 | G135: 17 | H135: 15 | I135: 36 | J135: 30 | K135: 22 | L135: 40 | M135: 33 | N135: 51 | O135: 45 | P135: 36 | R135: =ROWS($R$7:R135) -> 129 | S135: =IF(ISNUMBER(SEARCH($R$3,B135)),R135,"") ->  | T135: =IF(ISERROR(SMALL($S$7:$S$1504,ROWS($S$7:S135))),"",SMALL($S$7:$S$1504,ROWS($S$7:S135))) ->  | U135: =IF($R$4=B135,R135,"") ->  | V135: =IF(ISERROR(SMALL($U$7:$U$1504,ROWS(U$7:$U135))),"",SMALL($U$7:$U$1504,ROWS(U$7:$U135))) ->  | W135: =IF("Lietuvos Respublika"=B135,R135,"") ->  | X135: =IF(ISERROR(SMALL($W$7:$W$1504,ROWS($W$7:W135))),"",SMALL($W$7:$W$1504,ROWS($W$7:W135))) -> 
B136: Molėtų r. sav. | C136: Per metus įregistruota juridinių asmenų skaičius | vnt. | D136: 38 | E136: 36 | F136: 72 | G136: 32 | H136: 34 | I136: 39 | J136: 30 | K136: 59 | L136: 54 | M136: 43 | N136: 64 | O136: 62 | P136: 56 | R136: =ROWS($R$7:R136) -> 130 | T136: =IF(ISERROR(SMALL($S$7:$S$1504,ROWS($S$7:S136))),"",SMALL($S$7:$S$1504,ROWS($S$7:S136))) ->  | V136: =IF(ISERROR(SMALL($U$7:$U$1504,ROWS(U$7:$U136))),"",SMALL($U$7:$U$1504,ROWS(U$7:$U136))) ->  | X136: =IF(ISERROR(SMALL($W$7:$W$1504,ROWS($W$7:W136))),"",SMALL($W$7:$W$1504,ROWS($W$7:W136))) -> 
B137: Utenos r. sav. | C137: Per metus įregistruota juridinių asmenų skaičius | vnt. | D137: 80 | E137: 67 | F137: 147 | G137: 76 | H137: 58 | I137: 66 | J137: 61 | K137: 61 | L137: 64 | M137: 63 | N137: 80 | O137: 93 | P137: 75 | R137: =ROWS($R$7:R137) -> 131 | T137: =IF(ISERROR(SMALL($S$7:$S$1504,ROWS($S$7:S137))),"",SMALL($S$7:$S$1504,ROWS($S$7:S137))) ->  | V137: =IF(ISERROR(SMALL($U$7:$U$1504,ROWS(U$7:$U137))),"",SMALL($U$7:$U$1504,ROWS(U$7:$U137))) ->  | X137: =IF(ISERROR(SMALL($W$7:$W$1504,ROWS($W$7:W137))),"",SMALL($W$7:$W$1504,ROWS($W$7:W137))) -> 
B138: Visagino sav. | C138: Per metus įregistruota juridinių asmenų skaičius | vnt. | D138: 32 | E138: 60 | F138: 41 | G138: 46 | H138: 37 | I138: 35 | J138: 20 | K138: 21 | L138: 30 | M138: 44 | N138: 34 | O138: 39 | P138: 18 | R138: =ROWS($R$7:R138) -> 132 | T138: =IF(ISERROR(SMALL($S$7:$S$1504,ROWS($S$7:S138))),"",SMALL($S$7:$S$1504,ROWS($S$7:S138))) ->  | V138: =IF(ISERROR(SMALL($U$7:$U$1504,ROWS(U$7:$U138))),"",SMALL($U$7:$U$1504,ROWS(U$7:$U138))) ->  | X138: =IF(ISERROR(SMALL($W$7:$W$1504,ROWS($W$7:W138))),"",SMALL($W$7:$W$1504,ROWS($W$7:W138))) -> 
B139: Zarasų r. sav. | C139: Per metus įregistruota juridinių asmenų skaičius | vnt. | D139: 32 | E139: 29 | F139: 43 | G139: 28 | H139: 17 | I139: 34 | J139: 44 | K139: 34 | L139: 70 | M139: 81 | N139: 60 | O139: 42 | P139: 35 | R139: =ROWS($R$7:R139) -> 133 | T139: =IF(ISERROR(SMALL($S$7:$S$1504,ROWS($S$7:S139))),"",SMALL($S$7:$S$1504,ROWS($S$7:S139))) ->  | V139: =IF(ISERROR(SMALL($U$7:$U$1504,ROWS(U$7:$U139))),"",SMALL($U$7:$U$1504,ROWS(U$7:$U139))) ->  | X139: =IF(ISERROR(SMALL($W$7:$W$1504,ROWS($W$7:W139))),"",SMALL($W$7:$W$1504,ROWS($W$7:W139))) -> 
B140: Vilniaus apskritis | C140: Per metus įregistruota juridinių asmenų skaičius | vnt. | D140: 4515 | E140: 5444 | F140: 8082 | G140: 7551 | H140: 7891 | I140: 4951 | J140: 5078 | K140: 5711 | L140: 5683 | M140: 6143 | N140: 6353 | O140: 7393 | P140: 7514 | R140: =ROWS($R$7:R140) -> 134 | T140: =IF(ISERROR(SMALL($S$7:$S$1504,ROWS($S$7:S140))),"",SMALL($S$7:$S$1504,ROWS($S$7:S140))) ->  | U140: 134 | V140: =IF(ISERROR(SMALL($U$7:$U$1504,ROWS(U$7:$U140))),"",SMALL($U$7:$U$1504,ROWS(U$7:$U140))) ->  | X140: =IF(ISERROR(SMALL($W$7:$W$1504,ROWS($W$7:W140))),"",SMALL($W$7:$W$1504,ROWS($W$7:W140))) -> 
B141: Elektrėnų sav. | C141: Per metus įregistruota juridinių asmenų skaičius | vnt. | D141: 45 | E141: 41 | F141: 48 | G141: 40 | H141: 52 | I141: 34 | J141: 33 | K141: 41 | L141: 60 | M141: 60 | N141: 83 | O141: 57 | P141: 32 | R141: =ROWS($R$7:R141) -> 135 | T141: =IF(ISERROR(SMALL($S$7:$S$1504,ROWS($S$7:S141))),"",SMALL($S$7:$S$1504,ROWS($S$7:S141))) ->  | V141: =IF(ISERROR(SMALL($U$7:$U$1504,ROWS(U$7:$U141))),"",SMALL($U$7:$U$1504,ROWS(U$7:$U141))) ->  | X141: =IF(ISERROR(SMALL($W$7:$W$1504,ROWS($W$7:W141))),"",SMALL($W$7:$W$1504,ROWS($W$7:W141))) -> 
B142: Šalčininkų r. sav. | C142: Per metus įregistruota juridinių asmenų skaičius | vnt. | D142: 37 | E142: 51 | F142: 38 | G142: 70 | H142: 128 | I142: 41 | J142: 37 | K142: 37 | L142: 37 | M142: 45 | N142: 52 | O142: 49 | P142: 44 | R142: =ROWS($R$7:R142) -> 136 | T142: =IF(ISERROR(SMALL($S$7:$S$1504,ROWS($S$7:S142))),"",SMALL($S$7:$S$1504,ROWS($S$7:S142))) ->  | V142: =IF(ISERROR(SMALL($U$7:$U$1504,ROWS(U$7:$U142))),"",SMALL($U$7:$U$1504,ROWS(U$7:$U142))) ->  | X142: =IF(ISERROR(SMALL($W$7:$W$1504,ROWS($W$7:W142))),"",SMALL($W$7:$W$1504,ROWS($W$7:W142))) ->  | Z142: 4 | AA142: =+INDEX($AA$7:$AA$28,Z142) -> Per metus įregistruota mažų ir vidutinių įmonių | vnt.
B143: Širvintų r. sav. | C143: Per metus įregistruota juridinių asmenų skaičius | vnt. | D143: 32 | E143: 31 | F143: 29 | G143: 43 | H143: 30 | I143: 38 | J143: 34 | K143: 35 | L143: 45 | M143: 31 | N143: 65 | O143: 58 | P143: 45 | R143: =ROWS($R$7:R143) -> 137 | T143: =IF(ISERROR(SMALL($S$7:$S$1504,ROWS($S$7:S143))),"",SMALL($S$7:$S$1504,ROWS($S$7:S143))) ->  | V143: =IF(ISERROR(SMALL($U$7:$U$1504,ROWS(U$7:$U143))),"",SMALL($U$7:$U$1504,ROWS(U$7:$U143))) ->  | X143: =IF(ISERROR(SMALL($W$7:$W$1504,ROWS($W$7:W143))),"",SMALL($W$7:$W$1504,ROWS($W$7:W143))) ->  | AB143: =+AB$6 -> 2010 | AC143: 2011 | AD143: 2012 | AE143: 2013 | AF143: 2014 | AG143: 2015 | AH143: 2016 | AI143: 2017 | AJ143: 2018 | AK143: 2019 | AL143: 2020 | AM143: 2021 | AN143: 2022
B144: Švenčionių r. sav. | C144: Per metus įregistruota juridinių asmenų skaičius | vnt. | D144: 33 | E144: 35 | F144: 54 | G144: 22 | H144: 26 | I144: 35 | J144: 44 | K144: 29 | L144: 36 | M144: 35 | N144: 53 | O144: 37 | P144: 33 | R144: =ROWS($R$7:R144) -> 138 | T144: =IF(ISERROR(SMALL($S$7:$S$1504,ROWS($S$7:S144))),"",SMALL($S$7:$S$1504,ROWS($S$7:S144))) ->  | V144: =IF(ISERROR(SMALL($U$7:$U$1504,ROWS(U$7:$U144))),"",SMALL($U$7:$U$1504,ROWS(U$7:$U144))) ->  | X144: =IF(ISERROR(SMALL($W$7:$W$1504,ROWS($W$7:W144))),"",SMALL($W$7:$W$1504,ROWS($W$7:W144))) ->  | AA144: =+INDEX($Z$7:$Z$28,MATCH($AA142,$AA$7:$AA$28,0)) -> Vilniaus m. sav. | AB144: =+INDEX(AB$7:AB$28,MATCH($AA142,$AA$7:$AA$28,0)) -> 3308 | AC144: 4241 | AD144: 6742 | AE144: 6205 | AF144: 6546 | AG144: 3747 | AH144: 3948 | AI144: 4486 | AJ144: 4460 | AK144: =+INDEX(AK$7:AK$28,MATCH($AA142,$AA$7:$AA$28,0)) -> 4761 | AL144: =+INDEX(AL$7:AL$28,MATCH($AA142,$AA$7:$AA$28,0)) -> 4815 | AM144: =+INDEX(AM$7:AM$28,MATCH($AA142,$AA$7:$AA$28,0)) -> 6047 | AN144: =+INDEX(AN$7:AN$28,MATCH($AA142,$AA$7:$AA$28,0)) -> 6041
B145: Trakų r. sav. | C145: Per metus įregistruota juridinių asmenų skaičius | vnt. | D145: 61 | E145: 53 | F145: 134 | G145: 81 | H145: 52 | I145: 55 | J145: 52 | K145: 88 | L145: 92 | M145: 101 | N145: 117 | O145: 108 | P145: 107 | R145: =ROWS($R$7:R145) -> 139 | T145: =IF(ISERROR(SMALL($S$7:$S$1504,ROWS($S$7:S145))),"",SMALL($S$7:$S$1504,ROWS($S$7:S145))) ->  | V145: =IF(ISERROR(SMALL($U$7:$U$1504,ROWS(U$7:$U145))),"",SMALL($U$7:$U$1504,ROWS(U$7:$U145))) ->  | X145: =IF(ISERROR(SMALL($W$7:$W$1504,ROWS($W$7:W145))),"",SMALL($W$7:$W$1504,ROWS($W$7:W145))) ->  | AA145: =IF(ISERROR(INDEX($Z$31:$Z$52,MATCH(AA142,$AA$31:$AA$52,0))),"",INDEX($Z$31:$Z$52,MATCH(AA142,$AA$31:$AA$52,0))) -> Vilniaus apskritis | AB145: =IF(ISERROR(INDEX(AB$31:AB$52,MATCH($AA142,$AA$31:$AA$52,0))),"",INDEX(AB$31:AB$52,MATCH($AA142,$AA$31:$AA$52,0))) -> 3701 | AC145: 4683 | AD145: 7345 | AE145: 6729 | AF145: 7115 | AG145: 4127 | AH145: 4415 | AI145: 4981 | AJ145: 5077 | AK145: =IF(ISERROR(INDEX(AK$31:AK$52,MATCH($AA142,$AA$31:$AA$52,0))),"",INDEX(AK$31:AK$52,MATCH($AA142,$AA$31:$AA$52,0))) -> 5432 | AL145: =IF(ISERROR(INDEX(AL$31:AL$52,MATCH($AA142,$AA$31:$AA$52,0))),"",INDEX(AL$31:AL$52,MATCH($AA142,$AA$31:$AA$52,0))) -> 5651 | AM145: =IF(ISERROR(INDEX(AM$31:AM$52,MATCH($AA142,$AA$31:$AA$52,0))),"",INDEX(AM$31:AM$52,MATCH($AA142,$AA$31:$AA$52,0))) -> 6874 | AN145: =IF(ISERROR(INDEX(AN$31:AN$52,MATCH($AA142,$AA$31:$AA$52,0))),"",INDEX(AN$31:AN$52,MATCH($AA142,$AA$31:$AA$52,0))) -> 6691
B146: Ukmergės r. sav. | C146: Per metus įregistruota juridinių asmenų skaičius | vnt. | D146: 53 | E146: 61 | F146: 70 | G146: 53 | H146: 44 | I146: 47 | J146: 67 | K146: 78 | L146: 51 | M146: 91 | N146: 86 | O146: 87 | P146: 73 | R146: =ROWS($R$7:R146) -> 140 | T146: =IF(ISERROR(SMALL($S$7:$S$1504,ROWS($S$7:S146))),"",SMALL($S$7:$S$1504,ROWS($S$7:S146))) ->  | V146: =IF(ISERROR(SMALL($U$7:$U$1504,ROWS(U$7:$U146))),"",SMALL($U$7:$U$1504,ROWS(U$7:$U146))) ->  | X146: =IF(ISERROR(SMALL($W$7:$W$1504,ROWS($W$7:W146))),"",SMALL($W$7:$W$1504,ROWS($W$7:W146))) ->  | AA146: =IF(ISERROR(INDEX($Z$55:$Z$76,MATCH(AA142,$AA$55:$AA$76,0))),"",INDEX($Z$55:$Z$76,MATCH(AA142,$AA$55:$AA$76,0))) -> Lietuvos Respublika | AB146: =IF(ISERROR(INDEX(AB$55:AB$76,MATCH($AA142,$AA$55:$AA$76,0))),"",INDEX(AB$55:AB$76,MATCH($AA142,$AA$55:$AA$76,0))) -> 7173 | AC146: 8634 | AD146: 13018 | AE146: 11663 | AF146: 12143 | AG146: 8274 | AH146: 8887 | AI146: 9881 | AJ146: 10457 | AK146: =IF(ISERROR(INDEX(AK$55:AK$76,MATCH($AA142,$AA$55:$AA$76,0))),"",INDEX(AK$55:AK$76,MATCH($AA142,$AA$55:$AA$76,0))) -> 11153 | AL146: =IF(ISERROR(INDEX(AL$55:AL$76,MATCH($AA142,$AA$55:$AA$76,0))),"",INDEX(AL$55:AL$76,MATCH($AA142,$AA$55:$AA$76,0))) -> 11830 | AM146: =IF(ISERROR(INDEX(AM$55:AM$76,MATCH($AA142,$AA$55:$AA$76,0))),"",INDEX(AM$55:AM$76,MATCH($AA142,$AA$55:$AA$76,0))) -> 13767 | AN146: =IF(ISERROR(INDEX(AN$55:AN$76,MATCH($AA142,$AA$55:$AA$76,0))),"",INDEX(AN$55:AN$76,MATCH($AA142,$AA$55:$AA$76,0))) -> 12716
B147: Vilniaus m. sav. | C147: Per metus įregistruota juridinių asmenų skaičius | vnt. | D147: 4001 | E147: 4865 | F147: 7369 | G147: 6918 | H147: 7205 | I147: 4450 | J147: 4520 | K147: 5116 | L147: 5014 | M147: 5353 | N147: 5405 | O147: 6473 | P147: 6737 | R147: =ROWS($R$7:R147) -> 141 | S147: 141 | T147: =IF(ISERROR(SMALL($S$7:$S$1504,ROWS($S$7:S147))),"",SMALL($S$7:$S$1504,ROWS($S$7:S147))) ->  | V147: =IF(ISERROR(SMALL($U$7:$U$1504,ROWS(U$7:$U147))),"",SMALL($U$7:$U$1504,ROWS(U$7:$U147))) ->  | X147: =IF(ISERROR(SMALL($W$7:$W$1504,ROWS($W$7:W147))),"",SMALL($W$7:$W$1504,ROWS($W$7:W147))) -> 
B148: Vilniaus r. sav. | C148: Per metus įregistruota juridinių asmenų skaičius | vnt. | D148: 253 | E148: 307 | F148: 340 | G148: 324 | H148: 354 | I148: 251 | J148: 291 | K148: 287 | L148: 348 | M148: 427 | N148: 492 | O148: 524 | P148: 443 | R148: =ROWS($R$7:R148) -> 142 | T148: =IF(ISERROR(SMALL($S$7:$S$1504,ROWS($S$7:S148))),"",SMALL($S$7:$S$1504,ROWS($S$7:S148))) ->  | V148: =IF(ISERROR(SMALL($U$7:$U$1504,ROWS(U$7:$U148))),"",SMALL($U$7:$U$1504,ROWS(U$7:$U148))) ->  | X148: =IF(ISERROR(SMALL($W$7:$W$1504,ROWS($W$7:W148))),"",SMALL($W$7:$W$1504,ROWS($W$7:W148))) -> 
B149: Lietuvos Respublika | C149: Per metus išregistruota juridinių asmenų skaičius | vnt. | D149: 6057 | E149: 3213 | F149: 3160 | G149: 3165 | H149: 4033 | I149: 4879 | J149: 17336 | K149: 4811 | L149: 4850 | M149: 4776 | N149: 3615 | O149: 9916 | P149: 22611 | R149: =ROWS($R$7:R149) -> 143 | T149: =IF(ISERROR(SMALL($S$7:$S$1504,ROWS($S$7:S149))),"",SMALL($S$7:$S$1504,ROWS($S$7:S149))) ->  | V149: =IF(ISERROR(SMALL($U$7:$U$1504,ROWS(U$7:$U149))),"",SMALL($U$7:$U$1504,ROWS(U$7:$U149))) ->  | W149: 143 | X149: =IF(ISERROR(SMALL($W$7:$W$1504,ROWS($W$7:W149))),"",SMALL($W$7:$W$1504,ROWS($W$7:W149))) -> 
B150: Alytaus apskritis | C150: Per metus išregistruota juridinių asmenų skaičius | vnt. | D150: 232 | E150: 154 | F150: 131 | G150: 150 | H150: 180 | I150: 224 | J150: 608 | K150: 186 | L150: 158 | M150: 177 | N150: 119 | O150: 555 | P150: 246 | R150: =ROWS($R$7:R150) -> 144 | T150: =IF(ISERROR(SMALL($S$7:$S$1504,ROWS($S$7:S150))),"",SMALL($S$7:$S$1504,ROWS($S$7:S150))) ->  | V150: =IF(ISERROR(SMALL($U$7:$U$1504,ROWS(U$7:$U150))),"",SMALL($U$7:$U$1504,ROWS(U$7:$U150))) ->  | X150: =IF(ISERROR(SMALL($W$7:$W$1504,ROWS($W$7:W150))),"",SMALL($W$7:$W$1504,ROWS($W$7:W150))) -> 
B151: Alytaus m. sav. | C151: Per metus išregistruota juridinių asmenų skaičius | vnt. | D151: 114 | E151: 81 | F151: 62 | G151: 58 | H151: 81 | I151: 102 | J151: 264 | K151: 90 | L151: 76 | M151: 82 | N151: 48 | O151: 300 | P151: 138 | R151: =ROWS($R$7:R151) -> 145 | T151: =IF(ISERROR(SMALL($S$7:$S$1504,ROWS($S$7:S151))),"",SMALL($S$7:$S$1504,ROWS($S$7:S151))) ->  | V151: =IF(ISERROR(SMALL($U$7:$U$1504,ROWS(U$7:$U151))),"",SMALL($U$7:$U$1504,ROWS(U$7:$U151))) ->  | X151: =IF(ISERROR(SMALL($W$7:$W$1504,ROWS($W$7:W151))),"",SMALL($W$7:$W$1504,ROWS($W$7:W151))) -> 
B152: Alytaus r. sav. | C152: Per metus išregistruota juridinių asmenų skaičius | vnt. | D152: 35 | E152: 15 | F152: 19 | G152: 20 | H152: 28 | I152: 18 | J152: 72 | K152: 33 | L152: 21 | M152: 26 | N152: 17 | O152: 63 | P152: 22 | R152: =ROWS($R$7:R152) -> 146 | T152: =IF(ISERROR(SMALL($S$7:$S$1504,ROWS($S$7:S152))),"",SMALL($S$7:$S$1504,ROWS($S$7:S152))) ->  | V152: =IF(ISERROR(SMALL($U$7:$U$1504,ROWS(U$7:$U152))),"",SMALL($U$7:$U$1504,ROWS(U$7:$U152))) ->  | X152: =IF(ISERROR(SMALL($W$7:$W$1504,ROWS($W$7:W152))),"",SMALL($W$7:$W$1504,ROWS($W$7:W152))) -> 
B153: Druskininkų sav. | C153: Per metus išregistruota juridinių asmenų skaičius | vnt. | D153: 29 | E153: 28 | F153: 20 | G153: 41 | H153: 37 | I153: 60 | J153: 133 | K153: 26 | L153: 30 | M153: 37 | N153: 21 | O153: 102 | P153: 49 | R153: =ROWS($R$7:R153) -> 147 | T153: =IF(ISERROR(SMALL($S$7:$S$1504,ROWS($S$7:S153))),"",SMALL($S$7:$S$1504,ROWS($S$7:S153))) ->  | V153: =IF(ISERROR(SMALL($U$7:$U$1504,ROWS(U$7:$U153))),"",SMALL($U$7:$U$1504,ROWS(U$7:$U153))) ->  | X153: =IF(ISERROR(SMALL($W$7:$W$1504,ROWS($W$7:W153))),"",SMALL($W$7:$W$1504,ROWS($W$7:W153))) -> 
B154: Lazdijų r. sav. | C154: Per metus išregistruota juridinių asmenų skaičius | vnt. | D154: 14 | E154: 11 | F154: 14 | G154: 12 | H154: 17 | I154: 15 | J154: 38 | K154: 15 | L154: 13 | M154: 11 | N154: 19 | O154: 31 | P154: 13 | R154: =ROWS($R$7:R154) -> 148 | T154: =IF(ISERROR(SMALL($S$7:$S$1504,ROWS($S$7:S154))),"",SMALL($S$7:$S$1504,ROWS($S$7:S154))) ->  | V154: =IF(ISERROR(SMALL($U$7:$U$1504,ROWS(U$7:$U154))),"",SMALL($U$7:$U$1504,ROWS(U$7:$U154))) ->  | X154: =IF(ISERROR(SMALL($W$7:$W$1504,ROWS($W$7:W154))),"",SMALL($W$7:$W$1504,ROWS($W$7:W154))) -> 
B155: Varėnos r. sav. | C155: Per metus išregistruota juridinių asmenų skaičius | vnt. | D155: 40 | E155: 19 | F155: 16 | G155: 19 | H155: 17 | I155: 29 | J155: 101 | K155: 22 | L155: 18 | M155: 21 | N155: 14 | O155: 59 | P155: 24 | R155: =ROWS($R$7:R155) -> 149 | T155: =IF(ISERROR(SMALL($S$7:$S$1504,ROWS($S$7:S155))),"",SMALL($S$7:$S$1504,ROWS($S$7:S155))) ->  | V155: =IF(ISERROR(SMALL($U$7:$U$1504,ROWS(U$7:$U155))),"",SMALL($U$7:$U$1504,ROWS(U$7:$U155))) ->  | X155: =IF(ISERROR(SMALL($W$7:$W$1504,ROWS($W$7:W155))),"",SMALL($W$7:$W$1504,ROWS($W$7:W155))) -> 
B156: Kauno apskritis | C156: Per metus išregistruota juridinių asmenų skaičius | vnt. | D156: 940 | E156: 571 | F156: 591 | G156: 618 | H156: 887 | I156: 898 | J156: 3821 | K156: 975 | L156: 920 | M156: 930 | N156: 692 | O156: 2229 | P156: 4499 | R156: =ROWS($R$7:R156) -> 150 | T156: =IF(ISERROR(SMALL($S$7:$S$1504,ROWS($S$7:S156))),"",SMALL($S$7:$S$1504,ROWS($S$7:S156))) ->  | V156: =IF(ISERROR(SMALL($U$7:$U$1504,ROWS(U$7:$U156))),"",SMALL($U$7:$U$1504,ROWS(U$7:$U156))) ->  | X156: =IF(ISERROR(SMALL($W$7:$W$1504,ROWS($W$7:W156))),"",SMALL($W$7:$W$1504,ROWS($W$7:W156))) -> 
B157: Birštono sav. | C157: Per metus išregistruota juridinių asmenų skaičius | vnt. | D157: 6 | E157: 2 | F157: 6 | G157: 3 | H157: 1 | I157: 12 | J157: 16 | K157: 2 | L157: 1 | M157: 6 | N157: 5 | O157: 9 | P157: 10 | R157: =ROWS($R$7:R157) -> 151 | T157: =IF(ISERROR(SMALL($S$7:$S$1504,ROWS($S$7:S157))),"",SMALL($S$7:$S$1504,ROWS($S$7:S157))) ->  | V157: =IF(ISERROR(SMALL($U$7:$U$1504,ROWS(U$7:$U157))),"",SMALL($U$7:$U$1504,ROWS(U$7:$U157))) ->  | X157: =IF(ISERROR(SMALL($W$7:$W$1504,ROWS($W$7:W157))),"",SMALL($W$7:$W$1504,ROWS($W$7:W157))) -> 
B158: Jonavos r. sav. | C158: Per metus išregistruota juridinių asmenų skaičius | vnt. | D158: 40 | E158: 20 | F158: 22 | G158: 28 | H158: 33 | I158: 69 | J158: 195 | K158: 42 | L158: 39 | M158: 30 | N158: 35 | O158: 128 | P158: 150 | R158: =ROWS($R$7:R158) -> 152 | T158: =IF(ISERROR(SMALL($S$7:$S$1504,ROWS($S$7:S158))),"",SMALL($S$7:$S$1504,ROWS($S$7:S158))) ->  | V158: =IF(ISERROR(SMALL($U$7:$U$1504,ROWS(U$7:$U158))),"",SMALL($U$7:$U$1504,ROWS(U$7:$U158))) ->  | X158: =IF(ISERROR(SMALL($W$7:$W$1504,ROWS($W$7:W158))),"",SMALL($W$7:$W$1504,ROWS($W$7:W158))) -> 
B159: Kaišiadorių r. sav. | C159: Per metus išregistruota juridinių asmenų skaičius | vnt. | D159: 26 | E159: 14 | F159: 14 | G159: 10 | H159: 24 | I159: 19 | J159: 75 | K159: 19 | L159: 24 | M159: 18 | N159: 16 | O159: 40 | P159: 99 | R159: =ROWS($R$7:R159) -> 153 | T159: =IF(ISERROR(SMALL($S$7:$S$1504,ROWS($S$7:S159))),"",SMALL($S$7:$S$1504,ROWS($S$7:S159))) ->  | V159: =IF(ISERROR(SMALL($U$7:$U$1504,ROWS(U$7:$U159))),"",SMALL($U$7:$U$1504,ROWS(U$7:$U159))) ->  | X159: =IF(ISERROR(SMALL($W$7:$W$1504,ROWS($W$7:W159))),"",SMALL($W$7:$W$1504,ROWS($W$7:W159))) -> 
B160: Kauno m. sav. | C160: Per metus išregistruota juridinių asmenų skaičius | vnt. | D160: 625 | E160: 421 | F160: 424 | G160: 417 | H160: 624 | I160: 631 | J160: 2804 | K160: 695 | L160: 669 | M160: 683 | N160: 487 | O160: 1665 | P160: 3460 | R160: =ROWS($R$7:R160) -> 154 | T160: =IF(ISERROR(SMALL($S$7:$S$1504,ROWS($S$7:S160))),"",SMALL($S$7:$S$1504,ROWS($S$7:S160))) ->  | V160: =IF(ISERROR(SMALL($U$7:$U$1504,ROWS(U$7:$U160))),"",SMALL($U$7:$U$1504,ROWS(U$7:$U160))) ->  | X160: =IF(ISERROR(SMALL($W$7:$W$1504,ROWS($W$7:W160))),"",SMALL($W$7:$W$1504,ROWS($W$7:W160))) -> 
B161: Kauno r. sav. | C161: Per metus išregistruota juridinių asmenų skaičius | vnt. | D161: 95 | E161: 59 | F161: 55 | G161: 79 | H161: 103 | I161: 84 | J161: 328 | K161: 108 | L161: 106 | M161: 114 | N161: 79 | O161: 202 | P161: 479 | R161: =ROWS($R$7:R161) -> 155 | T161: =IF(ISERROR(SMALL($S$7:$S$1504,ROWS($S$7:S161))),"",SMALL($S$7:$S$1504,ROWS($S$7:S161))) ->  | V161: =IF(ISERROR(SMALL($U$7:$U$1504,ROWS(U$7:$U161))),"",SMALL($U$7:$U$1504,ROWS(U$7:$U161))) ->  | X161: =IF(ISERROR(SMALL($W$7:$W$1504,ROWS($W$7:W161))),"",SMALL($W$7:$W$1504,ROWS($W$7:W161))) -> 
B162: Kėdainių r. sav. | C162: Per metus išregistruota juridinių asmenų skaičius | vnt. | D162: 91 | E162: 29 | F162: 39 | G162: 39 | H162: 59 | I162: 34 | J162: 162 | K162: 49 | L162: 34 | M162: 32 | N162: 29 | O162: 73 | P162: 106 | R162: =ROWS($R$7:R162) -> 156 | T162: =IF(ISERROR(SMALL($S$7:$S$1504,ROWS($S$7:S162))),"",SMALL($S$7:$S$1504,ROWS($S$7:S162))) ->  | V162: =IF(ISERROR(SMALL($U$7:$U$1504,ROWS(U$7:$U162))),"",SMALL($U$7:$U$1504,ROWS(U$7:$U162))) ->  | X162: =IF(ISERROR(SMALL($W$7:$W$1504,ROWS($W$7:W162))),"",SMALL($W$7:$W$1504,ROWS($W$7:W162))) -> 
B163: Prienų r. sav. | C163: Per metus išregistruota juridinių asmenų skaičius | vnt. | D163: 33 | E163: 15 | F163: 22 | G163: 14 | H163: 17 | I163: 21 | J163: 131 | K163: 26 | L163: 26 | M163: 18 | N163: 17 | O163: 44 | P163: 72 | R163: =ROWS($R$7:R163) -> 157 | T163: =IF(ISERROR(SMALL($S$7:$S$1504,ROWS($S$7:S163))),"",SMALL($S$7:$S$1504,ROWS($S$7:S163))) ->  | V163: =IF(ISERROR(SMALL($U$7:$U$1504,ROWS(U$7:$U163))),"",SMALL($U$7:$U$1504,ROWS(U$7:$U163))) ->  | X163: =IF(ISERROR(SMALL($W$7:$W$1504,ROWS($W$7:W163))),"",SMALL($W$7:$W$1504,ROWS($W$7:W163))) ->  | Z163: 5 | AA163: =+INDEX($AA$7:$AA$28,Z163) -> Per metus išregistruota mažų ir vidutinių įmonių | vnt.
B164: Raseinių r. sav. | C164: Per metus išregistruota juridinių asmenų skaičius | vnt. | D164: 24 | E164: 11 | F164: 9 | G164: 28 | H164: 26 | I164: 28 | J164: 110 | K164: 34 | L164: 21 | M164: 29 | N164: 24 | O164: 68 | P164: 123 | R164: =ROWS($R$7:R164) -> 158 | T164: =IF(ISERROR(SMALL($S$7:$S$1504,ROWS($S$7:S164))),"",SMALL($S$7:$S$1504,ROWS($S$7:S164))) ->  | V164: =IF(ISERROR(SMALL($U$7:$U$1504,ROWS(U$7:$U164))),"",SMALL($U$7:$U$1504,ROWS(U$7:$U164))) ->  | X164: =IF(ISERROR(SMALL($W$7:$W$1504,ROWS($W$7:W164))),"",SMALL($W$7:$W$1504,ROWS($W$7:W164))) ->  | AB164: =+AB$6 -> 2010 | AC164: 2011 | AD164: 2012 | AE164: 2013 | AF164: 2014 | AG164: 2015 | AH164: 2016 | AI164: 2017 | AJ164: 2018 | AK164: 2019 | AL164: 2020 | AM164: 2021 | AN164: 2022
B165: Klaipėdos apskritis | C165: Per metus išregistruota juridinių asmenų skaičius | vnt. | D165: 689 | E165: 421 | F165: 466 | G165: 443 | H165: 601 | I165: 810 | J165: 2057 | K165: 618 | L165: 614 | M165: 672 | N165: 485 | O165: 3034 | P165: 1394 | R165: =ROWS($R$7:R165) -> 159 | T165: =IF(ISERROR(SMALL($S$7:$S$1504,ROWS($S$7:S165))),"",SMALL($S$7:$S$1504,ROWS($S$7:S165))) ->  | V165: =IF(ISERROR(SMALL($U$7:$U$1504,ROWS(U$7:$U165))),"",SMALL($U$7:$U$1504,ROWS(U$7:$U165))) ->  | X165: =IF(ISERROR(SMALL($W$7:$W$1504,ROWS($W$7:W165))),"",SMALL($W$7:$W$1504,ROWS($W$7:W165))) ->  | AA165: =+INDEX($Z$7:$Z$28,MATCH($AA163,$AA$7:$AA$28,0)) -> Vilniaus m. sav. | AB165: =+INDEX(AB$7:AB$28,MATCH($AA163,$AA$7:$AA$28,0)) -> 2247 | AC165: 1328 | AD165: 1325 | AE165: 1326 | AF165: 1456 | AG165: 1744 | AH165: 5755 | AI165: 1451 | AJ165: 1529 | AK165: =+INDEX(AK$7:AK$28,MATCH($AA163,$AA$7:$AA$28,0)) -> 1497 | AL165: =+INDEX(AL$7:AL$28,MATCH($AA163,$AA$7:$AA$28,0)) -> 987 | AM165: =+INDEX(AM$7:AM$28,MATCH($AA163,$AA$7:$AA$28,0)) -> 1350 | AN165: =+INDEX(AN$7:AN$28,MATCH($AA163,$AA$7:$AA$28,0)) -> 9497
B166: Klaipėdos m. sav. | C166: Per metus išregistruota juridinių asmenų skaičius | vnt. | D166: 357 | E166: 252 | F166: 306 | G166: 286 | H166: 352 | I166: 497 | J166: 1094 | K166: 391 | L166: 400 | M166: 435 | N166: 278 | O166: 2210 | P166: 944 | R166: =ROWS($R$7:R166) -> 160 | T166: =IF(ISERROR(SMALL($S$7:$S$1504,ROWS($S$7:S166))),"",SMALL($S$7:$S$1504,ROWS($S$7:S166))) ->  | V166: =IF(ISERROR(SMALL($U$7:$U$1504,ROWS(U$7:$U166))),"",SMALL($U$7:$U$1504,ROWS(U$7:$U166))) ->  | X166: =IF(ISERROR(SMALL($W$7:$W$1504,ROWS($W$7:W166))),"",SMALL($W$7:$W$1504,ROWS($W$7:W166))) ->  | AA166: =IF(ISERROR(INDEX($Z$31:$Z$52,MATCH(AA163,$AA$31:$AA$52,0))),"",INDEX($Z$31:$Z$52,MATCH(AA163,$AA$31:$AA$52,0))) -> Vilniaus apskritis | AB166: =IF(ISERROR(INDEX(AB$31:AB$52,MATCH($AA163,$AA$31:$AA$52,0))),"",INDEX(AB$31:AB$52,MATCH($AA163,$AA$31:$AA$52,0))) -> 2571 | AC166: 1505 | AD166: 1492 | AE166: 1511 | AF166: 1656 | AG166: 1982 | AH166: 6649 | AI166: 1634 | AJ166: 1707 | AK166: =IF(ISERROR(INDEX(AK$31:AK$52,MATCH($AA163,$AA$31:$AA$52,0))),"",INDEX(AK$31:AK$52,MATCH($AA163,$AA$31:$AA$52,0))) -> 1641 | AL166: =IF(ISERROR(INDEX(AL$31:AL$52,MATCH($AA163,$AA$31:$AA$52,0))),"",INDEX(AL$31:AL$52,MATCH($AA163,$AA$31:$AA$52,0))) -> 1177 | AM166: =IF(ISERROR(INDEX(AM$31:AM$52,MATCH($AA163,$AA$31:$AA$52,0))),"",INDEX(AM$31:AM$52,MATCH($AA163,$AA$31:$AA$52,0))) -> 1504 | AN166: =IF(ISERROR(INDEX(AN$31:AN$52,MATCH($AA163,$AA$31:$AA$52,0))),"",INDEX(AN$31:AN$52,MATCH($AA163,$AA$31:$AA$52,0))) -> 10117
B167: Klaipėdos r. sav. | C167: Per metus išregistruota juridinių asmenų skaičius | vnt. | D167: 65 | E167: 56 | F167: 38 | G167: 46 | H167: 59 | I167: 143 | J167: 201 | K167: 75 | L167: 66 | M167: 78 | N167: 66 | O167: 240 | P167: 153 | R167: =ROWS($R$7:R167) -> 161 | T167: =IF(ISERROR(SMALL($S$7:$S$1504,ROWS($S$7:S167))),"",SMALL($S$7:$S$1504,ROWS($S$7:S167))) ->  | V167: =IF(ISERROR(SMALL($U$7:$U$1504,ROWS(U$7:$U167))),"",SMALL($U$7:$U$1504,ROWS(U$7:$U167))) ->  | X167: =IF(ISERROR(SMALL($W$7:$W$1504,ROWS($W$7:W167))),"",SMALL($W$7:$W$1504,ROWS($W$7:W167))) ->  | AA167: =IF(ISERROR(INDEX($Z$55:$Z$76,MATCH(AA163,$AA$55:$AA$76,0))),"",INDEX($Z$55:$Z$76,MATCH(AA163,$AA$55:$AA$76,0))) -> Lietuvos Respublika | AB167: =IF(ISERROR(INDEX(AB$55:AB$76,MATCH($AA163,$AA$55:$AA$76,0))),"",INDEX(AB$55:AB$76,MATCH($AA163,$AA$55:$AA$76,0))) -> 6689 | AC167: 4166 | AD167: 4118 | AE167: 4078 | AF167: 4950 | AG167: 5598 | AH167: 17982 | AI167: 4199 | AJ167: 4188 | AK167: =IF(ISERROR(INDEX(AK$55:AK$76,MATCH($AA163,$AA$55:$AA$76,0))),"",INDEX(AK$55:AK$76,MATCH($AA163,$AA$55:$AA$76,0))) -> 4038 | AL167: =IF(ISERROR(INDEX(AL$55:AL$76,MATCH($AA163,$AA$55:$AA$76,0))),"",INDEX(AL$55:AL$76,MATCH($AA163,$AA$55:$AA$76,0))) -> 2968 | AM167: =IF(ISERROR(INDEX(AM$55:AM$76,MATCH($AA163,$AA$55:$AA$76,0))),"",INDEX(AM$55:AM$76,MATCH($AA163,$AA$55:$AA$76,0))) -> 8307 | AN167: =IF(ISERROR(INDEX(AN$55:AN$76,MATCH($AA163,$AA$55:$AA$76,0))),"",INDEX(AN$55:AN$76,MATCH($AA163,$AA$55:$AA$76,0))) -> 16100
B168: Kretingos r. sav. | C168: Per metus išregistruota juridinių asmenų skaičius | vnt. | D168: 77 | E168: 32 | F168: 36 | G168: 43 | H168: 71 | I168: 55 | J168: 227 | K168: 41 | L168: 40 | M168: 58 | N168: 35 | O168: 108 | P168: 69 | R168: =ROWS($R$7:R168) -> 162 | T168: =IF(ISERROR(SMALL($S$7:$S$1504,ROWS($S$7:S168))),"",SMALL($S$7:$S$1504,ROWS($S$7:S168))) ->  | V168: =IF(ISERROR(SMALL($U$7:$U$1504,ROWS(U$7:$U168))),"",SMALL($U$7:$U$1504,ROWS(U$7:$U168))) ->  | X168: =IF(ISERROR(SMALL($W$7:$W$1504,ROWS($W$7:W168))),"",SMALL($W$7:$W$1504,ROWS($W$7:W168))) -> 
B169: Neringos sav. | C169: Per metus išregistruota juridinių asmenų skaičius | vnt. | D169: 11 | E169: 6 | F169: 0 | G169: 7 | H169: 14 | I169: 13 | J169: 38 | K169: 10 | L169: 8 | M169: 13 | N169: 8 | O169: 26 | P169: 11 | R169: =ROWS($R$7:R169) -> 163 | T169: =IF(ISERROR(SMALL($S$7:$S$1504,ROWS($S$7:S169))),"",SMALL($S$7:$S$1504,ROWS($S$7:S169))) ->  | V169: =IF(ISERROR(SMALL($U$7:$U$1504,ROWS(U$7:$U169))),"",SMALL($U$7:$U$1504,ROWS(U$7:$U169))) ->  | X169: =IF(ISERROR(SMALL($W$7:$W$1504,ROWS($W$7:W169))),"",SMALL($W$7:$W$1504,ROWS($W$7:W169))) -> 
B170: Palangos m. sav. | C170: Per metus išregistruota juridinių asmenų skaičius | vnt. | D170: 85 | E170: 36 | F170: 33 | G170: 25 | H170: 56 | I170: 42 | J170: 295 | K170: 54 | L170: 43 | M170: 37 | N170: 28 | O170: 246 | P170: 95 | R170: =ROWS($R$7:R170) -> 164 | T170: =IF(ISERROR(SMALL($S$7:$S$1504,ROWS($S$7:S170))),"",SMALL($S$7:$S$1504,ROWS($S$7:S170))) ->  | V170: =IF(ISERROR(SMALL($U$7:$U$1504,ROWS(U$7:$U170))),"",SMALL($U$7:$U$1504,ROWS(U$7:$U170))) ->  | X170: =IF(ISERROR(SMALL($W$7:$W$1504,ROWS($W$7:W170))),"",SMALL($W$7:$W$1504,ROWS($W$7:W170))) -> 
B171: Skuodo r. sav. | C171: Per metus išregistruota juridinių asmenų skaičius | vnt. | D171: 26 | E171: 7 | F171: 8 | G171: 7 | H171: 10 | I171: 18 | J171: 66 | K171: 12 | L171: 11 | M171: 6 | N171: 16 | O171: 39 | P171: 31 | R171: =ROWS($R$7:R171) -> 165 | T171: =IF(ISERROR(SMALL($S$7:$S$1504,ROWS($S$7:S171))),"",SMALL($S$7:$S$1504,ROWS($S$7:S171))) ->  | V171: =IF(ISERROR(SMALL($U$7:$U$1504,ROWS(U$7:$U171))),"",SMALL($U$7:$U$1504,ROWS(U$7:$U171))) ->  | X171: =IF(ISERROR(SMALL($W$7:$W$1504,ROWS($W$7:W171))),"",SMALL($W$7:$W$1504,ROWS($W$7:W171))) -> 
B172: Šilutės r. sav. | C172: Per metus išregistruota juridinių asmenų skaičius | vnt. | D172: 68 | E172: 32 | F172: 45 | G172: 29 | H172: 39 | I172: 42 | J172: 136 | K172: 35 | L172: 46 | M172: 45 | N172: 54 | O172: 165 | P172: 91 | R172: =ROWS($R$7:R172) -> 166 | T172: =IF(ISERROR(SMALL($S$7:$S$1504,ROWS($S$7:S172))),"",SMALL($S$7:$S$1504,ROWS($S$7:S172))) ->  | V172: =IF(ISERROR(SMALL($U$7:$U$1504,ROWS(U$7:$U172))),"",SMALL($U$7:$U$1504,ROWS(U$7:$U172))) ->  | X172: =IF(ISERROR(SMALL($W$7:$W$1504,ROWS($W$7:W172))),"",SMALL($W$7:$W$1504,ROWS($W$7:W172))) -> 
B173: Marijampolės apskritis | C173: Per metus išregistruota juridinių asmenų skaičius | vnt. | D173: 203 | E173: 92 | F173: 115 | G173: 111 | H173: 174 | I173: 228 | J173: 492 | K173: 162 | L173: 181 | M173: 126 | N173: 99 | O173: 303 | P173: 214 | R173: =ROWS($R$7:R173) -> 167 | T173: =IF(ISERROR(SMALL($S$7:$S$1504,ROWS($S$7:S173))),"",SMALL($S$7:$S$1504,ROWS($S$7:S173))) ->  | V173: =IF(ISERROR(SMALL($U$7:$U$1504,ROWS(U$7:$U173))),"",SMALL($U$7:$U$1504,ROWS(U$7:$U173))) ->  | X173: =IF(ISERROR(SMALL($W$7:$W$1504,ROWS($W$7:W173))),"",SMALL($W$7:$W$1504,ROWS($W$7:W173))) -> 
B174: Kalvarijos sav. | C174: Per metus išregistruota juridinių asmenų skaičius | vnt. | D174: 13 | E174: 8 | F174: 4 | G174: 6 | H174: 6 | I174: 21 | J174: 34 | K174: 9 | L174: 11 | M174: 6 | N174: 1 | O174: 17 | P174: 12 | R174: =ROWS($R$7:R174) -> 168 | T174: =IF(ISERROR(SMALL($S$7:$S$1504,ROWS($S$7:S174))),"",SMALL($S$7:$S$1504,ROWS($S$7:S174))) ->  | V174: =IF(ISERROR(SMALL($U$7:$U$1504,ROWS(U$7:$U174))),"",SMALL($U$7:$U$1504,ROWS(U$7:$U174))) ->  | X174: =IF(ISERROR(SMALL($W$7:$W$1504,ROWS($W$7:W174))),"",SMALL($W$7:$W$1504,ROWS($W$7:W174))) -> 
B175: Kazlų Rūdos sav. | C175: Per metus išregistruota juridinių asmenų skaičius | vnt. | D175: 15 | E175: 6 | F175: 11 | G175: 4 | H175: 10 | I175: 22 | J175: 42 | K175: 18 | L175: 24 | M175: 10 | N175: 10 | O175: 28 | P175: 14 | R175: =ROWS($R$7:R175) -> 169 | T175: =IF(ISERROR(SMALL($S$7:$S$1504,ROWS($S$7:S175))),"",SMALL($S$7:$S$1504,ROWS($S$7:S175))) ->  | V175: =IF(ISERROR(SMALL($U$7:$U$1504,ROWS(U$7:$U175))),"",SMALL($U$7:$U$1504,ROWS(U$7:$U175))) ->  | X175: =IF(ISERROR(SMALL($W$7:$W$1504,ROWS($W$7:W175))),"",SMALL($W$7:$W$1504,ROWS($W$7:W175))) -> 
B176: Marijampolės sav. | C176: Per metus išregistruota juridinių asmenų skaičius | vnt. | D176: 112 | E176: 40 | F176: 66 | G176: 65 | H176: 71 | I176: 118 | J176: 232 | K176: 84 | L176: 80 | M176: 58 | N176: 51 | O176: 168 | P176: 103 | R176: =ROWS($R$7:R176) -> 170 | T176: =IF(ISERROR(SMALL($S$7:$S$1504,ROWS($S$7:S176))),"",SMALL($S$7:$S$1504,ROWS($S$7:S176))) ->  | V176: =IF(ISERROR(SMALL($U$7:$U$1504,ROWS(U$7:$U176))),"",SMALL($U$7:$U$1504,ROWS(U$7:$U176))) ->  | X176: =IF(ISERROR(SMALL($W$7:$W$1504,ROWS($W$7:W176))),"",SMALL($W$7:$W$1504,ROWS($W$7:W176))) -> 
B177: Šakių r. sav. | C177: Per metus išregistruota juridinių asmenų skaičius | vnt. | D177: 15 | E177: 20 | F177: 19 | G177: 19 | H177: 44 | I177: 19 | J177: 73 | K177: 15 | L177: 19 | M177: 24 | N177: 12 | O177: 36 | P177: 53 | R177: =ROWS($R$7:R177) -> 171 | T177: =IF(ISERROR(SMALL($S$7:$S$1504,ROWS($S$7:S177))),"",SMALL($S$7:$S$1504,ROWS($S$7:S177))) ->  | V177: =IF(ISERROR(SMALL($U$7:$U$1504,ROWS(U$7:$U177))),"",SMALL($U$7:$U$1504,ROWS(U$7:$U177))) ->  | X177: =IF(ISERROR(SMALL($W$7:$W$1504,ROWS($W$7:W177))),"",SMALL($W$7:$W$1504,ROWS($W$7:W177))) -> 
B178: Vilkaviškio r. sav. | C178: Per metus išregistruota juridinių asmenų skaičius | vnt. | D178: 48 | E178: 18 | F178: 15 | G178: 17 | H178: 43 | I178: 48 | J178: 111 | K178: 36 | L178: 47 | M178: 28 | N178: 25 | O178: 54 | P178: 32 | R178: =ROWS($R$7:R178) -> 172 | T178: =IF(ISERROR(SMALL($S$7:$S$1504,ROWS($S$7:S178))),"",SMALL($S$7:$S$1504,ROWS($S$7:S178))) ->  | V178: =IF(ISERROR(SMALL($U$7:$U$1504,ROWS(U$7:$U178))),"",SMALL($U$7:$U$1504,ROWS(U$7:$U178))) ->  | X178: =IF(ISERROR(SMALL($W$7:$W$1504,ROWS($W$7:W178))),"",SMALL($W$7:$W$1504,ROWS($W$7:W178))) -> 
B179: Panevėžio apskritis | C179: Per metus išregistruota juridinių asmenų skaičius | vnt. | D179: 426 | E179: 295 | F179: 243 | G179: 216 | H179: 269 | I179: 267 | J179: 1041 | K179: 251 | L179: 300 | M179: 268 | N179: 268 | O179: 359 | P179: 558 | R179: =ROWS($R$7:R179) -> 173 | T179: =IF(ISERROR(SMALL($S$7:$S$1504,ROWS($S$7:S179))),"",SMALL($S$7:$S$1504,ROWS($S$7:S179))) ->  | V179: =IF(ISERROR(SMALL($U$7:$U$1504,ROWS(U$7:$U179))),"",SMALL($U$7:$U$1504,ROWS(U$7:$U179))) ->  | X179: =IF(ISERROR(SMALL($W$7:$W$1504,ROWS($W$7:W179))),"",SMALL($W$7:$W$1504,ROWS($W$7:W179))) -> 
B180: Biržų r. sav. | C180: Per metus išregistruota juridinių asmenų skaičius | vnt. | D180: 41 | E180: 21 | F180: 15 | G180: 7 | H180: 25 | I180: 21 | J180: 104 | K180: 20 | L180: 18 | M180: 16 | N180: 25 | O180: 28 | P180: 44 | R180: =ROWS($R$7:R180) -> 174 | T180: =IF(ISERROR(SMALL($S$7:$S$1504,ROWS($S$7:S180))),"",SMALL($S$7:$S$1504,ROWS($S$7:S180))) ->  | V180: =IF(ISERROR(SMALL($U$7:$U$1504,ROWS(U$7:$U180))),"",SMALL($U$7:$U$1504,ROWS(U$7:$U180))) ->  | X180: =IF(ISERROR(SMALL($W$7:$W$1504,ROWS($W$7:W180))),"",SMALL($W$7:$W$1504,ROWS($W$7:W180))) -> 
B181: Kupiškio r. sav. | C181: Per metus išregistruota juridinių asmenų skaičius | vnt. | D181: 34 | E181: 20 | F181: 26 | G181: 10 | H181: 22 | I181: 19 | J181: 53 | K181: 20 | L181: 15 | M181: 23 | N181: 21 | O181: 17 | P181: 42 | R181: =ROWS($R$7:R181) -> 175 | T181: =IF(ISERROR(SMALL($S$7:$S$1504,ROWS($S$7:S181))),"",SMALL($S$7:$S$1504,ROWS($S$7:S181))) ->  | V181: =IF(ISERROR(SMALL($U$7:$U$1504,ROWS(U$7:$U181))),"",SMALL($U$7:$U$1504,ROWS(U$7:$U181))) ->  | X181: =IF(ISERROR(SMALL($W$7:$W$1504,ROWS($W$7:W181))),"",SMALL($W$7:$W$1504,ROWS($W$7:W181))) -> 
B182: Panevėžio m. sav. | C182: Per metus išregistruota juridinių asmenų skaičius | vnt. | D182: 225 | E182: 140 | F182: 131 | G182: 128 | H182: 155 | I182: 162 | J182: 583 | K182: 138 | L182: 188 | M182: 165 | N182: 133 | O182: 208 | P182: 325 | R182: =ROWS($R$7:R182) -> 176 | T182: =IF(ISERROR(SMALL($S$7:$S$1504,ROWS($S$7:S182))),"",SMALL($S$7:$S$1504,ROWS($S$7:S182))) ->  | V182: =IF(ISERROR(SMALL($U$7:$U$1504,ROWS(U$7:$U182))),"",SMALL($U$7:$U$1504,ROWS(U$7:$U182))) ->  | X182: =IF(ISERROR(SMALL($W$7:$W$1504,ROWS($W$7:W182))),"",SMALL($W$7:$W$1504,ROWS($W$7:W182))) -> 
B183: Panevėžio r. sav. | C183: Per metus išregistruota juridinių asmenų skaičius | vnt. | D183: 55 | E183: 68 | F183: 30 | G183: 37 | H183: 30 | I183: 23 | J183: 139 | K183: 31 | L183: 34 | M183: 26 | N183: 44 | O183: 49 | P183: 69 | R183: =ROWS($R$7:R183) -> 177 | T183: =IF(ISERROR(SMALL($S$7:$S$1504,ROWS($S$7:S183))),"",SMALL($S$7:$S$1504,ROWS($S$7:S183))) ->  | V183: =IF(ISERROR(SMALL($U$7:$U$1504,ROWS(U$7:$U183))),"",SMALL($U$7:$U$1504,ROWS(U$7:$U183))) ->  | X183: =IF(ISERROR(SMALL($W$7:$W$1504,ROWS($W$7:W183))),"",SMALL($W$7:$W$1504,ROWS($W$7:W183))) -> 
B184: Pasvalio r. sav. | C184: Per metus išregistruota juridinių asmenų skaičius | vnt. | D184: 36 | E184: 23 | F184: 20 | G184: 20 | H184: 17 | I184: 16 | J184: 74 | K184: 16 | L184: 17 | M184: 15 | N184: 20 | O184: 20 | P184: 31 | R184: =ROWS($R$7:R184) -> 178 | T184: =IF(ISERROR(SMALL($S$7:$S$1504,ROWS($S$7:S184))),"",SMALL($S$7:$S$1504,ROWS($S$7:S184))) ->  | V184: =IF(ISERROR(SMALL($U$7:$U$1504,ROWS(U$7:$U184))),"",SMALL($U$7:$U$1504,ROWS(U$7:$U184))) ->  | X184: =IF(ISERROR(SMALL($W$7:$W$1504,ROWS($W$7:W184))),"",SMALL($W$7:$W$1504,ROWS($W$7:W184))) ->  | Z184: 6 | AA184: =+INDEX($AA$7:$AA$28,Z184) -> Veikiančių mažų ir vidutinių įmonių skaičius metų pradžioje | vnt.
B185: Rokiškio r. sav. | C185: Per metus išregistruota juridinių asmenų skaičius | vnt. | D185: 35 | E185: 23 | F185: 21 | G185: 14 | H185: 20 | I185: 26 | J185: 88 | K185: 26 | L185: 28 | M185: 23 | N185: 25 | O185: 37 | P185: 47 | R185: =ROWS($R$7:R185) -> 179 | T185: =IF(ISERROR(SMALL($S$7:$S$1504,ROWS($S$7:S185))),"",SMALL($S$7:$S$1504,ROWS($S$7:S185))) ->  | V185: =IF(ISERROR(SMALL($U$7:$U$1504,ROWS(U$7:$U185))),"",SMALL($U$7:$U$1504,ROWS(U$7:$U185))) ->  | X185: =IF(ISERROR(SMALL($W$7:$W$1504,ROWS($W$7:W185))),"",SMALL($W$7:$W$1504,ROWS($W$7:W185))) ->  | AB185: =+AB$6 -> 2010 | AC185: 2011 | AD185: 2012 | AE185: 2013 | AF185: 2014 | AG185: 2015 | AH185: 2016 | AI185: 2017 | AJ185: 2018 | AK185: 2019 | AL185: 2020 | AM185: 2021 | AN185: 2022 | AO185: 2023
B186: Šiaulių apskritis | C186: Per metus išregistruota juridinių asmenų skaičius | vnt. | D186: 585 | E186: 280 | F186: 219 | G186: 223 | H186: 258 | I186: 388 | J186: 1556 | K186: 394 | L186: 402 | M186: 289 | N186: 224 | O186: 710 | P186: 946 | R186: =ROWS($R$7:R186) -> 180 | T186: =IF(ISERROR(SMALL($S$7:$S$1504,ROWS($S$7:S186))),"",SMALL($S$7:$S$1504,ROWS($S$7:S186))) ->  | V186: =IF(ISERROR(SMALL($U$7:$U$1504,ROWS(U$7:$U186))),"",SMALL($U$7:$U$1504,ROWS(U$7:$U186))) ->  | X186: =IF(ISERROR(SMALL($W$7:$W$1504,ROWS($W$7:W186))),"",SMALL($W$7:$W$1504,ROWS($W$7:W186))) ->  | AA186: =+INDEX($Z$7:$Z$28,MATCH($AA184,$AA$7:$AA$28,0)) -> Vilniaus m. sav. | AB186: =+INDEX(AB$7:AB$28,MATCH($AA184,$AA$7:$AA$28,0)) -> 20753 | AC186: 21816 | AD186: 21047 | AE186: 22659 | AF186: 23958 | AG186: 28081 | AH186: 29670 | AI186: 30531 | AJ186: 30213 | AK186: =+INDEX(AK$7:AK$28,MATCH($AA184,$AA$7:$AA$28,0)) -> 30516 | AL186: =+INDEX(AL$7:AL$28,MATCH($AA184,$AA$7:$AA$28,0)) -> 31392 | AM186: =+INDEX(AM$7:AM$28,MATCH($AA184,$AA$7:$AA$28,0)) -> 31618 | AN186: =+INDEX(AN$7:AN$28,MATCH($AA184,$AA$7:$AA$28,0)) -> 33781 | AO186: =+INDEX(AO$7:AO$28,MATCH($AA184,$AA$7:$AA$28,0)) -> 36228
B187: Akmenės r. sav. | C187: Per metus išregistruota juridinių asmenų skaičius | vnt. | D187: 20 | E187: 18 | F187: 13 | G187: 20 | H187: 22 | I187: 21 | J187: 136 | K187: 16 | L187: 30 | M187: 14 | N187: 15 | O187: 29 | P187: 73 | R187: =ROWS($R$7:R187) -> 181 | T187: =IF(ISERROR(SMALL($S$7:$S$1504,ROWS($S$7:S187))),"",SMALL($S$7:$S$1504,ROWS($S$7:S187))) ->  | V187: =IF(ISERROR(SMALL($U$7:$U$1504,ROWS(U$7:$U187))),"",SMALL($U$7:$U$1504,ROWS(U$7:$U187))) ->  | X187: =IF(ISERROR(SMALL($W$7:$W$1504,ROWS($W$7:W187))),"",SMALL($W$7:$W$1504,ROWS($W$7:W187))) ->  | AA187: =IF(ISERROR(INDEX($Z$31:$Z$52,MATCH(AA184,$AA$31:$AA$52,0))),"",INDEX($Z$31:$Z$52,MATCH(AA184,$AA$31:$AA$52,0))) -> Vilniaus apskritis | AB187: =IF(ISERROR(INDEX(AB$31:AB$52,MATCH($AA184,$AA$31:$AA$52,0))),"",INDEX(AB$31:AB$52,MATCH($AA184,$AA$31:$AA$52,0))) -> 23786 | AC187: 25071 | AD187: 24141 | AE187: 26070 | AF187: 27545 | AG187: 32122 | AH187: 33998 | AI187: 35119 | AJ187: 34923 | AK187: =IF(ISERROR(INDEX(AK$31:AK$52,MATCH($AA184,$AA$31:$AA$52,0))),"",INDEX(AK$31:AK$52,MATCH($AA184,$AA$31:$AA$52,0))) -> 35384 | AL187: =IF(ISERROR(INDEX(AL$31:AL$52,MATCH($AA184,$AA$31:$AA$52,0))),"",INDEX(AL$31:AL$52,MATCH($AA184,$AA$31:$AA$52,0))) -> 36478 | AM187: =IF(ISERROR(INDEX(AM$31:AM$52,MATCH($AA184,$AA$31:$AA$52,0))),"",INDEX(AM$31:AM$52,MATCH($AA184,$AA$31:$AA$52,0))) -> 36945 | AN187: =IF(ISERROR(INDEX(AN$31:AN$52,MATCH($AA184,$AA$31:$AA$52,0))),"",INDEX(AN$31:AN$52,MATCH($AA184,$AA$31:$AA$52,0))) -> 39639 | AO187: =IF(ISERROR(INDEX(AO$31:AO$52,MATCH($AA184,$AA$31:$AA$52,0))),"",INDEX(AO$31:AO$52,MATCH($AA184,$AA$31:$AA$52,0))) -> 42774
B188: Joniškio r. sav. | C188: Per metus išregistruota juridinių asmenų skaičius | vnt. | D188: 33 | E188: 18 | F188: 13 | G188: 12 | H188: 13 | I188: 20 | J188: 97 | K188: 29 | L188: 35 | M188: 11 | N188: 9 | O188: 34 | P188: 51 | R188: =ROWS($R$7:R188) -> 182 | T188: =IF(ISERROR(SMALL($S$7:$S$1504,ROWS($S$7:S188))),"",SMALL($S$7:$S$1504,ROWS($S$7:S188))) ->  | V188: =IF(ISERROR(SMALL($U$7:$U$1504,ROWS(U$7:$U188))),"",SMALL($U$7:$U$1504,ROWS(U$7:$U188))) ->  | X188: =IF(ISERROR(SMALL($W$7:$W$1504,ROWS($W$7:W188))),"",SMALL($W$7:$W$1504,ROWS($W$7:W188))) ->  | AA188: =IF(ISERROR(INDEX($Z$55:$Z$76,MATCH(AA184,$AA$55:$AA$76,0))),"",INDEX($Z$55:$Z$76,MATCH(AA184,$AA$55:$AA$76,0))) -> Lietuvos Respublika | AB188: =IF(ISERROR(INDEX(AB$55:AB$76,MATCH($AA184,$AA$55:$AA$76,0))),"",INDEX(AB$55:AB$76,MATCH($AA184,$AA$55:$AA$76,0))) -> 63447 | AC188: 66534 | AD188: 62586 | AE188: 65461 | AF188: 67943 | AG188: 76076 | AH188: 79472 | AI188: 82885 | AJ188: 83069 | AK188: =IF(ISERROR(INDEX(AK$55:AK$76,MATCH($AA184,$AA$55:$AA$76,0))),"",INDEX(AK$55:AK$76,MATCH($AA184,$AA$55:$AA$76,0))) -> 84510 | AL188: =IF(ISERROR(INDEX(AL$55:AL$76,MATCH($AA184,$AA$55:$AA$76,0))),"",INDEX(AL$55:AL$76,MATCH($AA184,$AA$55:$AA$76,0))) -> 86738 | AM188: =IF(ISERROR(INDEX(AM$55:AM$76,MATCH($AA184,$AA$55:$AA$76,0))),"",INDEX(AM$55:AM$76,MATCH($AA184,$AA$55:$AA$76,0))) -> 87284 | AN188: =IF(ISERROR(INDEX(AN$55:AN$76,MATCH($AA184,$AA$55:$AA$76,0))),"",INDEX(AN$55:AN$76,MATCH($AA184,$AA$55:$AA$76,0))) -> 92628 | AO188: =IF(ISERROR(INDEX(AO$55:AO$76,MATCH($AA184,$AA$55:$AA$76,0))),"",INDEX(AO$55:AO$76,MATCH($AA184,$AA$55:$AA$76,0))) -> 100045
B189: Kelmės r. sav. | C189: Per metus išregistruota juridinių asmenų skaičius | vnt. | D189: 34 | E189: 12 | F189: 17 | G189: 14 | H189: 20 | I189: 19 | J189: 184 | K189: 26 | L189: 27 | M189: 20 | N189: 17 | O189: 28 | P189: 58 | R189: =ROWS($R$7:R189) -> 183 | T189: =IF(ISERROR(SMALL($S$7:$S$1504,ROWS($S$7:S189))),"",SMALL($S$7:$S$1504,ROWS($S$7:S189))) ->  | V189: =IF(ISERROR(SMALL($U$7:$U$1504,ROWS(U$7:$U189))),"",SMALL($U$7:$U$1504,ROWS(U$7:$U189))) ->  | X189: =IF(ISERROR(SMALL($W$7:$W$1504,ROWS($W$7:W189))),"",SMALL($W$7:$W$1504,ROWS($W$7:W189))) -> 
B190: Pakruojo r. sav. | C190: Per metus išregistruota juridinių asmenų skaičius | vnt. | D190: 59 | E190: 18 | F190: 16 | G190: 9 | H190: 21 | I190: 23 | J190: 61 | K190: 13 | L190: 15 | M190: 18 | N190: 12 | O190: 16 | P190: 29 | R190: =ROWS($R$7:R190) -> 184 | T190: =IF(ISERROR(SMALL($S$7:$S$1504,ROWS($S$7:S190))),"",SMALL($S$7:$S$1504,ROWS($S$7:S190))) ->  | V190: =IF(ISERROR(SMALL($U$7:$U$1504,ROWS(U$7:$U190))),"",SMALL($U$7:$U$1504,ROWS(U$7:$U190))) ->  | X190: =IF(ISERROR(SMALL($W$7:$W$1504,ROWS($W$7:W190))),"",SMALL($W$7:$W$1504,ROWS($W$7:W190))) -> 
B191: Radviliškio r. sav. | C191: Per metus išregistruota juridinių asmenų skaičius | vnt. | D191: 115 | E191: 41 | F191: 25 | G191: 27 | H191: 24 | I191: 26 | J191: 132 | K191: 32 | L191: 31 | M191: 25 | N191: 20 | O191: 44 | P191: 76 | R191: =ROWS($R$7:R191) -> 185 | T191: =IF(ISERROR(SMALL($S$7:$S$1504,ROWS($S$7:S191))),"",SMALL($S$7:$S$1504,ROWS($S$7:S191))) ->  | V191: =IF(ISERROR(SMALL($U$7:$U$1504,ROWS(U$7:$U191))),"",SMALL($U$7:$U$1504,ROWS(U$7:$U191))) ->  | X191: =IF(ISERROR(SMALL($W$7:$W$1504,ROWS($W$7:W191))),"",SMALL($W$7:$W$1504,ROWS($W$7:W191))) -> 
B192: Šiaulių m. sav. | C192: Per metus išregistruota juridinių asmenų skaičius | vnt. | D192: 265 | E192: 144 | F192: 109 | G192: 117 | H192: 132 | I192: 222 | J192: 765 | K192: 223 | L192: 203 | M192: 164 | N192: 124 | O192: 480 | P192: 546 | R192: =ROWS($R$7:R192) -> 186 | T192: =IF(ISERROR(SMALL($S$7:$S$1504,ROWS($S$7:S192))),"",SMALL($S$7:$S$1504,ROWS($S$7:S192))) ->  | V192: =IF(ISERROR(SMALL($U$7:$U$1504,ROWS(U$7:$U192))),"",SMALL($U$7:$U$1504,ROWS(U$7:$U192))) ->  | X192: =IF(ISERROR(SMALL($W$7:$W$1504,ROWS($W$7:W192))),"",SMALL($W$7:$W$1504,ROWS($W$7:W192))) -> 
B193: Šiaulių r. sav. | C193: Per metus išregistruota juridinių asmenų skaičius | vnt. | D193: 59 | E193: 29 | F193: 26 | G193: 24 | H193: 26 | I193: 57 | J193: 181 | K193: 55 | L193: 61 | M193: 37 | N193: 27 | O193: 79 | P193: 113 | R193: =ROWS($R$7:R193) -> 187 | T193: =IF(ISERROR(SMALL($S$7:$S$1504,ROWS($S$7:S193))),"",SMALL($S$7:$S$1504,ROWS($S$7:S193))) ->  | V193: =IF(ISERROR(SMALL($U$7:$U$1504,ROWS(U$7:$U193))),"",SMALL($U$7:$U$1504,ROWS(U$7:$U193))) ->  | X193: =IF(ISERROR(SMALL($W$7:$W$1504,ROWS($W$7:W193))),"",SMALL($W$7:$W$1504,ROWS($W$7:W193))) -> 
B194: Tauragės apskritis | C194: Per metus išregistruota juridinių asmenų skaičius | vnt. | D194: 145 | E194: 73 | F194: 74 | G194: 64 | H194: 105 | I194: 153 | J194: 291 | K194: 66 | L194: 95 | M194: 96 | N194: 117 | O194: 153 | P194: 134 | R194: =ROWS($R$7:R194) -> 188 | T194: =IF(ISERROR(SMALL($S$7:$S$1504,ROWS($S$7:S194))),"",SMALL($S$7:$S$1504,ROWS($S$7:S194))) ->  | V194: =IF(ISERROR(SMALL($U$7:$U$1504,ROWS(U$7:$U194))),"",SMALL($U$7:$U$1504,ROWS(U$7:$U194))) ->  | X194: =IF(ISERROR(SMALL($W$7:$W$1504,ROWS($W$7:W194))),"",SMALL($W$7:$W$1504,ROWS($W$7:W194))) -> 
B195: Jurbarko r. sav. | C195: Per metus išregistruota juridinių asmenų skaičius | vnt. | D195: 39 | E195: 13 | F195: 23 | G195: 16 | H195: 38 | I195: 28 | J195: 88 | K195: 21 | L195: 27 | M195: 37 | N195: 35 | O195: 50 | P195: 29 | R195: =ROWS($R$7:R195) -> 189 | T195: =IF(ISERROR(SMALL($S$7:$S$1504,ROWS($S$7:S195))),"",SMALL($S$7:$S$1504,ROWS($S$7:S195))) ->  | V195: =IF(ISERROR(SMALL($U$7:$U$1504,ROWS(U$7:$U195))),"",SMALL($U$7:$U$1504,ROWS(U$7:$U195))) ->  | X195: =IF(ISERROR(SMALL($W$7:$W$1504,ROWS($W$7:W195))),"",SMALL($W$7:$W$1504,ROWS($W$7:W195))) -> 
B196: Pagėgių sav. | C196: Per metus išregistruota juridinių asmenų skaičius | vnt. | D196: 10 | E196: 15 | F196: 3 | G196: 4 | H196: 7 | I196: 14 | J196: 22 | K196: 4 | L196: 8 | M196: 6 | N196: 6 | O196: 16 | P196: 16 | R196: =ROWS($R$7:R196) -> 190 | T196: =IF(ISERROR(SMALL($S$7:$S$1504,ROWS($S$7:S196))),"",SMALL($S$7:$S$1504,ROWS($S$7:S196))) ->  | V196: =IF(ISERROR(SMALL($U$7:$U$1504,ROWS(U$7:$U196))),"",SMALL($U$7:$U$1504,ROWS(U$7:$U196))) ->  | X196: =IF(ISERROR(SMALL($W$7:$W$1504,ROWS($W$7:W196))),"",SMALL($W$7:$W$1504,ROWS($W$7:W196))) -> 
B197: Šilalės r. sav. | C197: Per metus išregistruota juridinių asmenų skaičius | vnt. | D197: 42 | E197: 12 | F197: 10 | G197: 12 | H197: 22 | I197: 24 | J197: 46 | K197: 6 | L197: 18 | M197: 11 | N197: 31 | O197: 25 | P197: 16 | R197: =ROWS($R$7:R197) -> 191 | T197: =IF(ISERROR(SMALL($S$7:$S$1504,ROWS($S$7:S197))),"",SMALL($S$7:$S$1504,ROWS($S$7:S197))) ->  | V197: =IF(ISERROR(SMALL($U$7:$U$1504,ROWS(U$7:$U197))),"",SMALL($U$7:$U$1504,ROWS(U$7:$U197))) ->  | X197: =IF(ISERROR(SMALL($W$7:$W$1504,ROWS($W$7:W197))),"",SMALL($W$7:$W$1504,ROWS($W$7:W197))) -> 
B198: Tauragės r. sav. | C198: Per metus išregistruota juridinių asmenų skaičius | vnt. | D198: 54 | E198: 33 | F198: 38 | G198: 32 | H198: 38 | I198: 87 | J198: 135 | K198: 35 | L198: 42 | M198: 42 | N198: 45 | O198: 62 | P198: 73 | R198: =ROWS($R$7:R198) -> 192 | T198: =IF(ISERROR(SMALL($S$7:$S$1504,ROWS($S$7:S198))),"",SMALL($S$7:$S$1504,ROWS($S$7:S198))) ->  | V198: =IF(ISERROR(SMALL($U$7:$U$1504,ROWS(U$7:$U198))),"",SMALL($U$7:$U$1504,ROWS(U$7:$U198))) ->  | X198: =IF(ISERROR(SMALL($W$7:$W$1504,ROWS($W$7:W198))),"",SMALL($W$7:$W$1504,ROWS($W$7:W198))) -> 
B199: Telšių apskritis | C199: Per metus išregistruota juridinių asmenų skaičius | vnt. | D199: 267 | E199: 149 | F199: 121 | G199: 107 | H199: 203 | I199: 216 | J199: 620 | K199: 182 | L199: 138 | M199: 168 | N199: 159 | O199: 381 | P199: 176 | R199: =ROWS($R$7:R199) -> 193 | S199: =IF(ISNUMBER(SEARCH($R$3,B199)),R199,"") ->  | T199: =IF(ISERROR(SMALL($S$7:$S$1504,ROWS($S$7:S199))),"",SMALL($S$7:$S$1504,ROWS($S$7:S199))) ->  | U199: =IF($R$4=B199,R199,"") ->  | V199: =IF(ISERROR(SMALL($U$7:$U$1504,ROWS(U$7:$U199))),"",SMALL($U$7:$U$1504,ROWS(U$7:$U199))) ->  | W199: =IF("Lietuvos Respublika"=B199,R199,"") ->  | X199: =IF(ISERROR(SMALL($W$7:$W$1504,ROWS($W$7:W199))),"",SMALL($W$7:$W$1504,ROWS($W$7:W199))) -> 
B200: Mažeikių r. sav. | C200: Per metus išregistruota juridinių asmenų skaičius | vnt. | D200: 138 | E200: 95 | F200: 55 | G200: 47 | H200: 131 | I200: 97 | J200: 306 | K200: 87 | L200: 62 | M200: 83 | N200: 56 | O200: 179 | P200: 84 | R200: =ROWS($R$7:R200) -> 194 | T200: =IF(ISERROR(SMALL($S$7:$S$1504,ROWS($S$7:S200))),"",SMALL($S$7:$S$1504,ROWS($S$7:S200))) ->  | V200: =IF(ISERROR(SMALL($U$7:$U$1504,ROWS(U$7:$U200))),"",SMALL($U$7:$U$1504,ROWS(U$7:$U200))) ->  | X200: =IF(ISERROR(SMALL($W$7:$W$1504,ROWS($W$7:W200))),"",SMALL($W$7:$W$1504,ROWS($W$7:W200))) -> 
B201: Plungės r. sav. | C201: Per metus išregistruota juridinių asmenų skaičius | vnt. | D201: 49 | E201: 22 | F201: 25 | G201: 26 | H201: 22 | I201: 63 | J201: 145 | K201: 36 | L201: 34 | M201: 27 | N201: 47 | O201: 84 | P201: 41 | R201: =ROWS($R$7:R201) -> 195 | T201: =IF(ISERROR(SMALL($S$7:$S$1504,ROWS($S$7:S201))),"",SMALL($S$7:$S$1504,ROWS($S$7:S201))) ->  | V201: =IF(ISERROR(SMALL($U$7:$U$1504,ROWS(U$7:$U201))),"",SMALL($U$7:$U$1504,ROWS(U$7:$U201))) ->  | X201: =IF(ISERROR(SMALL($W$7:$W$1504,ROWS($W$7:W201))),"",SMALL($W$7:$W$1504,ROWS($W$7:W201))) -> 
B202: Rietavo sav. | C202: Per metus išregistruota juridinių asmenų skaičius | vnt. | D202: 20 | E202: 3 | F202: 8 | G202: 4 | H202: 4 | I202: 9 | J202: 24 | K202: 12 | L202: 8 | M202: 4 | N202: 13 | O202: 18 | P202: 5 | R202: =ROWS($R$7:R202) -> 196 | T202: =IF(ISERROR(SMALL($S$7:$S$1504,ROWS($S$7:S202))),"",SMALL($S$7:$S$1504,ROWS($S$7:S202))) ->  | V202: =IF(ISERROR(SMALL($U$7:$U$1504,ROWS(U$7:$U202))),"",SMALL($U$7:$U$1504,ROWS(U$7:$U202))) ->  | X202: =IF(ISERROR(SMALL($W$7:$W$1504,ROWS($W$7:W202))),"",SMALL($W$7:$W$1504,ROWS($W$7:W202))) -> 
... 1302 more rows

Sheet Šaltiniai
B2: Rodiklis | C2: Šaltinis | D2: Duomenų atnaujinimo data | E2: Planuojamo atnaujinimo data
B3: Neišregistruotų juridinių asmenų skaičius metų pradžioje | vnt. | C3: VĮ Registrų centras | D3: 2023 m. sausis | E3: 2024 m. sausis
B4: Per metus įregistruota juridinių asmenų skaičius | vnt. | C4: VĮ Registrų centras | D4: 2023 m. sausis | E4: 2024 m. sausis
B5: Per metus išregistruota juridinių asmenų skaičius | vnt. | C5: VĮ Registrų centras | D5: 2023 m. sausis | E5: 2024 m. sausis
B6: Per metus įregistruota mažų ir vidutinių įmonių | vnt. | C6: Lietuvos statistikos departamentas | D6: 2023 m. sausis | E6: 2024-01-06
B7: Per metus išregistruota mažų ir vidutinių įmonių | vnt. | C7: Lietuvos statistikos departamentas | D7: 2023 m. sausis | E7: 2024-01-06
B8: Veikiančių mažų ir vidutinių įmonių skaičius metų pradžioje | vnt. | C8: Lietuvos statistikos departamentas | D8: 2023 m. sausis | E8: 2024-01-24
B9: Veikiančių įmonių skaičius metų pradžioje | vnt. | C9: Lietuvos statistikos departamentas | D9: 2023 m. sausis | E9: 2024-01-24
B10: Darbuotojų skaičius veikiančiose mažose ir vidutinėse įmonėse metų pradžioje | vnt. | C10: Lietuvos statistikos departamentas | D10: 2023 m. sausis | E10: 2024-01-24
B11: Darbuotojų skaičius veikiančiose įmonėse metų pradžioje | vnt. | C11: Lietuvos statistikos departamentas | D11: 2023 m. sausis | E11: 2024-01-24
B12: Asmenys, įsigiję verslo liudijimus | vnt. | C12: Valstybinė mokesčių inspekcija | D12: 2023 m. sausis | E12: 2024 m. sausis
B13: Veikiančių MVĮ tenkančios 1000 gyventojų metų pradžioje | vnt. | C13: Lietuvos statistikos departamentas ir VšĮ Inovaciju agentūra skaičiavimai | D13: 2023 m. sausis | E13: 2024-01-24
B14: Išgyvenusių 1 metus ir 1 dieną ir nepakeitusių statuso iš veikianti į kitą įmonių dalis tarp visų prieš metus įregistruotų įmonių | %* | C14: Valstybinė mokesčių inspekcija ir VšĮ Versli Lietuva skaičiavimai | D14: 2020-01-12* | E14: -
B15: Registruoti bedarbiai | tūkst. | C15: Lietuvos statistikos departamentas | D15: 2023 m. sausis | E15: 2024-01-26
B16: Registruotų bedarbių ir darbingo amžiaus gyventojų santykis | % | C16: Lietuvos statistikos departamentas | D16: 2023 m. sausis | E16: 2024-01-26
B17: Darbo užmokestis | mėnesinis | bruto | EUR ** | C17: Lietuvos statistikos departamentas | D17: 2023 m. sausis | E17: 2023-10-03
B18: Darbo užmokestis | mėnesinis | neto | EUR | C18: Lietuvos statistikos departamentas | D18: 2023 m. sausis | E18: 2023-10-03
B19: Materialinės investicijos to meto kainomis | mln. EUR | C19: Lietuvos statistikos departamentas | D19: 2023 m. sausis | E19: 2023-06-17
B20: Apyvarta pagal veiklos vykdymo vietą | mln. EUR | C20: Lietuvos statistikos departamentas | D20: 2023 m. sausis*** | E20: 2023-06-07
B21: Pridėtinė vertė gamybos kainomis pagal veiklos vykdymo vietą | mln. EUR | C21: Lietuvos statistikos departamentas | D21: 2023 m. sausis*** | E21: 2023-06-07
B22: Tarptautinės emigracijos lygis | % | C22: Lietuvos statistikos departamentas ir VšĮ Versli Lietuva skaičiavimai | D22: 2023 m. sausis | E22: 2024-01-16
B23: Tarptautinės imigracijos lygis | % | C23: Lietuvos statistikos departamentas ir VšĮ Versli Lietuva skaičiavimai | D23: 2023 m. sausis | E23: 2024-01-16
B24: * - Nuo 2020 m. duomenys nėra atnaujinami.
B25: ** - Nuo 2019 m. keitėsi brutto darbo užmokesčio apskaičiavimas.
B26: *** - Nuo 2018 m. duomenys nepalyginami, nutrūkusi laiko eilutė. Nuo ataskaitinių 2018 m. duomenys yra skelbiami pagal naują statistinį įmonės vienetą. Įmonė yra sudaryta iš juridinių vienetų grupės, juridinio vieneto ar juridinių vienetų dalies. Jei juridiniai vienetai priklauso įmonių grupei ir jų bendra veikla sudaro veiklos segmentą, tuomet šių juridinių vienetų grupė yra prilyginama įmonei.

Sheet listreg (hidden)
A1: Unique region list
A3: Lietuvos Respublika
A4: Akmenės r. sav.
A5: Alytaus apskritis
A6: Alytaus m. sav.
A7: Alytaus r. sav.
A8: Anykščių r. sav.
A9: Birštono sav.
A10: Biržų r. sav.
A11: Druskininkų sav.
A12: Elektrėnų sav.
A13: Ignalinos r. sav.
A14: Jonavos r. sav.
A15: Joniškio r. sav.
A16: Jurbarko r. sav.
A17: Kaišiadorių r. sav.
A18: Kalvarijos sav.
A19: Kauno apskritis
A20: Kauno m. sav.
A21: Kauno r. sav.
A22: Kazlų Rūdos sav.
A23: Kėdainių r. sav.
A24: Kelmės r. sav.
A25: Klaipėdos apskritis
A26: Klaipėdos m. sav.
A27: Klaipėdos r. sav.
A28: Kretingos r. sav.
A29: Kupiškio r. sav.
A30: Lazdijų r. sav.
A31: Marijampolės apskritis
A32: Marijampolės sav.
A33: Mažeikių r. sav.
A34: Molėtų r. sav.
A35: Neringos sav.
A36: Pagėgių sav.
A37: Pakruojo r. sav.
A38: Palangos m. sav.
A39: Panevėžio apskritis
A40: Panevėžio m. sav.
A41: Panevėžio r. sav.
A42: Pasvalio r. sav.
A43: Plungės r. sav.
A44: Prienų r. sav.
A45: Radviliškio r. sav.
A46: Raseinių r. sav.
A47: Rietavo sav.
A48: Rokiškio r. sav.
A49: Šakių r. sav.
A50: Šalčininkų r. sav.
A51: Šiaulių apskritis
A52: Šiaulių m. sav.
A53: Šiaulių r. sav.
A54: Šilalės r. sav.
A55: Šilutės r. sav.
A56: Širvintų r. sav.
A57: Skuodo r. sav.
A58: Švenčionių r. sav.
A59: Tauragės apskritis
A60: Tauragės r. sav.
A61: Telšių apskritis
A62: Telšių r. sav.
A63: Trakų r. sav.
A64: Ukmergės r. sav.
A65: Utenos apskritis
A66: Utenos r. sav.
A67: Varėnos r. sav.
A68: Vilkaviškio r. sav.
A69: Vilniaus apskritis
A70: Vilniaus m. sav.
A71: Vilniaus r. sav.
A72: Visagino sav.
A73: Zarasų r. sav.
